Workbook

Sheet Age profile chart

Sheet Forecast Ch1

Sheet Age profile summary
A1: Asset calcs | R1: Remaining life | W1: RC ($ millions) | AB1: RC (%)
R2: Very old | S2: Old | T2: moderate | U2: young | V2: new | W2: =R2 -> Very old | X2: =S2 -> Old | Y2: moderate | Z2: young | AA2: new | AB2: Very old | AC2: Old | AD2: moderate | AE2: young | AF2: new
M3: WARL | O3: WAL | Q3: WAA | R3: > | S3: > | T3: > | U3: > | V3: <=0.2 | W3: =R3 -> > | X3: > | Y3: > | Z3: > | AA3: <=0.2 | AB3: > | AC3: > | AD3: > | AE3: > | AF3: <=0.2
F4: Quantity | G4: Unit | H4: RC | I4: prop total | J4: Rank | K4: prop cat | L4: RC / unit | M4: (Rep life) | O4: Rep life | Q4: % Rep life | R4: =W4 -> 0.9 | S4: =X4 -> 0.8 | T4: =Y4 -> 0.4 | U4: =Z4 -> 0.2 | W4: 0.9 | X4: 0.8 | Y4: 0.4 | Z4: 0.2 | AA4: 0 | AB4: 0.9 | AC4: 0.8 | AD4: 0.4 | AE4: 0.2 | AF4: 0 | AG4: Std life | AH4: Std life | AI4: rep life
G5: Cost | H5: $ millions | I5: % | J5: total | K5: % | L5: $ ('000) | AG5: max | AH5: min
A6: 1 | D6: =VLOOKUP(A6,IDtable,2) -> POLES | F6: =SUMIF($A$21:$A$205,$A6,F$21:F$205) -> 487786 | H6: =SUMIF($A$21:$A$205,$A6,H$21:H$205)/1000 -> 4872.401077 | I6: =H6/($H$18) -> 0.2294514555 | J6: =RANK(I6,I$6:I$17) -> 2 | L6: =H6*1000/(F6+0.001) -> 9.988808755 | M6: =SUMIF($A$21:$A$205,$A6,N$21:N$205)/(H6*1000+0.000001) -> 27.44568934 | O6: =SUMIF($A$21:$A$205,$A6,P$21:P$205)/(H6*1000+0.000001) -> 58.24093927 | Q6: =(O6-M6)/(O6+0.000001) -> 0.5287560569 | R6: =$O6-R$4*$O6 -> 5.824093927 | S6: =$O6-S$4*$O6 -> 11.64818785 | T6: =$O6-T$4*$O6 -> 34.94456356 | U6: =$O6-U$4*$O6 -> 46.59275141 | V6: =$O6-V$4*$O6 -> 58.24093927 | W6: =SUMIF($A$21:$A$205,$A6,W$21:W$205)/1000 -> 124.125955 | X6: 137.7804878 | Y6: 3570.938944 | Z6: 356.0111468 | AA6: 683.5445438 | AB6: =IF($H6=0,0,W6/$H6) -> 0.02547531557 | AC6: =IF($H6=0,0,X6/$H6) -> 0.02827773937 | AD6: =IF($H6=0,0,Y6/$H6) -> 0.7328910094 | AE6: =IF($H6=0,0,Z6/$H6) -> 0.07306688041 | AF6: =IF($H6=0,0,AA6/$H6) -> 0.1402890552 | AG6: =MAX(IF($A$21:$A$205=$A6,$O$21:$O$205)) -> 76.61996162 | AH6: =MIN(IF($A$21:$A$205=$A6,$O$21:$O$205)) -> 32.24861145 | AI6: =IF(H6=0,0,SUMIF($A$21:$A$205,$A6,$AJ$21:$AJ$205)/(H6*1000)) -> 58.24093927
A7: 2 | D7: OVERHEAD CONDUCTORS | F7: =SUMIF($A$21:$A$205,$A7,F$21:F$205) -> 68953.8 | H7: =SUMIF($A$21:$A$205,$A7,H$21:H$205)/1000 -> 8243.353051 | I7: =H7/($H$18) -> 0.3881965638 | J7: 1 | L7: 119.5489289 | M7: 56.27521209 | O7: 88.86622864 | Q7: 0.3667424249 | R7: =$O7-R$4*$O7 -> 8.886622864 | S7: 17.77324573 | T7: 53.31973719 | U7: 71.09298291 | V7: 88.86622864 | W7: 38.38324981 | X7: 51.83967747 | Y7: 3577.763 | Z7: 2807.625413 | AA7: 1767.741711 | AB7: =IF($H7=0,0,W7/$H7) -> 0.00465626664 | AC7: =IF($H7=0,0,X7/$H7) -> 0.006288663987 | AD7: =IF($H7=0,0,Y7/$H7) -> 0.4340179266 | AE7: =IF($H7=0,0,Z7/$H7) -> 0.3405926442 | AF7: =IF($H7=0,0,AA7/$H7) -> 0.2144444985 | AG7: =MAX(IF($A$21:$A$205=$A7,$O$21:$O$205)) -> 93.17218409 | AH7: =MIN(IF($A$21:$A$205=$A7,$O$21:$O$205)) -> 82.48397655 | AI7: =IF(H7=0,0,SUMIF($A$21:$A$205,$A7,$AJ$21:$AJ$205)/(H7*1000)) -> 88.86622864
A8: 3 | D8: UNDERGROUND CABLES | F8: 6466.659549 | H8: 3221.074794 | I8: 0.1516870816 | J8: 3 | L8: 498.1048209 | M8: 32.58960449 | O8: 45.70686904 | Q8: 0.2869867163 | R8: 4.570686904 | S8: 9.141373808 | T8: 27.42412142 | U8: 36.56549523 | V8: 45.70686904 | W8: 42.65001309 | X8: 48.22274995 | Y8: 639.588848 | Z8: 1275.153134 | AA8: 1215.460049 | AB8: 0.01324092603 | AC8: 0.01497101217 | AD8: 0.198563799 | AE8: 0.3958781511 | AF8: 0.3773461117 | AG8: =MAX(IF($A$21:$A$205=$A8,$O$21:$O$205)) -> 48.41820404 | AH8: =MIN(IF($A$21:$A$205=$A8,$O$21:$O$205)) -> 41.42903072 | AI8: 45.70686904
A9: 4 | D9: SERVICE LINES | F9: 10910.43356 | H9: 634.8237116 | I9: 0.02989516304 | J9: 6 | L9: 58.18500703 | M9: 32.88675518 | O9: 60.07031237 | Q9: 0.4525289726 | R9: 6.007031237 | S9: 12.01406247 | T9: 36.04218742 | U9: 48.0562499 | V9: 60.07031237 | W9: 40.20673997 | X9: 43.80257373 | Y9: 274.5991651 | Z9: 94.11777958 | AA9: 182.0974532 | AB9: 0.06333528385 | AC9: 0.06899958671 | AD9: 0.4325597171 | AE9: 0.1482581351 | AF9: 0.2868472772 | AG9: =MAX(IF($A$21:$A$205=$A9,$O$21:$O$205)) -> 60.07031237 | AH9: =MIN(IF($A$21:$A$205=$A9,$O$21:$O$205)) -> 60.07031237 | AI9: 60.07031237
A10: 5 | D10: TRANSFORMERS | F10: 83860 | H10: 2846.464753 | I10: 0.1340459191 | J10: 4 | L10: 33.94305652 | M10: 35.24692612 | O10: 61.66309496 | Q10: 0.4283951111 | R10: 6.166309496 | S10: 12.33261899 | T10: 36.99785698 | U10: 49.33047597 | V10: 61.66309496 | W10: 104.7970992 | X10: 155.5877129 | Y10: 1256.99959 | Z10: 642.8356882 | AA10: 686.2446629 | AB10: 0.03681658066 | AC10: 0.05465998227 | AD10: 0.4416002653 | AE10: 0.2258365179 | AF10: 0.2410866539 | AG10: =MAX(IF($A$21:$A$205=$A10,$O$21:$O$205)) -> 66.7773034 | AH10: =MIN(IF($A$21:$A$205=$A10,$O$21:$O$205)) -> 28.55177923 | AI10: 61.66309496
A11: 6 | D11: SWITCHGEAR | F11: 367331 | H11: 1416.880084 | I11: 0.06672381694 | J11: 5 | L11: 3.857229801 | M11: 34.64409856 | O11: 57.20413243 | Q11: 0.3943776878 | R11: 5.720413243 | S11: 11.44082649 | T11: 34.32247946 | U11: 45.76330595 | V11: 57.20413243 | W11: 78.61766833 | X11: 60.02440758 | Y11: 523.1592217 | Z11: 289.1286599 | AA11: 465.9501265 | AB11: 0.0554864658 | AC11: 0.04236378806 | AD11: 0.3692332383 | AE11: 0.2040600776 | AF11: 0.3288564302 | AG11: =MAX(IF($A$21:$A$205=$A11,$O$21:$O$205)) -> 80.30990086 | AH11: =MIN(IF($A$21:$A$205=$A11,$O$21:$O$205)) -> 48.82384721 | AI11: 57.20413243
A12: 7 | D12: PUBLIC LIGHTING | F12: 0 | H12: 0 | I12: 0 | J12: 7 | L12: 0 | M12: 0 | O12: 0 | Q12: 0 | R12: 0 | S12: 0 | T12: 0 | U12: 0 | V12: 0 | W12: 0 | X12: 0 | Y12: 0 | Z12: 0 | AA12: 0 | AB12: 0 | AC12: 0 | AD12: 0 | AE12: 0 | AF12: 0 | AG12: =MAX(IF($A$21:$A$205=$A12,$O$21:$O$205)) -> 0 | AH12: =MIN(IF($A$21:$A$205=$A12,$O$21:$O$205)) -> 0 | AI12: 0
A13: 8 | D13: SCADA, NETWORK CONTROL AND PROTECTION | F13: 0 | H13: 0 | I13: 0 | J13: 7 | L13: 0 | M13: 0 | O13: 0 | Q13: 0 | R13: 0 | S13: 0 | T13: 0 | U13: 0 | V13: 0 | W13: 0 | X13: 0 | Y13: 0 | Z13: 0 | AA13: 0 | AB13: 0 | AC13: 0 | AD13: 0 | AE13: 0 | AF13: 0 | AG13: =MAX(IF($A$21:$A$205=$A13,$O$21:$O$205)) -> 0 | AH13: =MIN(IF($A$21:$A$205=$A13,$O$21:$O$205)) -> 0 | AI13: 0
A14: 9 | D14: =VLOOKUP(A14,IDtable,2) -> OTHER | F14: =SUMIF($A$21:$A$205,$A14,F$21:F$205) -> 0 | H14: =SUMIF($A$21:$A$205,$A14,H$21:H$205)/1000 -> 0 | I14: =H14/($H$18) -> 0 | J14: 7 | L14: 0 | M14: 0 | O14: 0 | Q14: 0 | R14: =$O14-R$4*$O14 -> 0 | S14: 0 | T14: 0 | U14: 0 | V14: 0 | W14: 0 | X14: 0 | Y14: 0 | Z14: 0 | AA14: 0 | AB14: 0 | AC14: 0 | AD14: 0 | AE14: 0 | AF14: 0 | AG14: =MAX(IF($A$21:$A$205=$A14,$O$21:$O$205)) -> 0 | AH14: =MIN(IF($A$21:$A$205=$A14,$O$21:$O$205)) -> 0 | AI14: 0
A15: 10 | D15: =VLOOKUP(A15,IDtable,2) -> unused | F15: =SUMIF($A$21:$A$205,$A15,F$21:F$205) -> 0 | H15: =SUMIF($A$21:$A$205,$A15,H$21:H$205)/1000 -> 0 | I15: =H15/($H$18) -> 0 | J15: 7 | L15: 0 | M15: 0 | O15: 0 | Q15: 0 | R15: 0 | S15: 0 | T15: 0 | U15: 0 | V15: 0 | W15: 0 | X15: 0 | Y15: 0 | Z15: 0 | AA15: 0 | AB15: 0 | AC15: 0 | AD15: 0 | AE15: 0 | AF15: 0 | AG15: =MAX(IF($A$21:$A$205=$A15,$O$21:$O$205)) -> 0 | AH15: =MIN(IF($A$21:$A$205=$A15,$O$21:$O$205)) -> 0 | AI15: 0
A16: 11 | D16: =VLOOKUP(A16,IDtable,2) -> unused | F16: =SUMIF($A$21:$A$205,$A16,F$21:F$205) -> 0 | H16: =SUMIF($A$21:$A$205,$A16,H$21:H$205)/1000 -> 0 | I16: =H16/($H$18) -> 0 | J16: 7 | L16: 0 | M16: 0 | O16: 0 | Q16: 0 | R16: 0 | S16: 0 | T16: 0 | U16: 0 | V16: 0 | W16: 0 | X16: 0 | Y16: 0 | Z16: 0 | AA16: 0 | AB16: 0 | AC16: 0 | AD16: 0 | AE16: 0 | AF16: 0 | AG16: =MAX(IF($A$21:$A$205=$A16,$O$21:$O$205)) -> 0 | AH16: =MIN(IF($A$21:$A$205=$A16,$O$21:$O$205)) -> 0 | AI16: 0
A17: 12 | D17: =VLOOKUP(A17,IDtable,2) -> unused | F17: =SUMIF($A$21:$A$205,$A17,F$21:F$205) -> 0 | H17: =SUMIF($A$21:$A$205,$A17,H$21:H$205)/1000 -> 0 | I17: =H17/($H$18) -> 0 | J17: =RANK(I17,I$6:I$17) -> 7 | L17: =H17*1000/(F17+0.001) -> 0 | M17: =SUMIF($A$21:$A$205,$A17,N$21:N$205)/(H17*1000+0.000001) -> 0 | O17: =SUMIF($A$21:$A$205,$A17,P$21:P$205)/(H17*1000+0.000001) -> 0 | Q17: =(O17-M17)/(O17+0.000001) -> 0 | R17: 0 | S17: 0 | T17: 0 | U17: 0 | V17: 0 | W17: 0 | X17: 0 | Y17: 0 | Z17: 0 | AA17: 0 | AB17: 0 | AC17: 0 | AD17: 0 | AE17: 0 | AF17: 0 | AG17: =MAX(IF($A$21:$A$205=$A17,$O$21:$O$205)) -> 0 | AH17: =MIN(IF($A$21:$A$205=$A17,$O$21:$O$205)) -> 0 | AI17: 0
D18: Total | H18: =SUM(H6:H17) -> 21234.99747 | M18: =SUMPRODUCT(M6:M17,$H6:$H17)/$H18 -> 41.10616733 | O18: =SUMPRODUCT(O6:O17,$H6:$H17)/$H18 -> 68.67255054 | Q18: =SUMPRODUCT(Q6:Q17,$H6:$H17)/$H18 -> 0.4044916019 | W18: =SUM(W6:W17) -> 428.7807254 | X18: =SUM(X6:X17) -> 497.2576095 | Y18: =SUM(Y6:Y17) -> 9843.048769 | Z18: =SUM(Z6:Z17) -> 5464.871822 | AA18: =SUM(AA6:AA17) -> 5001.038547 | AB18: =W18/$H18 -> 0.02019217219 | AC18: =X18/$H18 -> 0.02341689045 | AD18: =Y18/$H18 -> 0.4635295475 | AE18: =Z18/$H18 -> 0.2573521296 | AF18: =AA18/$H18 -> 0.2355092603
D20: EDB categories
A21: ='Asset data'!A21 -> 1 | B21: ='Asset data'!B21 -> 0 | C21: ='Asset data'!C21 -> 0 | D21: ='Asset data'!E21 -> Staking of a wooden pole | E21: =IF(A21>0,VLOOKUP(A21,IDtable,2),0) -> POLES | F21: =IF(A21>0,SUM('Asset data'!J21:CV21),0) -> 22492 | G21: =IF(A21>0,'Asset data'!F21,0) -> 11.75597575 | H21: =IF(A21>0,SUM('Asset data'!CX21:GJ21),0) -> 264415.4066 | I21: =H21/$H$18/1000 -> 0.012451869 | J21: =IF(RANK(0,I$21:I$205)=RANK(I21,I$21:I$205),0,RANK(I21,I$21:I$205)) -> 18 | K21: =IF(A21>0,H21/(VLOOKUP(A21,$A$6:$H$17,8)*1000),0) -> 0.05426798871 | L21: =IF($A21>0,H21/F21,0) -> 11.75597575 | M21: =IF($A21>0,SUMPRODUCT('Age profile (years)'!$CT21:$GF21,'Asset data'!$CX21:$GJ21)/H21-0.5,0) -> 18.23830695 | N21: =IF($A21>0,M21*H21,0) -> 4822489.35 | O21: =IF($A21>0,'Asset data'!G21,0) -> 32.24861145 | P21: =IF($A21>0,H21*O21,0) -> 8527029.709 | Q21: =IF($A21>0,(O21-M21)/O21,0) -> 0.4344467518 | R21: =IF($A21>0,$O21-R$4*$O21,0) -> 3.224861145 | S21: 6.449722289 | T21: 19.34916687 | U21: 25.79888916 | W21: =IF($A21>0,SUMIF('Age profile (years)'!$CT21:$GF21,"<" & R21+0.5,'Asset data'!$CX21:$GJ21),0) -> 4502.538714 | X21: =IF($A21>0,SUMIF('Age profile (years)'!$CT21:$GF21,"<" & S21+0.5,'Asset data'!$CX21:$GJ21)-W21,0) -> 7476.800579 | Y21: =IF($A21>0,SUMIF('Age profile (years)'!$CT21:$GF21,"<" & T21+0.5,'Asset data'!$CX21:$GJ21)-X21-W21,0) -> 122085.8082 | Z21: =IF($A21>0,SUMIF('Age profile (years)'!$CT21:$GF21,"<" & U21+0.5,'Asset data'!$CX21:$GJ21)-Y21-X21-W21,0) -> 63705.63261 | AA21: =IF($A21>0,H21-Z21-Y21-X21-W21,0) -> 66644.62655 | AB21: =IF($A21>0,W21/$H21,0) -> 0.01702827672 | AC21: 0.02827672061 | AD21: 0.4617197226 | AE21: 0.2409301085 | AF21: 0.2520451716 | AI21: =IF($A21>0,'RRR hist-forc'!K21,0) -> 32.24861145 | AJ21: =IF($A21>0,AI21*H21,0) -> 8527029.709
A22: ='Asset data'!A22 -> 1 | B22: ='Asset data'!B22 -> 0 | C22: ='Asset data'!C22 -> 0 | D22: ='Asset data'!E22 -> ˂ = 1 kV; Wood | E22: POLES | F22: =IF(A22>0,SUM('Asset data'!J22:CV22),0) -> 90110 | G22: =IF(A22>0,'Asset data'!F22,0) -> 6.599666931 | H22: =IF(A22>0,SUM('Asset data'!CX22:GJ22),0) -> 594695.9871 | I22: 0.02800546541 | J22: 12 | K22: =IF(A22>0,H22/(VLOOKUP(A22,$A$6:$H$17,8)*1000),0) -> 0.1220539889 | L22: =IF($A22>0,H22/F22,0) -> 6.599666931 | M22: =IF($A22>0,SUMPRODUCT('Age profile (years)'!$CT22:$GF22,'Asset data'!$CX22:$GJ22)/H22-0.5,0) -> 30.40016646 | N22: =IF($A22>0,M22*H22,0) -> 18078857 | O22: =IF($A22>0,'Asset data'!G22,0) -> 71.41003052 | P22: =IF($A22>0,H22*O22,0) -> 42467258.59 | Q22: =IF($A22>0,(O22-M22)/O22,0) -> 0.5742871661 | R22: 7.141003052 | S22: 14.2820061 | T22: 42.84601831 | U22: 57.12802442 | W22: =IF($A22>0,SUMIF('Age profile (years)'!$CT22:$GF22,"<" & R22+0.5,'Asset data'!$CX22:$GJ22),0) -> 34819.84273 | X22: =IF($A22>0,SUMIF('Age profile (years)'!$CT22:$GF22,"<" & S22+0.5,'Asset data'!$CX22:$GJ22)-W22,0) -> 25705.7027 | Y22: =IF($A22>0,SUMIF('Age profile (years)'!$CT22:$GF22,"<" & T22+0.5,'Asset data'!$CX22:$GJ22)-X22-W22,0) -> 454472.8639 | Z22: =IF($A22>0,SUMIF('Age profile (years)'!$CT22:$GF22,"<" & U22+0.5,'Asset data'!$CX22:$GJ22)-Y22-X22-W22,0) -> 34516.25805 | AA22: =IF($A22>0,H22-Z22-Y22-X22-W22,0) -> 45181.31981 | AB22: 0.0585506603 | AC22: 0.04322494729 | AD22: 0.7642104095 | AE22: 0.05804017312 | AF22: 0.07597380979 | AI22: =IF($A22>0,'RRR hist-forc'!K22,0) -> 71.41003052 | AJ22: =IF($A22>0,AI22*H22,0) -> 42467258.59
A23: ='Asset data'!A23 -> 1 | B23: ='Asset data'!B23 -> 0 | C23: ='Asset data'!C23 -> 0 | D23: ='Asset data'!E23 -> > 1 kV & < = 11 kV; Wood | E23: =IF(A23>0,VLOOKUP(A23,IDtable,2),0) -> POLES | F23: =IF(A23>0,SUM('Asset data'!J23:CV23),0) -> 662 | G23: =IF(A23>0,'Asset data'!F23,0) -> 6.353750566 | H23: =IF(A23>0,SUM('Asset data'!CX23:GJ23),0) -> 4206.182875 | I23: =H23/$H$18/1000 -> 0.0001980778609 | J23: =IF(RANK(0,I$21:I$205)=RANK(I23,I$21:I$205),0,RANK(I23,I$21:I$205)) -> 40 | K23: =IF(A23>0,H23/(VLOOKUP(A23,$A$6:$H$17,8)*1000),0) -> 0.0008632669618 | L23: =IF($A23>0,H23/F23,0) -> 6.353750566 | M23: =IF($A23>0,SUMPRODUCT('Age profile (years)'!$CT23:$GF23,'Asset data'!$CX23:$GJ23)/H23-0.5,0) -> 38.31268882 | N23: =IF($A23>0,M23*H23,0) -> 161150.1756 | O23: =IF($A23>0,'Asset data'!G23,0) -> 72.69663815 | P23: =IF($A23>0,H23*O23,0) -> 305775.3544 | Q23: =IF($A23>0,(O23-M23)/O23,0) -> 0.4729785338 | R23: 7.269663815 | S23: 14.53932763 | T23: 43.61798289 | U23: 58.15731052 | W23: =IF($A23>0,SUMIF('Age profile (years)'!$CT23:$GF23,"<" & R23+0.5,'Asset data'!$CX23:$GJ23),0) -> 127.0750113 | X23: =IF($A23>0,SUMIF('Age profile (years)'!$CT23:$GF23,"<" & S23+0.5,'Asset data'!$CX23:$GJ23)-W23,0) -> 95.30625849 | Y23: =IF($A23>0,SUMIF('Age profile (years)'!$CT23:$GF23,"<" & T23+0.5,'Asset data'!$CX23:$GJ23)-X23-W23,0) -> 2522.438975 | Z23: =IF($A23>0,SUMIF('Age profile (years)'!$CT23:$GF23,"<" & U23+0.5,'Asset data'!$CX23:$GJ23)-Y23-X23-W23,0) -> 635.3750566 | AA23: =IF($A23>0,H23-Z23-Y23-X23-W23,0) -> 825.9875736 | AB23: =IF($A23>0,W23/$H23,0) -> 0.03021148036 | AC23: =IF($A23>0,X23/$H23,0) -> 0.02265861027 | AD23: =IF($A23>0,Y23/$H23,0) -> 0.5996978852 | AE23: =IF($A23>0,Z23/$H23,0) -> 0.1510574018 | AF23: =IF($A23>0,AA23/$H23,0) -> 0.1963746224 | AI23: =IF($A23>0,'RRR hist-forc'!K23,0) -> 72.69663815 | AJ23: =IF($A23>0,AI23*H23,0) -> 305775.3544
A24: ='Asset data'!A24 -> 1 | B24: ='Asset data'!B24 -> 0 | C24: ='Asset data'!C24 -> 0 | D24: ='Asset data'!E24 -> ˃ 11 kV & < = 22 kV; Wood | E24: POLES | F24: =IF(A24>0,SUM('Asset data'!J24:CV24),0) -> 233096 | G24: =IF(A24>0,'Asset data'!F24,0) -> 6.612079129 | H24: =IF(A24>0,SUM('Asset data'!CX24:GJ24),0) -> 1541249.197 | I24: 0.07258061597 | J24: 5 | K24: 0.3163223167 | L24: 6.612079129 | M24: =IF($A24>0,SUMPRODUCT('Age profile (years)'!$CT24:$GF24,'Asset data'!$CX24:$GJ24)/H24-0.5,0) -> 31.26817706 | N24: 48192052.78 | O24: =IF($A24>0,'Asset data'!G24,0) -> 71.16618666 | P24: 109684828 | Q24: 0.5606315509 | R24: 7.116618666 | S24: 14.23323733 | T24: 42.699712 | U24: 56.93294933 | W24: =IF($A24>0,SUMIF('Age profile (years)'!$CT24:$GF24,"<" & R24+0.5,'Asset data'!$CX24:$GJ24),0) -> 72270.02488 | X24: =IF($A24>0,SUMIF('Age profile (years)'!$CT24:$GF24,"<" & S24+0.5,'Asset data'!$CX24:$GJ24)-W24,0) -> 72580.7926 | Y24: =IF($A24>0,SUMIF('Age profile (years)'!$CT24:$GF24,"<" & T24+0.5,'Asset data'!$CX24:$GJ24)-X24-W24,0) -> 1116561.966 | Z24: =IF($A24>0,SUMIF('Age profile (years)'!$CT24:$GF24,"<" & U24+0.5,'Asset data'!$CX24:$GJ24)-Y24-X24-W24,0) -> 97911.66774 | AA24: 181924.7452 | AB24: 0.04689055153 | AC24: 0.04709218519 | AD24: 0.7244525861 | AE24: 0.06352747366 | AF24: 0.1180372036 | AI24: =IF($A24>0,'RRR hist-forc'!K24,0) -> 71.16618666 | AJ24: 109684828
A25: ='Asset data'!A25 -> 1 | B25: ='Asset data'!B25 -> 0 | C25: ='Asset data'!C25 -> 0 | D25: ='Asset data'!E25 -> > 22 kV & < = 66 kV; Wood | E25: POLES | F25: =IF(A25>0,SUM('Asset data'!J25:CV25),0) -> 16105 | G25: =IF(A25>0,'Asset data'!F25,0) -> 8.210679817 | H25: =IF(A25>0,SUM('Asset data'!CX25:GJ25),0) -> 132232.9984 | I25: 0.006227125698 | J25: 23 | K25: 0.02713918587 | L25: 8.210679817 | M25: =IF($A25>0,SUMPRODUCT('Age profile (years)'!$CT25:$GF25,'Asset data'!$CX25:$GJ25)/H25-0.5,0) -> 38.53141881 | N25: 5095125.044 | O25: =IF($A25>0,'Asset data'!G25,0) -> 73.41630015 | P25: 9708057.503 | Q25: 0.4751653415 | R25: 7.341630015 | S25: 14.68326003 | T25: 44.04978009 | U25: 58.73304012 | W25: =IF($A25>0,SUMIF('Age profile (years)'!$CT25:$GF25,"<" & R25+0.5,'Asset data'!$CX25:$GJ25),0) -> 6256.53802 | X25: =IF($A25>0,SUMIF('Age profile (years)'!$CT25:$GF25,"<" & S25+0.5,'Asset data'!$CX25:$GJ25)-W25,0) -> 4942.82925 | Y25: =IF($A25>0,SUMIF('Age profile (years)'!$CT25:$GF25,"<" & T25+0.5,'Asset data'!$CX25:$GJ25)-X25-W25,0) -> 75702.46791 | Z25: =IF($A25>0,SUMIF('Age profile (years)'!$CT25:$GF25,"<" & U25+0.5,'Asset data'!$CX25:$GJ25)-Y25-X25-W25,0) -> 10953.04688 | AA25: 34378.11639 | AB25: 0.0473144986 | AC25: 0.03737969575 | AD25: 0.5724930146 | AE25: 0.08283141881 | AF25: 0.2599813722 | AI25: =IF($A25>0,'RRR hist-forc'!K25,0) -> 73.41630015 | AJ25: 9708057.503
A26: ='Asset data'!A26 -> 0 | B26: ='Asset data'!B26 -> 0 | C26: ='Asset data'!C26 -> 0 | D26: ='Asset data'!E26 -> > 66 kV & < = 132 kV; Wood | E26: 0 | F26: =IF(A26>0,SUM('Asset data'!J26:CV26),0) -> 0 | G26: =IF(A26>0,'Asset data'!F26,0) -> 0 | H26: =IF(A26>0,SUM('Asset data'!CX26:GJ26),0) -> 0 | I26: 0 | J26: 0 | K26: 0 | L26: 0 | M26: =IF($A26>0,SUMPRODUCT('Age profile (years)'!$CT26:$GF26,'Asset data'!$CX26:$GJ26)/H26-0.5,0) -> 0 | N26: 0 | O26: =IF($A26>0,'Asset data'!G26,0) -> 0 | P26: 0 | Q26: 0 | R26: 0 | S26: 0 | T26: 0 | U26: 0 | W26: =IF($A26>0,SUMIF('Age profile (years)'!$CT26:$GF26,"<" & R26+0.5,'Asset data'!$CX26:$GJ26),0) -> 0 | X26: =IF($A26>0,SUMIF('Age profile (years)'!$CT26:$GF26,"<" & S26+0.5,'Asset data'!$CX26:$GJ26)-W26,0) -> 0 | Y26: =IF($A26>0,SUMIF('Age profile (years)'!$CT26:$GF26,"<" & T26+0.5,'Asset data'!$CX26:$GJ26)-X26-W26,0) -> 0 | Z26: =IF($A26>0,SUMIF('Age profile (years)'!$CT26:$GF26,"<" & U26+0.5,'Asset data'!$CX26:$GJ26)-Y26-X26-W26,0) -> 0 | AA26: 0 | AB26: 0 | AC26: 0 | AD26: 0 | AE26: 0 | AF26: 0 | AI26: =IF($A26>0,'RRR hist-forc'!K26,0) -> 0 | AJ26: 0
A27: ='Asset data'!A27 -> 0 | B27: ='Asset data'!B27 -> 0 | C27: ='Asset data'!C27 -> 0 | D27: ='Asset data'!E27 -> > 132 kV; Wood | E27: 0 | F27: =IF(A27>0,SUM('Asset data'!J27:CV27),0) -> 0 | G27: =IF(A27>0,'Asset data'!F27,0) -> 0 | H27: =IF(A27>0,SUM('Asset data'!CX27:GJ27),0) -> 0 | I27: 0 | J27: 0 | K27: 0 | L27: 0 | M27: =IF($A27>0,SUMPRODUCT('Age profile (years)'!$CT27:$GF27,'Asset data'!$CX27:$GJ27)/H27-0.5,0) -> 0 | N27: 0 | O27: =IF($A27>0,'Asset data'!G27,0) -> 0 | P27: 0 | Q27: 0 | R27: 0 | S27: 0 | T27: 0 | U27: 0 | W27: =IF($A27>0,SUMIF('Age profile (years)'!$CT27:$GF27,"<" & R27+0.5,'Asset data'!$CX27:$GJ27),0) -> 0 | X27: =IF($A27>0,SUMIF('Age profile (years)'!$CT27:$GF27,"<" & S27+0.5,'Asset data'!$CX27:$GJ27)-W27,0) -> 0 | Y27: =IF($A27>0,SUMIF('Age profile (years)'!$CT27:$GF27,"<" & T27+0.5,'Asset data'!$CX27:$GJ27)-X27-W27,0) -> 0 | Z27: =IF($A27>0,SUMIF('Age profile (years)'!$CT27:$GF27,"<" & U27+0.5,'Asset data'!$CX27:$GJ27)-Y27-X27-W27,0) -> 0 | AA27: 0 | AB27: 0 | AC27: 0 | AD27: 0 | AE27: 0 | AF27: 0 | AI27: =IF($A27>0,'RRR hist-forc'!K27,0) -> 0 | AJ27: 0
A28: ='Asset data'!A28 -> 1 | B28: ='Asset data'!B28 -> 0 | C28: ='Asset data'!C28 -> 0 | D28: ='Asset data'!E28 -> ˂ = 1 kV; Concrete | E28: POLES | F28: =IF(A28>0,SUM('Asset data'!J28:CV28),0) -> 23275 | G28: =IF(A28>0,'Asset data'!F28,0) -> 19.18480492 | H28: =IF(A28>0,SUM('Asset data'!CX28:GJ28),0) -> 446526.3345 | I28: 0.02102784966 | J28: 13 | K28: 0.09164400208 | L28: 19.18480492 | M28: =IF($A28>0,SUMPRODUCT('Age profile (years)'!$CT28:$GF28,'Asset data'!$CX28:$GJ28)/H28-0.5,0) -> 27.20212675 | N28: 12146465.95 | O28: =IF($A28>0,'Asset data'!G28,0) -> 52.41986591 | P28: 23406850.58 | Q28: 0.4810721799 | R28: 5.241986591 | S28: 10.48397318 | T28: 31.45191955 | U28: 41.93589273 | W28: =IF($A28>0,SUMIF('Age profile (years)'!$CT28:$GF28,"<" & R28+0.5,'Asset data'!$CX28:$GJ28),0) -> 172.6632443 | X28: =IF($A28>0,SUMIF('Age profile (years)'!$CT28:$GF28,"<" & S28+0.5,'Asset data'!$CX28:$GJ28)-W28,0) -> 4047.993838 | Y28: =IF($A28>0,SUMIF('Age profile (years)'!$CT28:$GF28,"<" & T28+0.5,'Asset data'!$CX28:$GJ28)-X28-W28,0) -> 351580.7349 | Z28: =IF($A28>0,SUMIF('Age profile (years)'!$CT28:$GF28,"<" & U28+0.5,'Asset data'!$CX28:$GJ28)-Y28-X28-W28,0) -> 40825.26487 | AA28: 49899.67759 | AB28: 0.0003866809882 | AC28: 0.009065520945 | AD28: 0.7873684211 | AE28: 0.09142857143 | AF28: 0.1117508056 | AI28: =IF($A28>0,'RRR hist-forc'!K28,0) -> 52.41986591 | AJ28: 23406850.58
A29: ='Asset data'!A29 -> 1 | B29: ='Asset data'!B29 -> 0 | C29: ='Asset data'!C29 -> 0 | D29: ='Asset data'!E29 -> > 1 kV & < = 11 kV; Concrete | E29: POLES | F29: =IF(A29>0,SUM('Asset data'!J29:CV29),0) -> 65 | G29: =IF(A29>0,'Asset data'!F29,0) -> 12.23133165 | H29: =IF(A29>0,SUM('Asset data'!CX29:GJ29),0) -> 795.0365574 | I29: 3.743991768e-05 | J29: 45 | K29: 0.0001631714107 | L29: 12.23133165 | M29: =IF($A29>0,SUMPRODUCT('Age profile (years)'!$CT29:$GF29,'Asset data'!$CX29:$GJ29)/H29-0.5,0) -> 37.7 | N29: 29972.87821 | O29: =IF($A29>0,'Asset data'!G29,0) -> 59.73243087 | P29: 47489.46621 | Q29: 0.3688520717 | R29: 5.973243087 | S29: 11.94648617 | T29: 35.83945852 | U29: 47.7859447 | W29: =IF($A29>0,SUMIF('Age profile (years)'!$CT29:$GF29,"<" & R29+0.5,'Asset data'!$CX29:$GJ29),0) -> 0 | X29: =IF($A29>0,SUMIF('Age profile (years)'!$CT29:$GF29,"<" & S29+0.5,'Asset data'!$CX29:$GJ29)-W29,0) -> 0 | Y29: =IF($A29>0,SUMIF('Age profile (years)'!$CT29:$GF29,"<" & T29+0.5,'Asset data'!$CX29:$GJ29)-X29-W29,0) -> 305.7832913 | Z29: =IF($A29>0,SUMIF('Age profile (years)'!$CT29:$GF29,"<" & U29+0.5,'Asset data'!$CX29:$GJ29)-Y29-X29-W29,0) -> 464.7906028 | AA29: 24.4626633 | AB29: 0 | AC29: 0 | AD29: 0.3846153846 | AE29: 0.5846153846 | AF29: 0.03076923077 | AI29: =IF($A29>0,'RRR hist-forc'!K29,0) -> 59.73243087 | AJ29: 47489.46621
A30: ='Asset data'!A30 -> 1 | B30: ='Asset data'!B30 -> 0 | C30: ='Asset data'!C30 -> 0 | D30: ='Asset data'!E30 -> ˃ 11 kV & < = 22 kV; Concrete | E30: POLES | F30: =IF(A30>0,SUM('Asset data'!J30:CV30),0) -> 86750 | G30: =IF(A30>0,'Asset data'!F30,0) -> 18.27180506 | H30: =IF(A30>0,SUM('Asset data'!CX30:GJ30),0) -> 1585079.089 | I30: 0.07464465634 | J30: 4 | K30: 0.3253178594 | L30: 18.27180506 | M30: =IF($A30>0,SUMPRODUCT('Age profile (years)'!$CT30:$GF30,'Asset data'!$CX30:$GJ30)/H30-0.5,0) -> 23.37463977 | N30: 37050652.7 | O30: =IF($A30>0,'Asset data'!G30,0) -> 46.18866853 | P30: 73212692.62 | Q30: 0.4939312928 | R30: 4.618866853 | S30: 9.237733705 | T30: 27.71320112 | U30: 36.95093482 | W30: =IF($A30>0,SUMIF('Age profile (years)'!$CT30:$GF30,"<" & R30+0.5,'Asset data'!$CX30:$GJ30),0) -> 2996.576029 | X30: =IF($A30>0,SUMIF('Age profile (years)'!$CT30:$GF30,"<" & S30+0.5,'Asset data'!$CX30:$GJ30)-W30,0) -> 18984.40545 | Y30: =IF($A30>0,SUMIF('Age profile (years)'!$CT30:$GF30,"<" & T30+0.5,'Asset data'!$CX30:$GJ30)-X30-W30,0) -> 1227207.515 | Z30: =IF($A30>0,SUMIF('Age profile (years)'!$CT30:$GF30,"<" & U30+0.5,'Asset data'!$CX30:$GJ30)-Y30-X30-W30,0) -> 83721.41077 | AA30: 252169.1816 | AB30: 0.001890489914 | AC30: 0.01197694524 | AD30: 0.7742247839 | AE30: 0.0528184438 | AF30: 0.1590893372 | AI30: =IF($A30>0,'RRR hist-forc'!K30,0) -> 46.18866853 | AJ30: 73212692.62
A31: ='Asset data'!A31 -> 1 | B31: ='Asset data'!B31 -> 0 | C31: ='Asset data'!C31 -> 0 | D31: ='Asset data'!E31 -> > 22 kV & < = 66 kV; Concrete | E31: POLES | F31: =IF(A31>0,SUM('Asset data'!J31:CV31),0) -> 10071 | G31: =IF(A31>0,'Asset data'!F31,0) -> 24.10704215 | H31: =IF(A31>0,SUM('Asset data'!CX31:GJ31),0) -> 242782.0215 | I31: 0.0114331081 | J31: 19 | K31: 0.04982800424 | L31: 24.10704215 | M31: =IF($A31>0,SUMPRODUCT('Age profile (years)'!$CT31:$GF31,'Asset data'!$CX31:$GJ31)/H31-0.5,0) -> 24.2356767 | N31: 5883986.581 | O31: =IF($A31>0,'Asset data'!G31,0) -> 49.42706131 | P31: 12000001.86 | Q31: 0.509667861 | R31: 4.942706131 | S31: 9.885412262 | T31: 29.65623679 | U31: 39.54164905 | W31: =IF($A31>0,SUMIF('Age profile (years)'!$CT31:$GF31,"<" & R31+0.5,'Asset data'!$CX31:$GJ31),0) -> 120.5352108 | X31: =IF($A31>0,SUMIF('Age profile (years)'!$CT31:$GF31,"<" & S31+0.5,'Asset data'!$CX31:$GJ31)-W31,0) -> 1253.566192 | Y31: =IF($A31>0,SUMIF('Age profile (years)'!$CT31:$GF31,"<" & T31+0.5,'Asset data'!$CX31:$GJ31)-X31-W31,0) -> 187191.1823 | Z31: =IF($A31>0,SUMIF('Age profile (years)'!$CT31:$GF31,"<" & U31+0.5,'Asset data'!$CX31:$GJ31)-Y31-X31-W31,0) -> 10100.85066 | AA31: 44115.88714 | AB31: 0.0004964750273 | AC31: 0.005163340284 | AD31: 0.7710257174 | AE31: 0.04160460729 | AF31: 0.18170986 | AI31: =IF($A31>0,'RRR hist-forc'!K31,0) -> 49.42706131 | AJ31: 12000001.86
A32: ='Asset data'!A32 -> 0 | B32: ='Asset data'!B32 -> 0 | C32: ='Asset data'!C32 -> 0 | D32: ='Asset data'!E32 -> > 66 kV & < = 132 kV; Concrete | E32: 0 | F32: =IF(A32>0,SUM('Asset data'!J32:CV32),0) -> 0 | G32: =IF(A32>0,'Asset data'!F32,0) -> 0 | H32: =IF(A32>0,SUM('Asset data'!CX32:GJ32),0) -> 0 | I32: 0 | J32: 0 | K32: 0 | L32: 0 | M32: =IF($A32>0,SUMPRODUCT('Age profile (years)'!$CT32:$GF32,'Asset data'!$CX32:$GJ32)/H32-0.5,0) -> 0 | N32: 0 | O32: =IF($A32>0,'Asset data'!G32,0) -> 0 | P32: 0 | Q32: 0 | R32: 0 | S32: 0 | T32: 0 | U32: 0 | W32: =IF($A32>0,SUMIF('Age profile (years)'!$CT32:$GF32,"<" & R32+0.5,'Asset data'!$CX32:$GJ32),0) -> 0 | X32: =IF($A32>0,SUMIF('Age profile (years)'!$CT32:$GF32,"<" & S32+0.5,'Asset data'!$CX32:$GJ32)-W32,0) -> 0 | Y32: =IF($A32>0,SUMIF('Age profile (years)'!$CT32:$GF32,"<" & T32+0.5,'Asset data'!$CX32:$GJ32)-X32-W32,0) -> 0 | Z32: =IF($A32>0,SUMIF('Age profile (years)'!$CT32:$GF32,"<" & U32+0.5,'Asset data'!$CX32:$GJ32)-Y32-X32-W32,0) -> 0 | AA32: 0 | AB32: 0 | AC32: 0 | AD32: 0 | AE32: 0 | AF32: 0 | AI32: =IF($A32>0,'RRR hist-forc'!K32,0) -> 0 | AJ32: 0
A33: ='Asset data'!A33 -> 0 | B33: ='Asset data'!B33 -> 0 | C33: ='Asset data'!C33 -> 0 | D33: ='Asset data'!E33 -> > 132 kV; Concrete | E33: 0 | F33: =IF(A33>0,SUM('Asset data'!J33:CV33),0) -> 0 | G33: =IF(A33>0,'Asset data'!F33,0) -> 0 | H33: =IF(A33>0,SUM('Asset data'!CX33:GJ33),0) -> 0 | I33: 0 | J33: 0 | K33: 0 | L33: 0 | M33: =IF($A33>0,SUMPRODUCT('Age profile (years)'!$CT33:$GF33,'Asset data'!$CX33:$GJ33)/H33-0.5,0) -> 0 | N33: 0 | O33: =IF($A33>0,'Asset data'!G33,0) -> 0 | P33: 0 | Q33: 0 | R33: 0 | S33: 0 | T33: 0 | U33: 0 | W33: =IF($A33>0,SUMIF('Age profile (years)'!$CT33:$GF33,"<" & R33+0.5,'Asset data'!$CX33:$GJ33),0) -> 0 | X33: =IF($A33>0,SUMIF('Age profile (years)'!$CT33:$GF33,"<" & S33+0.5,'Asset data'!$CX33:$GJ33)-W33,0) -> 0 | Y33: =IF($A33>0,SUMIF('Age profile (years)'!$CT33:$GF33,"<" & T33+0.5,'Asset data'!$CX33:$GJ33)-X33-W33,0) -> 0 | Z33: =IF($A33>0,SUMIF('Age profile (years)'!$CT33:$GF33,"<" & U33+0.5,'Asset data'!$CX33:$GJ33)-Y33-X33-W33,0) -> 0 | AA33: 0 | AB33: 0 | AC33: 0 | AD33: 0 | AE33: 0 | AF33: 0 | AI33: =IF($A33>0,'RRR hist-forc'!K33,0) -> 0 | AJ33: 0
A34: ='Asset data'!A34 -> 1 | B34: ='Asset data'!B34 -> 0 | C34: ='Asset data'!C34 -> 0 | D34: ='Asset data'!E34 -> ˂ = 1 kV; Steel | E34: POLES | F34: =IF(A34>0,SUM('Asset data'!J34:CV34),0) -> 501 | G34: =IF(A34>0,'Asset data'!F34,0) -> 11.42774916 | H34: =IF(A34>0,SUM('Asset data'!CX34:GJ34),0) -> 5725.302329 | I34: 0.0002696163414 | J34: 37 | K34: 0.001175047423 | L34: 11.42774916 | M34: =IF($A34>0,SUMPRODUCT('Age profile (years)'!$CT34:$GF34,'Asset data'!$CX34:$GJ34)/H34-0.5,0) -> 36.11277445 | N34: 206756.5517 | O34: =IF($A34>0,'Asset data'!G34,0) -> 57.80737012 | P34: 330964.6708 | Q34: 0.3752911718 | R34: 5.780737012 | S34: 11.56147402 | T34: 34.68442207 | U34: 46.2458961 | W34: =IF($A34>0,SUMIF('Age profile (years)'!$CT34:$GF34,"<" & R34+0.5,'Asset data'!$CX34:$GJ34),0) -> 582.8152071 | X34: =IF($A34>0,SUMIF('Age profile (years)'!$CT34:$GF34,"<" & S34+0.5,'Asset data'!$CX34:$GJ34)-W34,0) -> 365.6879731 | Y34: =IF($A34>0,SUMIF('Age profile (years)'!$CT34:$GF34,"<" & T34+0.5,'Asset data'!$CX34:$GJ34)-X34-W34,0) -> 1085.63617 | Z34: =IF($A34>0,SUMIF('Age profile (years)'!$CT34:$GF34,"<" & U34+0.5,'Asset data'!$CX34:$GJ34)-Y34-X34-W34,0) -> 1851.295364 | AA34: 1839.867615 | AB34: 0.1017964072 | AC34: 0.06387225549 | AD34: 0.1896207585 | AE34: 0.3233532934 | AF34: 0.3213572854 | AI34: =IF($A34>0,'RRR hist-forc'!K34,0) -> 57.80737012 | AJ34: 330964.6708
A35: ='Asset data'!A35 -> 0 | B35: ='Asset data'!B35 -> 0 | C35: ='Asset data'!C35 -> 0 | D35: ='Asset data'!E35 -> > 1 kV & < = 11 kV; Steel | E35: 0 | F35: =IF(A35>0,SUM('Asset data'!J35:CV35),0) -> 0 | G35: =IF(A35>0,'Asset data'!F35,0) -> 0 | H35: =IF(A35>0,SUM('Asset data'!CX35:GJ35),0) -> 0 | I35: 0 | J35: 0 | K35: 0 | L35: 0 | M35: =IF($A35>0,SUMPRODUCT('Age profile (years)'!$CT35:$GF35,'Asset data'!$CX35:$GJ35)/H35-0.5,0) -> 0 | N35: 0 | O35: =IF($A35>0,'Asset data'!G35,0) -> 0 | P35: 0 | Q35: 0 | R35: 0 | S35: 0 | T35: 0 | U35: 0 | W35: =IF($A35>0,SUMIF('Age profile (years)'!$CT35:$GF35,"<" & R35+0.5,'Asset data'!$CX35:$GJ35),0) -> 0 | X35: =IF($A35>0,SUMIF('Age profile (years)'!$CT35:$GF35,"<" & S35+0.5,'Asset data'!$CX35:$GJ35)-W35,0) -> 0 | Y35: =IF($A35>0,SUMIF('Age profile (years)'!$CT35:$GF35,"<" & T35+0.5,'Asset data'!$CX35:$GJ35)-X35-W35,0) -> 0 | Z35: =IF($A35>0,SUMIF('Age profile (years)'!$CT35:$GF35,"<" & U35+0.5,'Asset data'!$CX35:$GJ35)-Y35-X35-W35,0) -> 0 | AA35: 0 | AB35: 0 | AC35: 0 | AD35: 0 | AE35: 0 | AF35: 0 | AI35: =IF($A35>0,'RRR hist-forc'!K35,0) -> 0 | AJ35: 0
A36: ='Asset data'!A36 -> 1 | B36: ='Asset data'!B36 -> 0 | C36: ='Asset data'!C36 -> 0 | D36: ='Asset data'!E36 -> ˃ 11 kV & < = 22 kV; Steel | E36: POLES | F36: =IF(A36>0,SUM('Asset data'!J36:CV36),0) -> 433 | G36: =IF(A36>0,'Asset data'!F36,0) -> 10.15017952 | H36: =IF(A36>0,SUM('Asset data'!CX36:GJ36),0) -> 4395.027733 | I36: 0.0002069709562 | J36: 39 | K36: 0.000902025031 | L36: 10.15017952 | M36: =IF($A36>0,SUMPRODUCT('Age profile (years)'!$CT36:$GF36,'Asset data'!$CX36:$GJ36)/H36-0.5,0) -> 21.30831409 | N36: 93650.63135 | O36: =IF($A36>0,'Asset data'!G36,0) -> 59.73243087 | P36: 262525.6902 | Q36: 0.6432706023 | R36: 5.973243087 | S36: 11.94648617 | T36: 35.83945852 | U36: 47.7859447 | W36: =IF($A36>0,SUMIF('Age profile (years)'!$CT36:$GF36,"<" & R36+0.5,'Asset data'!$CX36:$GJ36),0) -> 20.30035904 | X36: =IF($A36>0,SUMIF('Age profile (years)'!$CT36:$GF36,"<" & S36+0.5,'Asset data'!$CX36:$GJ36)-W36,0) -> 121.8021543 | Y36: =IF($A36>0,SUMIF('Age profile (years)'!$CT36:$GF36,"<" & T36+0.5,'Asset data'!$CX36:$GJ36)-X36-W36,0) -> 3958.570013 | Z36: =IF($A36>0,SUMIF('Age profile (years)'!$CT36:$GF36,"<" & U36+0.5,'Asset data'!$CX36:$GJ36)-Y36-X36-W36,0) -> 91.35161569 | AA36: 203.0035904 | AB36: 0.004618937644 | AC36: 0.02771362587 | AD36: 0.9006928406 | AE36: 0.0207852194 | AF36: 0.04618937644 | AI36: =IF($A36>0,'RRR hist-forc'!K36,0) -> 59.73243087 | AJ36: 262525.6902
A37: ='Asset data'!A37 -> 1 | B37: ='Asset data'!B37 -> 0 | C37: ='Asset data'!C37 -> 0 | D37: ='Asset data'!E37 -> > 22 kV & < = 66 kV; Steel | E37: POLES | F37: =IF(A37>0,SUM('Asset data'!J37:CV37),0) -> 97 | G37: =IF(A37>0,'Asset data'!F37,0) -> 20.83372953 | H37: =IF(A37>0,SUM('Asset data'!CX37:GJ37),0) -> 2020.871765 | I37: 9.516703581e-05 | J37: 43 | K37: 0.000414758911 | L37: 20.83372953 | M37: =IF($A37>0,SUMPRODUCT('Age profile (years)'!$CT37:$GF37,'Asset data'!$CX37:$GJ37)/H37-0.5,0) -> 22.23195876 | N37: 44927.93774 | O37: =IF($A37>0,'Asset data'!G37,0) -> 59.73243087 | P37: 120711.583 | Q37: 0.6278075672 | R37: =IF($A37>0,$O37-R$4*$O37,0) -> 5.973243087 | S37: 11.94648617 | T37: 35.83945852 | U37: 47.7859447 | W37: =IF($A37>0,SUMIF('Age profile (years)'!$CT37:$GF37,"<" & R37+0.5,'Asset data'!$CX37:$GJ37),0) -> 187.5035658 | X37: =IF($A37>0,SUMIF('Age profile (years)'!$CT37:$GF37,"<" & S37+0.5,'Asset data'!$CX37:$GJ37)-W37,0) -> 416.6745907 | Y37: =IF($A37>0,SUMIF('Age profile (years)'!$CT37:$GF37,"<" & T37+0.5,'Asset data'!$CX37:$GJ37)-X37-W37,0) -> 1020.852747 | Z37: =IF($A37>0,SUMIF('Age profile (years)'!$CT37:$GF37,"<" & U37+0.5,'Asset data'!$CX37:$GJ37)-Y37-X37-W37,0) -> 208.3372953 | AA37: 187.5035658 | AB37: 0.09278350515 | AC37: 0.206185567 | AD37: 0.5051546392 | AE37: 0.1030927835 | AF37: 0.09278350515 | AI37: =IF($A37>0,'RRR hist-forc'!K37,0) -> 59.73243087 | AJ37: 120711.583
A38: ='Asset data'!A38 -> 0 | B38: ='Asset data'!B38 -> 0 | C38: ='Asset data'!C38 -> 0 | D38: ='Asset data'!E38 -> > 66 kV & < = 132 kV; Steel | E38: 0 | F38: =IF(A38>0,SUM('Asset data'!J38:CV38),0) -> 0 | G38: =IF(A38>0,'Asset data'!F38,0) -> 0 | H38: =IF(A38>0,SUM('Asset data'!CX38:GJ38),0) -> 0 | I38: 0 | J38: 0 | K38: 0 | L38: 0 | M38: =IF($A38>0,SUMPRODUCT('Age profile (years)'!$CT38:$GF38,'Asset data'!$CX38:$GJ38)/H38-0.5,0) -> 0 | N38: 0 | O38: =IF($A38>0,'Asset data'!G38,0) -> 0 | P38: 0 | Q38: 0 | R38: 0 | S38: 0 | T38: 0 | U38: 0 | W38: =IF($A38>0,SUMIF('Age profile (years)'!$CT38:$GF38,"<" & R38+0.5,'Asset data'!$CX38:$GJ38),0) -> 0 | X38: =IF($A38>0,SUMIF('Age profile (years)'!$CT38:$GF38,"<" & S38+0.5,'Asset data'!$CX38:$GJ38)-W38,0) -> 0 | Y38: =IF($A38>0,SUMIF('Age profile (years)'!$CT38:$GF38,"<" & T38+0.5,'Asset data'!$CX38:$GJ38)-X38-W38,0) -> 0 | Z38: =IF($A38>0,SUMIF('Age profile (years)'!$CT38:$GF38,"<" & U38+0.5,'Asset data'!$CX38:$GJ38)-Y38-X38-W38,0) -> 0 | AA38: 0 | AB38: 0 | AC38: 0 | AD38: 0 | AE38: 0 | AF38: 0 | AI38: =IF($A38>0,'RRR hist-forc'!K38,0) -> 0 | AJ38: 0
A39: ='Asset data'!A39 -> 0 | B39: ='Asset data'!B39 -> 0 | C39: ='Asset data'!C39 -> 0 | D39: ='Asset data'!E39 -> > 132 kV; Steel | E39: 0 | F39: =IF(A39>0,SUM('Asset data'!J39:CV39),0) -> 0 | G39: =IF(A39>0,'Asset data'!F39,0) -> 0 | H39: =IF(A39>0,SUM('Asset data'!CX39:GJ39),0) -> 0 | I39: 0 | J39: 0 | K39: 0 | L39: 0 | M39: =IF($A39>0,SUMPRODUCT('Age profile (years)'!$CT39:$GF39,'Asset data'!$CX39:$GJ39)/H39-0.5,0) -> 0 | N39: 0 | O39: =IF($A39>0,'Asset data'!G39,0) -> 0 | P39: 0 | Q39: 0 | R39: 0 | S39: 0 | T39: 0 | U39: 0 | W39: =IF($A39>0,SUMIF('Age profile (years)'!$CT39:$GF39,"<" & R39+0.5,'Asset data'!$CX39:$GJ39),0) -> 0 | X39: =IF($A39>0,SUMIF('Age profile (years)'!$CT39:$GF39,"<" & S39+0.5,'Asset data'!$CX39:$GJ39)-W39,0) -> 0 | Y39: =IF($A39>0,SUMIF('Age profile (years)'!$CT39:$GF39,"<" & T39+0.5,'Asset data'!$CX39:$GJ39)-X39-W39,0) -> 0 | Z39: =IF($A39>0,SUMIF('Age profile (years)'!$CT39:$GF39,"<" & U39+0.5,'Asset data'!$CX39:$GJ39)-Y39-X39-W39,0) -> 0 | AA39: 0 | AB39: 0 | AC39: 0 | AD39: 0 | AE39: 0 | AF39: 0 | AI39: =IF($A39>0,'RRR hist-forc'!K39,0) -> 0 | AJ39: 0
A40: ='Asset data'!A40 -> 1 | B40: ='Asset data'!B40 -> 0 | C40: ='Asset data'!C40 -> 0 | D40: ='Asset data'!E40 -> Other | E40: POLES | F40: =IF(A40>0,SUM('Asset data'!J40:CV40),0) -> 4129 | G40: =IF(A40>0,'Asset data'!F40,0) -> 11.69232802 | H40: =IF(A40>0,SUM('Asset data'!CX40:GJ40),0) -> 48277.62239 | I40: 0.002273493202 | J40: 29 | K40: 0.009908384311 | L40: 11.69232802 | M40: =IF($A40>0,SUMPRODUCT('Age profile (years)'!$CT40:$GF40,'Asset data'!$CX40:$GJ40)/H40-0.5,0) -> 39.77658029 | N40: 1920318.723 | O40: =IF($A40>0,'Asset data'!G40,0) -> 76.61996162 | P40: 3699029.575 | Q40: 0.4808587809 | R40: 7.661996162 | S40: 15.32399232 | T40: 45.97197697 | U40: 61.2959693 | W40: =IF($A40>0,SUMIF('Age profile (years)'!$CT40:$GF40,"<" & R40+0.5,'Asset data'!$CX40:$GJ40),0) -> 2069.542059 | X40: =IF($A40>0,SUMIF('Age profile (years)'!$CT40:$GF40,"<" & S40+0.5,'Asset data'!$CX40:$GJ40)-W40,0) -> 1788.926187 | Y40: =IF($A40>0,SUMIF('Age profile (years)'!$CT40:$GF40,"<" & T40+0.5,'Asset data'!$CX40:$GJ40)-X40-W40,0) -> 27243.12428 | Z40: =IF($A40>0,SUMIF('Age profile (years)'!$CT40:$GF40,"<" & U40+0.5,'Asset data'!$CX40:$GJ40)-Y40-X40-W40,0) -> 11025.86532 | AA40: 6150.164538 | AB40: 0.0428675224 | AC40: 0.03705497699 | AD40: 0.5643012836 | AE40: 0.2283845968 | AF40: 0.1273916202 | AI40: =IF($A40>0,'RRR hist-forc'!K40,0) -> 76.61996162 | AJ40: 3699029.575
A41: ='Asset data'!A41 -> 2 | B41: ='Asset data'!B41 -> 0 | C41: ='Asset data'!C41 -> 0 | D41: ='Asset data'!E41 -> ˂ = 1 kV | E41: OVERHEAD CONDUCTORS | F41: =IF(A41>0,SUM('Asset data'!J41:CV41),0) -> 9664.2 | G41: =IF(A41>0,'Asset data'!F41,0) -> 172.5113 | H41: =IF(A41>0,SUM('Asset data'!CX41:GJ41),0) -> 1667183.705 | I41: 0.07851113275 | J41: 3 | K41: 0.202245821 | L41: 172.5113 | M41: =IF($A41>0,SUMPRODUCT('Age profile (years)'!$CT41:$GF41,'Asset data'!$CX41:$GJ41)/H41-0.5,0) -> 48.34847168 | N41: 80605784.16 | O41: =IF($A41>0,'Asset data'!G41,0) -> 84.75980266 | P41: 141310161.9 | Q41: 0.429582536 | R41: 8.475980266 | S41: 16.95196053 | T41: 50.85588159 | U41: 67.80784212 | W41: =IF($A41>0,SUMIF('Age profile (years)'!$CT41:$GF41,"<" & R41+0.5,'Asset data'!$CX41:$GJ41),0) -> 7331.73025 | X41: =IF($A41>0,SUMIF('Age profile (years)'!$CT41:$GF41,"<" & S41+0.5,'Asset data'!$CX41:$GJ41)-W41,0) -> 28102.09077 | Y41: =IF($A41>0,SUMIF('Age profile (years)'!$CT41:$GF41,"<" & T41+0.5,'Asset data'!$CX41:$GJ41)-X41-W41,0) -> 945775.9511 | Z41: =IF($A41>0,SUMIF('Age profile (years)'!$CT41:$GF41,"<" & U41+0.5,'Asset data'!$CX41:$GJ41)-Y41-X41-W41,0) -> 518551.7166 | AA41: 167422.2166 | AB41: 0.004397673889 | AC41: 0.01685602533 | AD41: 0.5672895842 | AE41: 0.3110345398 | AF41: 0.1004221767 | AI41: =IF($A41>0,'RRR hist-forc'!K41,0) -> 84.75980266 | AJ41: 141310161.9
A42: ='Asset data'!A42 -> 2 | B42: ='Asset data'!B42 -> 0 | C42: ='Asset data'!C42 -> 0 | D42: ='Asset data'!E42 -> > 1 kV & < = 11 kV | E42: OVERHEAD CONDUCTORS | F42: =IF(A42>0,SUM('Asset data'!J42:CV42),0) -> 53.3 | G42: =IF(A42>0,'Asset data'!F42,0) -> 71.62414072 | H42: =IF(A42>0,SUM('Asset data'!CX42:GJ42),0) -> 3817.5667 | I42: 0.0001797771206 | J42: 41 | K42: 0.0004631084798 | L42: 71.62414072 | M42: =IF($A42>0,SUMPRODUCT('Age profile (years)'!$CT42:$GF42,'Asset data'!$CX42:$GJ42)/H42-0.5,0) -> 53.61444653 | N42: 204676.7257 | O42: =IF($A42>0,'Asset data'!G42,0) -> 88.86622864 | P42: 339252.7553 | Q42: 0.3966836745 | R42: 8.886622864 | S42: 17.77324573 | T42: 53.31973719 | U42: 71.09298291 | W42: =IF($A42>0,SUMIF('Age profile (years)'!$CT42:$GF42,"<" & R42+0.5,'Asset data'!$CX42:$GJ42),0) -> 0 | X42: =IF($A42>0,SUMIF('Age profile (years)'!$CT42:$GF42,"<" & S42+0.5,'Asset data'!$CX42:$GJ42)-W42,0) -> 78.78655479 | Y42: =IF($A42>0,SUMIF('Age profile (years)'!$CT42:$GF42,"<" & T42+0.5,'Asset data'!$CX42:$GJ42)-X42-W42,0) -> 1819.253174 | Z42: =IF($A42>0,SUMIF('Age profile (years)'!$CT42:$GF42,"<" & U42+0.5,'Asset data'!$CX42:$GJ42)-Y42-X42-W42,0) -> 1274.909705 | AA42: 644.6172665 | AB42: 0 | AC42: 0.02063789869 | AD42: 0.4765478424 | AE42: 0.3339587242 | AF42: 0.1688555347 | AI42: =IF($A42>0,'RRR hist-forc'!K42,0) -> 88.86622864 | AJ42: 339252.7553
A43: ='Asset data'!A43 -> 2 | B43: ='Asset data'!B43 -> 0 | C43: ='Asset data'!C43 -> 0 | D43: ='Asset data'!E43 -> ˃ 11 kV & < = 22 kV ; SWER | E43: OVERHEAD CONDUCTORS | F43: =IF(A43>0,SUM('Asset data'!J43:CV43),0) -> 21631.9 | G43: =IF(A43>0,'Asset data'!F43,0) -> 14.24459902 | H43: =IF(A43>0,SUM('Asset data'!CX43:GJ43),0) -> 308137.7416 | I43: 0.01451084428 | J43: 17 | K43: 0.03738014612 | L43: 14.24459902 | M43: =IF($A43>0,SUMPRODUCT('Age profile (years)'!$CT43:$GF43,'Asset data'!$CX43:$GJ43)/H43-0.5,0) -> 51.73305858 | N43: 15940907.84 | O43: =IF($A43>0,'Asset data'!G43,0) -> 89.33344572 | P43: 27527006.21 | Q43: 0.4208993265 | R43: 8.933344572 | S43: 17.86668914 | T43: 53.60006743 | U43: 71.46675658 | W43: =IF($A43>0,SUMIF('Age profile (years)'!$CT43:$GF43,"<" & R43+0.5,'Asset data'!$CX43:$GJ43),0) -> 525.6257039 | X43: =IF($A43>0,SUMIF('Age profile (years)'!$CT43:$GF43,"<" & S43+0.5,'Asset data'!$CX43:$GJ43)-W43,0) -> 6838.83199 | Y43: =IF($A43>0,SUMIF('Age profile (years)'!$CT43:$GF43,"<" & T43+0.5,'Asset data'!$CX43:$GJ43)-X43-W43,0) -> 164388.3706 | Z43: =IF($A43>0,SUMIF('Age profile (years)'!$CT43:$GF43,"<" & U43+0.5,'Asset data'!$CX43:$GJ43)-Y43-X43-W43,0) -> 107568.0895 | AA43: 28816.82382 | AB43: 0.001705814099 | AC43: 0.02219407449 | AD43: 0.5334898922 | AE43: 0.3490909259 | AF43: 0.09351929327 | AI43: =IF($A43>0,'RRR hist-forc'!K43,0) -> 89.33344572 | AJ43: 27527006.21
A44: ='Asset data'!A44 -> 0 | B44: ='Asset data'!B44 -> 0 | C44: ='Asset data'!C44 -> 0 | D44: ='Asset data'!E44 -> ˃ 11 kV & < = 22 kV ; Single-Phase | E44: 0 | F44: =IF(A44>0,SUM('Asset data'!J44:CV44),0) -> 0 | G44: =IF(A44>0,'Asset data'!F44,0) -> 0 | H44: =IF(A44>0,SUM('Asset data'!CX44:GJ44),0) -> 0 | I44: 0 | J44: 0 | K44: 0 | L44: 0 | M44: =IF($A44>0,SUMPRODUCT('Age profile (years)'!$CT44:$GF44,'Asset data'!$CX44:$GJ44)/H44-0.5,0) -> 0 | N44: 0 | O44: =IF($A44>0,'Asset data'!G44,0) -> 0 | P44: 0 | Q44: 0 | R44: 0 | S44: 0 | T44: 0 | U44: 0 | W44: =IF($A44>0,SUMIF('Age profile (years)'!$CT44:$GF44,"<" & R44+0.5,'Asset data'!$CX44:$GJ44),0) -> 0 | X44: =IF($A44>0,SUMIF('Age profile (years)'!$CT44:$GF44,"<" & S44+0.5,'Asset data'!$CX44:$GJ44)-W44,0) -> 0 | Y44: =IF($A44>0,SUMIF('Age profile (years)'!$CT44:$GF44,"<" & T44+0.5,'Asset data'!$CX44:$GJ44)-X44-W44,0) -> 0 | Z44: =IF($A44>0,SUMIF('Age profile (years)'!$CT44:$GF44,"<" & U44+0.5,'Asset data'!$CX44:$GJ44)-Y44-X44-W44,0) -> 0 | AA44: 0 | AB44: 0 | AC44: 0 | AD44: 0 | AE44: 0 | AF44: 0 | AI44: =IF($A44>0,'RRR hist-forc'!K44,0) -> 0 | AJ44: 0
A45: ='Asset data'!A45 -> 2 | B45: ='Asset data'!B45 -> 0 | C45: ='Asset data'!C45 -> 0 | D45: ='Asset data'!E45 -> ˃ 11 kV & < = 22 kV ; Multiple-Phase | E45: OVERHEAD CONDUCTORS | F45: =IF(A45>0,SUM('Asset data'!J45:CV45),0) -> 34489 | G45: =IF(A45>0,'Asset data'!F45,0) -> 54.90268679 | H45: =IF(A45>0,SUM('Asset data'!CX45:GJ45),0) -> 1893538.765 | I45: 0.08917066119 | J45: 2 | K45: 0.2297049214 | L45: 54.90268679 | M45: =IF($A45>0,SUMPRODUCT('Age profile (years)'!$CT45:$GF45,'Asset data'!$CX45:$GJ45)/H45-0.5,0) -> 47.25341703 | N45: 89476176.92 | O45: =IF($A45>0,'Asset data'!G45,0) -> 82.48397655 | P45: 156186607.1 | Q45: 0.4271200419 | R45: 8.248397655 | S45: 16.49679531 | T45: 49.49038593 | U45: 65.98718124 | W45: =IF($A45>0,SUMIF('Age profile (years)'!$CT45:$GF45,"<" & R45+0.5,'Asset data'!$CX45:$GJ45),0) -> 30525.89386 | X45: =IF($A45>0,SUMIF('Age profile (years)'!$CT45:$GF45,"<" & S45+0.5,'Asset data'!$CX45:$GJ45)-W45,0) -> 9904.444698 | Y45: =IF($A45>0,SUMIF('Age profile (years)'!$CT45:$GF45,"<" & T45+0.5,'Asset data'!$CX45:$GJ45)-X45-W45,0) -> 979864.722 | Z45: =IF($A45>0,SUMIF('Age profile (years)'!$CT45:$GF45,"<" & U45+0.5,'Asset data'!$CX45:$GJ45)-Y45-X45-W45,0) -> 584982.6375 | AA45: 288261.0667 | AB45: 0.01612108208 | AC45: 0.005230653252 | AD45: 0.5174780365 | AE45: 0.3089361826 | AF45: 0.1522340456 | AI45: =IF($A45>0,'RRR hist-forc'!K45,0) -> 82.48397655 | AJ45: 156186607.1
A46: ='Asset data'!A46 -> 2 | B46: ='Asset data'!B46 -> 0 | C46: ='Asset data'!C46 -> 0 | D46: ='Asset data'!E46 -> > 22 kV & < = 66 kV | E46: OVERHEAD CONDUCTORS | F46: =IF(A46>0,SUM('Asset data'!J46:CV46),0) -> 3095 | G46: =IF(A46>0,'Asset data'!F46,0) -> 1409.719871 | H46: =IF(A46>0,SUM('Asset data'!CX46:GJ46),0) -> 4363083.001 | I46: 0.2054666127 | J46: 1 | K46: 0.5292849856 | L46: 1409.719871 | M46: =IF($A46>0,SUMPRODUCT('Age profile (years)'!$CT46:$GF46,'Asset data'!$CX46:$GJ46)/H46-0.5,0) -> 63.54403877 | N46: 277247915.4 | O46: =IF($A46>0,'Asset data'!G46,0) -> 93.17218409 | P46: 406517972.6 | Q46: 0.3179934613 | R46: 9.317218409 | S46: 18.63443682 | T46: 55.90331045 | U46: 74.53774727 | W46: =IF($A46>0,SUMIF('Age profile (years)'!$CT46:$GF46,"<" & R46+0.5,'Asset data'!$CX46:$GJ46),0) -> 0 | X46: =IF($A46>0,SUMIF('Age profile (years)'!$CT46:$GF46,"<" & S46+0.5,'Asset data'!$CX46:$GJ46)-W46,0) -> 6766.655381 | Y46: =IF($A46>0,SUMIF('Age profile (years)'!$CT46:$GF46,"<" & T46+0.5,'Asset data'!$CX46:$GJ46)-X46-W46,0) -> 1482602.388 | Z46: =IF($A46>0,SUMIF('Age profile (years)'!$CT46:$GF46,"<" & U46+0.5,'Asset data'!$CX46:$GJ46)-Y46-X46-W46,0) -> 1592419.566 | AA46: 1281294.391 | AB46: 0 | AC46: 0.00155088853 | AD46: 0.3398061389 | AE46: 0.3649757674 | AF46: 0.2936672052 | AI46: =IF($A46>0,'RRR hist-forc'!K46,0) -> 93.17218409 | AJ46: 406517972.6
A47: ='Asset data'!A47 -> 0 | B47: ='Asset data'!B47 -> 0 | C47: ='Asset data'!C47 -> 0 | D47: ='Asset data'!E47 -> > 66 kV & < = 132 kV | E47: 0 | F47: =IF(A47>0,SUM('Asset data'!J47:CV47),0) -> 0 | G47: =IF(A47>0,'Asset data'!F47,0) -> 0 | H47: =IF(A47>0,SUM('Asset data'!CX47:GJ47),0) -> 0 | I47: 0 | J47: 0 | K47: 0 | L47: 0 | M47: =IF($A47>0,SUMPRODUCT('Age profile (years)'!$CT47:$GF47,'Asset data'!$CX47:$GJ47)/H47-0.5,0) -> 0 | N47: 0 | O47: =IF($A47>0,'Asset data'!G47,0) -> 0 | P47: 0 | Q47: 0 | R47: 0 | S47: 0 | T47: 0 | U47: 0 | W47: =IF($A47>0,SUMIF('Age profile (years)'!$CT47:$GF47,"<" & R47+0.5,'Asset data'!$CX47:$GJ47),0) -> 0 | X47: =IF($A47>0,SUMIF('Age profile (years)'!$CT47:$GF47,"<" & S47+0.5,'Asset data'!$CX47:$GJ47)-W47,0) -> 0 | Y47: =IF($A47>0,SUMIF('Age profile (years)'!$CT47:$GF47,"<" & T47+0.5,'Asset data'!$CX47:$GJ47)-X47-W47,0) -> 0 | Z47: =IF($A47>0,SUMIF('Age profile (years)'!$CT47:$GF47,"<" & U47+0.5,'Asset data'!$CX47:$GJ47)-Y47-X47-W47,0) -> 0 | AA47: 0 | AB47: 0 | AC47: 0 | AD47: 0 | AE47: 0 | AF47: 0 | AI47: =IF($A47>0,'RRR hist-forc'!K47,0) -> 0 | AJ47: 0
A48: ='Asset data'!A48 -> 0 | B48: ='Asset data'!B48 -> 0 | C48: ='Asset data'!C48 -> 0 | D48: ='Asset data'!E48 -> > 132 kV | E48: 0 | F48: =IF(A48>0,SUM('Asset data'!J48:CV48),0) -> 0 | G48: =IF(A48>0,'Asset data'!F48,0) -> 0 | H48: =IF(A48>0,SUM('Asset data'!CX48:GJ48),0) -> 0 | I48: 0 | J48: 0 | K48: 0 | L48: 0 | M48: =IF($A48>0,SUMPRODUCT('Age profile (years)'!$CT48:$GF48,'Asset data'!$CX48:$GJ48)/H48-0.5,0) -> 0 | N48: 0 | O48: =IF($A48>0,'Asset data'!G48,0) -> 0 | P48: 0 | Q48: 0 | R48: 0 | S48: 0 | T48: 0 | U48: 0 | W48: =IF($A48>0,SUMIF('Age profile (years)'!$CT48:$GF48,"<" & R48+0.5,'Asset data'!$CX48:$GJ48),0) -> 0 | X48: =IF($A48>0,SUMIF('Age profile (years)'!$CT48:$GF48,"<" & S48+0.5,'Asset data'!$CX48:$GJ48)-W48,0) -> 0 | Y48: =IF($A48>0,SUMIF('Age profile (years)'!$CT48:$GF48,"<" & T48+0.5,'Asset data'!$CX48:$GJ48)-X48-W48,0) -> 0 | Z48: =IF($A48>0,SUMIF('Age profile (years)'!$CT48:$GF48,"<" & U48+0.5,'Asset data'!$CX48:$GJ48)-Y48-X48-W48,0) -> 0 | AA48: 0 | AB48: 0 | AC48: 0 | AD48: 0 | AE48: 0 | AF48: 0 | AI48: =IF($A48>0,'RRR hist-forc'!K48,0) -> 0 | AJ48: 0
A49: ='Asset data'!A49 -> 2 | B49: ='Asset data'!B49 -> 0 | C49: ='Asset data'!C49 -> 0 | D49: ='Asset data'!E49 -> Other | E49: OVERHEAD CONDUCTORS | F49: =IF(A49>0,SUM('Asset data'!J49:CV49),0) -> 20.4 | G49: =IF(A49>0,'Asset data'!F49,0) -> 372.1701857 | H49: =IF(A49>0,SUM('Asset data'!CX49:GJ49),0) -> 7592.271789 | I49: 0.0003575357991 | J49: 36 | K49: 0.0009210174236 | L49: 372.1701857 | M49: =IF($A49>0,SUMPRODUCT('Age profile (years)'!$CT49:$GF49,'Asset data'!$CX49:$GJ49)/H49-0.5,0) -> 55.44852941 | N49: 420980.3056 | O49: =IF($A49>0,'Asset data'!G49,0) -> 88.86622864 | P49: 674696.5607 | Q49: 0.3760449807 | R49: 8.886622864 | S49: 17.77324573 | T49: 53.31973719 | U49: 71.09298291 | W49: =IF($A49>0,SUMIF('Age profile (years)'!$CT49:$GF49,"<" & R49+0.5,'Asset data'!$CX49:$GJ49),0) -> 0 | X49: =IF($A49>0,SUMIF('Age profile (years)'!$CT49:$GF49,"<" & S49+0.5,'Asset data'!$CX49:$GJ49)-W49,0) -> 148.8680743 | Y49: =IF($A49>0,SUMIF('Age profile (years)'!$CT49:$GF49,"<" & T49+0.5,'Asset data'!$CX49:$GJ49)-X49-W49,0) -> 3312.314653 | Z49: =IF($A49>0,SUMIF('Age profile (years)'!$CT49:$GF49,"<" & U49+0.5,'Asset data'!$CX49:$GJ49)-Y49-X49-W49,0) -> 2828.493412 | AA49: 1302.59565 | AB49: 0 | AC49: 0.01960784314 | AD49: 0.4362745098 | AE49: 0.3725490196 | AF49: 0.1715686275 | AI49: =IF($A49>0,'RRR hist-forc'!K49,0) -> 88.86622864 | AJ49: 674696.5607
A50: ='Asset data'!A50 -> 3 | B50: ='Asset data'!B50 -> 0 | C50: ='Asset data'!C50 -> 0 | D50: ='Asset data'!E50 -> ˂ = 1 kV | E50: UNDERGROUND CABLES | F50: =IF(A50>0,SUM('Asset data'!J50:CV50),0) -> 3621.48764 | G50: =IF(A50>0,'Asset data'!F50,0) -> 233.2997516 | H50: =IF(A50>0,SUM('Asset data'!CX50:GJ50),0) -> 844892.1667 | I50: 0.03978772156 | J50: 10 | K50: 0.2623013189 | L50: 233.2997516 | M50: =IF($A50>0,SUMPRODUCT('Age profile (years)'!$CT50:$GF50,'Asset data'!$CX50:$GJ50)/H50-0.5,0) -> 28.3498554 | N50: 23952570.75 | O50: =IF($A50>0,'Asset data'!G50,0) -> 41.42903072 | P50: 35003063.53 | Q50: 0.315700732 | R50: 4.142903072 | S50: 8.285806144 | T50: 24.85741843 | U50: 33.14322457 | W50: =IF($A50>0,SUMIF('Age profile (years)'!$CT50:$GF50,"<" & R50+0.5,'Asset data'!$CX50:$GJ50),0) -> 22202.47677 | X50: =IF($A50>0,SUMIF('Age profile (years)'!$CT50:$GF50,"<" & S50+0.5,'Asset data'!$CX50:$GJ50)-W50,0) -> 12289.80781 | Y50: =IF($A50>0,SUMIF('Age profile (years)'!$CT50:$GF50,"<" & T50+0.5,'Asset data'!$CX50:$GJ50)-X50-W50,0) -> 192690.8744 | Z50: =IF($A50>0,SUMIF('Age profile (years)'!$CT50:$GF50,"<" & U50+0.5,'Asset data'!$CX50:$GJ50)-Y50-X50-W50,0) -> 318631.6902 | AA50: 299077.3175 | AB50: 0.02627847393 | AC50: 0.01454600752 | AD50: 0.228065642 | AE50: 0.3771270498 | AF50: 0.3539828268 | AI50: =IF($A50>0,'RRR hist-forc'!K50,0) -> 41.42903072 | AJ50: 35003063.53
A51: ='Asset data'!A51 -> 3 | B51: ='Asset data'!B51 -> 0 | C51: ='Asset data'!C51 -> 0 | D51: ='Asset data'!E51 -> > 1 kV & < = 11 kV | E51: UNDERGROUND CABLES | F51: =IF(A51>0,SUM('Asset data'!J51:CV51),0) -> 16.658405 | G51: =IF(A51>0,'Asset data'!F51,0) -> 610.1107977 | H51: =IF(A51>0,SUM('Asset data'!CX51:GJ51),0) -> 10163.47276 | I51: 0.0004786189768 | J51: 33 | K51: 0.003155304801 | L51: 610.1107977 | M51: =IF($A51>0,SUMPRODUCT('Age profile (years)'!$CT51:$GF51,'Asset data'!$CX51:$GJ51)/H51-0.5,0) -> 27.69684722 | N51: 281496.1523 | O51: =IF($A51>0,'Asset data'!G51,0) -> 45.70686904 | P51: 464540.5185 | Q51: 0.3940331552 | R51: 4.570686904 | S51: 9.141373808 | T51: 27.42412142 | U51: 36.56549523 | W51: =IF($A51>0,SUMIF('Age profile (years)'!$CT51:$GF51,"<" & R51+0.5,'Asset data'!$CX51:$GJ51),0) -> 123.2692992 | X51: =IF($A51>0,SUMIF('Age profile (years)'!$CT51:$GF51,"<" & S51+0.5,'Asset data'!$CX51:$GJ51)-W51,0) -> 0 | Y51: =IF($A51>0,SUMIF('Age profile (years)'!$CT51:$GF51,"<" & T51+0.5,'Asset data'!$CX51:$GJ51)-X51-W51,0) -> 2711.924582 | Z51: =IF($A51>0,SUMIF('Age profile (years)'!$CT51:$GF51,"<" & U51+0.5,'Asset data'!$CX51:$GJ51)-Y51-X51-W51,0) -> 5855.291711 | AA51: 1472.987171 | AB51: 0.01212865937 | AC51: 0 | AD51: 0.2668305062 | AE51: 0.5761113202 | AF51: 0.1449295143 | AI51: =IF($A51>0,'RRR hist-forc'!K51,0) -> 45.70686904 | AJ51: 464540.5185
A52: ='Asset data'!A52 -> 3 | B52: ='Asset data'!B52 -> 0 | C52: ='Asset data'!C52 -> 0 | D52: ='Asset data'!E52 -> > 11 kV & < = 22 kV | E52: UNDERGROUND CABLES | F52: =IF(A52>0,SUM('Asset data'!J52:CV52),0) -> 1606.679584 | G52: =IF(A52>0,'Asset data'!F52,0) -> 829.6849155 | H52: =IF(A52>0,SUM('Asset data'!CX52:GJ52),0) -> 1333037.815 | I52: 0.06277551088 | J52: 6 | K52: 0.4138487617 | L52: 829.6849155 | M52: =IF($A52>0,SUMPRODUCT('Age profile (years)'!$CT52:$GF52,'Asset data'!$CX52:$GJ52)/H52-0.5,0) -> 35.62126409 | N52: 47484492.04 | O52: =IF($A52>0,'Asset data'!G52,0) -> 48.41820404 | P52: 64543296.91 | Q52: 0.2643001781 | R52: 4.841820404 | S52: 9.683640809 | T52: 29.05092243 | U52: 38.73456323 | W52: =IF($A52>0,SUMIF('Age profile (years)'!$CT52:$GF52,"<" & R52+0.5,'Asset data'!$CX52:$GJ52),0) -> 11174.29213 | X52: =IF($A52>0,SUMIF('Age profile (years)'!$CT52:$GF52,"<" & S52+0.5,'Asset data'!$CX52:$GJ52)-W52,0) -> 12758.70668 | Y52: =IF($A52>0,SUMIF('Age profile (years)'!$CT52:$GF52,"<" & T52+0.5,'Asset data'!$CX52:$GJ52)-X52-W52,0) -> 228572.6471 | Z52: =IF($A52>0,SUMIF('Age profile (years)'!$CT52:$GF52,"<" & U52+0.5,'Asset data'!$CX52:$GJ52)-Y52-X52-W52,0) -> 524274.4373 | AA52: 556257.7316 | AB52: 0.008382576999 | AC52: 0.00957115135 | AD52: 0.1714674892 | AE52: 0.393292997 | AF52: 0.4172857855 | AI52: =IF($A52>0,'RRR hist-forc'!K52,0) -> 48.41820404 | AJ52: 64543296.91
A53: ='Asset data'!A53 -> 0 | B53: ='Asset data'!B53 -> 0 | C53: ='Asset data'!C53 -> 0 | D53: ='Asset data'!E53 -> > 22 kV & < = 33 kV | E53: 0 | F53: =IF(A53>0,SUM('Asset data'!J53:CV53),0) -> 0 | G53: =IF(A53>0,'Asset data'!F53,0) -> 0 | H53: =IF(A53>0,SUM('Asset data'!CX53:GJ53),0) -> 0 | I53: 0 | J53: 0 | K53: 0 | L53: 0 | M53: =IF($A53>0,SUMPRODUCT('Age profile (years)'!$CT53:$GF53,'Asset data'!$CX53:$GJ53)/H53-0.5,0) -> 0 | N53: 0 | O53: =IF($A53>0,'Asset data'!G53,0) -> 0 | P53: 0 | Q53: 0 | R53: 0 | S53: 0 | T53: 0 | U53: 0 | W53: =IF($A53>0,SUMIF('Age profile (years)'!$CT53:$GF53,"<" & R53+0.5,'Asset data'!$CX53:$GJ53),0) -> 0 | X53: =IF($A53>0,SUMIF('Age profile (years)'!$CT53:$GF53,"<" & S53+0.5,'Asset data'!$CX53:$GJ53)-W53,0) -> 0 | Y53: =IF($A53>0,SUMIF('Age profile (years)'!$CT53:$GF53,"<" & T53+0.5,'Asset data'!$CX53:$GJ53)-X53-W53,0) -> 0 | Z53: =IF($A53>0,SUMIF('Age profile (years)'!$CT53:$GF53,"<" & U53+0.5,'Asset data'!$CX53:$GJ53)-Y53-X53-W53,0) -> 0 | AA53: 0 | AB53: 0 | AC53: 0 | AD53: 0 | AE53: 0 | AF53: 0 | AI53: =IF($A53>0,'RRR hist-forc'!K53,0) -> 0 | AJ53: 0
A54: ='Asset data'!A54 -> 3 | B54: ='Asset data'!B54 -> 0 | C54: ='Asset data'!C54 -> 0 | D54: ='Asset data'!E54 -> > 33 kV & < = 66 kV | E54: UNDERGROUND CABLES | F54: =IF(A54>0,SUM('Asset data'!J54:CV54),0) -> 3.58225 | G54: =IF(A54>0,'Asset data'!F54,0) -> 156.9692204 | H54: =IF(A54>0,SUM('Asset data'!CX54:GJ54),0) -> 562.3029896 | I54: 2.648001208e-05 | J54: 46 | K54: 0.0001745699885 | L54: 156.9692204 | M54: =IF($A54>0,SUMPRODUCT('Age profile (years)'!$CT54:$GF54,'Asset data'!$CX54:$GJ54)/H54-0.5,0) -> 35.68346645 | N54: 20064.91987 | O54: =IF($A54>0,'Asset data'!G54,0) -> 45.70686904 | P54: 25701.10911 | Q54: 0.2192975104 | R54: 4.570686904 | S54: 9.141373808 | T54: 27.42412142 | U54: 36.56549523 | W54: =IF($A54>0,SUMIF('Age profile (years)'!$CT54:$GF54,"<" & R54+0.5,'Asset data'!$CX54:$GJ54),0) -> 0 | X54: =IF($A54>0,SUMIF('Age profile (years)'!$CT54:$GF54,"<" & S54+0.5,'Asset data'!$CX54:$GJ54)-W54,0) -> 0 | Y54: =IF($A54>0,SUMIF('Age profile (years)'!$CT54:$GF54,"<" & T54+0.5,'Asset data'!$CX54:$GJ54)-X54-W54,0) -> 33.15234932 | Z54: =IF($A54>0,SUMIF('Age profile (years)'!$CT54:$GF54,"<" & U54+0.5,'Asset data'!$CX54:$GJ54)-Y54-X54-W54,0) -> 447.5567158 | AA54: 81.59392452 | AB54: 0 | AC54: 0 | AD54: 0.05895815944 | AE54: 0.7959351525 | AF54: 0.1451066881 | AI54: =IF($A54>0,'RRR hist-forc'!K54,0) -> 45.70686904 | AJ54: 25701.10911
A55: ='Asset data'!A55 -> 0 | B55: ='Asset data'!B55 -> 0 | C55: ='Asset data'!C55 -> 0 | D55: ='Asset data'!E55 -> > 66 kV & < = 132 kV | E55: 0 | F55: =IF(A55>0,SUM('Asset data'!J55:CV55),0) -> 0 | G55: =IF(A55>0,'Asset data'!F55,0) -> 0 | H55: =IF(A55>0,SUM('Asset data'!CX55:GJ55),0) -> 0 | I55: 0 | J55: 0 | K55: 0 | L55: 0 | M55: =IF($A55>0,SUMPRODUCT('Age profile (years)'!$CT55:$GF55,'Asset data'!$CX55:$GJ55)/H55-0.5,0) -> 0 | N55: 0 | O55: =IF($A55>0,'Asset data'!G55,0) -> 0 | P55: 0 | Q55: 0 | R55: 0 | S55: 0 | T55: 0 | U55: 0 | W55: =IF($A55>0,SUMIF('Age profile (years)'!$CT55:$GF55,"<" & R55+0.5,'Asset data'!$CX55:$GJ55),0) -> 0 | X55: =IF($A55>0,SUMIF('Age profile (years)'!$CT55:$GF55,"<" & S55+0.5,'Asset data'!$CX55:$GJ55)-W55,0) -> 0 | Y55: =IF($A55>0,SUMIF('Age profile (years)'!$CT55:$GF55,"<" & T55+0.5,'Asset data'!$CX55:$GJ55)-X55-W55,0) -> 0 | Z55: =IF($A55>0,SUMIF('Age profile (years)'!$CT55:$GF55,"<" & U55+0.5,'Asset data'!$CX55:$GJ55)-Y55-X55-W55,0) -> 0 | AA55: 0 | AB55: 0 | AC55: 0 | AD55: 0 | AE55: 0 | AF55: 0 | AI55: =IF($A55>0,'RRR hist-forc'!K55,0) -> 0 | AJ55: 0
A56: ='Asset data'!A56 -> 0 | B56: ='Asset data'!B56 -> 0 | C56: ='Asset data'!C56 -> 0 | D56: ='Asset data'!E56 -> > 132 kV | E56: 0 | F56: =IF(A56>0,SUM('Asset data'!J56:CV56),0) -> 0 | G56: =IF(A56>0,'Asset data'!F56,0) -> 0 | H56: =IF(A56>0,SUM('Asset data'!CX56:GJ56),0) -> 0 | I56: 0 | J56: 0 | K56: 0 | L56: 0 | M56: =IF($A56>0,SUMPRODUCT('Age profile (years)'!$CT56:$GF56,'Asset data'!$CX56:$GJ56)/H56-0.5,0) -> 0 | N56: 0 | O56: =IF($A56>0,'Asset data'!G56,0) -> 0 | P56: 0 | Q56: 0 | R56: 0 | S56: 0 | T56: 0 | U56: 0 | W56: =IF($A56>0,SUMIF('Age profile (years)'!$CT56:$GF56,"<" & R56+0.5,'Asset data'!$CX56:$GJ56),0) -> 0 | X56: =IF($A56>0,SUMIF('Age profile (years)'!$CT56:$GF56,"<" & S56+0.5,'Asset data'!$CX56:$GJ56)-W56,0) -> 0 | Y56: =IF($A56>0,SUMIF('Age profile (years)'!$CT56:$GF56,"<" & T56+0.5,'Asset data'!$CX56:$GJ56)-X56-W56,0) -> 0 | Z56: =IF($A56>0,SUMIF('Age profile (years)'!$CT56:$GF56,"<" & U56+0.5,'Asset data'!$CX56:$GJ56)-Y56-X56-W56,0) -> 0 | AA56: 0 | AB56: 0 | AC56: 0 | AD56: 0 | AE56: 0 | AF56: 0 | AI56: =IF($A56>0,'RRR hist-forc'!K56,0) -> 0 | AJ56: 0
A57: ='Asset data'!A57 -> 3 | B57: ='Asset data'!B57 -> 0 | C57: ='Asset data'!C57 -> 0 | D57: ='Asset data'!E57 -> Other | E57: UNDERGROUND CABLES | F57: =IF(A57>0,SUM('Asset data'!J57:CV57),0) -> 1218.25167 | G57: =IF(A57>0,'Asset data'!F57,0) -> 847.4595704 | H57: =IF(A57>0,SUM('Asset data'!CX57:GJ57),0) -> 1032419.037 | I57: 0.04861875017 | J57: 8 | K57: 0.3205200447 | L57: 847.4595704 | M57: =IF($A57>0,SUMPRODUCT('Age profile (years)'!$CT57:$GF57,'Asset data'!$CX57:$GJ57)/H57-0.5,0) -> 32.19131819 | N57: 33234929.73 | O57: =IF($A57>0,'Asset data'!G57,0) -> 45.70686904 | P57: 47188641.72 | Q57: 0.2957006492 | R57: 4.570686904 | S57: 9.141373808 | T57: 27.42412142 | U57: 36.56549523 | W57: =IF($A57>0,SUMIF('Age profile (years)'!$CT57:$GF57,"<" & R57+0.5,'Asset data'!$CX57:$GJ57),0) -> 9149.974889 | X57: =IF($A57>0,SUMIF('Age profile (years)'!$CT57:$GF57,"<" & S57+0.5,'Asset data'!$CX57:$GJ57)-W57,0) -> 23174.23547 | Y57: =IF($A57>0,SUMIF('Age profile (years)'!$CT57:$GF57,"<" & T57+0.5,'Asset data'!$CX57:$GJ57)-X57-W57,0) -> 215580.2495 | Z57: =IF($A57>0,SUMIF('Age profile (years)'!$CT57:$GF57,"<" & U57+0.5,'Asset data'!$CX57:$GJ57)-Y57-X57-W57,0) -> 425944.1581 | AA57: 358570.419 | AB57: 0.008862656113 | AC57: 0.02244654025 | AD57: 0.2088108043 | AE57: 0.4125690663 | AF57: 0.347310933 | AI57: =IF($A57>0,'RRR hist-forc'!K57,0) -> 45.70686904 | AJ57: 47188641.72
A58: ='Asset data'!A58 -> 4 | B58: ='Asset data'!B58 -> 0 | C58: ='Asset data'!C58 -> 0 | D58: ='Asset data'!E58 -> ˂ = 11 kV ; Residential ; Simple Type | E58: SERVICE LINES | F58: =IF(A58>0,SUM('Asset data'!J58:CV58),0) -> 10910.43356 | G58: =IF(A58>0,'Asset data'!F58,0) -> 58.18501236 | H58: =IF(A58>0,SUM('Asset data'!CX58:GJ58),0) -> 634823.7116 | I58: 0.02989516304 | J58: 11 | K58: 1 | L58: 58.18501236 | M58: =IF($A58>0,SUMPRODUCT('Age profile (years)'!$CT58:$GF58,'Asset data'!$CX58:$GJ58)/H58-0.5,0) -> 32.88675518 | N58: 20877291.99 | O58: =IF($A58>0,'Asset data'!G58,0) -> 60.07031237 | P58: 38134058.66 | Q58: 0.4525289801 | R58: 6.007031237 | S58: 12.01406247 | T58: 36.04218742 | U58: 48.0562499 | W58: =IF($A58>0,SUMIF('Age profile (years)'!$CT58:$GF58,"<" & R58+0.5,'Asset data'!$CX58:$GJ58),0) -> 40206.73997 | X58: =IF($A58>0,SUMIF('Age profile (years)'!$CT58:$GF58,"<" & S58+0.5,'Asset data'!$CX58:$GJ58)-W58,0) -> 43802.57373 | Y58: =IF($A58>0,SUMIF('Age profile (years)'!$CT58:$GF58,"<" & T58+0.5,'Asset data'!$CX58:$GJ58)-X58-W58,0) -> 274599.1651 | Z58: =IF($A58>0,SUMIF('Age profile (years)'!$CT58:$GF58,"<" & U58+0.5,'Asset data'!$CX58:$GJ58)-Y58-X58-W58,0) -> 94117.77958 | AA58: 182097.4532 | AB58: 0.06333528385 | AC58: 0.06899958671 | AD58: 0.4325597171 | AE58: 0.1482581351 | AF58: 0.2868472772 | AI58: =IF($A58>0,'RRR hist-forc'!K58,0) -> 60.07031237 | AJ58: 38134058.66
A59: ='Asset data'!A59 -> 0 | B59: ='Asset data'!B59 -> 0 | C59: ='Asset data'!C59 -> 0 | D59: ='Asset data'!E59 -> ˂ = 11 kV ; Commercial & Industrial ; Simple Type | E59: 0 | F59: =IF(A59>0,SUM('Asset data'!J59:CV59),0) -> 0 | G59: =IF(A59>0,'Asset data'!F59,0) -> 0 | H59: =IF(A59>0,SUM('Asset data'!CX59:GJ59),0) -> 0 | I59: 0 | J59: 0 | K59: 0 | L59: 0 | M59: =IF($A59>0,SUMPRODUCT('Age profile (years)'!$CT59:$GF59,'Asset data'!$CX59:$GJ59)/H59-0.5,0) -> 0 | N59: 0 | O59: =IF($A59>0,'Asset data'!G59,0) -> 0 | P59: 0 | Q59: 0 | R59: 0 | S59: 0 | T59: 0 | U59: 0 | W59: =IF($A59>0,SUMIF('Age profile (years)'!$CT59:$GF59,"<" & R59+0.5,'Asset data'!$CX59:$GJ59),0) -> 0 | X59: =IF($A59>0,SUMIF('Age profile (years)'!$CT59:$GF59,"<" & S59+0.5,'Asset data'!$CX59:$GJ59)-W59,0) -> 0 | Y59: =IF($A59>0,SUMIF('Age profile (years)'!$CT59:$GF59,"<" & T59+0.5,'Asset data'!$CX59:$GJ59)-X59-W59,0) -> 0 | Z59: =IF($A59>0,SUMIF('Age profile (years)'!$CT59:$GF59,"<" & U59+0.5,'Asset data'!$CX59:$GJ59)-Y59-X59-W59,0) -> 0 | AA59: 0 | AB59: 0 | AC59: 0 | AD59: 0 | AE59: 0 | AF59: 0 | AI59: =IF($A59>0,'RRR hist-forc'!K59,0) -> 0 | AJ59: 0
A60: ='Asset data'!A60 -> 0 | B60: ='Asset data'!B60 -> 0 | C60: ='Asset data'!C60 -> 0 | D60: ='Asset data'!E60 -> ˂ = 11 kV ; Residential ; Complex Type | E60: 0 | F60: =IF(A60>0,SUM('Asset data'!J60:CV60),0) -> 0 | G60: =IF(A60>0,'Asset data'!F60,0) -> 0 | H60: =IF(A60>0,SUM('Asset data'!CX60:GJ60),0) -> 0 | I60: 0 | J60: 0 | K60: 0 | L60: 0 | M60: =IF($A60>0,SUMPRODUCT('Age profile (years)'!$CT60:$GF60,'Asset data'!$CX60:$GJ60)/H60-0.5,0) -> 0 | N60: 0 | O60: =IF($A60>0,'Asset data'!G60,0) -> 0 | P60: 0 | Q60: 0 | R60: 0 | S60: 0 | T60: 0 | U60: 0 | W60: =IF($A60>0,SUMIF('Age profile (years)'!$CT60:$GF60,"<" & R60+0.5,'Asset data'!$CX60:$GJ60),0) -> 0 | X60: =IF($A60>0,SUMIF('Age profile (years)'!$CT60:$GF60,"<" & S60+0.5,'Asset data'!$CX60:$GJ60)-W60,0) -> 0 | Y60: =IF($A60>0,SUMIF('Age profile (years)'!$CT60:$GF60,"<" & T60+0.5,'Asset data'!$CX60:$GJ60)-X60-W60,0) -> 0 | Z60: =IF($A60>0,SUMIF('Age profile (years)'!$CT60:$GF60,"<" & U60+0.5,'Asset data'!$CX60:$GJ60)-Y60-X60-W60,0) -> 0 | AA60: 0 | AB60: 0 | AC60: 0 | AD60: 0 | AE60: 0 | AF60: 0 | AI60: =IF($A60>0,'RRR hist-forc'!K60,0) -> 0 | AJ60: 0
A61: ='Asset data'!A61 -> 0 | B61: ='Asset data'!B61 -> 0 | C61: ='Asset data'!C61 -> 0 | D61: ='Asset data'!E61 -> ˂ = 11 kV ; Commercial & Industrial ; Complex Type | E61: 0 | F61: =IF(A61>0,SUM('Asset data'!J61:CV61),0) -> 0 | G61: =IF(A61>0,'Asset data'!F61,0) -> 0 | H61: =IF(A61>0,SUM('Asset data'!CX61:GJ61),0) -> 0 | I61: 0 | J61: 0 | K61: 0 | L61: 0 | M61: =IF($A61>0,SUMPRODUCT('Age profile (years)'!$CT61:$GF61,'Asset data'!$CX61:$GJ61)/H61-0.5,0) -> 0 | N61: 0 | O61: =IF($A61>0,'Asset data'!G61,0) -> 0 | P61: 0 | Q61: 0 | R61: 0 | S61: 0 | T61: 0 | U61: 0 | W61: =IF($A61>0,SUMIF('Age profile (years)'!$CT61:$GF61,"<" & R61+0.5,'Asset data'!$CX61:$GJ61),0) -> 0 | X61: =IF($A61>0,SUMIF('Age profile (years)'!$CT61:$GF61,"<" & S61+0.5,'Asset data'!$CX61:$GJ61)-W61,0) -> 0 | Y61: =IF($A61>0,SUMIF('Age profile (years)'!$CT61:$GF61,"<" & T61+0.5,'Asset data'!$CX61:$GJ61)-X61-W61,0) -> 0 | Z61: =IF($A61>0,SUMIF('Age profile (years)'!$CT61:$GF61,"<" & U61+0.5,'Asset data'!$CX61:$GJ61)-Y61-X61-W61,0) -> 0 | AA61: 0 | AB61: 0 | AC61: 0 | AD61: 0 | AE61: 0 | AF61: 0 | AI61: =IF($A61>0,'RRR hist-forc'!K61,0) -> 0 | AJ61: 0
A62: ='Asset data'!A62 -> 0 | B62: ='Asset data'!B62 -> 0 | C62: ='Asset data'!C62 -> 0 | D62: ='Asset data'!E62 -> ˂ = 11 kV ; Subdivision ; Complex Type | E62: 0 | F62: =IF(A62>0,SUM('Asset data'!J62:CV62),0) -> 0 | G62: =IF(A62>0,'Asset data'!F62,0) -> 0 | H62: =IF(A62>0,SUM('Asset data'!CX62:GJ62),0) -> 0 | I62: 0 | J62: 0 | K62: 0 | L62: 0 | M62: =IF($A62>0,SUMPRODUCT('Age profile (years)'!$CT62:$GF62,'Asset data'!$CX62:$GJ62)/H62-0.5,0) -> 0 | N62: 0 | O62: =IF($A62>0,'Asset data'!G62,0) -> 0 | P62: 0 | Q62: 0 | R62: 0 | S62: 0 | T62: 0 | U62: 0 | W62: =IF($A62>0,SUMIF('Age profile (years)'!$CT62:$GF62,"<" & R62+0.5,'Asset data'!$CX62:$GJ62),0) -> 0 | X62: =IF($A62>0,SUMIF('Age profile (years)'!$CT62:$GF62,"<" & S62+0.5,'Asset data'!$CX62:$GJ62)-W62,0) -> 0 | Y62: =IF($A62>0,SUMIF('Age profile (years)'!$CT62:$GF62,"<" & T62+0.5,'Asset data'!$CX62:$GJ62)-X62-W62,0) -> 0 | Z62: =IF($A62>0,SUMIF('Age profile (years)'!$CT62:$GF62,"<" & U62+0.5,'Asset data'!$CX62:$GJ62)-Y62-X62-W62,0) -> 0 | AA62: 0 | AB62: 0 | AC62: 0 | AD62: 0 | AE62: 0 | AF62: 0 | AI62: =IF($A62>0,'RRR hist-forc'!K62,0) -> 0 | AJ62: 0
A63: ='Asset data'!A63 -> 0 | B63: ='Asset data'!B63 -> 0 | C63: ='Asset data'!C63 -> 0 | D63: ='Asset data'!E63 -> > 11 kV & < = 22 kV ; Commercial & Industrial | E63: 0 | F63: =IF(A63>0,SUM('Asset data'!J63:CV63),0) -> 0 | G63: =IF(A63>0,'Asset data'!F63,0) -> 0 | H63: =IF(A63>0,SUM('Asset data'!CX63:GJ63),0) -> 0 | I63: 0 | J63: 0 | K63: 0 | L63: 0 | M63: =IF($A63>0,SUMPRODUCT('Age profile (years)'!$CT63:$GF63,'Asset data'!$CX63:$GJ63)/H63-0.5,0) -> 0 | N63: 0 | O63: =IF($A63>0,'Asset data'!G63,0) -> 0 | P63: 0 | Q63: 0 | R63: 0 | S63: 0 | T63: 0 | U63: 0 | W63: =IF($A63>0,SUMIF('Age profile (years)'!$CT63:$GF63,"<" & R63+0.5,'Asset data'!$CX63:$GJ63),0) -> 0 | X63: =IF($A63>0,SUMIF('Age profile (years)'!$CT63:$GF63,"<" & S63+0.5,'Asset data'!$CX63:$GJ63)-W63,0) -> 0 | Y63: =IF($A63>0,SUMIF('Age profile (years)'!$CT63:$GF63,"<" & T63+0.5,'Asset data'!$CX63:$GJ63)-X63-W63,0) -> 0 | Z63: =IF($A63>0,SUMIF('Age profile (years)'!$CT63:$GF63,"<" & U63+0.5,'Asset data'!$CX63:$GJ63)-Y63-X63-W63,0) -> 0 | AA63: 0 | AB63: 0 | AC63: 0 | AD63: 0 | AE63: 0 | AF63: 0 | AI63: =IF($A63>0,'RRR hist-forc'!K63,0) -> 0 | AJ63: 0
A64: ='Asset data'!A64 -> 0 | B64: ='Asset data'!B64 -> 0 | C64: ='Asset data'!C64 -> 0 | D64: ='Asset data'!E64 -> > 11 kV & < = 22 kV ; Subdivision | E64: 0 | F64: =IF(A64>0,SUM('Asset data'!J64:CV64),0) -> 0 | G64: =IF(A64>0,'Asset data'!F64,0) -> 0 | H64: =IF(A64>0,SUM('Asset data'!CX64:GJ64),0) -> 0 | I64: 0 | J64: 0 | K64: 0 | L64: 0 | M64: =IF($A64>0,SUMPRODUCT('Age profile (years)'!$CT64:$GF64,'Asset data'!$CX64:$GJ64)/H64-0.5,0) -> 0 | N64: 0 | O64: =IF($A64>0,'Asset data'!G64,0) -> 0 | P64: 0 | Q64: 0 | R64: 0 | S64: 0 | T64: 0 | U64: 0 | W64: =IF($A64>0,SUMIF('Age profile (years)'!$CT64:$GF64,"<" & R64+0.5,'Asset data'!$CX64:$GJ64),0) -> 0 | X64: =IF($A64>0,SUMIF('Age profile (years)'!$CT64:$GF64,"<" & S64+0.5,'Asset data'!$CX64:$GJ64)-W64,0) -> 0 | Y64: =IF($A64>0,SUMIF('Age profile (years)'!$CT64:$GF64,"<" & T64+0.5,'Asset data'!$CX64:$GJ64)-X64-W64,0) -> 0 | Z64: =IF($A64>0,SUMIF('Age profile (years)'!$CT64:$GF64,"<" & U64+0.5,'Asset data'!$CX64:$GJ64)-Y64-X64-W64,0) -> 0 | AA64: 0 | AB64: 0 | AC64: 0 | AD64: 0 | AE64: 0 | AF64: 0 | AI64: =IF($A64>0,'RRR hist-forc'!K64,0) -> 0 | AJ64: 0
A65: ='Asset data'!A65 -> 0 | B65: ='Asset data'!B65 -> 0 | C65: ='Asset data'!C65 -> 0 | D65: ='Asset data'!E65 -> > 22 kV & < = 33 kV ; Commercial & Industrial | E65: 0 | F65: =IF(A65>0,SUM('Asset data'!J65:CV65),0) -> 0 | G65: =IF(A65>0,'Asset data'!F65,0) -> 0 | H65: =IF(A65>0,SUM('Asset data'!CX65:GJ65),0) -> 0 | I65: 0 | J65: 0 | K65: 0 | L65: 0 | M65: =IF($A65>0,SUMPRODUCT('Age profile (years)'!$CT65:$GF65,'Asset data'!$CX65:$GJ65)/H65-0.5,0) -> 0 | N65: 0 | O65: =IF($A65>0,'Asset data'!G65,0) -> 0 | P65: 0 | Q65: 0 | R65: 0 | S65: 0 | T65: 0 | U65: 0 | W65: =IF($A65>0,SUMIF('Age profile (years)'!$CT65:$GF65,"<" & R65+0.5,'Asset data'!$CX65:$GJ65),0) -> 0 | X65: =IF($A65>0,SUMIF('Age profile (years)'!$CT65:$GF65,"<" & S65+0.5,'Asset data'!$CX65:$GJ65)-W65,0) -> 0 | Y65: =IF($A65>0,SUMIF('Age profile (years)'!$CT65:$GF65,"<" & T65+0.5,'Asset data'!$CX65:$GJ65)-X65-W65,0) -> 0 | Z65: =IF($A65>0,SUMIF('Age profile (years)'!$CT65:$GF65,"<" & U65+0.5,'Asset data'!$CX65:$GJ65)-Y65-X65-W65,0) -> 0 | AA65: 0 | AB65: 0 | AC65: 0 | AD65: 0 | AE65: 0 | AF65: 0 | AI65: =IF($A65>0,'RRR hist-forc'!K65,0) -> 0 | AJ65: 0
A66: ='Asset data'!A66 -> 0 | B66: ='Asset data'!B66 -> 0 | C66: ='Asset data'!C66 -> 0 | D66: ='Asset data'!E66 -> > 22 kV & < = 33 kV ; Subdivision | E66: 0 | F66: =IF(A66>0,SUM('Asset data'!J66:CV66),0) -> 0 | G66: =IF(A66>0,'Asset data'!F66,0) -> 0 | H66: =IF(A66>0,SUM('Asset data'!CX66:GJ66),0) -> 0 | I66: 0 | J66: 0 | K66: 0 | L66: 0 | M66: =IF($A66>0,SUMPRODUCT('Age profile (years)'!$CT66:$GF66,'Asset data'!$CX66:$GJ66)/H66-0.5,0) -> 0 | N66: 0 | O66: =IF($A66>0,'Asset data'!G66,0) -> 0 | P66: 0 | Q66: 0 | R66: 0 | S66: 0 | T66: 0 | U66: 0 | W66: =IF($A66>0,SUMIF('Age profile (years)'!$CT66:$GF66,"<" & R66+0.5,'Asset data'!$CX66:$GJ66),0) -> 0 | X66: =IF($A66>0,SUMIF('Age profile (years)'!$CT66:$GF66,"<" & S66+0.5,'Asset data'!$CX66:$GJ66)-W66,0) -> 0 | Y66: =IF($A66>0,SUMIF('Age profile (years)'!$CT66:$GF66,"<" & T66+0.5,'Asset data'!$CX66:$GJ66)-X66-W66,0) -> 0 | Z66: =IF($A66>0,SUMIF('Age profile (years)'!$CT66:$GF66,"<" & U66+0.5,'Asset data'!$CX66:$GJ66)-Y66-X66-W66,0) -> 0 | AA66: 0 | AB66: 0 | AC66: 0 | AD66: 0 | AE66: 0 | AF66: 0 | AI66: =IF($A66>0,'RRR hist-forc'!K66,0) -> 0 | AJ66: 0
A67: ='Asset data'!A67 -> 0 | B67: ='Asset data'!B67 -> 0 | C67: ='Asset data'!C67 -> 0 | D67: ='Asset data'!E67 -> > 33 kV & < = 66 kV ; Commercial & Industrial | E67: 0 | F67: =IF(A67>0,SUM('Asset data'!J67:CV67),0) -> 0 | G67: =IF(A67>0,'Asset data'!F67,0) -> 0 | H67: =IF(A67>0,SUM('Asset data'!CX67:GJ67),0) -> 0 | I67: 0 | J67: 0 | K67: 0 | L67: 0 | M67: =IF($A67>0,SUMPRODUCT('Age profile (years)'!$CT67:$GF67,'Asset data'!$CX67:$GJ67)/H67-0.5,0) -> 0 | N67: 0 | O67: =IF($A67>0,'Asset data'!G67,0) -> 0 | P67: 0 | Q67: 0 | R67: 0 | S67: 0 | T67: 0 | U67: 0 | W67: =IF($A67>0,SUMIF('Age profile (years)'!$CT67:$GF67,"<" & R67+0.5,'Asset data'!$CX67:$GJ67),0) -> 0 | X67: =IF($A67>0,SUMIF('Age profile (years)'!$CT67:$GF67,"<" & S67+0.5,'Asset data'!$CX67:$GJ67)-W67,0) -> 0 | Y67: =IF($A67>0,SUMIF('Age profile (years)'!$CT67:$GF67,"<" & T67+0.5,'Asset data'!$CX67:$GJ67)-X67-W67,0) -> 0 | Z67: =IF($A67>0,SUMIF('Age profile (years)'!$CT67:$GF67,"<" & U67+0.5,'Asset data'!$CX67:$GJ67)-Y67-X67-W67,0) -> 0 | AA67: 0 | AB67: 0 | AC67: 0 | AD67: 0 | AE67: 0 | AF67: 0 | AI67: =IF($A67>0,'RRR hist-forc'!K67,0) -> 0 | AJ67: 0
A68: ='Asset data'!A68 -> 0 | B68: ='Asset data'!B68 -> 0 | C68: ='Asset data'!C68 -> 0 | D68: ='Asset data'!E68 -> > 33 kV & < = 66 kV ; Subdivision | E68: 0 | F68: =IF(A68>0,SUM('Asset data'!J68:CV68),0) -> 0 | G68: =IF(A68>0,'Asset data'!F68,0) -> 0 | H68: =IF(A68>0,SUM('Asset data'!CX68:GJ68),0) -> 0 | I68: 0 | J68: 0 | K68: 0 | L68: 0 | M68: =IF($A68>0,SUMPRODUCT('Age profile (years)'!$CT68:$GF68,'Asset data'!$CX68:$GJ68)/H68-0.5,0) -> 0 | N68: 0 | O68: =IF($A68>0,'Asset data'!G68,0) -> 0 | P68: 0 | Q68: 0 | R68: 0 | S68: 0 | T68: 0 | U68: 0 | W68: =IF($A68>0,SUMIF('Age profile (years)'!$CT68:$GF68,"<" & R68+0.5,'Asset data'!$CX68:$GJ68),0) -> 0 | X68: =IF($A68>0,SUMIF('Age profile (years)'!$CT68:$GF68,"<" & S68+0.5,'Asset data'!$CX68:$GJ68)-W68,0) -> 0 | Y68: =IF($A68>0,SUMIF('Age profile (years)'!$CT68:$GF68,"<" & T68+0.5,'Asset data'!$CX68:$GJ68)-X68-W68,0) -> 0 | Z68: =IF($A68>0,SUMIF('Age profile (years)'!$CT68:$GF68,"<" & U68+0.5,'Asset data'!$CX68:$GJ68)-Y68-X68-W68,0) -> 0 | AA68: 0 | AB68: 0 | AC68: 0 | AD68: 0 | AE68: 0 | AF68: 0 | AI68: =IF($A68>0,'RRR hist-forc'!K68,0) -> 0 | AJ68: 0
A69: ='Asset data'!A69 -> 0 | B69: ='Asset data'!B69 -> 0 | C69: ='Asset data'!C69 -> 0 | D69: ='Asset data'!E69 -> > 66 kV & < = 132 kV ; Commercial & Industrial | E69: 0 | F69: =IF(A69>0,SUM('Asset data'!J69:CV69),0) -> 0 | G69: =IF(A69>0,'Asset data'!F69,0) -> 0 | H69: =IF(A69>0,SUM('Asset data'!CX69:GJ69),0) -> 0 | I69: 0 | J69: 0 | K69: 0 | L69: 0 | M69: =IF($A69>0,SUMPRODUCT('Age profile (years)'!$CT69:$GF69,'Asset data'!$CX69:$GJ69)/H69-0.5,0) -> 0 | N69: 0 | O69: =IF($A69>0,'Asset data'!G69,0) -> 0 | P69: 0 | Q69: 0 | R69: 0 | S69: 0 | T69: 0 | U69: 0 | W69: =IF($A69>0,SUMIF('Age profile (years)'!$CT69:$GF69,"<" & R69+0.5,'Asset data'!$CX69:$GJ69),0) -> 0 | X69: =IF($A69>0,SUMIF('Age profile (years)'!$CT69:$GF69,"<" & S69+0.5,'Asset data'!$CX69:$GJ69)-W69,0) -> 0 | Y69: =IF($A69>0,SUMIF('Age profile (years)'!$CT69:$GF69,"<" & T69+0.5,'Asset data'!$CX69:$GJ69)-X69-W69,0) -> 0 | Z69: =IF($A69>0,SUMIF('Age profile (years)'!$CT69:$GF69,"<" & U69+0.5,'Asset data'!$CX69:$GJ69)-Y69-X69-W69,0) -> 0 | AA69: 0 | AB69: 0 | AC69: 0 | AD69: 0 | AE69: 0 | AF69: 0 | AI69: =IF($A69>0,'RRR hist-forc'!K69,0) -> 0 | AJ69: 0
A70: ='Asset data'!A70 -> 0 | B70: ='Asset data'!B70 -> 0 | C70: ='Asset data'!C70 -> 0 | D70: ='Asset data'!E70 -> > 66 kV & < = 132 kV ; Subdivision | E70: 0 | F70: =IF(A70>0,SUM('Asset data'!J70:CV70),0) -> 0 | G70: =IF(A70>0,'Asset data'!F70,0) -> 0 | H70: =IF(A70>0,SUM('Asset data'!CX70:GJ70),0) -> 0 | I70: 0 | J70: 0 | K70: 0 | L70: 0 | M70: =IF($A70>0,SUMPRODUCT('Age profile (years)'!$CT70:$GF70,'Asset data'!$CX70:$GJ70)/H70-0.5,0) -> 0 | N70: 0 | O70: =IF($A70>0,'Asset data'!G70,0) -> 0 | P70: 0 | Q70: 0 | R70: 0 | S70: 0 | T70: 0 | U70: 0 | W70: =IF($A70>0,SUMIF('Age profile (years)'!$CT70:$GF70,"<" & R70+0.5,'Asset data'!$CX70:$GJ70),0) -> 0 | X70: =IF($A70>0,SUMIF('Age profile (years)'!$CT70:$GF70,"<" & S70+0.5,'Asset data'!$CX70:$GJ70)-W70,0) -> 0 | Y70: =IF($A70>0,SUMIF('Age profile (years)'!$CT70:$GF70,"<" & T70+0.5,'Asset data'!$CX70:$GJ70)-X70-W70,0) -> 0 | Z70: =IF($A70>0,SUMIF('Age profile (years)'!$CT70:$GF70,"<" & U70+0.5,'Asset data'!$CX70:$GJ70)-Y70-X70-W70,0) -> 0 | AA70: 0 | AB70: 0 | AC70: 0 | AD70: 0 | AE70: 0 | AF70: 0 | AI70: =IF($A70>0,'RRR hist-forc'!K70,0) -> 0 | AJ70: 0
A71: ='Asset data'!A71 -> 0 | B71: ='Asset data'!B71 -> 0 | C71: ='Asset data'!C71 -> 0 | D71: ='Asset data'!E71 -> > 132 kV ; Commercial & Industrial | E71: 0 | F71: =IF(A71>0,SUM('Asset data'!J71:CV71),0) -> 0 | G71: =IF(A71>0,'Asset data'!F71,0) -> 0 | H71: =IF(A71>0,SUM('Asset data'!CX71:GJ71),0) -> 0 | I71: 0 | J71: 0 | K71: 0 | L71: 0 | M71: =IF($A71>0,SUMPRODUCT('Age profile (years)'!$CT71:$GF71,'Asset data'!$CX71:$GJ71)/H71-0.5,0) -> 0 | N71: 0 | O71: =IF($A71>0,'Asset data'!G71,0) -> 0 | P71: 0 | Q71: 0 | R71: 0 | S71: 0 | T71: 0 | U71: 0 | W71: =IF($A71>0,SUMIF('Age profile (years)'!$CT71:$GF71,"<" & R71+0.5,'Asset data'!$CX71:$GJ71),0) -> 0 | X71: =IF($A71>0,SUMIF('Age profile (years)'!$CT71:$GF71,"<" & S71+0.5,'Asset data'!$CX71:$GJ71)-W71,0) -> 0 | Y71: =IF($A71>0,SUMIF('Age profile (years)'!$CT71:$GF71,"<" & T71+0.5,'Asset data'!$CX71:$GJ71)-X71-W71,0) -> 0 | Z71: =IF($A71>0,SUMIF('Age profile (years)'!$CT71:$GF71,"<" & U71+0.5,'Asset data'!$CX71:$GJ71)-Y71-X71-W71,0) -> 0 | AA71: 0 | AB71: 0 | AC71: 0 | AD71: 0 | AE71: 0 | AF71: 0 | AI71: =IF($A71>0,'RRR hist-forc'!K71,0) -> 0 | AJ71: 0
A72: ='Asset data'!A72 -> 0 | B72: ='Asset data'!B72 -> 0 | C72: ='Asset data'!C72 -> 0 | D72: ='Asset data'!E72 -> > 132 kV ; Subdivision | E72: 0 | F72: =IF(A72>0,SUM('Asset data'!J72:CV72),0) -> 0 | G72: =IF(A72>0,'Asset data'!F72,0) -> 0 | H72: =IF(A72>0,SUM('Asset data'!CX72:GJ72),0) -> 0 | I72: 0 | J72: 0 | K72: 0 | L72: 0 | M72: =IF($A72>0,SUMPRODUCT('Age profile (years)'!$CT72:$GF72,'Asset data'!$CX72:$GJ72)/H72-0.5,0) -> 0 | N72: 0 | O72: =IF($A72>0,'Asset data'!G72,0) -> 0 | P72: 0 | Q72: 0 | R72: 0 | S72: 0 | T72: 0 | U72: 0 | W72: =IF($A72>0,SUMIF('Age profile (years)'!$CT72:$GF72,"<" & R72+0.5,'Asset data'!$CX72:$GJ72),0) -> 0 | X72: =IF($A72>0,SUMIF('Age profile (years)'!$CT72:$GF72,"<" & S72+0.5,'Asset data'!$CX72:$GJ72)-W72,0) -> 0 | Y72: =IF($A72>0,SUMIF('Age profile (years)'!$CT72:$GF72,"<" & T72+0.5,'Asset data'!$CX72:$GJ72)-X72-W72,0) -> 0 | Z72: =IF($A72>0,SUMIF('Age profile (years)'!$CT72:$GF72,"<" & U72+0.5,'Asset data'!$CX72:$GJ72)-Y72-X72-W72,0) -> 0 | AA72: 0 | AB72: 0 | AC72: 0 | AD72: 0 | AE72: 0 | AF72: 0 | AI72: =IF($A72>0,'RRR hist-forc'!K72,0) -> 0 | AJ72: 0
A73: ='Asset data'!A73 -> 0 | B73: ='Asset data'!B73 -> 0 | C73: ='Asset data'!C73 -> 0 | D73: ='Asset data'!E73 -> Other | E73: 0 | F73: =IF(A73>0,SUM('Asset data'!J73:CV73),0) -> 0 | G73: =IF(A73>0,'Asset data'!F73,0) -> 0 | H73: =IF(A73>0,SUM('Asset data'!CX73:GJ73),0) -> 0 | I73: 0 | J73: 0 | K73: 0 | L73: 0 | M73: =IF($A73>0,SUMPRODUCT('Age profile (years)'!$CT73:$GF73,'Asset data'!$CX73:$GJ73)/H73-0.5,0) -> 0 | N73: 0 | O73: =IF($A73>0,'Asset data'!G73,0) -> 0 | P73: 0 | Q73: 0 | R73: 0 | S73: 0 | T73: 0 | U73: 0 | W73: =IF($A73>0,SUMIF('Age profile (years)'!$CT73:$GF73,"<" & R73+0.5,'Asset data'!$CX73:$GJ73),0) -> 0 | X73: =IF($A73>0,SUMIF('Age profile (years)'!$CT73:$GF73,"<" & S73+0.5,'Asset data'!$CX73:$GJ73)-W73,0) -> 0 | Y73: =IF($A73>0,SUMIF('Age profile (years)'!$CT73:$GF73,"<" & T73+0.5,'Asset data'!$CX73:$GJ73)-X73-W73,0) -> 0 | Z73: =IF($A73>0,SUMIF('Age profile (years)'!$CT73:$GF73,"<" & U73+0.5,'Asset data'!$CX73:$GJ73)-Y73-X73-W73,0) -> 0 | AA73: 0 | AB73: 0 | AC73: 0 | AD73: 0 | AE73: 0 | AF73: 0 | AI73: =IF($A73>0,'RRR hist-forc'!K73,0) -> 0 | AJ73: 0
A74: ='Asset data'!A74 -> 5 | B74: ='Asset data'!B74 -> 0 | C74: ='Asset data'!C74 -> 0 | D74: ='Asset data'!E74 -> Pole Mounted ; < = 22kV ; < = 60 kVA ; Single Phase | E74: TRANSFORMERS | F74: =IF(A74>0,SUM('Asset data'!J74:CV74),0) -> 35120 | G74: =IF(A74>0,'Asset data'!F74,0) -> 6.510185076 | H74: =IF(A74>0,SUM('Asset data'!CX74:GJ74),0) -> 228637.6999 | I74: 0.0107670227 | J74: 21 | K74: 0.08032339047 | L74: 6.510185076 | M74: =IF($A74>0,SUMPRODUCT('Age profile (years)'!$CT74:$GF74,'Asset data'!$CX74:$GJ74)/H74-0.5,0) -> 25.97277904 | N74: 5938356.459 | O74: =IF($A74>0,'Asset data'!G74,0) -> 51.95831062 | P74: 11879628.63 | Q74: 0.5001227189 | R74: 5.195831062 | S74: 10.39166212 | T74: 31.17498637 | U74: 41.5666485 | W74: =IF($A74>0,SUMIF('Age profile (years)'!$CT74:$GF74,"<" & R74+0.5,'Asset data'!$CX74:$GJ74),0) -> 24920.98847 | X74: =IF($A74>0,SUMIF('Age profile (years)'!$CT74:$GF74,"<" & S74+0.5,'Asset data'!$CX74:$GJ74)-W74,0) -> 12480.02479 | Y74: =IF($A74>0,SUMIF('Age profile (years)'!$CT74:$GF74,"<" & T74+0.5,'Asset data'!$CX74:$GJ74)-X74-W74,0) -> 103980.676 | Z74: =IF($A74>0,SUMIF('Age profile (years)'!$CT74:$GF74,"<" & U74+0.5,'Asset data'!$CX74:$GJ74)-Y74-X74-W74,0) -> 46573.86403 | AA74: 40682.14654 | AB74: 0.1089977221 | AC74: 0.05458428246 | AD74: 0.4547835991 | AE74: 0.2037015945 | AF74: 0.1779328018 | AI74: =IF($A74>0,'RRR hist-forc'!K74,0) -> 51.95831062 | AJ74: 11879628.63
A75: ='Asset data'!A75 -> 5 | B75: ='Asset data'!B75 -> 0 | C75: ='Asset data'!C75 -> 0 | D75: ='Asset data'!E75 -> Pole Mounted ; < = 22kV ; > 60 kVA and < = 600 kVA ; Single Phase | E75: TRANSFORMERS | F75: =IF(A75>0,SUM('Asset data'!J75:CV75),0) -> 989 | G75: =IF(A75>0,'Asset data'!F75,0) -> 25.83480024 | H75: =IF(A75>0,SUM('Asset data'!CX75:GJ75),0) -> 25550.61744 | I75: 0.00120323148 | J75: 31 | K75: 0.008976263418 | L75: 25.83480024 | M75: =IF($A75>0,SUMPRODUCT('Age profile (years)'!$CT75:$GF75,'Asset data'!$CX75:$GJ75)/H75-0.5,0) -> 27.29575329 | N75: 697423.3499 | O75: =IF($A75>0,'Asset data'!G75,0) -> 52.69807993 | P75: 1346468.48 | Q75: 0.4820351458 | R75: 5.269807993 | S75: 10.53961599 | T75: 31.61884796 | U75: 42.15846394 | W75: =IF($A75>0,SUMIF('Age profile (years)'!$CT75:$GF75,"<" & R75+0.5,'Asset data'!$CX75:$GJ75),0) -> 2350.966822 | X75: =IF($A75>0,SUMIF('Age profile (years)'!$CT75:$GF75,"<" & S75+0.5,'Asset data'!$CX75:$GJ75)-W75,0) -> 1756.766416 | Y75: =IF($A75>0,SUMIF('Age profile (years)'!$CT75:$GF75,"<" & T75+0.5,'Asset data'!$CX75:$GJ75)-X75-W75,0) -> 11522.32091 | Z75: =IF($A75>0,SUMIF('Age profile (years)'!$CT75:$GF75,"<" & U75+0.5,'Asset data'!$CX75:$GJ75)-Y75-X75-W75,0) -> 4624.429243 | AA75: 5296.134049 | AB75: 0.09201213347 | AC75: 0.06875631951 | AD75: 0.4509605662 | AE75: 0.1809908999 | AF75: 0.2072800809 | AI75: =IF($A75>0,'RRR hist-forc'!K75,0) -> 52.69807993 | AJ75: 1346468.48
A76: ='Asset data'!A76 -> 0 | B76: ='Asset data'!B76 -> 0 | C76: ='Asset data'!C76 -> 0 | D76: ='Asset data'!E76 -> Pole Mounted ; < = 22kV ; > 600 kVA ; Single Phase | E76: 0 | F76: =IF(A76>0,SUM('Asset data'!J76:CV76),0) -> 0 | G76: =IF(A76>0,'Asset data'!F76,0) -> 0 | H76: =IF(A76>0,SUM('Asset data'!CX76:GJ76),0) -> 0 | I76: 0 | J76: 0 | K76: 0 | L76: 0 | M76: =IF($A76>0,SUMPRODUCT('Age profile (years)'!$CT76:$GF76,'Asset data'!$CX76:$GJ76)/H76-0.5,0) -> 0 | N76: 0 | O76: =IF($A76>0,'Asset data'!G76,0) -> 0 | P76: 0 | Q76: 0 | R76: 0 | S76: 0 | T76: 0 | U76: 0 | W76: =IF($A76>0,SUMIF('Age profile (years)'!$CT76:$GF76,"<" & R76+0.5,'Asset data'!$CX76:$GJ76),0) -> 0 | X76: =IF($A76>0,SUMIF('Age profile (years)'!$CT76:$GF76,"<" & S76+0.5,'Asset data'!$CX76:$GJ76)-W76,0) -> 0 | Y76: =IF($A76>0,SUMIF('Age profile (years)'!$CT76:$GF76,"<" & T76+0.5,'Asset data'!$CX76:$GJ76)-X76-W76,0) -> 0 | Z76: =IF($A76>0,SUMIF('Age profile (years)'!$CT76:$GF76,"<" & U76+0.5,'Asset data'!$CX76:$GJ76)-Y76-X76-W76,0) -> 0 | AA76: 0 | AB76: 0 | AC76: 0 | AD76: 0 | AE76: 0 | AF76: 0 | AI76: =IF($A76>0,'RRR hist-forc'!K76,0) -> 0 | AJ76: 0
A77: ='Asset data'!A77 -> 5 | B77: ='Asset data'!B77 -> 0 | C77: ='Asset data'!C77 -> 0 | D77: ='Asset data'!E77 -> Pole Mounted ; < = 22kV ; < = 60 kVA ; Multiple Phase | E77: TRANSFORMERS | F77: =IF(A77>0,SUM('Asset data'!J77:CV77),0) -> 7207 | G77: =IF(A77>0,'Asset data'!F77,0) -> 12.65369873 | H77: =IF(A77>0,SUM('Asset data'!CX77:GJ77),0) -> 91195.20675 | I77: 0.004294571114 | J77: 24 | K77: 0.03203805937 | L77: 12.65369873 | M77: =IF($A77>0,SUMPRODUCT('Age profile (years)'!$CT77:$GF77,'Asset data'!$CX77:$GJ77)/H77-0.5,0) -> 32.81552657 | N77: 2992618.73 | O77: =IF($A77>0,'Asset data'!G77,0) -> 58.86886197 | P77: 5368558.039 | Q77: 0.442565637 | R77: 5.886886197 | S77: 11.77377239 | T77: 35.32131718 | U77: 47.09508958 | W77: =IF($A77>0,SUMIF('Age profile (years)'!$CT77:$GF77,"<" & R77+0.5,'Asset data'!$CX77:$GJ77),0) -> 2695.23783 | X77: =IF($A77>0,SUMIF('Age profile (years)'!$CT77:$GF77,"<" & S77+0.5,'Asset data'!$CX77:$GJ77)-W77,0) -> 7326.491565 | Y77: =IF($A77>0,SUMIF('Age profile (years)'!$CT77:$GF77,"<" & T77+0.5,'Asset data'!$CX77:$GJ77)-X77-W77,0) -> 41048.59868 | Z77: =IF($A77>0,SUMIF('Age profile (years)'!$CT77:$GF77,"<" & U77+0.5,'Asset data'!$CX77:$GJ77)-Y77-X77-W77,0) -> 20676.14373 | AA77: 19448.73495 | AB77: 0.02955459969 | AC77: 0.08033855973 | AD77: 0.4501179409 | AE77: 0.2267240183 | AF77: 0.2132648814 | AI77: =IF($A77>0,'RRR hist-forc'!K77,0) -> 58.86886197 | AJ77: 5368558.039
A78: ='Asset data'!A78 -> 5 | B78: ='Asset data'!B78 -> 0 | C78: ='Asset data'!C78 -> 0 | D78: ='Asset data'!E78 -> Pole Mounted ; < = 22kV ; > 60 kVA and < = 600 kVA ; Multiple Phase | E78: TRANSFORMERS | F78: =IF(A78>0,SUM('Asset data'!J78:CV78),0) -> 14682 | G78: =IF(A78>0,'Asset data'!F78,0) -> 22.55980082 | H78: =IF(A78>0,SUM('Asset data'!CX78:GJ78),0) -> 331222.9957 | I78: 0.0155979767 | J78: 16 | K78: 0.1163629359 | L78: 22.55980082 | M78: =IF($A78>0,SUMPRODUCT('Age profile (years)'!$CT78:$GF78,'Asset data'!$CX78:$GJ78)/H78-0.5,0) -> 31.41799482 | N78: 10406362.36 | O78: =IF($A78>0,'Asset data'!G78,0) -> 56.59840114 | P78: 18746691.98 | Q78: 0.4448960715 | R78: 5.659840114 | S78: 11.31968023 | T78: 33.95904069 | U78: 45.27872091 | W78: =IF($A78>0,SUMIF('Age profile (years)'!$CT78:$GF78,"<" & R78+0.5,'Asset data'!$CX78:$GJ78),0) -> 14889.46854 | X78: =IF($A78>0,SUMIF('Age profile (years)'!$CT78:$GF78,"<" & S78+0.5,'Asset data'!$CX78:$GJ78)-W78,0) -> 25199.29752 | Y78: =IF($A78>0,SUMIF('Age profile (years)'!$CT78:$GF78,"<" & T78+0.5,'Asset data'!$CX78:$GJ78)-X78-W78,0) -> 148240.4512 | Z78: =IF($A78>0,SUMIF('Age profile (years)'!$CT78:$GF78,"<" & U78+0.5,'Asset data'!$CX78:$GJ78)-Y78-X78-W78,0) -> 66235.57522 | AA78: 76658.2032 | AB78: 0.04495300368 | AC78: 0.07607955319 | AD78: 0.447554829 | AE78: 0.1999727558 | AF78: 0.2314398583 | AI78: =IF($A78>0,'RRR hist-forc'!K78,0) -> 56.59840114 | AJ78: 18746691.98
A79: ='Asset data'!A79 -> 5 | B79: ='Asset data'!B79 -> 0 | C79: ='Asset data'!C79 -> 0 | D79: ='Asset data'!E79 -> Pole Mounted ; < = 22kV ; > 600 kVA ; Multiple Phase | E79: TRANSFORMERS | F79: =IF(A79>0,SUM('Asset data'!J79:CV79),0) -> 8 | G79: =IF(A79>0,'Asset data'!F79,0) -> 206.3348834 | H79: =IF(A79>0,SUM('Asset data'!CX79:GJ79),0) -> 1650.679068 | I79: 7.773389518e-05 | J79: 44 | K79: 0.0005799049736 | L79: 206.3348834 | M79: =IF($A79>0,SUMPRODUCT('Age profile (years)'!$CT79:$GF79,'Asset data'!$CX79:$GJ79)/H79-0.5,0) -> 6.75 | N79: 11142.08371 | O79: =IF($A79>0,'Asset data'!G79,0) -> 28.55177923 | P79: 47129.82432 | Q79: 0.7635874127 | R79: 2.855177923 | S79: 5.710355846 | T79: 17.13106754 | U79: 22.84142338 | W79: =IF($A79>0,SUMIF('Age profile (years)'!$CT79:$GF79,"<" & R79+0.5,'Asset data'!$CX79:$GJ79),0) -> 825.3395338 | X79: =IF($A79>0,SUMIF('Age profile (years)'!$CT79:$GF79,"<" & S79+0.5,'Asset data'!$CX79:$GJ79)-W79,0) -> 412.6697669 | Y79: =IF($A79>0,SUMIF('Age profile (years)'!$CT79:$GF79,"<" & T79+0.5,'Asset data'!$CX79:$GJ79)-X79-W79,0) -> 0 | Z79: =IF($A79>0,SUMIF('Age profile (years)'!$CT79:$GF79,"<" & U79+0.5,'Asset data'!$CX79:$GJ79)-Y79-X79-W79,0) -> 412.6697669 | AA79: 0 | AB79: 0.5 | AC79: 0.25 | AD79: 0 | AE79: 0.25 | AF79: 0 | AI79: =IF($A79>0,'RRR hist-forc'!K79,0) -> 28.55177923 | AJ79: 47129.82432
A80: ='Asset data'!A80 -> 5 | B80: ='Asset data'!B80 -> 0 | C80: ='Asset data'!C80 -> 0 | D80: ='Asset data'!E80 -> Kiosk Mounted ; < = 22kV ; < = 60 kVA ; Single Phase | E80: TRANSFORMERS | F80: =IF(A80>0,SUM('Asset data'!J80:CV80),0) -> 1 | G80: =IF(A80>0,'Asset data'!F80,0) -> 30.08150727 | H80: =IF(A80>0,SUM('Asset data'!CX80:GJ80),0) -> 30.08150727 | I80: 1.416600464e-06 | J80: 49 | K80: 1.05680238e-05 | L80: 30.08150727 | M80: =IF($A80>0,SUMPRODUCT('Age profile (years)'!$CT80:$GF80,'Asset data'!$CX80:$GJ80)/H80-0.5,0) -> 13.5 | N80: 406.1003481 | O80: =IF($A80>0,'Asset data'!G80,0) -> 40.35687261 | P80: 1213.995557 | Q80: 0.6654844856 | R80: 4.035687261 | S80: 8.071374522 | T80: 24.21412356 | U80: 32.28549809 | W80: =IF($A80>0,SUMIF('Age profile (years)'!$CT80:$GF80,"<" & R80+0.5,'Asset data'!$CX80:$GJ80),0) -> 0 | X80: =IF($A80>0,SUMIF('Age profile (years)'!$CT80:$GF80,"<" & S80+0.5,'Asset data'!$CX80:$GJ80)-W80,0) -> 0 | Y80: =IF($A80>0,SUMIF('Age profile (years)'!$CT80:$GF80,"<" & T80+0.5,'Asset data'!$CX80:$GJ80)-X80-W80,0) -> 30.08150727 | Z80: =IF($A80>0,SUMIF('Age profile (years)'!$CT80:$GF80,"<" & U80+0.5,'Asset data'!$CX80:$GJ80)-Y80-X80-W80,0) -> 0 | AA80: 0 | AB80: 0 | AC80: 0 | AD80: 1 | AE80: 0 | AF80: 0 | AI80: =IF($A80>0,'RRR hist-forc'!K80,0) -> 40.35687261 | AJ80: 1213.995557
A81: ='Asset data'!A81 -> 0 | B81: ='Asset data'!B81 -> 0 | C81: ='Asset data'!C81 -> 0 | D81: ='Asset data'!E81 -> Kiosk Mounted ; < = 22kV ; > 60 kVA and < = 600 kVA ; Single Phase | E81: 0 | F81: =IF(A81>0,SUM('Asset data'!J81:CV81),0) -> 0 | G81: =IF(A81>0,'Asset data'!F81,0) -> 0 | H81: =IF(A81>0,SUM('Asset data'!CX81:GJ81),0) -> 0 | I81: 0 | J81: 0 | K81: 0 | L81: 0 | M81: =IF($A81>0,SUMPRODUCT('Age profile (years)'!$CT81:$GF81,'Asset data'!$CX81:$GJ81)/H81-0.5,0) -> 0 | N81: 0 | O81: =IF($A81>0,'Asset data'!G81,0) -> 0 | P81: 0 | Q81: 0 | R81: 0 | S81: 0 | T81: 0 | U81: 0 | W81: =IF($A81>0,SUMIF('Age profile (years)'!$CT81:$GF81,"<" & R81+0.5,'Asset data'!$CX81:$GJ81),0) -> 0 | X81: =IF($A81>0,SUMIF('Age profile (years)'!$CT81:$GF81,"<" & S81+0.5,'Asset data'!$CX81:$GJ81)-W81,0) -> 0 | Y81: =IF($A81>0,SUMIF('Age profile (years)'!$CT81:$GF81,"<" & T81+0.5,'Asset data'!$CX81:$GJ81)-X81-W81,0) -> 0 | Z81: =IF($A81>0,SUMIF('Age profile (years)'!$CT81:$GF81,"<" & U81+0.5,'Asset data'!$CX81:$GJ81)-Y81-X81-W81,0) -> 0 | AA81: 0 | AB81: 0 | AC81: 0 | AD81: 0 | AE81: 0 | AF81: 0 | AI81: =IF($A81>0,'RRR hist-forc'!K81,0) -> 0 | AJ81: 0
A82: ='Asset data'!A82 -> 0 | B82: ='Asset data'!B82 -> 0 | C82: ='Asset data'!C82 -> 0 | D82: ='Asset data'!E82 -> Kiosk Mounted ; < = 22kV ; > 600 kVA ; Single Phase | E82: 0 | F82: =IF(A82>0,SUM('Asset data'!J82:CV82),0) -> 0 | G82: =IF(A82>0,'Asset data'!F82,0) -> 0 | H82: =IF(A82>0,SUM('Asset data'!CX82:GJ82),0) -> 0 | I82: 0 | J82: 0 | K82: 0 | L82: 0 | M82: =IF($A82>0,SUMPRODUCT('Age profile (years)'!$CT82:$GF82,'Asset data'!$CX82:$GJ82)/H82-0.5,0) -> 0 | N82: 0 | O82: =IF($A82>0,'Asset data'!G82,0) -> 0 | P82: 0 | Q82: 0 | R82: 0 | S82: 0 | T82: 0 | U82: 0 | W82: =IF($A82>0,SUMIF('Age profile (years)'!$CT82:$GF82,"<" & R82+0.5,'Asset data'!$CX82:$GJ82),0) -> 0 | X82: =IF($A82>0,SUMIF('Age profile (years)'!$CT82:$GF82,"<" & S82+0.5,'Asset data'!$CX82:$GJ82)-W82,0) -> 0 | Y82: =IF($A82>0,SUMIF('Age profile (years)'!$CT82:$GF82,"<" & T82+0.5,'Asset data'!$CX82:$GJ82)-X82-W82,0) -> 0 | Z82: =IF($A82>0,SUMIF('Age profile (years)'!$CT82:$GF82,"<" & U82+0.5,'Asset data'!$CX82:$GJ82)-Y82-X82-W82,0) -> 0 | AA82: 0 | AB82: 0 | AC82: 0 | AD82: 0 | AE82: 0 | AF82: 0 | AI82: =IF($A82>0,'RRR hist-forc'!K82,0) -> 0 | AJ82: 0
A83: ='Asset data'!A83 -> 5 | B83: ='Asset data'!B83 -> 0 | C83: ='Asset data'!C83 -> 0 | D83: ='Asset data'!E83 -> Kiosk Mounted ; < = 22kV ; < = 60 kVA ; Multiple Phase | E83: TRANSFORMERS | F83: =IF(A83>0,SUM('Asset data'!J83:CV83),0) -> 156 | G83: =IF(A83>0,'Asset data'!F83,0) -> 61.27796189 | H83: =IF(A83>0,SUM('Asset data'!CX83:GJ83),0) -> 9559.362055 | I83: 0.0004501701527 | J83: 34 | K83: 0.00335832792 | L83: 61.27796189 | M83: =IF($A83>0,SUMPRODUCT('Age profile (years)'!$CT83:$GF83,'Asset data'!$CX83:$GJ83)/H83-0.5,0) -> 38.37179487 | N83: 366809.8799 | O83: =IF($A83>0,'Asset data'!G83,0) -> 61.65095265 | P83: 589343.7774 | Q83: 0.3775960756 | R83: 6.165095265 | S83: 12.33019053 | T83: 36.99057159 | U83: 49.32076212 | W83: =IF($A83>0,SUMIF('Age profile (years)'!$CT83:$GF83,"<" & R83+0.5,'Asset data'!$CX83:$GJ83),0) -> 61.27796189 | X83: =IF($A83>0,SUMIF('Age profile (years)'!$CT83:$GF83,"<" & S83+0.5,'Asset data'!$CX83:$GJ83)-W83,0) -> 428.9457332 | Y83: =IF($A83>0,SUMIF('Age profile (years)'!$CT83:$GF83,"<" & T83+0.5,'Asset data'!$CX83:$GJ83)-X83-W83,0) -> 4105.623447 | Z83: =IF($A83>0,SUMIF('Age profile (years)'!$CT83:$GF83,"<" & U83+0.5,'Asset data'!$CX83:$GJ83)-Y83-X83-W83,0) -> 2083.450704 | AA83: 2880.064209 | AB83: 0.00641025641 | AC83: 0.04487179487 | AD83: 0.4294871795 | AE83: 0.2179487179 | AF83: 0.3012820513 | AI83: =IF($A83>0,'RRR hist-forc'!K83,0) -> 61.65095265 | AJ83: 589343.7774
A84: ='Asset data'!A84 -> 5 | B84: ='Asset data'!B84 -> 0 | C84: ='Asset data'!C84 -> 0 | D84: ='Asset data'!E84 -> Kiosk Mounted ; < = 22kV ; > 60 kVA and < = 600 kVA ; Multiple Phase | E84: TRANSFORMERS | F84: =IF(A84>0,SUM('Asset data'!J84:CV84),0) -> 2807 | G84: =IF(A84>0,'Asset data'!F84,0) -> 126.2669491 | H84: =IF(A84>0,SUM('Asset data'!CX84:GJ84),0) -> 354431.326 | I84: 0.01669090502 | J84: 14 | K84: 0.1245163235 | L84: 126.2669491 | M84: =IF($A84>0,SUMPRODUCT('Age profile (years)'!$CT84:$GF84,'Asset data'!$CX84:$GJ84)/H84-0.5,0) -> 34.68667617 | N84: 12294044.63 | O84: =IF($A84>0,'Asset data'!G84,0) -> 60.07625411 | P84: 21292906.4 | Q84: 0.4226225206 | R84: 6.007625411 | S84: 12.01525082 | T84: 36.04575246 | U84: 48.06100328 | W84: =IF($A84>0,SUMIF('Age profile (years)'!$CT84:$GF84,"<" & R84+0.5,'Asset data'!$CX84:$GJ84),0) -> 7954.817791 | X84: =IF($A84>0,SUMIF('Age profile (years)'!$CT84:$GF84,"<" & S84+0.5,'Asset data'!$CX84:$GJ84)-W84,0) -> 24243.25422 | Y84: =IF($A84>0,SUMIF('Age profile (years)'!$CT84:$GF84,"<" & T84+0.5,'Asset data'!$CX84:$GJ84)-X84-W84,0) -> 159601.4236 | Z84: =IF($A84>0,SUMIF('Age profile (years)'!$CT84:$GF84,"<" & U84+0.5,'Asset data'!$CX84:$GJ84)-Y84-X84-W84,0) -> 77654.17367 | AA84: 84977.65672 | AB84: 0.02244389027 | AC84: 0.0684004275 | AD84: 0.4503028144 | AE84: 0.2190951193 | AF84: 0.2397577485 | AI84: =IF($A84>0,'RRR hist-forc'!K84,0) -> 60.07625411 | AJ84: 21292906.4
A85: ='Asset data'!A85 -> 5 | B85: ='Asset data'!B85 -> 0 | C85: ='Asset data'!C85 -> 0 | D85: ='Asset data'!E85 -> Kiosk Mounted ; < = 22kV ; > 600 kVA ; Multiple Phase | E85: TRANSFORMERS | F85: =IF(A85>0,SUM('Asset data'!J85:CV85),0) -> 616 | G85: =IF(A85>0,'Asset data'!F85,0) -> 109.9259579 | H85: =IF(A85>0,SUM('Asset data'!CX85:GJ85),0) -> 67714.39004 | I85: 0.003188810836 | J85: 27 | K85: 0.0237889438 | L85: 109.9259579 | M85: =IF($A85>0,SUMPRODUCT('Age profile (years)'!$CT85:$GF85,'Asset data'!$CX85:$GJ85)/H85-0.5,0) -> 36.77272727 | N85: 2490042.798 | O85: =IF($A85>0,'Asset data'!G85,0) -> 61.3706883 | P85: 4155678.725 | Q85: 0.4008096 | R85: 6.13706883 | S85: 12.27413766 | T85: 36.82241298 | U85: 49.09655064 | W85: =IF($A85>0,SUMIF('Age profile (years)'!$CT85:$GF85,"<" & R85+0.5,'Asset data'!$CX85:$GJ85),0) -> 1099.259579 | X85: =IF($A85>0,SUMIF('Age profile (years)'!$CT85:$GF85,"<" & S85+0.5,'Asset data'!$CX85:$GJ85)-W85,0) -> 3627.556609 | Y85: =IF($A85>0,SUMIF('Age profile (years)'!$CT85:$GF85,"<" & T85+0.5,'Asset data'!$CX85:$GJ85)-X85-W85,0) -> 30229.63841 | Z85: =IF($A85>0,SUMIF('Age profile (years)'!$CT85:$GF85,"<" & U85+0.5,'Asset data'!$CX85:$GJ85)-Y85-X85-W85,0) -> 14400.30048 | AA85: 18357.63496 | AB85: 0.01623376623 | AC85: 0.05357142857 | AD85: 0.4464285714 | AE85: 0.2126623377 | AF85: 0.2711038961 | AI85: =IF($A85>0,'RRR hist-forc'!K85,0) -> 61.3706883 | AJ85: 4155678.725
A86: ='Asset data'!A86 -> 5 | B86: ='Asset data'!B86 -> 0 | C86: ='Asset data'!C86 -> 0 | D86: ='Asset data'!E86 -> Ground Outdoor / Indoor Chamber Mounted; ˂ 22 kV ; < = 60 kVA ; Single Phase | E86: TRANSFORMERS | F86: =IF(A86>0,SUM('Asset data'!J86:CV86),0) -> 1 | G86: =IF(A86>0,'Asset data'!F86,0) -> 6.944234946 | H86: =IF(A86>0,SUM('Asset data'!CX86:GJ86),0) -> 6.944234946 | I86: 3.270184023e-07 | J86: 50 | K86: 2.439599836e-06 | L86: 6.944234946 | M86: =IF($A86>0,SUMPRODUCT('Age profile (years)'!$CT86:$GF86,'Asset data'!$CX86:$GJ86)/H86-0.5,0) -> 2.5 | N86: 17.36058737 | O86: =IF($A86>0,'Asset data'!G86,0) -> 28.80024784 | P86: 199.9956875 | Q86: 0.9131951914 | R86: 2.880024784 | S86: 5.760049568 | T86: 17.2801487 | U86: 23.04019827 | W86: =IF($A86>0,SUMIF('Age profile (years)'!$CT86:$GF86,"<" & R86+0.5,'Asset data'!$CX86:$GJ86),0) -> 6.944234946 | X86: =IF($A86>0,SUMIF('Age profile (years)'!$CT86:$GF86,"<" & S86+0.5,'Asset data'!$CX86:$GJ86)-W86,0) -> 0 | Y86: =IF($A86>0,SUMIF('Age profile (years)'!$CT86:$GF86,"<" & T86+0.5,'Asset data'!$CX86:$GJ86)-X86-W86,0) -> 0 | Z86: =IF($A86>0,SUMIF('Age profile (years)'!$CT86:$GF86,"<" & U86+0.5,'Asset data'!$CX86:$GJ86)-Y86-X86-W86,0) -> 0 | AA86: 0 | AB86: 1 | AC86: 0 | AD86: 0 | AE86: 0 | AF86: 0 | AI86: =IF($A86>0,'RRR hist-forc'!K86,0) -> 28.80024784 | AJ86: 199.9956875
A87: ='Asset data'!A87 -> 5 | B87: ='Asset data'!B87 -> 0 | C87: ='Asset data'!C87 -> 0 | D87: ='Asset data'!E87 -> Ground Outdoor / Indoor Chamber Mounted; ˂ 22 kV ; > 60 kVA and < = 600 kVA ; Single Phase | E87: =IF(A87>0,VLOOKUP(A87,IDtable,2),0) -> TRANSFORMERS | F87: =IF(A87>0,SUM('Asset data'!J87:CV87),0) -> 1 | G87: =IF(A87>0,'Asset data'!F87,0) -> 147.2963158 | H87: =IF(A87>0,SUM('Asset data'!CX87:GJ87),0) -> 147.2963158 | I87: =H87/$H$18/1000 -> 6.9364885e-06 | J87: =IF(RANK(0,I$21:I$205)=RANK(I87,I$21:I$205),0,RANK(I87,I$21:I$205)) -> 48 | K87: =IF(A87>0,H87/(VLOOKUP(A87,$A$6:$H$17,8)*1000),0) -> 5.174710686e-05 | L87: =IF($A87>0,H87/F87,0) -> 147.2963158 | M87: =IF($A87>0,SUMPRODUCT('Age profile (years)'!$CT87:$GF87,'Asset data'!$CX87:$GJ87)/H87-0.5,0) -> 35.5 | N87: =IF($A87>0,M87*H87,0) -> 5229.019209 | O87: =IF($A87>0,'Asset data'!G87,0) -> 61.65095265 | P87: =IF($A87>0,H87*O87,0) -> 9080.958188 | Q87: =IF($A87>0,(O87-M87)/O87,0) -> 0.4241775922 | R87: 6.165095265 | S87: 12.33019053 | T87: 36.99057159 | U87: 49.32076212 | W87: =IF($A87>0,SUMIF('Age profile (years)'!$CT87:$GF87,"<" & R87+0.5,'Asset data'!$CX87:$GJ87),0) -> 0 | X87: =IF($A87>0,SUMIF('Age profile (years)'!$CT87:$GF87,"<" & S87+0.5,'Asset data'!$CX87:$GJ87)-W87,0) -> 0 | Y87: =IF($A87>0,SUMIF('Age profile (years)'!$CT87:$GF87,"<" & T87+0.5,'Asset data'!$CX87:$GJ87)-X87-W87,0) -> 147.2963158 | Z87: =IF($A87>0,SUMIF('Age profile (years)'!$CT87:$GF87,"<" & U87+0.5,'Asset data'!$CX87:$GJ87)-Y87-X87-W87,0) -> 0 | AA87: =IF($A87>0,H87-Z87-Y87-X87-W87,0) -> 0 | AB87: =IF($A87>0,W87/$H87,0) -> 0 | AC87: =IF($A87>0,X87/$H87,0) -> 0 | AD87: =IF($A87>0,Y87/$H87,0) -> 1 | AE87: =IF($A87>0,Z87/$H87,0) -> 0 | AF87: =IF($A87>0,AA87/$H87,0) -> 0 | AI87: =IF($A87>0,'RRR hist-forc'!K87,0) -> 61.65095265 | AJ87: =IF($A87>0,AI87*H87,0) -> 9080.958188
A88: ='Asset data'!A88 -> 0 | B88: ='Asset data'!B88 -> 0 | C88: ='Asset data'!C88 -> 0 | D88: ='Asset data'!E88 -> Ground Outdoor / Indoor Chamber Mounted; ˂ 22 kV ; > 600 kVA ; Single Phase | E88: 0 | F88: =IF(A88>0,SUM('Asset data'!J88:CV88),0) -> 0 | G88: =IF(A88>0,'Asset data'!F88,0) -> 0 | H88: =IF(A88>0,SUM('Asset data'!CX88:GJ88),0) -> 0 | I88: 0 | J88: 0 | K88: 0 | L88: 0 | M88: =IF($A88>0,SUMPRODUCT('Age profile (years)'!$CT88:$GF88,'Asset data'!$CX88:$GJ88)/H88-0.5,0) -> 0 | N88: 0 | O88: =IF($A88>0,'Asset data'!G88,0) -> 0 | P88: 0 | Q88: 0 | R88: 0 | S88: 0 | T88: 0 | U88: 0 | W88: =IF($A88>0,SUMIF('Age profile (years)'!$CT88:$GF88,"<" & R88+0.5,'Asset data'!$CX88:$GJ88),0) -> 0 | X88: =IF($A88>0,SUMIF('Age profile (years)'!$CT88:$GF88,"<" & S88+0.5,'Asset data'!$CX88:$GJ88)-W88,0) -> 0 | Y88: =IF($A88>0,SUMIF('Age profile (years)'!$CT88:$GF88,"<" & T88+0.5,'Asset data'!$CX88:$GJ88)-X88-W88,0) -> 0 | Z88: =IF($A88>0,SUMIF('Age profile (years)'!$CT88:$GF88,"<" & U88+0.5,'Asset data'!$CX88:$GJ88)-Y88-X88-W88,0) -> 0 | AA88: 0 | AB88: 0 | AC88: 0 | AD88: 0 | AE88: 0 | AF88: 0 | AI88: =IF($A88>0,'RRR hist-forc'!K88,0) -> 0 | AJ88: 0
A89: ='Asset data'!A89 -> 5 | B89: ='Asset data'!B89 -> 0 | C89: ='Asset data'!C89 -> 0 | D89: ='Asset data'!E89 -> Ground Outdoor / Indoor Chamber Mounted; ˂ 22 kV ; < = 60 kVA ; Multiple Phase | E89: TRANSFORMERS | F89: =IF(A89>0,SUM('Asset data'!J89:CV89),0) -> 24 | G89: =IF(A89>0,'Asset data'!F89,0) -> 108.9735123 | H89: =IF(A89>0,SUM('Asset data'!CX89:GJ89),0) -> 2615.364295 | I89: 0.00012316292 | J89: 42 | K89: 0.0009188114104 | L89: 108.9735123 | M89: =IF($A89>0,SUMPRODUCT('Age profile (years)'!$CT89:$GF89,'Asset data'!$CX89:$GJ89)/H89-0.5,0) -> 39.08333333 | N89: 102217.1545 | O89: =IF($A89>0,'Asset data'!G89,0) -> 61.65095265 | P89: 161239.7003 | Q89: 0.3660546731 | R89: 6.165095265 | S89: 12.33019053 | T89: 36.99057159 | U89: 49.32076212 | W89: =IF($A89>0,SUMIF('Age profile (years)'!$CT89:$GF89,"<" & R89+0.5,'Asset data'!$CX89:$GJ89),0) -> 0 | X89: =IF($A89>0,SUMIF('Age profile (years)'!$CT89:$GF89,"<" & S89+0.5,'Asset data'!$CX89:$GJ89)-W89,0) -> 0 | Y89: =IF($A89>0,SUMIF('Age profile (years)'!$CT89:$GF89,"<" & T89+0.5,'Asset data'!$CX89:$GJ89)-X89-W89,0) -> 1307.682147 | Z89: =IF($A89>0,SUMIF('Age profile (years)'!$CT89:$GF89,"<" & U89+0.5,'Asset data'!$CX89:$GJ89)-Y89-X89-W89,0) -> 653.8410736 | AA89: 653.8410736 | AB89: 0 | AC89: 0 | AD89: 0.5 | AE89: 0.25 | AF89: 0.25 | AI89: =IF($A89>0,'RRR hist-forc'!K89,0) -> 61.65095265 | AJ89: 161239.7003
A90: ='Asset data'!A90 -> 5 | B90: ='Asset data'!B90 -> 0 | C90: ='Asset data'!C90 -> 0 | D90: ='Asset data'!E90 -> Ground Outdoor / Indoor Chamber Mounted; ˂ 22 kV ; > 60 kVA and < = 600 kVA ; Multiple Phase | E90: TRANSFORMERS | F90: =IF(A90>0,SUM('Asset data'!J90:CV90),0) -> 364 | G90: =IF(A90>0,'Asset data'!F90,0) -> 110.1963783 | H90: =IF(A90>0,SUM('Asset data'!CX90:GJ90),0) -> 40111.48169 | I90: 0.001888932728 | J90: 30 | K90: 0.01409168396 | L90: 110.1963783 | M90: =IF($A90>0,SUMPRODUCT('Age profile (years)'!$CT90:$GF90,'Asset data'!$CX90:$GJ90)/H90-0.5,0) -> 34.97527473 | N90: 1402910.092 | O90: =IF($A90>0,'Asset data'!G90,0) -> 61.35538641 | P90: 2461055.459 | Q90: 0.4299559212 | R90: 6.135538641 | S90: 12.27107728 | T90: 36.81323185 | U90: 49.08430913 | W90: =IF($A90>0,SUMIF('Age profile (years)'!$CT90:$GF90,"<" & R90+0.5,'Asset data'!$CX90:$GJ90),0) -> 661.1782697 | X90: =IF($A90>0,SUMIF('Age profile (years)'!$CT90:$GF90,"<" & S90+0.5,'Asset data'!$CX90:$GJ90)-W90,0) -> 2314.123944 | Y90: =IF($A90>0,SUMIF('Age profile (years)'!$CT90:$GF90,"<" & T90+0.5,'Asset data'!$CX90:$GJ90)-X90-W90,0) -> 19394.56258 | Z90: =IF($A90>0,SUMIF('Age profile (years)'!$CT90:$GF90,"<" & U90+0.5,'Asset data'!$CX90:$GJ90)-Y90-X90-W90,0) -> 9146.299397 | AA90: 8595.317506 | AB90: 0.01648351648 | AC90: 0.05769230769 | AD90: 0.4835164835 | AE90: 0.228021978 | AF90: 0.2142857143 | AI90: =IF($A90>0,'RRR hist-forc'!K90,0) -> 61.35538641 | AJ90: 2461055.459
A91: ='Asset data'!A91 -> 5 | B91: ='Asset data'!B91 -> 0 | C91: ='Asset data'!C91 -> 0 | D91: ='Asset data'!E91 -> Ground Outdoor / Indoor Chamber Mounted; ˂ 22 kV ; > 600 kVA ; Multiple Phase | E91: TRANSFORMERS | F91: =IF(A91>0,SUM('Asset data'!J91:CV91),0) -> 638 | G91: =IF(A91>0,'Asset data'!F91,0) -> 120.2413178 | H91: =IF(A91>0,SUM('Asset data'!CX91:GJ91),0) -> 76713.96077 | I91: 0.003612619256 | J91: 26 | K91: 0.02695060976 | L91: 120.2413178 | M91: =IF($A91>0,SUMPRODUCT('Age profile (years)'!$CT91:$GF91,'Asset data'!$CX91:$GJ91)/H91-0.5,0) -> 36.88087774 | N91: 2829278.208 | O91: =IF($A91>0,'Asset data'!G91,0) -> 63.39255701 | P91: 4863094.131 | Q91: 0.4182143853 | R91: 6.339255701 | S91: 12.6785114 | T91: 38.0355342 | U91: 50.7140456 | W91: =IF($A91>0,SUMIF('Age profile (years)'!$CT91:$GF91,"<" & R91+0.5,'Asset data'!$CX91:$GJ91),0) -> 721.447907 | X91: =IF($A91>0,SUMIF('Age profile (years)'!$CT91:$GF91,"<" & S91+0.5,'Asset data'!$CX91:$GJ91)-W91,0) -> 3967.963488 | Y91: =IF($A91>0,SUMIF('Age profile (years)'!$CT91:$GF91,"<" & T91+0.5,'Asset data'!$CX91:$GJ91)-X91-W91,0) -> 36433.1193 | Z91: =IF($A91>0,SUMIF('Age profile (years)'!$CT91:$GF91,"<" & U91+0.5,'Asset data'!$CX91:$GJ91)-Y91-X91-W91,0) -> 18998.12822 | AA91: 16593.30186 | AB91: 0.009404388715 | AC91: 0.05172413793 | AD91: 0.4749216301 | AE91: 0.2476489028 | AF91: 0.2163009404 | AI91: =IF($A91>0,'RRR hist-forc'!K91,0) -> 63.39255701 | AJ91: 4863094.131
A92: ='Asset data'!A92 -> 0 | B92: ='Asset data'!B92 -> 0 | C92: ='Asset data'!C92 -> 0 | D92: ='Asset data'!E92 -> Ground Outdoor / Indoor Chamber Mounted; > = 22 kV & < = 33 kV ; < = 15 MVA | E92: 0 | F92: =IF(A92>0,SUM('Asset data'!J92:CV92),0) -> 0 | G92: =IF(A92>0,'Asset data'!F92,0) -> 0 | H92: =IF(A92>0,SUM('Asset data'!CX92:GJ92),0) -> 0 | I92: 0 | J92: 0 | K92: 0 | L92: 0 | M92: =IF($A92>0,SUMPRODUCT('Age profile (years)'!$CT92:$GF92,'Asset data'!$CX92:$GJ92)/H92-0.5,0) -> 0 | N92: 0 | O92: =IF($A92>0,'Asset data'!G92,0) -> 0 | P92: 0 | Q92: 0 | R92: 0 | S92: 0 | T92: 0 | U92: 0 | W92: =IF($A92>0,SUMIF('Age profile (years)'!$CT92:$GF92,"<" & R92+0.5,'Asset data'!$CX92:$GJ92),0) -> 0 | X92: =IF($A92>0,SUMIF('Age profile (years)'!$CT92:$GF92,"<" & S92+0.5,'Asset data'!$CX92:$GJ92)-W92,0) -> 0 | Y92: =IF($A92>0,SUMIF('Age profile (years)'!$CT92:$GF92,"<" & T92+0.5,'Asset data'!$CX92:$GJ92)-X92-W92,0) -> 0 | Z92: =IF($A92>0,SUMIF('Age profile (years)'!$CT92:$GF92,"<" & U92+0.5,'Asset data'!$CX92:$GJ92)-Y92-X92-W92,0) -> 0 | AA92: 0 | AB92: 0 | AC92: 0 | AD92: 0 | AE92: 0 | AF92: 0 | AI92: =IF($A92>0,'RRR hist-forc'!K92,0) -> 0 | AJ92: 0
A93: ='Asset data'!A93 -> 0 | B93: ='Asset data'!B93 -> 0 | C93: ='Asset data'!C93 -> 0 | D93: ='Asset data'!E93 -> Ground Outdoor / Indoor Chamber Mounted; > = 22 kV & < = 33 kV ; > 15 MVA and < = 40 MVA | E93: 0 | F93: =IF(A93>0,SUM('Asset data'!J93:CV93),0) -> 0 | G93: =IF(A93>0,'Asset data'!F93,0) -> 0 | H93: =IF(A93>0,SUM('Asset data'!CX93:GJ93),0) -> 0 | I93: 0 | J93: 0 | K93: 0 | L93: 0 | M93: =IF($A93>0,SUMPRODUCT('Age profile (years)'!$CT93:$GF93,'Asset data'!$CX93:$GJ93)/H93-0.5,0) -> 0 | N93: 0 | O93: =IF($A93>0,'Asset data'!G93,0) -> 0 | P93: 0 | Q93: 0 | R93: 0 | S93: 0 | T93: 0 | U93: 0 | W93: =IF($A93>0,SUMIF('Age profile (years)'!$CT93:$GF93,"<" & R93+0.5,'Asset data'!$CX93:$GJ93),0) -> 0 | X93: =IF($A93>0,SUMIF('Age profile (years)'!$CT93:$GF93,"<" & S93+0.5,'Asset data'!$CX93:$GJ93)-W93,0) -> 0 | Y93: =IF($A93>0,SUMIF('Age profile (years)'!$CT93:$GF93,"<" & T93+0.5,'Asset data'!$CX93:$GJ93)-X93-W93,0) -> 0 | Z93: =IF($A93>0,SUMIF('Age profile (years)'!$CT93:$GF93,"<" & U93+0.5,'Asset data'!$CX93:$GJ93)-Y93-X93-W93,0) -> 0 | AA93: 0 | AB93: 0 | AC93: 0 | AD93: 0 | AE93: 0 | AF93: 0 | AI93: =IF($A93>0,'RRR hist-forc'!K93,0) -> 0 | AJ93: 0
A94: ='Asset data'!A94 -> 0 | B94: ='Asset data'!B94 -> 0 | C94: ='Asset data'!C94 -> 0 | D94: ='Asset data'!E94 -> Ground Outdoor / Indoor Chamber Mounted; > = 22 kV & < = 33 kV ; > 40 MVA | E94: 0 | F94: =IF(A94>0,SUM('Asset data'!J94:CV94),0) -> 0 | G94: =IF(A94>0,'Asset data'!F94,0) -> 0 | H94: =IF(A94>0,SUM('Asset data'!CX94:GJ94),0) -> 0 | I94: 0 | J94: 0 | K94: 0 | L94: 0 | M94: =IF($A94>0,SUMPRODUCT('Age profile (years)'!$CT94:$GF94,'Asset data'!$CX94:$GJ94)/H94-0.5,0) -> 0 | N94: 0 | O94: =IF($A94>0,'Asset data'!G94,0) -> 0 | P94: 0 | Q94: 0 | R94: 0 | S94: 0 | T94: 0 | U94: 0 | W94: =IF($A94>0,SUMIF('Age profile (years)'!$CT94:$GF94,"<" & R94+0.5,'Asset data'!$CX94:$GJ94),0) -> 0 | X94: =IF($A94>0,SUMIF('Age profile (years)'!$CT94:$GF94,"<" & S94+0.5,'Asset data'!$CX94:$GJ94)-W94,0) -> 0 | Y94: =IF($A94>0,SUMIF('Age profile (years)'!$CT94:$GF94,"<" & T94+0.5,'Asset data'!$CX94:$GJ94)-X94-W94,0) -> 0 | Z94: =IF($A94>0,SUMIF('Age profile (years)'!$CT94:$GF94,"<" & U94+0.5,'Asset data'!$CX94:$GJ94)-Y94-X94-W94,0) -> 0 | AA94: 0 | AB94: 0 | AC94: 0 | AD94: 0 | AE94: 0 | AF94: 0 | AI94: =IF($A94>0,'RRR hist-forc'!K94,0) -> 0 | AJ94: 0
A95: ='Asset data'!A95 -> 5 | B95: ='Asset data'!B95 -> 0 | C95: ='Asset data'!C95 -> 0 | D95: ='Asset data'!E95 -> Ground Outdoor / Indoor Chamber Mounted; > 33 kV & < = 66 kV ; < = 15 MVA | E95: TRANSFORMERS | F95: =IF(A95>0,SUM('Asset data'!J95:CV95),0) -> 65 | G95: =IF(A95>0,'Asset data'!F95,0) -> 1236.257379 | H95: =IF(A95>0,SUM('Asset data'!CX95:GJ95),0) -> 80356.72962 | I95: 0.003784164784 | J95: 25 | K95: 0.02823036172 | L95: 1236.257379 | M95: =IF($A95>0,SUMPRODUCT('Age profile (years)'!$CT95:$GF95,'Asset data'!$CX95:$GJ95)/H95-0.5,0) -> 11.25384615 | N95: 904322.2725 | O95: =IF($A95>0,'Asset data'!G95,0) -> 61.65095265 | P95: 4954068.933 | Q95: 0.817458682 | R95: 6.165095265 | S95: 12.33019053 | T95: 36.99057159 | U95: 49.32076212 | W95: =IF($A95>0,SUMIF('Age profile (years)'!$CT95:$GF95,"<" & R95+0.5,'Asset data'!$CX95:$GJ95),0) -> 16071.34592 | X95: =IF($A95>0,SUMIF('Age profile (years)'!$CT95:$GF95,"<" & S95+0.5,'Asset data'!$CX95:$GJ95)-W95,0) -> 32142.69185 | Y95: =IF($A95>0,SUMIF('Age profile (years)'!$CT95:$GF95,"<" & T95+0.5,'Asset data'!$CX95:$GJ95)-X95-W95,0) -> 27197.66233 | Z95: =IF($A95>0,SUMIF('Age profile (years)'!$CT95:$GF95,"<" & U95+0.5,'Asset data'!$CX95:$GJ95)-Y95-X95-W95,0) -> 3708.772136 | AA95: 1236.257379 | AB95: 0.2 | AC95: 0.4 | AD95: 0.3384615385 | AE95: 0.04615384615 | AF95: 0.01538461538 | AI95: =IF($A95>0,'RRR hist-forc'!K95,0) -> 61.65095265 | AJ95: 4954068.933
A96: ='Asset data'!A96 -> 5 | B96: ='Asset data'!B96 -> 0 | C96: ='Asset data'!C96 -> 0 | D96: ='Asset data'!E96 -> Ground Outdoor / Indoor Chamber Mounted; > 33 kV & < = 66 kV ; > 15 MVA and < = 40 MVA | E96: TRANSFORMERS | F96: =IF(A96>0,SUM('Asset data'!J96:CV96),0) -> 75 | G96: =IF(A96>0,'Asset data'!F96,0) -> 3192.149936 | H96: =IF(A96>0,SUM('Asset data'!CX96:GJ96),0) -> 239411.2452 | I96: 0.01127437126 | J96: 20 | K96: 0.08410827674 | L96: 3192.149936 | M96: =IF($A96>0,SUMPRODUCT('Age profile (years)'!$CT96:$GF96,'Asset data'!$CX96:$GJ96)/H96-0.5,0) -> 27.79333333 | N96: 6654036.542 | O96: =IF($A96>0,'Asset data'!G96,0) -> 54.42434969 | P96: 13029801.33 | Q96: 0.4893217192 | R96: 5.442434969 | S96: 10.88486994 | T96: 32.65460981 | U96: 43.53947975 | W96: =IF($A96>0,SUMIF('Age profile (years)'!$CT96:$GF96,"<" & R96+0.5,'Asset data'!$CX96:$GJ96),0) -> 28729.34943 | X96: =IF($A96>0,SUMIF('Age profile (years)'!$CT96:$GF96,"<" & S96+0.5,'Asset data'!$CX96:$GJ96)-W96,0) -> 15960.74968 | Y96: =IF($A96>0,SUMIF('Age profile (years)'!$CT96:$GF96,"<" & T96+0.5,'Asset data'!$CX96:$GJ96)-X96-W96,0) -> 95764.49809 | Z96: =IF($A96>0,SUMIF('Age profile (years)'!$CT96:$GF96,"<" & U96+0.5,'Asset data'!$CX96:$GJ96)-Y96-X96-W96,0) -> 25537.19949 | AA96: 73419.44853 | AB96: 0.12 | AC96: 0.06666666667 | AD96: 0.4 | AE96: 0.1066666667 | AF96: 0.3066666667 | AI96: =IF($A96>0,'RRR hist-forc'!K96,0) -> 54.42434969 | AJ96: 13029801.33
A97: ='Asset data'!A97 -> 5 | B97: ='Asset data'!B97 -> 0 | C97: ='Asset data'!C97 -> 0 | D97: ='Asset data'!E97 -> Ground Outdoor / Indoor Chamber Mounted; > 33 kV & < = 66 kV ; > 40 MVA | E97: TRANSFORMERS | F97: =IF(A97>0,SUM('Asset data'!J97:CV97),0) -> 1 | G97: =IF(A97>0,'Asset data'!F97,0) -> 351.1457261 | H97: =IF(A97>0,SUM('Asset data'!CX97:GJ97),0) -> 351.1457261 | I97: 1.653617932e-05 | J97: 47 | K97: 0.0001233620496 | L97: 351.1457261 | M97: =IF($A97>0,SUMPRODUCT('Age profile (years)'!$CT97:$GF97,'Asset data'!$CX97:$GJ97)/H97-0.5,0) -> 6.5 | N97: 2282.447219 | O97: =IF($A97>0,'Asset data'!G97,0) -> 61.65095265 | P97: 21648.46853 | Q97: 0.8945677281 | R97: 6.165095265 | S97: 12.33019053 | T97: 36.99057159 | U97: 49.32076212 | W97: =IF($A97>0,SUMIF('Age profile (years)'!$CT97:$GF97,"<" & R97+0.5,'Asset data'!$CX97:$GJ97),0) -> 0 | X97: =IF($A97>0,SUMIF('Age profile (years)'!$CT97:$GF97,"<" & S97+0.5,'Asset data'!$CX97:$GJ97)-W97,0) -> 351.1457261 | Y97: =IF($A97>0,SUMIF('Age profile (years)'!$CT97:$GF97,"<" & T97+0.5,'Asset data'!$CX97:$GJ97)-X97-W97,0) -> 0 | Z97: =IF($A97>0,SUMIF('Age profile (years)'!$CT97:$GF97,"<" & U97+0.5,'Asset data'!$CX97:$GJ97)-Y97-X97-W97,0) -> 0 | AA97: 0 | AB97: 0 | AC97: 1 | AD97: 0 | AE97: 0 | AF97: 0 | AI97: =IF($A97>0,'RRR hist-forc'!K97,0) -> 61.65095265 | AJ97: 21648.46853
A98: ='Asset data'!A98 -> 0 | B98: ='Asset data'!B98 -> 0 | C98: ='Asset data'!C98 -> 0 | D98: ='Asset data'!E98 -> Ground Outdoor / Indoor Chamber Mounted; > 66 kV & < = 132 kV ; < = 100 MVA | E98: 0 | F98: =IF(A98>0,SUM('Asset data'!J98:CV98),0) -> 0 | G98: =IF(A98>0,'Asset data'!F98,0) -> 0 | H98: =IF(A98>0,SUM('Asset data'!CX98:GJ98),0) -> 0 | I98: 0 | J98: 0 | K98: 0 | L98: 0 | M98: =IF($A98>0,SUMPRODUCT('Age profile (years)'!$CT98:$GF98,'Asset data'!$CX98:$GJ98)/H98-0.5,0) -> 0 | N98: 0 | O98: =IF($A98>0,'Asset data'!G98,0) -> 0 | P98: 0 | Q98: 0 | R98: 0 | S98: 0 | T98: 0 | U98: 0 | W98: =IF($A98>0,SUMIF('Age profile (years)'!$CT98:$GF98,"<" & R98+0.5,'Asset data'!$CX98:$GJ98),0) -> 0 | X98: =IF($A98>0,SUMIF('Age profile (years)'!$CT98:$GF98,"<" & S98+0.5,'Asset data'!$CX98:$GJ98)-W98,0) -> 0 | Y98: =IF($A98>0,SUMIF('Age profile (years)'!$CT98:$GF98,"<" & T98+0.5,'Asset data'!$CX98:$GJ98)-X98-W98,0) -> 0 | Z98: =IF($A98>0,SUMIF('Age profile (years)'!$CT98:$GF98,"<" & U98+0.5,'Asset data'!$CX98:$GJ98)-Y98-X98-W98,0) -> 0 | AA98: 0 | AB98: 0 | AC98: 0 | AD98: 0 | AE98: 0 | AF98: 0 | AI98: =IF($A98>0,'RRR hist-forc'!K98,0) -> 0 | AJ98: 0
A99: ='Asset data'!A99 -> 0 | B99: ='Asset data'!B99 -> 0 | C99: ='Asset data'!C99 -> 0 | D99: ='Asset data'!E99 -> Ground Outdoor / Indoor Chamber Mounted; > 66 kV & < = 132 kV ; > 100 MVA | E99: 0 | F99: =IF(A99>0,SUM('Asset data'!J99:CV99),0) -> 0 | G99: =IF(A99>0,'Asset data'!F99,0) -> 0 | H99: =IF(A99>0,SUM('Asset data'!CX99:GJ99),0) -> 0 | I99: 0 | J99: 0 | K99: 0 | L99: 0 | M99: =IF($A99>0,SUMPRODUCT('Age profile (years)'!$CT99:$GF99,'Asset data'!$CX99:$GJ99)/H99-0.5,0) -> 0 | N99: 0 | O99: =IF($A99>0,'Asset data'!G99,0) -> 0 | P99: 0 | Q99: 0 | R99: 0 | S99: 0 | T99: 0 | U99: 0 | W99: =IF($A99>0,SUMIF('Age profile (years)'!$CT99:$GF99,"<" & R99+0.5,'Asset data'!$CX99:$GJ99),0) -> 0 | X99: =IF($A99>0,SUMIF('Age profile (years)'!$CT99:$GF99,"<" & S99+0.5,'Asset data'!$CX99:$GJ99)-W99,0) -> 0 | Y99: =IF($A99>0,SUMIF('Age profile (years)'!$CT99:$GF99,"<" & T99+0.5,'Asset data'!$CX99:$GJ99)-X99-W99,0) -> 0 | Z99: =IF($A99>0,SUMIF('Age profile (years)'!$CT99:$GF99,"<" & U99+0.5,'Asset data'!$CX99:$GJ99)-Y99-X99-W99,0) -> 0 | AA99: 0 | AB99: 0 | AC99: 0 | AD99: 0 | AE99: 0 | AF99: 0 | AI99: =IF($A99>0,'RRR hist-forc'!K99,0) -> 0 | AJ99: 0
A100: ='Asset data'!A100 -> 0 | B100: ='Asset data'!B100 -> 0 | C100: ='Asset data'!C100 -> 0 | D100: ='Asset data'!E100 -> Ground Outdoor / Indoor Chamber Mounted; > 132 kV ; < = 100 MVA | E100: 0 | F100: =IF(A100>0,SUM('Asset data'!J100:CV100),0) -> 0 | G100: =IF(A100>0,'Asset data'!F100,0) -> 0 | H100: =IF(A100>0,SUM('Asset data'!CX100:GJ100),0) -> 0 | I100: 0 | J100: 0 | K100: 0 | L100: 0 | M100: =IF($A100>0,SUMPRODUCT('Age profile (years)'!$CT100:$GF100,'Asset data'!$CX100:$GJ100)/H100-0.5,0) -> 0 | N100: 0 | O100: =IF($A100>0,'Asset data'!G100,0) -> 0 | P100: 0 | Q100: 0 | R100: 0 | S100: 0 | T100: 0 | U100: =IF($A100>0,$O100-U$4*$O100,0) -> 0 | W100: =IF($A100>0,SUMIF('Age profile (years)'!$CT100:$GF100,"<" & R100+0.5,'Asset data'!$CX100:$GJ100),0) -> 0 | X100: =IF($A100>0,SUMIF('Age profile (years)'!$CT100:$GF100,"<" & S100+0.5,'Asset data'!$CX100:$GJ100)-W100,0) -> 0 | Y100: =IF($A100>0,SUMIF('Age profile (years)'!$CT100:$GF100,"<" & T100+0.5,'Asset data'!$CX100:$GJ100)-X100-W100,0) -> 0 | Z100: =IF($A100>0,SUMIF('Age profile (years)'!$CT100:$GF100,"<" & U100+0.5,'Asset data'!$CX100:$GJ100)-Y100-X100-W100,0) -> 0 | AA100: 0 | AB100: 0 | AC100: 0 | AD100: 0 | AE100: 0 | AF100: 0 | AI100: =IF($A100>0,'RRR hist-forc'!K100,0) -> 0 | AJ100: 0
A101: ='Asset data'!A101 -> 0 | B101: ='Asset data'!B101 -> 0 | C101: ='Asset data'!C101 -> 0 | D101: ='Asset data'!E101 -> Ground Outdoor / Indoor Chamber Mounted; > 132 kV ; > 100 MVA | E101: 0 | F101: =IF(A101>0,SUM('Asset data'!J101:CV101),0) -> 0 | G101: =IF(A101>0,'Asset data'!F101,0) -> 0 | H101: =IF(A101>0,SUM('Asset data'!CX101:GJ101),0) -> 0 | I101: 0 | J101: 0 | K101: 0 | L101: 0 | M101: =IF($A101>0,SUMPRODUCT('Age profile (years)'!$CT101:$GF101,'Asset data'!$CX101:$GJ101)/H101-0.5,0) -> 0 | N101: 0 | O101: =IF($A101>0,'Asset data'!G101,0) -> 0 | P101: 0 | Q101: 0 | R101: 0 | S101: 0 | T101: 0 | U101: 0 | W101: =IF($A101>0,SUMIF('Age profile (years)'!$CT101:$GF101,"<" & R101+0.5,'Asset data'!$CX101:$GJ101),0) -> 0 | X101: =IF($A101>0,SUMIF('Age profile (years)'!$CT101:$GF101,"<" & S101+0.5,'Asset data'!$CX101:$GJ101)-W101,0) -> 0 | Y101: =IF($A101>0,SUMIF('Age profile (years)'!$CT101:$GF101,"<" & T101+0.5,'Asset data'!$CX101:$GJ101)-X101-W101,0) -> 0 | Z101: =IF($A101>0,SUMIF('Age profile (years)'!$CT101:$GF101,"<" & U101+0.5,'Asset data'!$CX101:$GJ101)-Y101-X101-W101,0) -> 0 | AA101: 0 | AB101: 0 | AC101: 0 | AD101: 0 | AE101: 0 | AF101: 0 | AI101: =IF($A101>0,'RRR hist-forc'!K101,0) -> 0 | AJ101: 0
A102: ='Asset data'!A102 -> 5 | B102: ='Asset data'!B102 -> 0 | C102: ='Asset data'!C102 -> 0 | D102: ='Asset data'!E102 -> Other | E102: TRANSFORMERS | F102: =IF(A102>0,SUM('Asset data'!J102:CV102),0) -> 21105 | G102: =IF(A102>0,'Asset data'!F102,0) -> 61.44317589 | H102: =IF(A102>0,SUM('Asset data'!CX102:GJ102),0) -> 1296758.227 | I102: 0.06106702997 | J102: 7 | K102: 0.4555679903 | L102: 61.44317589 | M102: =IF($A102>0,SUMPRODUCT('Age profile (years)'!$CT102:$GF102,'Asset data'!$CX102:$GJ102)/H102-0.5,0) -> 41.04977493 | N102: 53231633.37 | O102: =IF($A102>0,'Asset data'!G102,0) -> 66.7773034 | P102: 86594017.57 | Q102: 0.3852735459 | R102: 6.67773034 | S102: 13.35546068 | T102: 40.06638204 | U102: 53.42184272 | W102: =IF($A102>0,SUMIF('Age profile (years)'!$CT102:$GF102,"<" & R102+0.5,'Asset data'!$CX102:$GJ102),0) -> 3809.476905 | X102: =IF($A102>0,SUMIF('Age profile (years)'!$CT102:$GF102,"<" & S102+0.5,'Asset data'!$CX102:$GJ102)-W102,0) -> 25376.03164 | Y102: =IF($A102>0,SUMIF('Age profile (years)'!$CT102:$GF102,"<" & T102+0.5,'Asset data'!$CX102:$GJ102)-X102-W102,0) -> 577995.9556 | Z102: =IF($A102>0,SUMIF('Age profile (years)'!$CT102:$GF102,"<" & U102+0.5,'Asset data'!$CX102:$GJ102)-Y102-X102-W102,0) -> 352130.841 | AA102: 337445.922 | AB102: 0.00293769249 | AC102: 0.01956882255 | AD102: 0.4457237621 | AE102: 0.2715470268 | AF102: 0.260222696 | AI102: =IF($A102>0,'RRR hist-forc'!K102,0) -> 66.7773034 | AJ102: 86594017.57
A103: ='Asset data'!A103 -> 0 | B103: ='Asset data'!B103 -> 0 | C103: ='Asset data'!C103 -> 0 | D103: ='Asset data'!E103 -> ˂ = 11 kV ; Fuse | E103: 0 | F103: =IF(A103>0,SUM('Asset data'!J103:CV103),0) -> 0 | G103: =IF(A103>0,'Asset data'!F103,0) -> 0 | H103: =IF(A103>0,SUM('Asset data'!CX103:GJ103),0) -> 0 | I103: 0 | J103: 0 | K103: 0 | L103: 0 | M103: =IF($A103>0,SUMPRODUCT('Age profile (years)'!$CT103:$GF103,'Asset data'!$CX103:$GJ103)/H103-0.5,0) -> 0 | N103: 0 | O103: =IF($A103>0,'Asset data'!G103,0) -> 0 | P103: 0 | Q103: 0 | R103: 0 | S103: 0 | T103: 0 | U103: 0 | W103: =IF($A103>0,SUMIF('Age profile (years)'!$CT103:$GF103,"<" & R103+0.5,'Asset data'!$CX103:$GJ103),0) -> 0 | X103: =IF($A103>0,SUMIF('Age profile (years)'!$CT103:$GF103,"<" & S103+0.5,'Asset data'!$CX103:$GJ103)-W103,0) -> 0 | Y103: =IF($A103>0,SUMIF('Age profile (years)'!$CT103:$GF103,"<" & T103+0.5,'Asset data'!$CX103:$GJ103)-X103-W103,0) -> 0 | Z103: =IF($A103>0,SUMIF('Age profile (years)'!$CT103:$GF103,"<" & U103+0.5,'Asset data'!$CX103:$GJ103)-Y103-X103-W103,0) -> 0 | AA103: 0 | AB103: 0 | AC103: 0 | AD103: 0 | AE103: 0 | AF103: 0 | AI103: =IF($A103>0,'RRR hist-forc'!K103,0) -> 0 | AJ103: 0
A104: ='Asset data'!A104 -> 6 | B104: ='Asset data'!B104 -> 0 | C104: ='Asset data'!C104 -> 0 | D104: ='Asset data'!E104 -> ˂ = 11 kV ; Switch | E104: SWITCHGEAR | F104: =IF(A104>0,SUM('Asset data'!J104:CV104),0) -> 92 | G104: =IF(A104>0,'Asset data'!F104,0) -> 82.64728371 | H104: =IF(A104>0,SUM('Asset data'!CX104:GJ104),0) -> 7603.550101 | I104: 0.0003580669181 | J104: 35 | K104: 0.005366403401 | L104: 82.64728371 | M104: =IF($A104>0,SUMPRODUCT('Age profile (years)'!$CT104:$GF104,'Asset data'!$CX104:$GJ104)/H104-0.5,0) -> 37.86956522 | N104: 287943.1364 | O104: =IF($A104>0,'Asset data'!G104,0) -> 61.9974694 | P104: 471400.8648 | Q104: 0.3891756296 | R104: 6.19974694 | S104: 12.39949388 | T104: 37.19848164 | U104: 49.59797552 | W104: =IF($A104>0,SUMIF('Age profile (years)'!$CT104:$GF104,"<" & R104+0.5,'Asset data'!$CX104:$GJ104),0) -> 247.9418511 | X104: =IF($A104>0,SUMIF('Age profile (years)'!$CT104:$GF104,"<" & S104+0.5,'Asset data'!$CX104:$GJ104)-W104,0) -> 578.530986 | Y104: =IF($A104>0,SUMIF('Age profile (years)'!$CT104:$GF104,"<" & T104+0.5,'Asset data'!$CX104:$GJ104)-X104-W104,0) -> 2975.302214 | Z104: =IF($A104>0,SUMIF('Age profile (years)'!$CT104:$GF104,"<" & U104+0.5,'Asset data'!$CX104:$GJ104)-Y104-X104-W104,0) -> 413.2364185 | AA104: 3388.538632 | AB104: 0.03260869565 | AC104: 0.07608695652 | AD104: 0.3913043478 | AE104: 0.05434782609 | AF104: 0.4456521739 | AI104: =IF($A104>0,'RRR hist-forc'!K104,0) -> 61.9974694 | AJ104: 471400.8648
A105: ='Asset data'!A105 -> 6 | B105: ='Asset data'!B105 -> 0 | C105: ='Asset data'!C105 -> 0 | D105: ='Asset data'!E105 -> ˂ = 11 kV ; Circuit Breaker | E105: SWITCHGEAR | F105: =IF(A105>0,SUM('Asset data'!J105:CV105),0) -> 59 | G105: =IF(A105>0,'Asset data'!F105,0) -> 96.71508106 | H105: =IF(A105>0,SUM('Asset data'!CX105:GJ105),0) -> 5706.189783 | I105: 0.0002687162921 | J105: 38 | K105: 0.004027291968 | L105: 96.71508106 | M105: =IF($A105>0,SUMPRODUCT('Age profile (years)'!$CT105:$GF105,'Asset data'!$CX105:$GJ105)/H105-0.5,0) -> 17.36440678 | N105: 99084.60055 | O105: =IF($A105>0,'Asset data'!G105,0) -> 57.20413243 | P105: 326417.636 | Q105: 0.6964483851 | R105: 5.720413243 | S105: 11.44082649 | T105: 34.32247946 | U105: 45.76330595 | W105: =IF($A105>0,SUMIF('Age profile (years)'!$CT105:$GF105,"<" & R105+0.5,'Asset data'!$CX105:$GJ105),0) -> 1547.441297 | X105: =IF($A105>0,SUMIF('Age profile (years)'!$CT105:$GF105,"<" & S105+0.5,'Asset data'!$CX105:$GJ105)-W105,0) -> 870.4357295 | Y105: =IF($A105>0,SUMIF('Age profile (years)'!$CT105:$GF105,"<" & T105+0.5,'Asset data'!$CX105:$GJ105)-X105-W105,0) -> 2998.167513 | Z105: =IF($A105>0,SUMIF('Age profile (years)'!$CT105:$GF105,"<" & U105+0.5,'Asset data'!$CX105:$GJ105)-Y105-X105-W105,0) -> 193.4301621 | AA105: 96.71508106 | AB105: 0.2711864407 | AC105: 0.1525423729 | AD105: 0.5254237288 | AE105: 0.03389830508 | AF105: 0.01694915254 | AI105: =IF($A105>0,'RRR hist-forc'!K105,0) -> 57.20413243 | AJ105: 326417.636
A106: ='Asset data'!A106 -> 6 | B106: ='Asset data'!B106 -> 0 | C106: ='Asset data'!C106 -> 0 | D106: ='Asset data'!E106 -> > 11 kV & < = 22 kV ; Switch | E106: SWITCHGEAR | F106: =IF(A106>0,SUM('Asset data'!J106:CV106),0) -> 14155 | G106: =IF(A106>0,'Asset data'!F106,0) -> 24.1991938 | H106: =IF(A106>0,SUM('Asset data'!CX106:GJ106),0) -> 342539.5882 | I106: 0.01613089847 | J106: 15 | K106: 0.2417562305 | L106: 24.1991938 | M106: =IF($A106>0,SUMPRODUCT('Age profile (years)'!$CT106:$GF106,'Asset data'!$CX106:$GJ106)/H106-0.5,0) -> 55.76238078 | N106: 19100822.95 | O106: =IF($A106>0,'Asset data'!G106,0) -> 80.30990086 | P106: 27509320.37 | Q106: 0.3056599475 | R106: 8.030990086 | S106: 16.06198017 | T106: 48.18594052 | U106: 64.24792069 | W106: =IF($A106>0,SUMIF('Age profile (years)'!$CT106:$GF106,"<" & R106+0.5,'Asset data'!$CX106:$GJ106),0) -> 10066.86462 | X106: =IF($A106>0,SUMIF('Age profile (years)'!$CT106:$GF106,"<" & S106+0.5,'Asset data'!$CX106:$GJ106)-W106,0) -> 2831.305674 | Y106: =IF($A106>0,SUMIF('Age profile (years)'!$CT106:$GF106,"<" & T106+0.5,'Asset data'!$CX106:$GJ106)-X106-W106,0) -> 123924.0714 | Z106: =IF($A106>0,SUMIF('Age profile (years)'!$CT106:$GF106,"<" & U106+0.5,'Asset data'!$CX106:$GJ106)-Y106-X106-W106,0) -> 20036.93246 | AA106: 185680.414 | AB106: 0.02938890851 | AC106: 0.008265630519 | AD106: 0.3617802897 | AE106: 0.05849523137 | AF106: 0.54206994 | AI106: =IF($A106>0,'RRR hist-forc'!K106,0) -> 80.30990086 | AJ106: 27509320.37
A107: ='Asset data'!A107 -> 6 | B107: ='Asset data'!B107 -> 0 | C107: ='Asset data'!C107 -> 0 | D107: ='Asset data'!E107 -> > 11 kV & < = 22 kV ; Circuit Breaker | E107: SWITCHGEAR | F107: =IF(A107>0,SUM('Asset data'!J107:CV107),0) -> 777 | G107: =IF(A107>0,'Asset data'!F107,0) -> 177.5701004 | H107: =IF(A107>0,SUM('Asset data'!CX107:GJ107),0) -> 137971.968 | I107: 0.006497385658 | J107: 22 | K107: 0.09737730777 | L107: 177.5701004 | M107: =IF($A107>0,SUMPRODUCT('Age profile (years)'!$CT107:$GF107,'Asset data'!$CX107:$GJ107)/H107-0.5,0) -> 20.08043758 | N107: 2770537.492 | O107: =IF($A107>0,'Asset data'!G107,0) -> 52.69641828 | P107: 7270628.538 | Q107: 0.6189411304 | R107: 5.269641828 | S107: 10.53928366 | T107: 31.61785097 | U107: 42.15713462 | W107: =IF($A107>0,SUMIF('Age profile (years)'!$CT107:$GF107,"<" & R107+0.5,'Asset data'!$CX107:$GJ107),0) -> 30186.91707 | X107: =IF($A107>0,SUMIF('Age profile (years)'!$CT107:$GF107,"<" & S107+0.5,'Asset data'!$CX107:$GJ107)-W107,0) -> 21663.55225 | Y107: =IF($A107>0,SUMIF('Age profile (years)'!$CT107:$GF107,"<" & T107+0.5,'Asset data'!$CX107:$GJ107)-X107-W107,0) -> 44392.5251 | Z107: =IF($A107>0,SUMIF('Age profile (years)'!$CT107:$GF107,"<" & U107+0.5,'Asset data'!$CX107:$GJ107)-Y107-X107-W107,0) -> 13850.46783 | AA107: 27878.50576 | AB107: 0.2187902188 | AC107: 0.157014157 | AD107: 0.3217503218 | AE107: 0.1003861004 | AF107: 0.2020592021 | AI107: =IF($A107>0,'RRR hist-forc'!K107,0) -> 52.69641828 | AJ107: 7270628.538
A108: ='Asset data'!A108 -> 0 | B108: ='Asset data'!B108 -> 0 | C108: ='Asset data'!C108 -> 0 | D108: ='Asset data'!E108 -> > 22 kV & < = 33 kV ; Switch | E108: 0 | F108: =IF(A108>0,SUM('Asset data'!J108:CV108),0) -> 0 | G108: =IF(A108>0,'Asset data'!F108,0) -> 0 | H108: =IF(A108>0,SUM('Asset data'!CX108:GJ108),0) -> 0 | I108: 0 | J108: 0 | K108: 0 | L108: 0 | M108: =IF($A108>0,SUMPRODUCT('Age profile (years)'!$CT108:$GF108,'Asset data'!$CX108:$GJ108)/H108-0.5,0) -> 0 | N108: 0 | O108: =IF($A108>0,'Asset data'!G108,0) -> 0 | P108: 0 | Q108: 0 | R108: 0 | S108: 0 | T108: 0 | U108: 0 | W108: =IF($A108>0,SUMIF('Age profile (years)'!$CT108:$GF108,"<" & R108+0.5,'Asset data'!$CX108:$GJ108),0) -> 0 | X108: =IF($A108>0,SUMIF('Age profile (years)'!$CT108:$GF108,"<" & S108+0.5,'Asset data'!$CX108:$GJ108)-W108,0) -> 0 | Y108: =IF($A108>0,SUMIF('Age profile (years)'!$CT108:$GF108,"<" & T108+0.5,'Asset data'!$CX108:$GJ108)-X108-W108,0) -> 0 | Z108: =IF($A108>0,SUMIF('Age profile (years)'!$CT108:$GF108,"<" & U108+0.5,'Asset data'!$CX108:$GJ108)-Y108-X108-W108,0) -> 0 | AA108: 0 | AB108: 0 | AC108: 0 | AD108: 0 | AE108: 0 | AF108: 0 | AI108: =IF($A108>0,'RRR hist-forc'!K108,0) -> 0 | AJ108: 0
A109: ='Asset data'!A109 -> 0 | B109: ='Asset data'!B109 -> 0 | C109: ='Asset data'!C109 -> 0 | D109: ='Asset data'!E109 -> > 22 kV & < = 33 kV ; Circuit Breaker | E109: 0 | F109: =IF(A109>0,SUM('Asset data'!J109:CV109),0) -> 0 | G109: =IF(A109>0,'Asset data'!F109,0) -> 0 | H109: =IF(A109>0,SUM('Asset data'!CX109:GJ109),0) -> 0 | I109: 0 | J109: 0 | K109: 0 | L109: 0 | M109: =IF($A109>0,SUMPRODUCT('Age profile (years)'!$CT109:$GF109,'Asset data'!$CX109:$GJ109)/H109-0.5,0) -> 0 | N109: 0 | O109: =IF($A109>0,'Asset data'!G109,0) -> 0 | P109: 0 | Q109: 0 | R109: 0 | S109: 0 | T109: 0 | U109: 0 | W109: =IF($A109>0,SUMIF('Age profile (years)'!$CT109:$GF109,"<" & R109+0.5,'Asset data'!$CX109:$GJ109),0) -> 0 | X109: =IF($A109>0,SUMIF('Age profile (years)'!$CT109:$GF109,"<" & S109+0.5,'Asset data'!$CX109:$GJ109)-W109,0) -> 0 | Y109: =IF($A109>0,SUMIF('Age profile (years)'!$CT109:$GF109,"<" & T109+0.5,'Asset data'!$CX109:$GJ109)-X109-W109,0) -> 0 | Z109: =IF($A109>0,SUMIF('Age profile (years)'!$CT109:$GF109,"<" & U109+0.5,'Asset data'!$CX109:$GJ109)-Y109-X109-W109,0) -> 0 | AA109: 0 | AB109: 0 | AC109: 0 | AD109: 0 | AE109: 0 | AF109: 0 | AI109: =IF($A109>0,'RRR hist-forc'!K109,0) -> 0 | AJ109: 0
A110: ='Asset data'!A110 -> 6 | B110: ='Asset data'!B110 -> 0 | C110: ='Asset data'!C110 -> 0 | D110: ='Asset data'!E110 -> > 33 kV & < = 66 kV ; Switch | E110: SWITCHGEAR | F110: =IF(A110>0,SUM('Asset data'!J110:CV110),0) -> 287 | G110: =IF(A110>0,'Asset data'!F110,0) -> 71.66604134 | H110: =IF(A110>0,SUM('Asset data'!CX110:GJ110),0) -> 20568.15387 | I110: 0.0009685969538 | J110: 32 | K110: 0.01451650997 | L110: 71.66604134 | M110: =IF($A110>0,SUMPRODUCT('Age profile (years)'!$CT110:$GF110,'Asset data'!$CX110:$GJ110)/H110-0.5,0) -> 23.45121951 | N110: 482348.2913 | O110: =IF($A110>0,'Asset data'!G110,0) -> 58.99602256 | P110: 1213439.269 | Q110: 0.6024949057 | R110: 5.899602256 | S110: 11.79920451 | T110: 35.39761354 | U110: 47.19681805 | W110: =IF($A110>0,SUMIF('Age profile (years)'!$CT110:$GF110,"<" & R110+0.5,'Asset data'!$CX110:$GJ110),0) -> 2436.645406 | X110: =IF($A110>0,SUMIF('Age profile (years)'!$CT110:$GF110,"<" & S110+0.5,'Asset data'!$CX110:$GJ110)-W110,0) -> 4156.630398 | Y110: =IF($A110>0,SUMIF('Age profile (years)'!$CT110:$GF110,"<" & T110+0.5,'Asset data'!$CX110:$GJ110)-X110-W110,0) -> 8743.257044 | Z110: =IF($A110>0,SUMIF('Age profile (years)'!$CT110:$GF110,"<" & U110+0.5,'Asset data'!$CX110:$GJ110)-Y110-X110-W110,0) -> 2436.645406 | AA110: 2794.975612 | AB110: 0.118466899 | AC110: 0.2020905923 | AD110: 0.425087108 | AE110: 0.118466899 | AF110: 0.1358885017 | AI110: =IF($A110>0,'RRR hist-forc'!K110,0) -> 58.99602256 | AJ110: 1213439.269
A111: ='Asset data'!A111 -> 6 | B111: ='Asset data'!B111 -> 0 | C111: ='Asset data'!C111 -> 0 | D111: ='Asset data'!E111 -> > 33 kV & < = 66 kV ; Circuit Breaker | E111: SWITCHGEAR | F111: =IF(A111>0,SUM('Asset data'!J111:CV111),0) -> 187 | G111: =IF(A111>0,'Asset data'!F111,0) -> 291.5879482 | H111: =IF(A111>0,SUM('Asset data'!CX111:GJ111),0) -> 54526.94631 | I111: 0.002567786805 | J111: 28 | K111: 0.03848381167 | L111: 291.5879482 | M111: =IF($A111>0,SUMPRODUCT('Age profile (years)'!$CT111:$GF111,'Asset data'!$CX111:$GJ111)/H111-0.5,0) -> 24.01336898 | N111: 1309375.681 | O111: =IF($A111>0,'Asset data'!G111,0) -> 52.43902241 | P111: 2859339.759 | Q111: 0.5420706207 | R111: 5.243902241 | S111: 10.48780448 | T111: 31.46341344 | U111: 41.95121793 | W111: =IF($A111>0,SUMIF('Age profile (years)'!$CT111:$GF111,"<" & R111+0.5,'Asset data'!$CX111:$GJ111),0) -> 12538.28177 | X111: =IF($A111>0,SUMIF('Age profile (years)'!$CT111:$GF111,"<" & S111+0.5,'Asset data'!$CX111:$GJ111)-W111,0) -> 1457.939741 | Y111: =IF($A111>0,SUMIF('Age profile (years)'!$CT111:$GF111,"<" & T111+0.5,'Asset data'!$CX111:$GJ111)-X111-W111,0) -> 18370.04074 | Z111: =IF($A111>0,SUMIF('Age profile (years)'!$CT111:$GF111,"<" & U111+0.5,'Asset data'!$CX111:$GJ111)-Y111-X111-W111,0) -> 6414.93486 | AA111: 15745.7492 | AB111: 0.2299465241 | AC111: 0.02673796791 | AD111: 0.3368983957 | AE111: 0.1176470588 | AF111: 0.2887700535 | AI111: =IF($A111>0,'RRR hist-forc'!K111,0) -> 52.43902241 | AJ111: 2859339.759
A112: ='Asset data'!A112 -> 0 | B112: ='Asset data'!B112 -> 0 | C112: ='Asset data'!C112 -> 0 | D112: ='Asset data'!E112 -> > 66 kV & < = 132 kV ; Switch | E112: 0 | F112: =IF(A112>0,SUM('Asset data'!J112:CV112),0) -> 0 | G112: =IF(A112>0,'Asset data'!F112,0) -> 0 | H112: =IF(A112>0,SUM('Asset data'!CX112:GJ112),0) -> 0 | I112: 0 | J112: 0 | K112: 0 | L112: 0 | M112: =IF($A112>0,SUMPRODUCT('Age profile (years)'!$CT112:$GF112,'Asset data'!$CX112:$GJ112)/H112-0.5,0) -> 0 | N112: 0 | O112: =IF($A112>0,'Asset data'!G112,0) -> 0 | P112: 0 | Q112: 0 | R112: 0 | S112: 0 | T112: 0 | U112: 0 | W112: =IF($A112>0,SUMIF('Age profile (years)'!$CT112:$GF112,"<" & R112+0.5,'Asset data'!$CX112:$GJ112),0) -> 0 | X112: =IF($A112>0,SUMIF('Age profile (years)'!$CT112:$GF112,"<" & S112+0.5,'Asset data'!$CX112:$GJ112)-W112,0) -> 0 | Y112: =IF($A112>0,SUMIF('Age profile (years)'!$CT112:$GF112,"<" & T112+0.5,'Asset data'!$CX112:$GJ112)-X112-W112,0) -> 0 | Z112: =IF($A112>0,SUMIF('Age profile (years)'!$CT112:$GF112,"<" & U112+0.5,'Asset data'!$CX112:$GJ112)-Y112-X112-W112,0) -> 0 | AA112: 0 | AB112: 0 | AC112: 0 | AD112: 0 | AE112: 0 | AF112: 0 | AI112: =IF($A112>0,'RRR hist-forc'!K112,0) -> 0 | AJ112: 0
A113: ='Asset data'!A113 -> 0 | B113: ='Asset data'!B113 -> 0 | C113: ='Asset data'!C113 -> 0 | D113: ='Asset data'!E113 -> > 66 kV & < = 132 kV ; Circuit Breaker | E113: 0 | F113: =IF(A113>0,SUM('Asset data'!J113:CV113),0) -> 0 | G113: =IF(A113>0,'Asset data'!F113,0) -> 0 | H113: =IF(A113>0,SUM('Asset data'!CX113:GJ113),0) -> 0 | I113: 0 | J113: 0 | K113: 0 | L113: 0 | M113: =IF($A113>0,SUMPRODUCT('Age profile (years)'!$CT113:$GF113,'Asset data'!$CX113:$GJ113)/H113-0.5,0) -> 0 | N113: 0 | O113: =IF($A113>0,'Asset data'!G113,0) -> 0 | P113: 0 | Q113: 0 | R113: 0 | S113: 0 | T113: 0 | U113: 0 | W113: =IF($A113>0,SUMIF('Age profile (years)'!$CT113:$GF113,"<" & R113+0.5,'Asset data'!$CX113:$GJ113),0) -> 0 | X113: =IF($A113>0,SUMIF('Age profile (years)'!$CT113:$GF113,"<" & S113+0.5,'Asset data'!$CX113:$GJ113)-W113,0) -> 0 | Y113: =IF($A113>0,SUMIF('Age profile (years)'!$CT113:$GF113,"<" & T113+0.5,'Asset data'!$CX113:$GJ113)-X113-W113,0) -> 0 | Z113: =IF($A113>0,SUMIF('Age profile (years)'!$CT113:$GF113,"<" & U113+0.5,'Asset data'!$CX113:$GJ113)-Y113-X113-W113,0) -> 0 | AA113: 0 | AB113: 0 | AC113: 0 | AD113: 0 | AE113: 0 | AF113: 0 | AI113: =IF($A113>0,'RRR hist-forc'!K113,0) -> 0 | AJ113: 0
A114: ='Asset data'!A114 -> 0 | B114: ='Asset data'!B114 -> 0 | C114: ='Asset data'!C114 -> 0 | D114: ='Asset data'!E114 -> > 132 kV ; Switch | E114: 0 | F114: =IF(A114>0,SUM('Asset data'!J114:CV114),0) -> 0 | G114: =IF(A114>0,'Asset data'!F114,0) -> 0 | H114: =IF(A114>0,SUM('Asset data'!CX114:GJ114),0) -> 0 | I114: 0 | J114: 0 | K114: 0 | L114: 0 | M114: =IF($A114>0,SUMPRODUCT('Age profile (years)'!$CT114:$GF114,'Asset data'!$CX114:$GJ114)/H114-0.5,0) -> 0 | N114: 0 | O114: =IF($A114>0,'Asset data'!G114,0) -> 0 | P114: 0 | Q114: 0 | R114: 0 | S114: 0 | T114: 0 | U114: 0 | W114: =IF($A114>0,SUMIF('Age profile (years)'!$CT114:$GF114,"<" & R114+0.5,'Asset data'!$CX114:$GJ114),0) -> 0 | X114: =IF($A114>0,SUMIF('Age profile (years)'!$CT114:$GF114,"<" & S114+0.5,'Asset data'!$CX114:$GJ114)-W114,0) -> 0 | Y114: =IF($A114>0,SUMIF('Age profile (years)'!$CT114:$GF114,"<" & T114+0.5,'Asset data'!$CX114:$GJ114)-X114-W114,0) -> 0 | Z114: =IF($A114>0,SUMIF('Age profile (years)'!$CT114:$GF114,"<" & U114+0.5,'Asset data'!$CX114:$GJ114)-Y114-X114-W114,0) -> 0 | AA114: 0 | AB114: 0 | AC114: 0 | AD114: 0 | AE114: 0 | AF114: 0 | AI114: =IF($A114>0,'RRR hist-forc'!K114,0) -> 0 | AJ114: 0
A115: ='Asset data'!A115 -> 0 | B115: ='Asset data'!B115 -> 0 | C115: ='Asset data'!C115 -> 0 | D115: ='Asset data'!E115 -> > 132 kV ; Circuit Breaker | E115: 0 | F115: =IF(A115>0,SUM('Asset data'!J115:CV115),0) -> 0 | G115: =IF(A115>0,'Asset data'!F115,0) -> 0 | H115: =IF(A115>0,SUM('Asset data'!CX115:GJ115),0) -> 0 | I115: 0 | J115: 0 | K115: 0 | L115: 0 | M115: =IF($A115>0,SUMPRODUCT('Age profile (years)'!$CT115:$GF115,'Asset data'!$CX115:$GJ115)/H115-0.5,0) -> 0 | N115: 0 | O115: =IF($A115>0,'Asset data'!G115,0) -> 0 | P115: 0 | Q115: 0 | R115: 0 | S115: 0 | T115: 0 | U115: 0 | W115: =IF($A115>0,SUMIF('Age profile (years)'!$CT115:$GF115,"<" & R115+0.5,'Asset data'!$CX115:$GJ115),0) -> 0 | X115: =IF($A115>0,SUMIF('Age profile (years)'!$CT115:$GF115,"<" & S115+0.5,'Asset data'!$CX115:$GJ115)-W115,0) -> 0 | Y115: =IF($A115>0,SUMIF('Age profile (years)'!$CT115:$GF115,"<" & T115+0.5,'Asset data'!$CX115:$GJ115)-X115-W115,0) -> 0 | Z115: =IF($A115>0,SUMIF('Age profile (years)'!$CT115:$GF115,"<" & U115+0.5,'Asset data'!$CX115:$GJ115)-Y115-X115-W115,0) -> 0 | AA115: 0 | AB115: 0 | AC115: 0 | AD115: 0 | AE115: 0 | AF115: 0 | AI115: =IF($A115>0,'RRR hist-forc'!K115,0) -> 0 | AJ115: 0
A116: ='Asset data'!A116 -> 6 | B116: ='Asset data'!B116 -> 0 | C116: ='Asset data'!C116 -> 0 | D116: ='Asset data'!E116 -> Other - HV Fuses and Surge Diverters | E116: SWITCHGEAR | F116: =IF(A116>0,SUM('Asset data'!J116:CV116),0) -> 351774 | G116: =IF(A116>0,'Asset data'!F116,0) -> 2.410535423 | H116: =IF(A116>0,SUM('Asset data'!CX116:GJ116),0) -> 847963.6878 | I116: 0.03993236584 | J116: 9 | K116: 0.5984724447 | L116: 2.410535423 | M116: =IF($A116>0,SUMPRODUCT('Age profile (years)'!$CT116:$GF116,'Asset data'!$CX116:$GJ116)/H116-0.5,0) -> 29.52534582 | N116: 25036421.12 | O116: =IF($A116>0,'Asset data'!G116,0) -> 48.82384721 | P116: 41400849.53 | Q116: 0.3952679376 | R116: 4.882384721 | S116: 9.764769442 | T116: 29.29430833 | U116: 39.05907777 | W116: =IF($A116>0,SUMIF('Age profile (years)'!$CT116:$GF116,"<" & R116+0.5,'Asset data'!$CX116:$GJ116),0) -> 21593.57632 | X116: =IF($A116>0,SUMIF('Age profile (years)'!$CT116:$GF116,"<" & S116+0.5,'Asset data'!$CX116:$GJ116)-W116,0) -> 28466.01281 | Y116: =IF($A116>0,SUMIF('Age profile (years)'!$CT116:$GF116,"<" & T116+0.5,'Asset data'!$CX116:$GJ116)-X116-W116,0) -> 321755.8577 | Z116: =IF($A116>0,SUMIF('Age profile (years)'!$CT116:$GF116,"<" & U116+0.5,'Asset data'!$CX116:$GJ116)-Y116-X116-W116,0) -> 245783.0128 | AA116: 230365.2282 | AB116: 0.02546521346 | AC116: 0.03356984882 | AD116: 0.3794453257 | AE116: 0.2898508702 | AF116: 0.2716687419 | AI116: =IF($A116>0,'RRR hist-forc'!K116,0) -> 48.82384721 | AJ116: 41400849.53
A117: ='Asset data'!A117 -> 0 | B117: ='Asset data'!B117 -> 0 | C117: ='Asset data'!C117 -> 0 | D117: ='Asset data'!E117 -> 0 | E117: 0 | F117: =IF(A117>0,SUM('Asset data'!J117:CV117),0) -> 0 | G117: =IF(A117>0,'Asset data'!F117,0) -> 0 | H117: =IF(A117>0,SUM('Asset data'!CX117:GJ117),0) -> 0 | I117: 0 | J117: 0 | K117: 0 | L117: 0 | M117: =IF($A117>0,SUMPRODUCT('Age profile (years)'!$CT117:$GF117,'Asset data'!$CX117:$GJ117)/H117-0.5,0) -> 0 | N117: 0 | O117: =IF($A117>0,'Asset data'!G117,0) -> 0 | P117: 0 | Q117: 0 | R117: 0 | S117: 0 | T117: 0 | U117: 0 | W117: =IF($A117>0,SUMIF('Age profile (years)'!$CT117:$GF117,"<" & R117+0.5,'Asset data'!$CX117:$GJ117),0) -> 0 | X117: =IF($A117>0,SUMIF('Age profile (years)'!$CT117:$GF117,"<" & S117+0.5,'Asset data'!$CX117:$GJ117)-W117,0) -> 0 | Y117: =IF($A117>0,SUMIF('Age profile (years)'!$CT117:$GF117,"<" & T117+0.5,'Asset data'!$CX117:$GJ117)-X117-W117,0) -> 0 | Z117: =IF($A117>0,SUMIF('Age profile (years)'!$CT117:$GF117,"<" & U117+0.5,'Asset data'!$CX117:$GJ117)-Y117-X117-W117,0) -> 0 | AA117: 0 | AB117: 0 | AC117: 0 | AD117: 0 | AE117: 0 | AF117: 0 | AI117: =IF($A117>0,'RRR hist-forc'!K117,0) -> 0 | AJ117: 0
A118: ='Asset data'!A118 -> 0 | B118: ='Asset data'!B118 -> 0 | C118: ='Asset data'!C118 -> 0 | D118: ='Asset data'!E118 -> 0 | E118: 0 | F118: =IF(A118>0,SUM('Asset data'!J118:CV118),0) -> 0 | G118: =IF(A118>0,'Asset data'!F118,0) -> 0 | H118: =IF(A118>0,SUM('Asset data'!CX118:GJ118),0) -> 0 | I118: 0 | J118: 0 | K118: 0 | L118: 0 | M118: =IF($A118>0,SUMPRODUCT('Age profile (years)'!$CT118:$GF118,'Asset data'!$CX118:$GJ118)/H118-0.5,0) -> 0 | N118: 0 | O118: =IF($A118>0,'Asset data'!G118,0) -> 0 | P118: 0 | Q118: 0 | R118: 0 | S118: 0 | T118: 0 | U118: 0 | W118: =IF($A118>0,SUMIF('Age profile (years)'!$CT118:$GF118,"<" & R118+0.5,'Asset data'!$CX118:$GJ118),0) -> 0 | X118: =IF($A118>0,SUMIF('Age profile (years)'!$CT118:$GF118,"<" & S118+0.5,'Asset data'!$CX118:$GJ118)-W118,0) -> 0 | Y118: =IF($A118>0,SUMIF('Age profile (years)'!$CT118:$GF118,"<" & T118+0.5,'Asset data'!$CX118:$GJ118)-X118-W118,0) -> 0 | Z118: =IF($A118>0,SUMIF('Age profile (years)'!$CT118:$GF118,"<" & U118+0.5,'Asset data'!$CX118:$GJ118)-Y118-X118-W118,0) -> 0 | AA118: 0 | AB118: 0 | AC118: 0 | AD118: 0 | AE118: 0 | AF118: 0 | AI118: =IF($A118>0,'RRR hist-forc'!K118,0) -> 0 | AJ118: 0
A119: ='Asset data'!A119 -> 0 | B119: ='Asset data'!B119 -> 0 | C119: ='Asset data'!C119 -> 0 | D119: ='Asset data'!E119 -> 0 | E119: 0 | F119: =IF(A119>0,SUM('Asset data'!J119:CV119),0) -> 0 | G119: =IF(A119>0,'Asset data'!F119,0) -> 0 | H119: =IF(A119>0,SUM('Asset data'!CX119:GJ119),0) -> 0 | I119: 0 | J119: 0 | K119: 0 | L119: 0 | M119: =IF($A119>0,SUMPRODUCT('Age profile (years)'!$CT119:$GF119,'Asset data'!$CX119:$GJ119)/H119-0.5,0) -> 0 | N119: 0 | O119: =IF($A119>0,'Asset data'!G119,0) -> 0 | P119: 0 | Q119: 0 | R119: 0 | S119: 0 | T119: 0 | U119: 0 | W119: =IF($A119>0,SUMIF('Age profile (years)'!$CT119:$GF119,"<" & R119+0.5,'Asset data'!$CX119:$GJ119),0) -> 0 | X119: =IF($A119>0,SUMIF('Age profile (years)'!$CT119:$GF119,"<" & S119+0.5,'Asset data'!$CX119:$GJ119)-W119,0) -> 0 | Y119: =IF($A119>0,SUMIF('Age profile (years)'!$CT119:$GF119,"<" & T119+0.5,'Asset data'!$CX119:$GJ119)-X119-W119,0) -> 0 | Z119: =IF($A119>0,SUMIF('Age profile (years)'!$CT119:$GF119,"<" & U119+0.5,'Asset data'!$CX119:$GJ119)-Y119-X119-W119,0) -> 0 | AA119: 0 | AB119: 0 | AC119: 0 | AD119: 0 | AE119: 0 | AF119: 0 | AI119: =IF($A119>0,'RRR hist-forc'!K119,0) -> 0 | AJ119: 0
A120: ='Asset data'!A120 -> 0 | B120: ='Asset data'!B120 -> 0 | C120: ='Asset data'!C120 -> 0 | D120: ='Asset data'!E120 -> 0 | E120: 0 | F120: =IF(A120>0,SUM('Asset data'!J120:CV120),0) -> 0 | G120: =IF(A120>0,'Asset data'!F120,0) -> 0 | H120: =IF(A120>0,SUM('Asset data'!CX120:GJ120),0) -> 0 | I120: 0 | J120: 0 | K120: 0 | L120: 0 | M120: =IF($A120>0,SUMPRODUCT('Age profile (years)'!$CT120:$GF120,'Asset data'!$CX120:$GJ120)/H120-0.5,0) -> 0 | N120: 0 | O120: =IF($A120>0,'Asset data'!G120,0) -> 0 | P120: 0 | Q120: 0 | R120: 0 | S120: 0 | T120: 0 | U120: 0 | W120: =IF($A120>0,SUMIF('Age profile (years)'!$CT120:$GF120,"<" & R120+0.5,'Asset data'!$CX120:$GJ120),0) -> 0 | X120: =IF($A120>0,SUMIF('Age profile (years)'!$CT120:$GF120,"<" & S120+0.5,'Asset data'!$CX120:$GJ120)-W120,0) -> 0 | Y120: =IF($A120>0,SUMIF('Age profile (years)'!$CT120:$GF120,"<" & T120+0.5,'Asset data'!$CX120:$GJ120)-X120-W120,0) -> 0 | Z120: =IF($A120>0,SUMIF('Age profile (years)'!$CT120:$GF120,"<" & U120+0.5,'Asset data'!$CX120:$GJ120)-Y120-X120-W120,0) -> 0 | AA120: 0 | AB120: 0 | AC120: 0 | AD120: 0 | AE120: 0 | AF120: 0 | AI120: =IF($A120>0,'RRR hist-forc'!K120,0) -> 0 | AJ120: 0
A121: ='Asset data'!A121 -> 0 | B121: ='Asset data'!B121 -> 0 | C121: ='Asset data'!C121 -> 0 | D121: ='Asset data'!E121 -> 0 | E121: 0 | F121: =IF(A121>0,SUM('Asset data'!J121:CV121),0) -> 0 | G121: =IF(A121>0,'Asset data'!F121,0) -> 0 | H121: =IF(A121>0,SUM('Asset data'!CX121:GJ121),0) -> 0 | I121: 0 | J121: 0 | K121: 0 | L121: 0 | M121: =IF($A121>0,SUMPRODUCT('Age profile (years)'!$CT121:$GF121,'Asset data'!$CX121:$GJ121)/H121-0.5,0) -> 0 | N121: 0 | O121: =IF($A121>0,'Asset data'!G121,0) -> 0 | P121: 0 | Q121: 0 | R121: 0 | S121: 0 | T121: 0 | U121: 0 | W121: =IF($A121>0,SUMIF('Age profile (years)'!$CT121:$GF121,"<" & R121+0.5,'Asset data'!$CX121:$GJ121),0) -> 0 | X121: =IF($A121>0,SUMIF('Age profile (years)'!$CT121:$GF121,"<" & S121+0.5,'Asset data'!$CX121:$GJ121)-W121,0) -> 0 | Y121: =IF($A121>0,SUMIF('Age profile (years)'!$CT121:$GF121,"<" & T121+0.5,'Asset data'!$CX121:$GJ121)-X121-W121,0) -> 0 | Z121: =IF($A121>0,SUMIF('Age profile (years)'!$CT121:$GF121,"<" & U121+0.5,'Asset data'!$CX121:$GJ121)-Y121-X121-W121,0) -> 0 | AA121: 0 | AB121: 0 | AC121: 0 | AD121: 0 | AE121: 0 | AF121: 0 | AI121: =IF($A121>0,'RRR hist-forc'!K121,0) -> 0 | AJ121: 0
A122: ='Asset data'!A122 -> 0 | B122: ='Asset data'!B122 -> 0 | C122: ='Asset data'!C122 -> 0 | D122: ='Asset data'!E122 -> 0 | E122: 0 | F122: =IF(A122>0,SUM('Asset data'!J122:CV122),0) -> 0 | G122: =IF(A122>0,'Asset data'!F122,0) -> 0 | H122: =IF(A122>0,SUM('Asset data'!CX122:GJ122),0) -> 0 | I122: 0 | J122: 0 | K122: 0 | L122: 0 | M122: =IF($A122>0,SUMPRODUCT('Age profile (years)'!$CT122:$GF122,'Asset data'!$CX122:$GJ122)/H122-0.5,0) -> 0 | N122: 0 | O122: =IF($A122>0,'Asset data'!G122,0) -> 0 | P122: 0 | Q122: 0 | R122: 0 | S122: 0 | T122: 0 | U122: 0 | W122: =IF($A122>0,SUMIF('Age profile (years)'!$CT122:$GF122,"<" & R122+0.5,'Asset data'!$CX122:$GJ122),0) -> 0 | X122: =IF($A122>0,SUMIF('Age profile (years)'!$CT122:$GF122,"<" & S122+0.5,'Asset data'!$CX122:$GJ122)-W122,0) -> 0 | Y122: =IF($A122>0,SUMIF('Age profile (years)'!$CT122:$GF122,"<" & T122+0.5,'Asset data'!$CX122:$GJ122)-X122-W122,0) -> 0 | Z122: =IF($A122>0,SUMIF('Age profile (years)'!$CT122:$GF122,"<" & U122+0.5,'Asset data'!$CX122:$GJ122)-Y122-X122-W122,0) -> 0 | AA122: 0 | AB122: 0 | AC122: 0 | AD122: 0 | AE122: 0 | AF122: 0 | AI122: =IF($A122>0,'RRR hist-forc'!K122,0) -> 0 | AJ122: 0
A123: ='Asset data'!A123 -> 0 | B123: ='Asset data'!B123 -> 0 | C123: ='Asset data'!C123 -> 0 | D123: ='Asset data'!E123 -> 0 | E123: 0 | F123: =IF(A123>0,SUM('Asset data'!J123:CV123),0) -> 0 | G123: =IF(A123>0,'Asset data'!F123,0) -> 0 | H123: =IF(A123>0,SUM('Asset data'!CX123:GJ123),0) -> 0 | I123: 0 | J123: 0 | K123: 0 | L123: 0 | M123: =IF($A123>0,SUMPRODUCT('Age profile (years)'!$CT123:$GF123,'Asset data'!$CX123:$GJ123)/H123-0.5,0) -> 0 | N123: 0 | O123: =IF($A123>0,'Asset data'!G123,0) -> 0 | P123: 0 | Q123: 0 | R123: 0 | S123: 0 | T123: 0 | U123: 0 | W123: =IF($A123>0,SUMIF('Age profile (years)'!$CT123:$GF123,"<" & R123+0.5,'Asset data'!$CX123:$GJ123),0) -> 0 | X123: =IF($A123>0,SUMIF('Age profile (years)'!$CT123:$GF123,"<" & S123+0.5,'Asset data'!$CX123:$GJ123)-W123,0) -> 0 | Y123: =IF($A123>0,SUMIF('Age profile (years)'!$CT123:$GF123,"<" & T123+0.5,'Asset data'!$CX123:$GJ123)-X123-W123,0) -> 0 | Z123: =IF($A123>0,SUMIF('Age profile (years)'!$CT123:$GF123,"<" & U123+0.5,'Asset data'!$CX123:$GJ123)-Y123-X123-W123,0) -> 0 | AA123: 0 | AB123: 0 | AC123: 0 | AD123: 0 | AE123: 0 | AF123: 0 | AI123: =IF($A123>0,'RRR hist-forc'!K123,0) -> 0 | AJ123: 0
A124: ='Asset data'!A124 -> 0 | B124: ='Asset data'!B124 -> 0 | C124: ='Asset data'!C124 -> 0 | D124: ='Asset data'!E124 -> 0 | E124: 0 | F124: =IF(A124>0,SUM('Asset data'!J124:CV124),0) -> 0 | G124: =IF(A124>0,'Asset data'!F124,0) -> 0 | H124: =IF(A124>0,SUM('Asset data'!CX124:GJ124),0) -> 0 | I124: 0 | J124: 0 | K124: 0 | L124: 0 | M124: =IF($A124>0,SUMPRODUCT('Age profile (years)'!$CT124:$GF124,'Asset data'!$CX124:$GJ124)/H124-0.5,0) -> 0 | N124: 0 | O124: =IF($A124>0,'Asset data'!G124,0) -> 0 | P124: 0 | Q124: 0 | R124: 0 | S124: 0 | T124: 0 | U124: 0 | W124: =IF($A124>0,SUMIF('Age profile (years)'!$CT124:$GF124,"<" & R124+0.5,'Asset data'!$CX124:$GJ124),0) -> 0 | X124: =IF($A124>0,SUMIF('Age profile (years)'!$CT124:$GF124,"<" & S124+0.5,'Asset data'!$CX124:$GJ124)-W124,0) -> 0 | Y124: =IF($A124>0,SUMIF('Age profile (years)'!$CT124:$GF124,"<" & T124+0.5,'Asset data'!$CX124:$GJ124)-X124-W124,0) -> 0 | Z124: =IF($A124>0,SUMIF('Age profile (years)'!$CT124:$GF124,"<" & U124+0.5,'Asset data'!$CX124:$GJ124)-Y124-X124-W124,0) -> 0 | AA124: 0 | AB124: 0 | AC124: 0 | AD124: 0 | AE124: 0 | AF124: 0 | AI124: =IF($A124>0,'RRR hist-forc'!K124,0) -> 0 | AJ124: 0
A125: ='Asset data'!A125 -> 0 | B125: ='Asset data'!B125 -> 0 | C125: ='Asset data'!C125 -> 0 | D125: ='Asset data'!E125 -> 0 | E125: 0 | F125: =IF(A125>0,SUM('Asset data'!J125:CV125),0) -> 0 | G125: =IF(A125>0,'Asset data'!F125,0) -> 0 | H125: =IF(A125>0,SUM('Asset data'!CX125:GJ125),0) -> 0 | I125: 0 | J125: 0 | K125: 0 | L125: 0 | M125: =IF($A125>0,SUMPRODUCT('Age profile (years)'!$CT125:$GF125,'Asset data'!$CX125:$GJ125)/H125-0.5,0) -> 0 | N125: 0 | O125: =IF($A125>0,'Asset data'!G125,0) -> 0 | P125: 0 | Q125: 0 | R125: 0 | S125: 0 | T125: 0 | U125: 0 | W125: =IF($A125>0,SUMIF('Age profile (years)'!$CT125:$GF125,"<" & R125+0.5,'Asset data'!$CX125:$GJ125),0) -> 0 | X125: =IF($A125>0,SUMIF('Age profile (years)'!$CT125:$GF125,"<" & S125+0.5,'Asset data'!$CX125:$GJ125)-W125,0) -> 0 | Y125: =IF($A125>0,SUMIF('Age profile (years)'!$CT125:$GF125,"<" & T125+0.5,'Asset data'!$CX125:$GJ125)-X125-W125,0) -> 0 | Z125: =IF($A125>0,SUMIF('Age profile (years)'!$CT125:$GF125,"<" & U125+0.5,'Asset data'!$CX125:$GJ125)-Y125-X125-W125,0) -> 0 | AA125: 0 | AB125: 0 | AC125: 0 | AD125: 0 | AE125: 0 | AF125: 0 | AI125: =IF($A125>0,'RRR hist-forc'!K125,0) -> 0 | AJ125: 0
A126: ='Asset data'!A126 -> 0 | B126: ='Asset data'!B126 -> 0 | C126: ='Asset data'!C126 -> 0 | D126: ='Asset data'!E126 -> 0 | E126: 0 | F126: =IF(A126>0,SUM('Asset data'!J126:CV126),0) -> 0 | G126: =IF(A126>0,'Asset data'!F126,0) -> 0 | H126: =IF(A126>0,SUM('Asset data'!CX126:GJ126),0) -> 0 | I126: 0 | J126: 0 | K126: 0 | L126: 0 | M126: =IF($A126>0,SUMPRODUCT('Age profile (years)'!$CT126:$GF126,'Asset data'!$CX126:$GJ126)/H126-0.5,0) -> 0 | N126: 0 | O126: =IF($A126>0,'Asset data'!G126,0) -> 0 | P126: 0 | Q126: 0 | R126: 0 | S126: 0 | T126: 0 | U126: 0 | W126: =IF($A126>0,SUMIF('Age profile (years)'!$CT126:$GF126,"<" & R126+0.5,'Asset data'!$CX126:$GJ126),0) -> 0 | X126: =IF($A126>0,SUMIF('Age profile (years)'!$CT126:$GF126,"<" & S126+0.5,'Asset data'!$CX126:$GJ126)-W126,0) -> 0 | Y126: =IF($A126>0,SUMIF('Age profile (years)'!$CT126:$GF126,"<" & T126+0.5,'Asset data'!$CX126:$GJ126)-X126-W126,0) -> 0 | Z126: =IF($A126>0,SUMIF('Age profile (years)'!$CT126:$GF126,"<" & U126+0.5,'Asset data'!$CX126:$GJ126)-Y126-X126-W126,0) -> 0 | AA126: 0 | AB126: 0 | AC126: 0 | AD126: 0 | AE126: 0 | AF126: 0 | AI126: =IF($A126>0,'RRR hist-forc'!K126,0) -> 0 | AJ126: 0
A127: ='Asset data'!A127 -> 0 | B127: ='Asset data'!B127 -> 0 | C127: ='Asset data'!C127 -> 0 | D127: ='Asset data'!E127 -> 0 | E127: 0 | F127: =IF(A127>0,SUM('Asset data'!J127:CV127),0) -> 0 | G127: =IF(A127>0,'Asset data'!F127,0) -> 0 | H127: =IF(A127>0,SUM('Asset data'!CX127:GJ127),0) -> 0 | I127: 0 | J127: 0 | K127: 0 | L127: 0 | M127: =IF($A127>0,SUMPRODUCT('Age profile (years)'!$CT127:$GF127,'Asset data'!$CX127:$GJ127)/H127-0.5,0) -> 0 | N127: 0 | O127: =IF($A127>0,'Asset data'!G127,0) -> 0 | P127: 0 | Q127: 0 | R127: 0 | S127: 0 | T127: 0 | U127: 0 | W127: =IF($A127>0,SUMIF('Age profile (years)'!$CT127:$GF127,"<" & R127+0.5,'Asset data'!$CX127:$GJ127),0) -> 0 | X127: =IF($A127>0,SUMIF('Age profile (years)'!$CT127:$GF127,"<" & S127+0.5,'Asset data'!$CX127:$GJ127)-W127,0) -> 0 | Y127: =IF($A127>0,SUMIF('Age profile (years)'!$CT127:$GF127,"<" & T127+0.5,'Asset data'!$CX127:$GJ127)-X127-W127,0) -> 0 | Z127: =IF($A127>0,SUMIF('Age profile (years)'!$CT127:$GF127,"<" & U127+0.5,'Asset data'!$CX127:$GJ127)-Y127-X127-W127,0) -> 0 | AA127: 0 | AB127: 0 | AC127: 0 | AD127: 0 | AE127: 0 | AF127: 0 | AI127: =IF($A127>0,'RRR hist-forc'!K127,0) -> 0 | AJ127: 0
A128: ='Asset data'!A128 -> 0 | B128: ='Asset data'!B128 -> 0 | C128: ='Asset data'!C128 -> 0 | D128: ='Asset data'!E128 -> 0 | E128: 0 | F128: =IF(A128>0,SUM('Asset data'!J128:CV128),0) -> 0 | G128: =IF(A128>0,'Asset data'!F128,0) -> 0 | H128: =IF(A128>0,SUM('Asset data'!CX128:GJ128),0) -> 0 | I128: 0 | J128: 0 | K128: 0 | L128: 0 | M128: =IF($A128>0,SUMPRODUCT('Age profile (years)'!$CT128:$GF128,'Asset data'!$CX128:$GJ128)/H128-0.5,0) -> 0 | N128: 0 | O128: =IF($A128>0,'Asset data'!G128,0) -> 0 | P128: 0 | Q128: 0 | R128: 0 | S128: 0 | T128: 0 | U128: 0 | W128: =IF($A128>0,SUMIF('Age profile (years)'!$CT128:$GF128,"<" & R128+0.5,'Asset data'!$CX128:$GJ128),0) -> 0 | X128: =IF($A128>0,SUMIF('Age profile (years)'!$CT128:$GF128,"<" & S128+0.5,'Asset data'!$CX128:$GJ128)-W128,0) -> 0 | Y128: =IF($A128>0,SUMIF('Age profile (years)'!$CT128:$GF128,"<" & T128+0.5,'Asset data'!$CX128:$GJ128)-X128-W128,0) -> 0 | Z128: =IF($A128>0,SUMIF('Age profile (years)'!$CT128:$GF128,"<" & U128+0.5,'Asset data'!$CX128:$GJ128)-Y128-X128-W128,0) -> 0 | AA128: 0 | AB128: 0 | AC128: 0 | AD128: 0 | AE128: 0 | AF128: 0 | AI128: =IF($A128>0,'RRR hist-forc'!K128,0) -> 0 | AJ128: 0
A129: ='Asset data'!A129 -> 0 | B129: ='Asset data'!B129 -> 0 | C129: ='Asset data'!C129 -> 0 | D129: ='Asset data'!E129 -> 0 | E129: 0 | F129: =IF(A129>0,SUM('Asset data'!J129:CV129),0) -> 0 | G129: =IF(A129>0,'Asset data'!F129,0) -> 0 | H129: =IF(A129>0,SUM('Asset data'!CX129:GJ129),0) -> 0 | I129: 0 | J129: 0 | K129: 0 | L129: 0 | M129: =IF($A129>0,SUMPRODUCT('Age profile (years)'!$CT129:$GF129,'Asset data'!$CX129:$GJ129)/H129-0.5,0) -> 0 | N129: 0 | O129: =IF($A129>0,'Asset data'!G129,0) -> 0 | P129: 0 | Q129: 0 | R129: 0 | S129: 0 | T129: 0 | U129: 0 | W129: =IF($A129>0,SUMIF('Age profile (years)'!$CT129:$GF129,"<" & R129+0.5,'Asset data'!$CX129:$GJ129),0) -> 0 | X129: =IF($A129>0,SUMIF('Age profile (years)'!$CT129:$GF129,"<" & S129+0.5,'Asset data'!$CX129:$GJ129)-W129,0) -> 0 | Y129: =IF($A129>0,SUMIF('Age profile (years)'!$CT129:$GF129,"<" & T129+0.5,'Asset data'!$CX129:$GJ129)-X129-W129,0) -> 0 | Z129: =IF($A129>0,SUMIF('Age profile (years)'!$CT129:$GF129,"<" & U129+0.5,'Asset data'!$CX129:$GJ129)-Y129-X129-W129,0) -> 0 | AA129: 0 | AB129: 0 | AC129: 0 | AD129: 0 | AE129: 0 | AF129: 0 | AI129: =IF($A129>0,'RRR hist-forc'!K129,0) -> 0 | AJ129: 0
A130: ='Asset data'!A130 -> 0 | B130: ='Asset data'!B130 -> 0 | C130: ='Asset data'!C130 -> 0 | D130: ='Asset data'!E130 -> 0 | E130: 0 | F130: =IF(A130>0,SUM('Asset data'!J130:CV130),0) -> 0 | G130: =IF(A130>0,'Asset data'!F130,0) -> 0 | H130: =IF(A130>0,SUM('Asset data'!CX130:GJ130),0) -> 0 | I130: 0 | J130: 0 | K130: 0 | L130: 0 | M130: =IF($A130>0,SUMPRODUCT('Age profile (years)'!$CT130:$GF130,'Asset data'!$CX130:$GJ130)/H130-0.5,0) -> 0 | N130: 0 | O130: =IF($A130>0,'Asset data'!G130,0) -> 0 | P130: 0 | Q130: 0 | R130: 0 | S130: 0 | T130: 0 | U130: 0 | W130: =IF($A130>0,SUMIF('Age profile (years)'!$CT130:$GF130,"<" & R130+0.5,'Asset data'!$CX130:$GJ130),0) -> 0 | X130: =IF($A130>0,SUMIF('Age profile (years)'!$CT130:$GF130,"<" & S130+0.5,'Asset data'!$CX130:$GJ130)-W130,0) -> 0 | Y130: =IF($A130>0,SUMIF('Age profile (years)'!$CT130:$GF130,"<" & T130+0.5,'Asset data'!$CX130:$GJ130)-X130-W130,0) -> 0 | Z130: =IF($A130>0,SUMIF('Age profile (years)'!$CT130:$GF130,"<" & U130+0.5,'Asset data'!$CX130:$GJ130)-Y130-X130-W130,0) -> 0 | AA130: 0 | AB130: 0 | AC130: 0 | AD130: 0 | AE130: 0 | AF130: 0 | AI130: =IF($A130>0,'RRR hist-forc'!K130,0) -> 0 | AJ130: 0
A131: ='Asset data'!A131 -> 0 | B131: ='Asset data'!B131 -> 0 | C131: ='Asset data'!C131 -> 0 | D131: ='Asset data'!E131 -> 0 | E131: 0 | F131: =IF(A131>0,SUM('Asset data'!J131:CV131),0) -> 0 | G131: =IF(A131>0,'Asset data'!F131,0) -> 0 | H131: =IF(A131>0,SUM('Asset data'!CX131:GJ131),0) -> 0 | I131: 0 | J131: 0 | K131: 0 | L131: 0 | M131: =IF($A131>0,SUMPRODUCT('Age profile (years)'!$CT131:$GF131,'Asset data'!$CX131:$GJ131)/H131-0.5,0) -> 0 | N131: 0 | O131: =IF($A131>0,'Asset data'!G131,0) -> 0 | P131: 0 | Q131: 0 | R131: 0 | S131: 0 | T131: 0 | U131: 0 | W131: =IF($A131>0,SUMIF('Age profile (years)'!$CT131:$GF131,"<" & R131+0.5,'Asset data'!$CX131:$GJ131),0) -> 0 | X131: =IF($A131>0,SUMIF('Age profile (years)'!$CT131:$GF131,"<" & S131+0.5,'Asset data'!$CX131:$GJ131)-W131,0) -> 0 | Y131: =IF($A131>0,SUMIF('Age profile (years)'!$CT131:$GF131,"<" & T131+0.5,'Asset data'!$CX131:$GJ131)-X131-W131,0) -> 0 | Z131: =IF($A131>0,SUMIF('Age profile (years)'!$CT131:$GF131,"<" & U131+0.5,'Asset data'!$CX131:$GJ131)-Y131-X131-W131,0) -> 0 | AA131: 0 | AB131: 0 | AC131: 0 | AD131: 0 | AE131: 0 | AF131: 0 | AI131: =IF($A131>0,'RRR hist-forc'!K131,0) -> 0 | AJ131: 0
A132: ='Asset data'!A132 -> 0 | B132: ='Asset data'!B132 -> 0 | C132: ='Asset data'!C132 -> 0 | D132: ='Asset data'!E132 -> 0 | E132: 0 | F132: =IF(A132>0,SUM('Asset data'!J132:CV132),0) -> 0 | G132: =IF(A132>0,'Asset data'!F132,0) -> 0 | H132: =IF(A132>0,SUM('Asset data'!CX132:GJ132),0) -> 0 | I132: 0 | J132: 0 | K132: 0 | L132: 0 | M132: =IF($A132>0,SUMPRODUCT('Age profile (years)'!$CT132:$GF132,'Asset data'!$CX132:$GJ132)/H132-0.5,0) -> 0 | N132: 0 | O132: =IF($A132>0,'Asset data'!G132,0) -> 0 | P132: 0 | Q132: 0 | R132: 0 | S132: 0 | T132: 0 | U132: 0 | W132: =IF($A132>0,SUMIF('Age profile (years)'!$CT132:$GF132,"<" & R132+0.5,'Asset data'!$CX132:$GJ132),0) -> 0 | X132: =IF($A132>0,SUMIF('Age profile (years)'!$CT132:$GF132,"<" & S132+0.5,'Asset data'!$CX132:$GJ132)-W132,0) -> 0 | Y132: =IF($A132>0,SUMIF('Age profile (years)'!$CT132:$GF132,"<" & T132+0.5,'Asset data'!$CX132:$GJ132)-X132-W132,0) -> 0 | Z132: =IF($A132>0,SUMIF('Age profile (years)'!$CT132:$GF132,"<" & U132+0.5,'Asset data'!$CX132:$GJ132)-Y132-X132-W132,0) -> 0 | AA132: 0 | AB132: 0 | AC132: 0 | AD132: 0 | AE132: 0 | AF132: 0 | AI132: =IF($A132>0,'RRR hist-forc'!K132,0) -> 0 | AJ132: 0
A133: ='Asset data'!A133 -> 0 | B133: ='Asset data'!B133 -> 0 | C133: ='Asset data'!C133 -> 0 | D133: ='Asset data'!E133 -> 0 | E133: 0 | F133: =IF(A133>0,SUM('Asset data'!J133:CV133),0) -> 0 | G133: =IF(A133>0,'Asset data'!F133,0) -> 0 | H133: =IF(A133>0,SUM('Asset data'!CX133:GJ133),0) -> 0 | I133: 0 | J133: 0 | K133: 0 | L133: 0 | M133: =IF($A133>0,SUMPRODUCT('Age profile (years)'!$CT133:$GF133,'Asset data'!$CX133:$GJ133)/H133-0.5,0) -> 0 | N133: 0 | O133: =IF($A133>0,'Asset data'!G133,0) -> 0 | P133: 0 | Q133: 0 | R133: 0 | S133: 0 | T133: 0 | U133: 0 | W133: =IF($A133>0,SUMIF('Age profile (years)'!$CT133:$GF133,"<" & R133+0.5,'Asset data'!$CX133:$GJ133),0) -> 0 | X133: =IF($A133>0,SUMIF('Age profile (years)'!$CT133:$GF133,"<" & S133+0.5,'Asset data'!$CX133:$GJ133)-W133,0) -> 0 | Y133: =IF($A133>0,SUMIF('Age profile (years)'!$CT133:$GF133,"<" & T133+0.5,'Asset data'!$CX133:$GJ133)-X133-W133,0) -> 0 | Z133: =IF($A133>0,SUMIF('Age profile (years)'!$CT133:$GF133,"<" & U133+0.5,'Asset data'!$CX133:$GJ133)-Y133-X133-W133,0) -> 0 | AA133: 0 | AB133: 0 | AC133: 0 | AD133: 0 | AE133: 0 | AF133: 0 | AI133: =IF($A133>0,'RRR hist-forc'!K133,0) -> 0 | AJ133: 0
A134: ='Asset data'!A134 -> 0 | B134: ='Asset data'!B134 -> 0 | C134: ='Asset data'!C134 -> 0 | D134: ='Asset data'!E134 -> 0 | E134: 0 | F134: =IF(A134>0,SUM('Asset data'!J134:CV134),0) -> 0 | G134: =IF(A134>0,'Asset data'!F134,0) -> 0 | H134: =IF(A134>0,SUM('Asset data'!CX134:GJ134),0) -> 0 | I134: 0 | J134: 0 | K134: 0 | L134: 0 | M134: =IF($A134>0,SUMPRODUCT('Age profile (years)'!$CT134:$GF134,'Asset data'!$CX134:$GJ134)/H134-0.5,0) -> 0 | N134: 0 | O134: =IF($A134>0,'Asset data'!G134,0) -> 0 | P134: 0 | Q134: 0 | R134: 0 | S134: 0 | T134: 0 | U134: 0 | W134: =IF($A134>0,SUMIF('Age profile (years)'!$CT134:$GF134,"<" & R134+0.5,'Asset data'!$CX134:$GJ134),0) -> 0 | X134: =IF($A134>0,SUMIF('Age profile (years)'!$CT134:$GF134,"<" & S134+0.5,'Asset data'!$CX134:$GJ134)-W134,0) -> 0 | Y134: =IF($A134>0,SUMIF('Age profile (years)'!$CT134:$GF134,"<" & T134+0.5,'Asset data'!$CX134:$GJ134)-X134-W134,0) -> 0 | Z134: =IF($A134>0,SUMIF('Age profile (years)'!$CT134:$GF134,"<" & U134+0.5,'Asset data'!$CX134:$GJ134)-Y134-X134-W134,0) -> 0 | AA134: 0 | AB134: 0 | AC134: 0 | AD134: 0 | AE134: 0 | AF134: 0 | AI134: =IF($A134>0,'RRR hist-forc'!K134,0) -> 0 | AJ134: 0
A135: ='Asset data'!A135 -> 0 | B135: ='Asset data'!B135 -> 0 | C135: ='Asset data'!C135 -> 0 | D135: ='Asset data'!E135 -> 0 | E135: 0 | F135: =IF(A135>0,SUM('Asset data'!J135:CV135),0) -> 0 | G135: =IF(A135>0,'Asset data'!F135,0) -> 0 | H135: =IF(A135>0,SUM('Asset data'!CX135:GJ135),0) -> 0 | I135: 0 | J135: 0 | K135: 0 | L135: 0 | M135: =IF($A135>0,SUMPRODUCT('Age profile (years)'!$CT135:$GF135,'Asset data'!$CX135:$GJ135)/H135-0.5,0) -> 0 | N135: 0 | O135: =IF($A135>0,'Asset data'!G135,0) -> 0 | P135: 0 | Q135: 0 | R135: 0 | S135: 0 | T135: 0 | U135: 0 | W135: =IF($A135>0,SUMIF('Age profile (years)'!$CT135:$GF135,"<" & R135+0.5,'Asset data'!$CX135:$GJ135),0) -> 0 | X135: =IF($A135>0,SUMIF('Age profile (years)'!$CT135:$GF135,"<" & S135+0.5,'Asset data'!$CX135:$GJ135)-W135,0) -> 0 | Y135: =IF($A135>0,SUMIF('Age profile (years)'!$CT135:$GF135,"<" & T135+0.5,'Asset data'!$CX135:$GJ135)-X135-W135,0) -> 0 | Z135: =IF($A135>0,SUMIF('Age profile (years)'!$CT135:$GF135,"<" & U135+0.5,'Asset data'!$CX135:$GJ135)-Y135-X135-W135,0) -> 0 | AA135: 0 | AB135: 0 | AC135: 0 | AD135: 0 | AE135: 0 | AF135: 0 | AI135: =IF($A135>0,'RRR hist-forc'!K135,0) -> 0 | AJ135: 0
A136: ='Asset data'!A136 -> 0 | B136: ='Asset data'!B136 -> 0 | C136: ='Asset data'!C136 -> 0 | D136: ='Asset data'!E136 -> 0 | E136: 0 | F136: =IF(A136>0,SUM('Asset data'!J136:CV136),0) -> 0 | G136: =IF(A136>0,'Asset data'!F136,0) -> 0 | H136: =IF(A136>0,SUM('Asset data'!CX136:GJ136),0) -> 0 | I136: 0 | J136: 0 | K136: 0 | L136: 0 | M136: =IF($A136>0,SUMPRODUCT('Age profile (years)'!$CT136:$GF136,'Asset data'!$CX136:$GJ136)/H136-0.5,0) -> 0 | N136: 0 | O136: =IF($A136>0,'Asset data'!G136,0) -> 0 | P136: 0 | Q136: 0 | R136: 0 | S136: 0 | T136: 0 | U136: 0 | W136: =IF($A136>0,SUMIF('Age profile (years)'!$CT136:$GF136,"<" & R136+0.5,'Asset data'!$CX136:$GJ136),0) -> 0 | X136: =IF($A136>0,SUMIF('Age profile (years)'!$CT136:$GF136,"<" & S136+0.5,'Asset data'!$CX136:$GJ136)-W136,0) -> 0 | Y136: =IF($A136>0,SUMIF('Age profile (years)'!$CT136:$GF136,"<" & T136+0.5,'Asset data'!$CX136:$GJ136)-X136-W136,0) -> 0 | Z136: =IF($A136>0,SUMIF('Age profile (years)'!$CT136:$GF136,"<" & U136+0.5,'Asset data'!$CX136:$GJ136)-Y136-X136-W136,0) -> 0 | AA136: 0 | AB136: 0 | AC136: 0 | AD136: 0 | AE136: 0 | AF136: 0 | AI136: =IF($A136>0,'RRR hist-forc'!K136,0) -> 0 | AJ136: 0
A137: ='Asset data'!A137 -> 0 | B137: ='Asset data'!B137 -> 0 | C137: ='Asset data'!C137 -> 0 | D137: ='Asset data'!E137 -> 0 | E137: 0 | F137: =IF(A137>0,SUM('Asset data'!J137:CV137),0) -> 0 | G137: =IF(A137>0,'Asset data'!F137,0) -> 0 | H137: =IF(A137>0,SUM('Asset data'!CX137:GJ137),0) -> 0 | I137: 0 | J137: 0 | K137: 0 | L137: 0 | M137: =IF($A137>0,SUMPRODUCT('Age profile (years)'!$CT137:$GF137,'Asset data'!$CX137:$GJ137)/H137-0.5,0) -> 0 | N137: 0 | O137: =IF($A137>0,'Asset data'!G137,0) -> 0 | P137: 0 | Q137: 0 | R137: 0 | S137: 0 | T137: 0 | U137: 0 | W137: =IF($A137>0,SUMIF('Age profile (years)'!$CT137:$GF137,"<" & R137+0.5,'Asset data'!$CX137:$GJ137),0) -> 0 | X137: =IF($A137>0,SUMIF('Age profile (years)'!$CT137:$GF137,"<" & S137+0.5,'Asset data'!$CX137:$GJ137)-W137,0) -> 0 | Y137: =IF($A137>0,SUMIF('Age profile (years)'!$CT137:$GF137,"<" & T137+0.5,'Asset data'!$CX137:$GJ137)-X137-W137,0) -> 0 | Z137: =IF($A137>0,SUMIF('Age profile (years)'!$CT137:$GF137,"<" & U137+0.5,'Asset data'!$CX137:$GJ137)-Y137-X137-W137,0) -> 0 | AA137: 0 | AB137: 0 | AC137: 0 | AD137: 0 | AE137: 0 | AF137: 0 | AI137: =IF($A137>0,'RRR hist-forc'!K137,0) -> 0 | AJ137: 0
A138: ='Asset data'!A138 -> 0 | B138: ='Asset data'!B138 -> 0 | C138: ='Asset data'!C138 -> 0 | D138: ='Asset data'!E138 -> 0 | E138: 0 | F138: =IF(A138>0,SUM('Asset data'!J138:CV138),0) -> 0 | G138: =IF(A138>0,'Asset data'!F138,0) -> 0 | H138: =IF(A138>0,SUM('Asset data'!CX138:GJ138),0) -> 0 | I138: 0 | J138: 0 | K138: 0 | L138: 0 | M138: =IF($A138>0,SUMPRODUCT('Age profile (years)'!$CT138:$GF138,'Asset data'!$CX138:$GJ138)/H138-0.5,0) -> 0 | N138: 0 | O138: =IF($A138>0,'Asset data'!G138,0) -> 0 | P138: 0 | Q138: 0 | R138: 0 | S138: 0 | T138: 0 | U138: 0 | W138: =IF($A138>0,SUMIF('Age profile (years)'!$CT138:$GF138,"<" & R138+0.5,'Asset data'!$CX138:$GJ138),0) -> 0 | X138: =IF($A138>0,SUMIF('Age profile (years)'!$CT138:$GF138,"<" & S138+0.5,'Asset data'!$CX138:$GJ138)-W138,0) -> 0 | Y138: =IF($A138>0,SUMIF('Age profile (years)'!$CT138:$GF138,"<" & T138+0.5,'Asset data'!$CX138:$GJ138)-X138-W138,0) -> 0 | Z138: =IF($A138>0,SUMIF('Age profile (years)'!$CT138:$GF138,"<" & U138+0.5,'Asset data'!$CX138:$GJ138)-Y138-X138-W138,0) -> 0 | AA138: 0 | AB138: 0 | AC138: 0 | AD138: 0 | AE138: 0 | AF138: 0 | AI138: =IF($A138>0,'RRR hist-forc'!K138,0) -> 0 | AJ138: 0
A139: ='Asset data'!A139 -> 0 | B139: ='Asset data'!B139 -> 0 | C139: ='Asset data'!C139 -> 0 | D139: ='Asset data'!E139 -> 0 | E139: 0 | F139: =IF(A139>0,SUM('Asset data'!J139:CV139),0) -> 0 | G139: =IF(A139>0,'Asset data'!F139,0) -> 0 | H139: =IF(A139>0,SUM('Asset data'!CX139:GJ139),0) -> 0 | I139: 0 | J139: 0 | K139: 0 | L139: 0 | M139: =IF($A139>0,SUMPRODUCT('Age profile (years)'!$CT139:$GF139,'Asset data'!$CX139:$GJ139)/H139-0.5,0) -> 0 | N139: 0 | O139: =IF($A139>0,'Asset data'!G139,0) -> 0 | P139: 0 | Q139: 0 | R139: 0 | S139: 0 | T139: 0 | U139: 0 | W139: =IF($A139>0,SUMIF('Age profile (years)'!$CT139:$GF139,"<" & R139+0.5,'Asset data'!$CX139:$GJ139),0) -> 0 | X139: =IF($A139>0,SUMIF('Age profile (years)'!$CT139:$GF139,"<" & S139+0.5,'Asset data'!$CX139:$GJ139)-W139,0) -> 0 | Y139: =IF($A139>0,SUMIF('Age profile (years)'!$CT139:$GF139,"<" & T139+0.5,'Asset data'!$CX139:$GJ139)-X139-W139,0) -> 0 | Z139: =IF($A139>0,SUMIF('Age profile (years)'!$CT139:$GF139,"<" & U139+0.5,'Asset data'!$CX139:$GJ139)-Y139-X139-W139,0) -> 0 | AA139: 0 | AB139: 0 | AC139: 0 | AD139: 0 | AE139: 0 | AF139: 0 | AI139: =IF($A139>0,'RRR hist-forc'!K139,0) -> 0 | AJ139: 0
A140: ='Asset data'!A140 -> 0 | B140: ='Asset data'!B140 -> 0 | C140: ='Asset data'!C140 -> 0 | D140: ='Asset data'!E140 -> 0 | E140: 0 | F140: =IF(A140>0,SUM('Asset data'!J140:CV140),0) -> 0 | G140: =IF(A140>0,'Asset data'!F140,0) -> 0 | H140: =IF(A140>0,SUM('Asset data'!CX140:GJ140),0) -> 0 | I140: 0 | J140: 0 | K140: 0 | L140: 0 | M140: =IF($A140>0,SUMPRODUCT('Age profile (years)'!$CT140:$GF140,'Asset data'!$CX140:$GJ140)/H140-0.5,0) -> 0 | N140: 0 | O140: =IF($A140>0,'Asset data'!G140,0) -> 0 | P140: 0 | Q140: 0 | R140: 0 | S140: 0 | T140: 0 | U140: 0 | W140: =IF($A140>0,SUMIF('Age profile (years)'!$CT140:$GF140,"<" & R140+0.5,'Asset data'!$CX140:$GJ140),0) -> 0 | X140: =IF($A140>0,SUMIF('Age profile (years)'!$CT140:$GF140,"<" & S140+0.5,'Asset data'!$CX140:$GJ140)-W140,0) -> 0 | Y140: =IF($A140>0,SUMIF('Age profile (years)'!$CT140:$GF140,"<" & T140+0.5,'Asset data'!$CX140:$GJ140)-X140-W140,0) -> 0 | Z140: =IF($A140>0,SUMIF('Age profile (years)'!$CT140:$GF140,"<" & U140+0.5,'Asset data'!$CX140:$GJ140)-Y140-X140-W140,0) -> 0 | AA140: 0 | AB140: 0 | AC140: 0 | AD140: 0 | AE140: 0 | AF140: 0 | AI140: =IF($A140>0,'RRR hist-forc'!K140,0) -> 0 | AJ140: 0
A141: ='Asset data'!A141 -> 0 | B141: ='Asset data'!B141 -> 0 | C141: ='Asset data'!C141 -> 0 | D141: ='Asset data'!E141 -> 0 | E141: 0 | F141: =IF(A141>0,SUM('Asset data'!J141:CV141),0) -> 0 | G141: =IF(A141>0,'Asset data'!F141,0) -> 0 | H141: =IF(A141>0,SUM('Asset data'!CX141:GJ141),0) -> 0 | I141: 0 | J141: 0 | K141: 0 | L141: 0 | M141: =IF($A141>0,SUMPRODUCT('Age profile (years)'!$CT141:$GF141,'Asset data'!$CX141:$GJ141)/H141-0.5,0) -> 0 | N141: 0 | O141: =IF($A141>0,'Asset data'!G141,0) -> 0 | P141: 0 | Q141: 0 | R141: 0 | S141: 0 | T141: 0 | U141: 0 | W141: =IF($A141>0,SUMIF('Age profile (years)'!$CT141:$GF141,"<" & R141+0.5,'Asset data'!$CX141:$GJ141),0) -> 0 | X141: =IF($A141>0,SUMIF('Age profile (years)'!$CT141:$GF141,"<" & S141+0.5,'Asset data'!$CX141:$GJ141)-W141,0) -> 0 | Y141: =IF($A141>0,SUMIF('Age profile (years)'!$CT141:$GF141,"<" & T141+0.5,'Asset data'!$CX141:$GJ141)-X141-W141,0) -> 0 | Z141: =IF($A141>0,SUMIF('Age profile (years)'!$CT141:$GF141,"<" & U141+0.5,'Asset data'!$CX141:$GJ141)-Y141-X141-W141,0) -> 0 | AA141: 0 | AB141: 0 | AC141: 0 | AD141: 0 | AE141: 0 | AF141: 0 | AI141: =IF($A141>0,'RRR hist-forc'!K141,0) -> 0 | AJ141: 0
A142: ='Asset data'!A142 -> 0 | B142: ='Asset data'!B142 -> 0 | C142: ='Asset data'!C142 -> 0 | D142: ='Asset data'!E142 -> 0 | E142: 0 | F142: =IF(A142>0,SUM('Asset data'!J142:CV142),0) -> 0 | G142: =IF(A142>0,'Asset data'!F142,0) -> 0 | H142: =IF(A142>0,SUM('Asset data'!CX142:GJ142),0) -> 0 | I142: 0 | J142: 0 | K142: 0 | L142: 0 | M142: =IF($A142>0,SUMPRODUCT('Age profile (years)'!$CT142:$GF142,'Asset data'!$CX142:$GJ142)/H142-0.5,0) -> 0 | N142: 0 | O142: =IF($A142>0,'Asset data'!G142,0) -> 0 | P142: 0 | Q142: 0 | R142: 0 | S142: 0 | T142: 0 | U142: 0 | W142: =IF($A142>0,SUMIF('Age profile (years)'!$CT142:$GF142,"<" & R142+0.5,'Asset data'!$CX142:$GJ142),0) -> 0 | X142: =IF($A142>0,SUMIF('Age profile (years)'!$CT142:$GF142,"<" & S142+0.5,'Asset data'!$CX142:$GJ142)-W142,0) -> 0 | Y142: =IF($A142>0,SUMIF('Age profile (years)'!$CT142:$GF142,"<" & T142+0.5,'Asset data'!$CX142:$GJ142)-X142-W142,0) -> 0 | Z142: =IF($A142>0,SUMIF('Age profile (years)'!$CT142:$GF142,"<" & U142+0.5,'Asset data'!$CX142:$GJ142)-Y142-X142-W142,0) -> 0 | AA142: 0 | AB142: 0 | AC142: 0 | AD142: 0 | AE142: 0 | AF142: 0 | AI142: =IF($A142>0,'RRR hist-forc'!K142,0) -> 0 | AJ142: 0
AI206: =IF($A206>0,'RRR hist-forc'!K206,0) -> 0 | AJ206: =IF($A206>0,AI206*H206,0) -> 0

Sheet Asset data
A1: Meth all | D1: 3 | E1: =IF(D1=2,"all normal",IF(D1=1,"all deterministic","individual")) -> individual | L1: Profile type: | M1: 3 | N1: =VLOOKUP(APtype,IDtable,4) -> Installation date
F3: Unit | J3: Quantities | CX3: Replacement Cost (NOT depreciated)
F4: Cost | G4: Replacement life | I4: Rep | J4: =VLOOKUP(APtype,IDtable,4) -> Installation date | CX4: =VLOOKUP(APtype,IDtable,4) -> Installation date
A5: ID | B5: ID | C5: ID | D5: Asset category | E5: Asset ID | F5: $ ('000) | G5: mean | H5: SD | I5: Meth | J5: =IF(OR(APtype=1,APtype=2),0,IF(APtype=3,Now,9999)) -> 2014 | K5: =IF(OR(APtype=1,APtype=2),J5+1,IF(APtype=3,J5-1,9999)) -> 2013 | L5: 2012 | M5: 2011 | N5: 2010 | O5: 2009 | P5: 2008 | Q5: 2007 | R5: 2006 | S5: 2005 | T5: 2004 | U5: 2003 | V5: 2002 | W5: 2001 | X5: 2000 | Y5: 1999 | Z5: 1998 | AA5: 1997 | AB5: 1996 | AC5: 1995 | AD5: 1994 | AE5: 1993 | AF5: 1992 | AG5: 1991 | AH5: 1990 | AI5: 1989 | AJ5: 1988 | AK5: 1987 | AL5: 1986 | AM5: 1985 | AN5: 1984 | AO5: 1983 | AP5: 1982 | AQ5: =IF(OR(APtype=1,APtype=2),AP5+1,IF(APtype=3,AP5-1,9999)) -> 1981 | AR5: 1980 | AS5: 1979 | AT5: 1978 | AU5: 1977 | AV5: 1976 | AW5: 1975 | AX5: 1974 | AY5: 1973 | AZ5: 1972 | BA5: 1971 | BB5: 1970 | BC5: 1969 | BD5: 1968 | BE5: 1967 | BF5: 1966 | BG5: 1965 | BH5: 1964 | BI5: 1963 | BJ5: 1962 | BK5: 1961 | BL5: 1960 | BM5: 1959 | BN5: 1958 | BO5: 1957 | BP5: 1956 | BQ5: 1955 | BR5: 1954 | BS5: 1953 | BT5: 1952 | BU5: 1951 | BV5: 1950 | BW5: =IF(OR(APtype=1,APtype=2),BV5+1,IF(APtype=3,BV5-1,9999)) -> 1949 | BX5: 1948 | BY5: 1947 | BZ5: 1946 | CA5: 1945 | CB5: 1944 | CC5: 1943 | CD5: 1942 | CE5: 1941 | CF5: 1940 | CG5: 1939 | CH5: 1938 | CI5: 1937 | CJ5: 1936 | CK5: 1935 | CL5: 1934 | CM5: 1933 | CN5: 1932 | CO5: 1931 | CP5: 1930 | CQ5: 1929 | CR5: 1928 | CS5: 1927 | CT5: 1926 | CU5: 1925 | CV5: 1924 | CX5: =J5 -> 2014 | CY5: =K5 -> 2013 | CZ5: 2012 | DA5: 2011 | DB5: 2010 | DC5: 2009 | DD5: 2008 | DE5: 2007 | DF5: 2006 | DG5: 2005 | DH5: 2004 | DI5: 2003 | DJ5: 2002 | DK5: 2001 | DL5: 2000 | DM5: 1999 | DN5: 1998 | DO5: 1997 | DP5: 1996 | DQ5: 1995 | DR5: 1994 | DS5: 1993 | DT5: 1992 | DU5: 1991 | DV5: 1990 | DW5: 1989 | DX5: 1988 | DY5: 1987 | DZ5: 1986 | EA5: 1985 | EB5: 1984 | EC5: 1983 | ED5: 1982 | EE5: 1981 | EF5: 1980 | EG5: 1979 | EH5: 1978 | EI5: 1977 | EJ5: 1976 | EK5: 1975 | EL5: 1974 | EM5: 1973 | EN5: 1972 | EO5: 1971 | EP5: 1970 | EQ5: 1969 | ER5: 1968 | ES5: 1967 | ET5: 1966 | EU5: 1965 | EV5: 1964 | EW5: 1963 | EX5: 1962 | EY5: 1961 | EZ5: 1960 | FA5: 1959 | FB5: 1958 | FC5: 1957 | FD5: 1956 | FE5: 1955 | FF5: 1954 | FG5: 1953 | FH5: 1952 | FI5: 1951 | FJ5: 1950 | FK5: =BW5 -> 1949 | FL5: 1948 | FM5: 1947 | FN5: 1946 | FO5: 1945 | FP5: 1944 | FQ5: 1943 | FR5: 1942 | FS5: 1941 | FT5: 1940 | FU5: 1939 | FV5: 1938 | FW5: 1937 | FX5: 1936 | FY5: 1935 | FZ5: 1934 | GA5: 1933 | GB5: 1932 | GC5: 1931 | GD5: 1930 | GE5: 1929 | GF5: 1928 | GG5: 1927 | GH5: 1926 | GI5: 1925 | GJ5: 1924
A21: 1 | D21: POLES | E21: Staking of a wooden pole | F21: 11.75597575 | G21: 32.24861145 | H21: 5.678786089 | I21: 2 | J21: 1066 | K21: 1309 | L21: 1133 | M21: 847 | N21: 802 | O21: 512 | P21: 698 | Q21: 1061 | R21: 869 | S21: 966 | T21: 658 | U21: 607 | V21: 560 | W21: 366 | X21: 209 | Y21: 231 | Z21: 163 | AA21: 1679 | AB21: 1495 | AC21: 789 | AD21: 690 | AE21: 495 | AF21: 571 | AG21: 967 | AH21: 1070 | AI21: 1660 | AJ21: 415 | AK21: 146 | AL21: 75 | AM21: 103 | AN21: 59 | AO21: 52 | AP21: 55 | AQ21: 56 | AR21: 58 | AS21: 0 | AT21: 0 | AU21: 0 | AV21: 0 | AW21: 0 | AX21: 0 | AY21: 0 | AZ21: 0 | BA21: 0 | BB21: 0 | BC21: 0 | BD21: 0 | BE21: 0 | BF21: 0 | BG21: 0 | BH21: 0 | BI21: 0 | BJ21: 0 | BK21: 0 | BL21: 0 | BM21: 0 | BN21: 0 | BO21: 0 | BP21: 0 | BQ21: 0 | BR21: 0 | BS21: 0 | BT21: 0 | BU21: 0 | BV21: 0 | BW21: 0 | BX21: 0 | BY21: 0 | BZ21: 0 | CA21: 0 | CB21: 0 | CC21: 0 | CD21: 0 | CE21: 0 | CF21: 0 | CG21: 0 | CH21: 0 | CI21: 0 | CJ21: 0 | CK21: 0 | CL21: 0 | CM21: 0 | CN21: 0 | CO21: 0 | CP21: 0 | CQ21: 0 | CR21: 0 | CS21: 0 | CT21: 0 | CU21: 0 | CV21: 0 | CX21: =$F21*J21 -> 12531.87015 | CY21: =$F21*K21 -> 15388.57226 | CZ21: 13319.52053 | DA21: 9957.311463 | DB21: 9428.292554 | DC21: 6019.059586 | DD21: 8205.671076 | DE21: 12473.09027 | DF21: 10215.94293 | DG21: 11356.27258 | DH21: 7735.432046 | DI21: 7135.877282 | DJ21: 6583.346422 | DK21: 4302.687126 | DL21: 2456.998932 | DM21: 2715.630399 | DN21: 1916.224048 | DO21: 19738.28329 | DP21: 17575.18375 | DQ21: 9275.464869 | DR21: 8111.62327 | DS21: 5819.207998 | DT21: 6712.662155 | DU21: 11368.02855 | DV21: 12578.89406 | DW21: 19514.91975 | DX21: 4878.729938 | DY21: 1716.37246 | DZ21: 881.6981815 | EA21: 1210.865503 | EB21: 693.6025694 | EC21: 611.3107392 | ED21: 646.5786664 | EE21: 658.3346422 | EF21: 681.8465937 | EG21: 0 | EH21: 0 | EI21: 0 | EJ21: 0 | EK21: 0 | EL21: 0 | EM21: 0 | EN21: 0 | EO21: 0 | EP21: 0 | EQ21: 0 | ER21: 0 | ES21: 0 | ET21: 0 | EU21: 0 | EV21: 0 | EW21: 0 | EX21: 0 | EY21: 0 | EZ21: 0 | FA21: 0 | FB21: 0 | FC21: 0 | FD21: 0 | FE21: 0 | FF21: 0 | FG21: 0 | FH21: 0 | FI21: 0 | FJ21: 0 | FK21: =$F21*BW21 -> 0 | FL21: 0 | FM21: 0 | FN21: 0 | FO21: 0 | FP21: 0 | FQ21: 0 | FR21: 0 | FS21: 0 | FT21: 0 | FU21: 0 | FV21: 0 | FW21: 0 | FX21: 0 | FY21: 0 | FZ21: 0 | GA21: 0 | GB21: 0 | GC21: 0 | GD21: 0 | GE21: 0 | GF21: 0 | GG21: 0 | GH21: 0 | GI21: 0 | GJ21: 0
A22: 1 | D22: POLES | E22: ˂ = 1 kV; Wood | F22: 6.599666931 | G22: 71.41003052 | H22: 8.450445581 | I22: 2 | J22: 300 | K22: 417 | L22: 449 | M22: 289 | N22: 393 | O22: 663 | P22: 383 | Q22: 463 | R22: 459 | S22: 630 | T22: 592 | U22: 568 | V22: 482 | W22: 758 | X22: 653 | Y22: 438 | Z22: 50 | AA22: 20 | AB22: 15 | AC22: 8 | AD22: 4 | AE22: 20 | AF22: 17 | AG22: 38 | AH22: 395 | AI22: 1249 | AJ22: 1233 | AK22: 1090 | AL22: 3214 | AM22: 2147 | AN22: 2523 | AO22: 1927 | AP22: 1846 | AQ22: 2016 | AR22: 3695 | AS22: 1879 | AT22: 2259 | AU22: 1849 | AV22: 3538 | AW22: 3185 | AX22: 2581 | AY22: 3219 | AZ22: 2705 | BA22: 2159 | BB22: 2378 | BC22: 3236 | BD22: 3156 | BE22: 3253 | BF22: 2241 | BG22: 2575 | BH22: 2581 | BI22: 1548 | BJ22: 1788 | BK22: 1581 | BL22: 1484 | BM22: 1185 | BN22: 1115 | BO22: 1181 | BP22: 322 | BQ22: 469 | BR22: 420 | BS22: 463 | BT22: 594 | BU22: 446 | BV22: 768 | BW22: 298 | BX22: 198 | BY22: 150 | BZ22: 136 | CA22: 105 | CB22: 35 | CC22: 29 | CD22: 130 | CE22: 400 | CF22: 918 | CG22: 496 | CH22: 857 | CI22: 234 | CJ22: 181 | CK22: 68 | CL22: 137 | CM22: 71 | CN22: 28 | CO22: 16 | CP22: 21 | CQ22: 0 | CR22: 0 | CS22: 0 | CT22: 0 | CU22: 0 | CV22: 0 | CX22: =$F22*J22 -> 1979.900079 | CY22: =$F22*K22 -> 2752.06111 | CZ22: =$F22*L22 -> 2963.250452 | DA22: =$F22*M22 -> 1907.303743 | DB22: =$F22*N22 -> 2593.669104 | DC22: =$F22*O22 -> 4375.579175 | DD22: =$F22*P22 -> 2527.672435 | DE22: =$F22*Q22 -> 3055.645789 | DF22: =$F22*R22 -> 3029.247121 | DG22: =$F22*S22 -> 4157.790166 | DH22: =$F22*T22 -> 3907.002823 | DI22: =$F22*U22 -> 3748.610817 | DJ22: =$F22*V22 -> 3181.039461 | DK22: =$F22*W22 -> 5002.547534 | DL22: =$F22*X22 -> 4309.582506 | DM22: =$F22*Y22 -> 2890.654116 | DN22: =$F22*Z22 -> 329.9833465 | DO22: =$F22*AA22 -> 131.9933386 | DP22: =$F22*AB22 -> 98.99500396 | DQ22: =$F22*AC22 -> 52.79733545 | DR22: =$F22*AD22 -> 26.39866772 | DS22: =$F22*AE22 -> 131.9933386 | DT22: =$F22*AF22 -> 112.1943378 | DU22: =$F22*AG22 -> 250.7873434 | DV22: =$F22*AH22 -> 2606.868438 | DW22: =$F22*AI22 -> 8242.983997 | DX22: =$F22*AJ22 -> 8137.389326 | DY22: =$F22*AK22 -> 7193.636955 | DZ22: =$F22*AL22 -> 21211.32952 | EA22: =$F22*AM22 -> 14169.4849 | EB22: =$F22*AN22 -> 16650.95967 | EC22: =$F22*AO22 -> 12717.55818 | ED22: =$F22*AP22 -> 12182.98515 | EE22: =$F22*AQ22 -> 13304.92853 | EF22: =$F22*AR22 -> 24385.76931 | EG22: =$F22*AS22 -> 12400.77416 | EH22: =$F22*AT22 -> 14908.6476 | EI22: =$F22*AU22 -> 12202.78416 | EJ22: =$F22*AV22 -> 23349.6216 | EK22: =$F22*AW22 -> 21019.93917 | EL22: =$F22*AX22 -> 17033.74035 | EM22: =$F22*AY22 -> 21244.32785 | EN22: =$F22*AZ22 -> 17852.09905 | EO22: =$F22*BA22 -> 14248.6809 | EP22: =$F22*BB22 -> 15694.00796 | EQ22: =$F22*BC22 -> 21356.52219 | ER22: =$F22*BD22 -> 20828.54883 | ES22: =$F22*BE22 -> 21468.71653 | ET22: =$F22*BF22 -> 14789.85359 | EU22: =$F22*BG22 -> 16994.14235 | EV22: =$F22*BH22 -> 17033.74035 | EW22: =$F22*BI22 -> 10216.28441 | EX22: =$F22*BJ22 -> 11800.20447 | EY22: =$F22*BK22 -> 10434.07342 | EZ22: =$F22*BL22 -> 9793.905725 | FA22: =$F22*BM22 -> 7820.605313 | FB22: =$F22*BN22 -> 7358.628628 | FC22: =$F22*BO22 -> 7794.206645 | FD22: =$F22*BP22 -> 2125.092752 | FE22: =$F22*BQ22 -> 3095.243791 | FF22: =$F22*BR22 -> 2771.860111 | FG22: =$F22*BS22 -> 3055.645789 | FH22: =$F22*BT22 -> 3920.202157 | FI22: =$F22*BU22 -> 2943.451451 | FJ22: =$F22*BV22 -> 5068.544203 | FK22: =$F22*BW22 -> 1966.700745 | FL22: =$F22*BX22 -> 1306.734052 | FM22: =$F22*BY22 -> 989.9500396 | FN22: =$F22*BZ22 -> 897.5547026 | FO22: =$F22*CA22 -> 692.9650277 | FP22: =$F22*CB22 -> 230.9883426 | FQ22: =$F22*CC22 -> 191.390341 | FR22: =$F22*CD22 -> 857.956701 | FS22: =$F22*CE22 -> 2639.866772 | FT22: =$F22*CF22 -> 6058.494243 | FU22: =$F22*CG22 -> 3273.434798 | FV22: =$F22*CH22 -> 5655.91456 | FW22: =$F22*CI22 -> 1544.322062 | FX22: =$F22*CJ22 -> 1194.539714 | FY22: =$F22*CK22 -> 448.7773513 | FZ22: =$F22*CL22 -> 904.1543695 | GA22: =$F22*CM22 -> 468.5763521 | GB22: =$F22*CN22 -> 184.7906741 | GC22: =$F22*CO22 -> 105.5946709 | GD22: =$F22*CP22 -> 138.5930055 | GE22: =$F22*CQ22 -> 0 | GF22: =$F22*CR22 -> 0 | GG22: =$F22*CS22 -> 0 | GH22: =$F22*CT22 -> 0 | GI22: =$F22*CU22 -> 0 | GJ22: =$F22*CV22 -> 0
A23: 1 | D23: POLES | E23: > 1 kV & < = 11 kV; Wood | F23: 6.353750566 | G23: 72.69663815 | H23: 8.526232354 | I23: 2 | J23: 12 | K23: 19 | L23: 10 | M23: 7 | N23: 2 | O23: 7 | P23: 10 | Q23: 7 | R23: 10 | S23: 5 | T23: 13 | U23: 7 | V23: 5 | W23: 10 | X23: 6 | Y23: 2 | Z23: 2 | AA23: 3 | AB23: 8 | AC23: 3 | AD23: 0 | AE23: 9 | AF23: 0 | AG23: 6 | AH23: 33 | AI23: 15 | AJ23: 7 | AK23: 8 | AL23: 4 | AM23: 20 | AN23: 20 | AO23: 19 | AP23: 3 | AQ23: 4 | AR23: 16 | AS23: 5 | AT23: 30 | AU23: 11 | AV23: 3 | AW23: 9 | AX23: 12 | AY23: 9 | AZ23: 18 | BA23: 7 | BB23: 22 | BC23: 9 | BD23: 17 | BE23: 13 | BF23: 33 | BG23: 18 | BH23: 5 | BI23: 11 | BJ23: 15 | BK23: 20 | BL23: 11 | BM23: 23 | BN23: 10 | BO23: 4 | BP23: 0 | BQ23: 0 | BR23: 7 | BS23: 2 | BT23: 0 | BU23: 2 | BV23: 4 | BW23: 0 | BX23: 0 | BY23: 0 | BZ23: 2 | CA23: 0 | CB23: 0 | CC23: 0 | CD23: 0 | CE23: 9 | CF23: 3 | CG23: 3 | CH23: 3 | CI23: 0 | CJ23: 0 | CK23: 0 | CL23: 0 | CM23: 0 | CN23: 0 | CO23: 0 | CP23: 0 | CQ23: 0 | CR23: 0 | CS23: 0 | CT23: 0 | CU23: 0 | CV23: 0 | CX23: 76.2450068 | CY23: 120.7212608 | CZ23: 63.53750566 | DA23: 44.47625396 | DB23: 12.70750113 | DC23: 44.47625396 | DD23: 63.53750566 | DE23: 44.47625396 | DF23: 63.53750566 | DG23: 31.76875283 | DH23: 82.59875736 | DI23: 44.47625396 | DJ23: 31.76875283 | DK23: 63.53750566 | DL23: 38.1225034 | DM23: 12.70750113 | DN23: 12.70750113 | DO23: 19.0612517 | DP23: 50.83000453 | DQ23: 19.0612517 | DR23: 0 | DS23: 57.1837551 | DT23: 0 | DU23: 38.1225034 | DV23: 209.6737687 | DW23: 95.30625849 | DX23: 44.47625396 | DY23: 50.83000453 | DZ23: 25.41500227 | EA23: 127.0750113 | EB23: 127.0750113 | EC23: 120.7212608 | ED23: 19.0612517 | EE23: 25.41500227 | EF23: 101.6600091 | EG23: 31.76875283 | EH23: 190.612517 | EI23: 69.89125623 | EJ23: 19.0612517 | EK23: 57.1837551 | EL23: 76.2450068 | EM23: 57.1837551 | EN23: 114.3675102 | EO23: 44.47625396 | EP23: 139.7825125 | EQ23: 57.1837551 | ER23: 108.0137596 | ES23: 82.59875736 | ET23: 209.6737687 | EU23: 114.3675102 | EV23: 31.76875283 | EW23: 69.89125623 | EX23: 95.30625849 | EY23: 127.0750113 | EZ23: 69.89125623 | FA23: 146.136263 | FB23: 63.53750566 | FC23: 25.41500227 | FD23: 0 | FE23: 0 | FF23: 44.47625396 | FG23: 12.70750113 | FH23: 0 | FI23: 12.70750113 | FJ23: 25.41500227 | FK23: 0 | FL23: 0 | FM23: 0 | FN23: 12.70750113 | FO23: 0 | FP23: 0 | FQ23: 0 | FR23: 0 | FS23: 57.1837551 | FT23: 19.0612517 | FU23: 19.0612517 | FV23: 19.0612517 | FW23: 0 | FX23: 0 | FY23: 0 | FZ23: 0 | GA23: 0 | GB23: 0 | GC23: 0 | GD23: 0 | GE23: 0 | GF23: 0 | GG23: 0 | GH23: 0 | GI23: 0 | GJ23: 0
A24: 1 | D24: POLES | E24: ˃ 11 kV & < = 22 kV; Wood | F24: 6.612079129 | G24: 71.16618666 | H24: 8.436005373 | I24: 2 | J24: 814 | K24: 1394 | L24: 1568 | M24: 1215 | N24: 1199 | O24: 1729 | P24: 1615 | Q24: 1750 | R24: 1821 | S24: 2674 | T24: 3196 | U24: 2715 | V24: 2103 | W24: 3721 | X24: 3292 | Y24: 1915 | Z24: 356 | AA24: 164 | AB24: 122 | AC24: 171 | AD24: 157 | AE24: 540 | AF24: 111 | AG24: 589 | AH24: 1606 | AI24: 1494 | AJ24: 2785 | AK24: 1506 | AL24: 4591 | AM24: 4411 | AN24: 5583 | AO24: 5142 | AP24: 5227 | AQ24: 7037 | AR24: 6981 | AS24: 2630 | AT24: 4653 | AU24: 7206 | AV24: 7223 | AW24: 5543 | AX24: 4057 | AY24: 3664 | AZ24: 3564 | BA24: 3076 | BB24: 4992 | BC24: 7775 | BD24: 8127 | BE24: 8285 | BF24: 9833 | BG24: 11681 | BH24: 11431 | BI24: 5134 | BJ24: 4826 | BK24: 4781 | BL24: 4065 | BM24: 3689 | BN24: 3660 | BO24: 3603 | BP24: 846 | BQ24: 1815 | BR24: 1378 | BS24: 1001 | BT24: 1169 | BU24: 1165 | BV24: 1219 | BW24: 665 | BX24: 240 | BY24: 182 | BZ24: 236 | CA24: 266 | CB24: 220 | CC24: 84 | CD24: 337 | CE24: 588 | CF24: 1677 | CG24: 1321 | CH24: 2577 | CI24: 648 | CJ24: 313 | CK24: 162 | CL24: 84 | CM24: 61 | CN24: 35 | CO24: 7 | CP24: 8 | CQ24: 0 | CR24: 0 | CS24: 0 | CT24: 0 | CU24: 0 | CV24: 0 | CX24: 5382.232411 | CY24: 9217.238306 | CZ24: 10367.74007 | DA24: 8033.676142 | DB24: 7927.882876 | DC24: 11432.28481 | DD24: 10678.50779 | DE24: 11571.13848 | DF24: 12040.59609 | DG24: 17680.69959 | DH24: 21132.2049 | DI24: 17951.79484 | DJ24: 13905.20241 | DK24: 24603.54644 | DL24: 21766.96449 | DM24: 12662.13153 | DN24: 2353.90017 | DO24: 1084.380977 | DP24: 806.6736538 | DQ24: 1130.665531 | DR24: 1038.096423 | DS24: 3570.52273 | DT24: 733.9407833 | DU24: 3894.514607 | DV24: 10618.99908 | DW24: 9878.446219 | DX24: 18414.64037 | DY24: 9957.791169 | DZ24: 30356.05528 | EA24: 29165.88104 | EB24: 36915.23778 | EC24: 33999.31088 | ED24: 34561.33761 | EE24: 46529.20083 | EF24: 46158.9244 | EG24: 17389.76811 | EH24: 30766.00419 | EI24: 47646.6422 | EJ24: 47759.04755 | EK24: 36650.75461 | EL24: 26825.20503 | EM24: 24226.65793 | EN24: 23565.45002 | EO24: 20338.7554 | EP24: 33007.49901 | EQ24: 51408.91523 | ER24: 53736.36708 | ES24: 54781.07559 | ET24: 65016.57408 | EU24: 77235.69631 | EV24: 75582.67653 | EW24: 33946.41425 | EX24: 31909.89388 | EY24: 31612.35032 | EZ24: 26878.10166 | FA24: 24391.95991 | FB24: 24200.20961 | FC24: 23823.3211 | FD24: 5593.818943 | FE24: 12000.92362 | FF24: 9111.44504 | FG24: 6618.691208 | FH24: 7729.520502 | FI24: 7703.072186 | FJ24: 8060.124458 | FK24: 4397.032621 | FL24: 1586.898991 | FM24: 1203.398402 | FN24: 1560.450674 | FO24: 1758.813048 | FP24: 1454.657408 | FQ24: 555.4146469 | FR24: 2228.270667 | FS24: 3887.902528 | FT24: 11088.4567 | FU24: 8734.55653 | FV24: 17039.32792 | FW24: 4284.627276 | FX24: 2069.580767 | FY24: 1071.156819 | FZ24: 555.4146469 | GA24: 403.3368269 | GB24: 231.4227695 | GC24: 46.2845539 | GD24: 52.89663303 | GE24: 0 | GF24: 0 | GG24: 0 | GH24: 0 | GI24: 0 | GJ24: 0
A25: 1 | D25: POLES | E25: > 22 kV & < = 66 kV; Wood | F25: 8.210679817 | G25: 73.41630015 | H25: 8.568331235 | I25: 2 | J25: 45 | K25: 208 | L25: 463 | M25: 292 | N25: 343 | O25: 87 | P25: 314 | Q25: 290 | R25: 378 | S25: 214 | T25: 668 | U25: 268 | V25: 274 | W25: 343 | X25: 271 | Y25: 287 | Z25: 27 | AA25: 13 | AB25: 13 | AC25: 26 | AD25: 10 | AE25: 44 | AF25: 8 | AG25: 35 | AH25: 281 | AI25: 175 | AJ25: 56 | AK25: 42 | AL25: 46 | AM25: 86 | AN25: 293 | AO25: 132 | AP25: 123 | AQ25: 360 | AR25: 201 | AS25: 129 | AT25: 44 | AU25: 430 | AV25: 757 | AW25: 817 | AX25: 388 | AY25: 226 | AZ25: 338 | BA25: 209 | BB25: 753 | BC25: 556 | BD25: 165 | BE25: 446 | BF25: 397 | BG25: 332 | BH25: 497 | BI25: 256 | BJ25: 192 | BK25: 291 | BL25: 127 | BM25: 150 | BN25: 43 | BO25: 482 | BP25: 332 | BQ25: 57 | BR25: 18 | BS25: 62 | BT25: 27 | BU25: 51 | BV25: 34 | BW25: 21 | BX25: 21 | BY25: 7 | BZ25: 7 | CA25: 4 | CB25: 2 | CC25: 266 | CD25: 68 | CE25: 183 | CF25: 62 | CG25: 26 | CH25: 21 | CI25: 5 | CJ25: 4 | CK25: 56 | CL25: 26 | CM25: 2 | CN25: 0 | CO25: 0 | CP25: 2 | CQ25: 0 | CR25: 0 | CS25: 0 | CT25: 0 | CU25: 0 | CV25: 0 | CX25: 369.4805917 | CY25: 1707.821402 | CZ25: 3801.544755 | DA25: 2397.518506 | DB25: 2816.263177 | DC25: 714.329144 | DD25: 2578.153462 | DE25: 2381.097147 | DF25: 3103.636971 | DG25: 1757.085481 | DH25: 5484.734118 | DI25: 2200.462191 | DJ25: 2249.72627 | DK25: 2816.263177 | DL25: 2225.09423 | DM25: 2356.465107 | DN25: 221.688355 | DO25: 106.7388376 | DP25: 106.7388376 | DQ25: 213.4776752 | DR25: 82.10679817 | DS25: 361.2699119 | DT25: 65.68543853 | DU25: 287.3737936 | DV25: 2307.201028 | DW25: 1436.868968 | DX25: 459.7980697 | DY25: 344.8485523 | DZ25: 377.6912716 | EA25: 706.1184642 | EB25: 2405.729186 | EC25: 1083.809736 | ED25: 1009.913617 | EE25: 2955.844734 | EF25: 1650.346643 | EG25: 1059.177696 | EH25: 361.2699119 | EI25: 3530.592321 | EJ25: 6215.484621 | EK25: 6708.12541 | EL25: 3185.743769 | EM25: 1855.613639 | EN25: 2775.209778 | EO25: 1716.032082 | EP25: 6182.641902 | EQ25: 4565.137978 | ER25: 1354.76217 | ES25: 3661.963198 | ET25: 3259.639887 | EU25: 2725.945699 | EV25: 4080.707869 | EW25: 2101.934033 | EX25: 1576.450525 | EY25: 2389.307827 | EZ25: 1042.756337 | FA25: 1231.601972 | FB25: 353.0592321 | FC25: 3957.547672 | FD25: 2725.945699 | FE25: 468.0087495 | FF25: 147.7922367 | FG25: 509.0621486 | FH25: 221.688355 | FI25: 418.7446706 | FJ25: 279.1631138 | FK25: 172.4242761 | FL25: 172.4242761 | FM25: 57.47475872 | FN25: 57.47475872 | FO25: 32.84271927 | FP25: 16.42135963 | FQ25: 2184.040831 | FR25: 558.3262275 | FS25: 1502.554406 | FT25: 509.0621486 | FU25: 213.4776752 | FV25: 172.4242761 | FW25: 41.05339908 | FX25: 32.84271927 | FY25: 459.7980697 | FZ25: 213.4776752 | GA25: 16.42135963 | GB25: 0 | GC25: 0 | GD25: 16.42135963 | GE25: 0 | GF25: 0 | GG25: 0 | GH25: 0 | GI25: 0 | GJ25: 0
E26: > 66 kV & < = 132 kV; Wood | F26: 10.97025015 | G26: 0 | H26: 0 | I26: 2
E27: > 132 kV; Wood | F27: 0.0001 | G27: 0 | H27: 0 | I27: 2
A28: 1 | D28: POLES | E28: ˂ = 1 kV; Concrete | F28: 19.18480492 | G28: 52.41986591 | H28: 7.240156484 | I28: 2 | J28: 235 | K28: 355 | L28: 302 | M28: 244 | N28: 277 | O28: 258 | P28: 158 | Q28: 440 | R28: 247 | S28: 85 | T28: 8 | U28: 3 | V28: 2 | W28: 7 | X28: 16 | Y28: 81 | Z28: 228 | AA28: 346 | AB28: 129 | AC28: 532 | AD28: 776 | AE28: 1498 | AF28: 1310 | AG28: 880 | AH28: 1175 | AI28: 1985 | AJ28: 2158 | AK28: 1523 | AL28: 1401 | AM28: 1500 | AN28: 788 | AO28: 653 | AP28: 96 | AQ28: 635 | AR28: 744 | AS28: 6 | AT28: 795 | AU28: 401 | AV28: 251 | AW28: 69 | AX28: 77 | AY28: 381 | AZ28: 201 | BA28: 2 | BB28: 3 | BC28: 3 | BD28: 2 | BE28: 0 | BF28: 0 | BG28: 0 | BH28: 0 | BI28: 0 | BJ28: 2 | BK28: 0 | BL28: 0 | BM28: 0 | BN28: 3 | BO28: 0 | BP28: 0 | BQ28: 0 | BR28: 0 | BS28: 0 | BT28: 0 | BU28: 0 | BV28: 0 | BW28: 2 | BX28: 0 | BY28: 0 | BZ28: 2 | CA28: 0 | CB28: 0 | CC28: 0 | CD28: 0 | CE28: 0 | CF28: 0 | CG28: 0 | CH28: 0 | CI28: 0 | CJ28: 0 | CK28: 0 | CL28: 0 | CM28: 0 | CN28: 0 | CO28: 0 | CP28: 0 | CQ28: 0 | CR28: 0 | CS28: 0 | CT28: 0 | CU28: 0 | CV28: 0 | CX28: 4508.429156 | CY28: 6810.605746 | CZ28: 5793.811085 | DA28: 4681.0924 | DB28: 5314.190962 | DC28: 4949.679669 | DD28: 3031.199177 | DE28: 8441.314164 | DF28: 4738.646815 | DG28: 1630.708418 | DH28: 153.4784393 | DI28: 57.55441475 | DJ28: 38.36960984 | DK28: 134.2936344 | DL28: 306.9568787 | DM28: 1553.969198 | DN28: 4374.135521 | DO28: 6637.942502 | DP28: 2474.839834 | DQ28: 10206.31622 | DR28: 14887.40862 | DS28: 28738.83777 | DT28: 25132.09444 | DU28: 16882.62833 | DV28: 22542.14578 | DW28: 38081.83776 | DX28: 41400.80901 | DY28: 29218.45789 | DZ28: 26877.91169 | EA28: 28777.20738 | EB28: 15117.62628 | EC28: 12527.67761 | ED28: 1841.741272 | EE28: 12182.35112 | EF28: 14273.49486 | EG28: 115.1088295 | EH28: 15251.91991 | EI28: 7693.106772 | EJ28: 4815.386034 | EK28: 1323.751539 | EL28: 1477.229979 | EM28: 7309.410674 | EN28: 3856.145789 | EO28: 38.36960984 | EP28: 57.55441475 | EQ28: 57.55441475 | ER28: 38.36960984 | ES28: 0 | ET28: 0 | EU28: 0 | EV28: 0 | EW28: 0 | EX28: 38.36960984 | EY28: 0 | EZ28: 0 | FA28: 0 | FB28: 57.55441475 | FC28: 0 | FD28: 0 | FE28: 0 | FF28: 0 | FG28: 0 | FH28: 0 | FI28: 0 | FJ28: 0 | FK28: 38.36960984 | FL28: 0 | FM28: 0 | FN28: 38.36960984 | FO28: 0 | FP28: 0 | FQ28: 0 | FR28: 0 | FS28: 0 | FT28: 0 | FU28: 0 | FV28: 0 | FW28: 0 | FX28: 0 | FY28: 0 | FZ28: 0 | GA28: 0 | GB28: 0 | GC28: 0 | GD28: 0 | GE28: 0 | GF28: 0 | GG28: 0 | GH28: 0 | GI28: 0 | GJ28: 0
A29: 1 | D29: POLES | E29: > 1 kV & < = 11 kV; Concrete | F29: 12.23133165 | G29: 59.73243087 | H29: 7.728675881 | I29: 2 | J29: 0 | K29: 0 | L29: 2 | M29: 0 | N29: 0 | O29: 0 | P29: 0 | Q29: 0 | R29: 0 | S29: 0 | T29: 0 | U29: 0 | V29: 0 | W29: 0 | X29: 0 | Y29: 0 | Z29: 11 | AA29: 6 | AB29: 4 | AC29: 5 | AD29: 3 | AE29: 3 | AF29: 3 | AG29: 3 | AH29: 4 | AI29: 2 | AJ29: 3 | AK29: 1 | AL29: 1 | AM29: 2 | AN29: 6 | AO29: 3 | AP29: 2 | AQ29: 0 | AR29: 0 | AS29: 0 | AT29: 1 | AU29: 0 | AV29: 0 | AW29: 0 | AX29: 0 | AY29: 0 | AZ29: 0 | BA29: 0 | BB29: 0 | BC29: 0 | BD29: 0 | BE29: 0 | BF29: 0 | BG29: 0 | BH29: 0 | BI29: 0 | BJ29: 0 | BK29: 0 | BL29: 0 | BM29: 0 | BN29: 0 | BO29: 0 | BP29: 0 | BQ29: 0 | BR29: 0 | BS29: 0 | BT29: 0 | BU29: 0 | BV29: 0 | BW29: 0 | BX29: 0 | BY29: 0 | BZ29: 0 | CA29: 0 | CB29: 0 | CC29: 0 | CD29: 0 | CE29: 0 | CF29: 0 | CG29: 0 | CH29: 0 | CI29: 0 | CJ29: 0 | CK29: 0 | CL29: 0 | CM29: 0 | CN29: 0 | CO29: 0 | CP29: 0 | CQ29: 0 | CR29: 0 | CS29: 0 | CT29: 0 | CU29: 0 | CV29: 0 | CX29: 0 | CY29: 0 | CZ29: 24.4626633 | DA29: 0 | DB29: 0 | DC29: 0 | DD29: 0 | DE29: 0 | DF29: 0 | DG29: 0 | DH29: 0 | DI29: 0 | DJ29: 0 | DK29: 0 | DL29: 0 | DM29: 0 | DN29: 134.5446482 | DO29: 73.38798991 | DP29: 48.92532661 | DQ29: 61.15665826 | DR29: 36.69399496 | DS29: 36.69399496 | DT29: 36.69399496 | DU29: 36.69399496 | DV29: 48.92532661 | DW29: 24.4626633 | DX29: 36.69399496 | DY29: 12.23133165 | DZ29: 12.23133165 | EA29: 24.4626633 | EB29: 73.38798991 | EC29: 36.69399496 | ED29: 24.4626633 | EE29: 0 | EF29: 0 | EG29: 0 | EH29: 12.23133165 | EI29: 0 | EJ29: 0 | EK29: 0 | EL29: 0 | EM29: 0 | EN29: 0 | EO29: 0 | EP29: 0 | EQ29: 0 | ER29: 0 | ES29: 0 | ET29: 0 | EU29: 0 | EV29: 0 | EW29: 0 | EX29: 0 | EY29: 0 | EZ29: 0 | FA29: 0 | FB29: 0 | FC29: 0 | FD29: 0 | FE29: 0 | FF29: 0 | FG29: 0 | FH29: 0 | FI29: 0 | FJ29: 0 | FK29: 0 | FL29: 0 | FM29: 0 | FN29: 0 | FO29: 0 | FP29: 0 | FQ29: 0 | FR29: 0 | FS29: 0 | FT29: 0 | FU29: 0 | FV29: 0 | FW29: 0 | FX29: 0 | FY29: 0 | FZ29: 0 | GA29: 0 | GB29: 0 | GC29: 0 | GD29: 0 | GE29: 0 | GF29: 0 | GG29: 0 | GH29: 0 | GI29: 0 | GJ29: 0
A30: 1 | D30: POLES | E30: ˃ 11 kV & < = 22 kV; Concrete | F30: 18.27180506 | G30: 46.18866853 | H30: 6.796224579 | I30: 2 | J30: 1065 | K30: 1961 | L30: 1555 | M30: 1252 | N30: 1519 | O30: 1421 | P30: 1070 | Q30: 2479 | R30: 1479 | S30: 443 | T30: 11 | U30: 2 | V30: 6 | W30: 15 | X30: 39 | Y30: 619 | Z30: 1428 | AA30: 2019 | AB30: 1732 | AC30: 2152 | AD30: 3133 | AE30: 4479 | AF30: 3597 | AG30: 3422 | AH30: 5934 | AI30: 6374 | AJ30: 7402 | AK30: 5533 | AL30: 4676 | AM30: 5248 | AN30: 4917 | AO30: 2134 | AP30: 728 | AQ30: 2371 | AR30: 2015 | AS30: 11 | AT30: 1306 | AU30: 681 | AV30: 267 | AW30: 82 | AX30: 9 | AY30: 103 | AZ30: 34 | BA30: 2 | BB30: 9 | BC30: 0 | BD30: 0 | BE30: 0 | BF30: 0 | BG30: 0 | BH30: 4 | BI30: 0 | BJ30: 2 | BK30: 2 | BL30: 0 | BM30: 2 | BN30: 4 | BO30: 0 | BP30: 0 | BQ30: 0 | BR30: 0 | BS30: 0 | BT30: 0 | BU30: 0 | BV30: 0 | BW30: 2 | BX30: 0 | BY30: 0 | BZ30: 0 | CA30: 0 | CB30: 0 | CC30: 0 | CD30: 0 | CE30: 0 | CF30: 0 | CG30: 0 | CH30: 0 | CI30: 0 | CJ30: 0 | CK30: 0 | CL30: 0 | CM30: 0 | CN30: 0 | CO30: 0 | CP30: 0 | CQ30: 0 | CR30: 0 | CS30: 0 | CT30: 0 | CU30: 0 | CV30: 0 | CX30: 19459.47239 | CY30: 35831.00972 | CZ30: 28412.65686 | DA30: 22876.29993 | DB30: 27754.87188 | DC30: 25964.23499 | DD30: 19550.83141 | DE30: 45295.80474 | DF30: 27023.99968 | DG30: 8094.40964 | DH30: 200.9898556 | DI30: 36.54361011 | DJ30: 109.6308303 | DK30: 274.0770759 | DL30: 712.6003972 | DM30: 11310.24733 | DN30: 26092.13762 | DO30: 36890.77441 | DP30: 31646.76636 | DQ30: 39320.92448 | DR30: 57245.56524 | DS30: 81839.41485 | DT30: 65723.68279 | DU30: 62526.11691 | DV30: 108424.8912 | DW30: 116464.4854 | DX30: 135247.901 | DY30: 101097.8974 | DZ30: 85438.96045 | EA30: 95890.43294 | EB30: 89842.46547 | EC30: 38992.03199 | ED30: 13301.87408 | EE30: 43322.44979 | EF30: 36817.68719 | EG30: 200.9898556 | EH30: 23862.9774 | EI30: 12443.09924 | EJ30: 4878.57195 | EK30: 1498.288015 | EL30: 164.4462455 | EM30: 1881.995921 | EN30: 621.2413719 | EO30: 36.54361011 | EP30: 164.4462455 | EQ30: 0 | ER30: 0 | ES30: 0 | ET30: 0 | EU30: 0 | EV30: 73.08722023 | EW30: 0 | EX30: 36.54361011 | EY30: 36.54361011 | EZ30: 0 | FA30: 36.54361011 | FB30: 73.08722023 | FC30: 0 | FD30: 0 | FE30: 0 | FF30: 0 | FG30: 0 | FH30: 0 | FI30: 0 | FJ30: 0 | FK30: 36.54361011 | FL30: 0 | FM30: 0 | FN30: 0 | FO30: 0 | FP30: 0 | FQ30: 0 | FR30: 0 | FS30: 0 | FT30: 0 | FU30: 0 | FV30: 0 | FW30: 0 | FX30: 0 | FY30: 0 | FZ30: 0 | GA30: 0 | GB30: 0 | GC30: 0 | GD30: 0 | GE30: 0 | GF30: 0 | GG30: 0 | GH30: 0 | GI30: 0 | GJ30: 0
A31: 1 | D31: POLES | E31: > 22 kV & < = 66 kV; Concrete | F31: 24.10704215 | G31: 49.42706131 | H31: 7.030438202 | I31: 2 | J31: 33 | K31: 30 | L31: 337 | M31: 186 | N31: 489 | O31: 283 | P31: 208 | Q31: 233 | R31: 31 | S31: 113 | T31: 132 | U31: 6 | V31: 3 | W31: 2 | X31: 12 | Y31: 19 | Z31: 22 | AA31: 66 | AB31: 44 | AC31: 168 | AD31: 368 | AE31: 144 | AF31: 109 | AG31: 59 | AH31: 272 | AI31: 584 | AJ31: 372 | AK31: 467 | AL31: 301 | AM31: 285 | AN31: 1013 | AO31: 688 | AP31: 503 | AQ31: 866 | AR31: 721 | AS31: 26 | AT31: 545 | AU31: 234 | AV31: 40 | AW31: 0 | AX31: 7 | AY31: 19 | AZ31: 26 | BA31: 0 | BB31: 3 | BC31: 0 | BD31: 2 | BE31: 0 | BF31: 0 | BG31: 0 | BH31: 0 | BI31: 0 | BJ31: 0 | BK31: 0 | BL31: 0 | BM31: 0 | BN31: 0 | BO31: 0 | BP31: 0 | BQ31: 0 | BR31: 0 | BS31: 0 | BT31: 0 | BU31: 0 | BV31: 0 | BW31: 0 | BX31: 0 | BY31: 0 | BZ31: 0 | CA31: 0 | CB31: 0 | CC31: 0 | CD31: 0 | CE31: 0 | CF31: 0 | CG31: 0 | CH31: 0 | CI31: 0 | CJ31: 0 | CK31: 0 | CL31: 0 | CM31: 0 | CN31: 0 | CO31: 0 | CP31: 0 | CQ31: 0 | CR31: 0 | CS31: 0 | CT31: 0 | CU31: 0 | CV31: 0 | CX31: 795.5323911 | CY31: 723.2112646 | CZ31: 8124.073206 | DA31: 4483.909841 | DB31: 11788.34361 | DC31: 6822.292929 | DD31: 5014.264768 | DE31: 5616.940822 | DF31: 747.3183068 | DG31: 2724.095763 | DH31: 3182.129564 | DI31: 144.6422529 | DJ31: 72.32112646 | DK31: 48.21408431 | DL31: 289.2845058 | DM31: 458.0338009 | DN31: 530.3549274 | DO31: 1591.064782 | DP31: 1060.709855 | DQ31: 4049.983082 | DR31: 8871.391512 | DS31: 3471.41407 | DT31: 2627.667595 | DU31: 1422.315487 | DV31: 6557.115466 | DW31: 14078.51262 | DX31: 8967.819681 | DY31: 11257.98869 | DZ31: 7256.219688 | EA31: 6870.507014 | EB31: 24420.4337 | EC31: 16585.645 | ED31: 12125.8422 | EE31: 20876.6985 | EF31: 17381.17739 | EG31: 626.783096 | EH31: 13138.33797 | EI31: 5641.047864 | EJ31: 964.2816861 | EK31: 0 | EL31: 168.7492951 | EM31: 458.0338009 | EN31: 626.783096 | EO31: 0 | EP31: 72.32112646 | EQ31: 0 | ER31: 48.21408431 | ES31: 0 | ET31: 0 | EU31: 0 | EV31: 0 | EW31: 0 | EX31: 0 | EY31: 0 | EZ31: 0 | FA31: 0 | FB31: 0 | FC31: 0 | FD31: 0 | FE31: 0 | FF31: 0 | FG31: 0 | FH31: 0 | FI31: 0 | FJ31: 0 | FK31: 0 | FL31: 0 | FM31: 0 | FN31: 0 | FO31: 0 | FP31: 0 | FQ31: 0 | FR31: 0 | FS31: 0 | FT31: 0 | FU31: 0 | FV31: 0 | FW31: 0 | FX31: 0 | FY31: 0 | FZ31: 0 | GA31: 0 | GB31: 0 | GC31: 0 | GD31: 0 | GE31: 0 | GF31: 0 | GG31: 0 | GH31: 0 | GI31: 0 | GJ31: 0
E32: > 66 kV & < = 132 kV; Concrete | F32: 21.21201926 | G32: 0 | H32: 0 | I32: 2
E33: > 132 kV; Concrete | F33: 1151.461797 | G33: 0 | H33: 0 | I33: 2
A34: 1 | D34: POLES | E34: ˂ = 1 kV; Steel | F34: 11.42774916 | G34: 57.80737012 | H34: 7.603115817 | I34: 2 | J34: 0 | K34: 11 | L34: 6 | M34: 3 | N34: 35 | O34: 68 | P34: 8 | Q34: 4 | R34: 7 | S34: 8 | T34: 4 | U34: 7 | V34: 7 | W34: 4 | X34: 39 | Y34: 85 | Z34: 4 | AA34: 6 | AB34: 3 | AC34: 3 | AD34: 7 | AE34: 4 | AF34: 0 | AG34: 3 | AH34: 6 | AI34: 6 | AJ34: 11 | AK34: 12 | AL34: 11 | AM34: 5 | AN34: 0 | AO34: 3 | AP34: 0 | AQ34: 0 | AR34: 6 | AS34: 0 | AT34: 0 | AU34: 0 | AV34: 3 | AW34: 0 | AX34: 0 | AY34: 21 | AZ34: 4 | BA34: 0 | BB34: 4 | BC34: 0 | BD34: 3 | BE34: 0 | BF34: 0 | BG34: 29 | BH34: 0 | BI34: 0 | BJ34: 0 | BK34: 25 | BL34: 13 | BM34: 3 | BN34: 0 | BO34: 0 | BP34: 4 | BQ34: 3 | BR34: 0 | BS34: 0 | BT34: 0 | BU34: 0 | BV34: 0 | BW34: 0 | BX34: 0 | BY34: 0 | BZ34: 0 | CA34: 0 | CB34: 0 | CC34: 0 | CD34: 0 | CE34: 0 | CF34: 3 | CG34: 0 | CH34: 0 | CI34: 0 | CJ34: 0 | CK34: 0 | CL34: 0 | CM34: 0 | CN34: 0 | CO34: 0 | CP34: 0 | CQ34: 0 | CR34: 0 | CS34: 0 | CT34: 0 | CU34: 0 | CV34: 0 | CX34: 0 | CY34: 125.7052408 | CZ34: 68.56649495 | DA34: 34.28324748 | DB34: 399.9712206 | DC34: 777.0869428 | DD34: 91.42199327 | DE34: 45.71099664 | DF34: 79.99424411 | DG34: 91.42199327 | DH34: 45.71099664 | DI34: 79.99424411 | DJ34: 79.99424411 | DK34: 45.71099664 | DL34: 445.6822172 | DM34: 971.3586785 | DN34: 45.71099664 | DO34: 68.56649495 | DP34: 34.28324748 | DQ34: 34.28324748 | DR34: 79.99424411 | DS34: 45.71099664 | DT34: 0 | DU34: 34.28324748 | DV34: 68.56649495 | DW34: 68.56649495 | DX34: 125.7052408 | DY34: 137.1329899 | DZ34: 125.7052408 | EA34: 57.1387458 | EB34: 0 | EC34: 34.28324748 | ED34: 0 | EE34: 0 | EF34: 68.56649495 | EG34: 0 | EH34: 0 | EI34: 0 | EJ34: 34.28324748 | EK34: 0 | EL34: 0 | EM34: 239.9827323 | EN34: 45.71099664 | EO34: 0 | EP34: 45.71099664 | EQ34: 0 | ER34: 34.28324748 | ES34: 0 | ET34: 0 | EU34: 331.4047256 | EV34: 0 | EW34: 0 | EX34: 0 | EY34: 285.693729 | EZ34: 148.5607391 | FA34: 34.28324748 | FB34: 0 | FC34: 0 | FD34: 45.71099664 | FE34: 34.28324748 | FF34: 0 | FG34: 0 | FH34: 0 | FI34: 0 | FJ34: 0 | FK34: 0 | FL34: 0 | FM34: 0 | FN34: 0 | FO34: 0 | FP34: 0 | FQ34: 0 | FR34: 0 | FS34: 0 | FT34: 34.28324748 | FU34: 0 | FV34: 0 | FW34: 0 | FX34: 0 | FY34: 0 | FZ34: 0 | GA34: 0 | GB34: 0 | GC34: 0 | GD34: 0 | GE34: 0 | GF34: 0 | GG34: 0 | GH34: 0 | GI34: 0 | GJ34: 0
E35: > 1 kV & < = 11 kV; Steel | F35: 9.221057903 | G35: 0 | H35: 0 | I35: 2
A36: 1 | D36: POLES | E36: ˃ 11 kV & < = 22 kV; Steel | F36: 10.15017952 | G36: 59.73243087 | H36: 7.728675881 | I36: 2 | J36: 0 | K36: 0 | L36: 2 | M36: 0 | N36: 0 | O36: 2 | P36: 3 | Q36: 11 | R36: 2 | S36: 0 | T36: 0 | U36: 0 | V36: 2 | W36: 0 | X36: 0 | Y36: 2 | Z36: 0 | AA36: 0 | AB36: 0 | AC36: 0 | AD36: 0 | AE36: 0 | AF36: 5 | AG36: 0 | AH36: 4 | AI36: 5 | AJ36: 1 | AK36: 0 | AL36: 3 | AM36: 2 | AN36: 0 | AO36: 2 | AP36: 0 | AQ36: 0 | AR36: 4 | AS36: 1 | AT36: 3 | AU36: 0 | AV36: 135 | AW36: 0 | AX36: 2 | AY36: 97 | AZ36: 28 | BA36: 98 | BB36: 5 | BC36: 0 | BD36: 0 | BE36: 0 | BF36: 0 | BG36: 3 | BH36: 2 | BI36: 0 | BJ36: 5 | BK36: 2 | BL36: 2 | BM36: 0 | BN36: 0 | BO36: 0 | BP36: 0 | BQ36: 0 | BR36: 0 | BS36: 0 | BT36: 0 | BU36: 0 | BV36: 0 | BW36: 0 | BX36: 0 | BY36: 0 | BZ36: 0 | CA36: 0 | CB36: 0 | CC36: 0 | CD36: 0 | CE36: 0 | CF36: 0 | CG36: 0 | CH36: 0 | CI36: 0 | CJ36: 0 | CK36: 0 | CL36: 0 | CM36: 0 | CN36: 0 | CO36: 0 | CP36: 0 | CQ36: 0 | CR36: 0 | CS36: 0 | CT36: 0 | CU36: 0 | CV36: 0 | CX36: 0 | CY36: 0 | CZ36: 20.30035904 | DA36: 0 | DB36: 0 | DC36: 20.30035904 | DD36: 30.45053856 | DE36: 111.6519747 | DF36: 20.30035904 | DG36: 0 | DH36: 0 | DI36: 0 | DJ36: 20.30035904 | DK36: 0 | DL36: 0 | DM36: 20.30035904 | DN36: 0 | DO36: 0 | DP36: 0 | DQ36: 0 | DR36: 0 | DS36: 0 | DT36: 50.75089761 | DU36: 0 | DV36: 40.60071808 | DW36: 50.75089761 | DX36: 10.15017952 | DY36: 0 | DZ36: 30.45053856 | EA36: 20.30035904 | EB36: 0 | EC36: 20.30035904 | ED36: 0 | EE36: 0 | EF36: 40.60071808 | EG36: 10.15017952 | EH36: 30.45053856 | EI36: 0 | EJ36: 1370.274235 | EK36: 0 | EL36: 20.30035904 | EM36: 984.5674135 | EN36: 284.2050266 | EO36: 994.7175931 | EP36: 50.75089761 | EQ36: 0 | ER36: 0 | ES36: 0 | ET36: 0 | EU36: 30.45053856 | EV36: 20.30035904 | EW36: 0 | EX36: 50.75089761 | EY36: 20.30035904 | EZ36: 20.30035904 | FA36: 0 | FB36: 0 | FC36: 0 | FD36: 0 | FE36: 0 | FF36: 0 | FG36: 0 | FH36: 0 | FI36: 0 | FJ36: 0 | FK36: 0 | FL36: 0 | FM36: 0 | FN36: 0 | FO36: 0 | FP36: 0 | FQ36: 0 | FR36: 0 | FS36: 0 | FT36: 0 | FU36: 0 | FV36: 0 | FW36: 0 | FX36: 0 | FY36: 0 | FZ36: 0 | GA36: 0 | GB36: 0 | GC36: 0 | GD36: 0 | GE36: 0 | GF36: 0 | GG36: 0 | GH36: 0 | GI36: 0 | GJ36: 0
A37: 1 | D37: POLES | E37: > 22 kV & < = 66 kV; Steel | F37: 20.83372953 | G37: 59.73243087 | H37: 7.728675881 | I37: 2 | J37: 0 | K37: 0 | L37: 0 | M37: 0 | N37: 0 | O37: 9 | P37: 0 | Q37: 0 | R37: 0 | S37: 0 | T37: 0 | U37: 0 | V37: 0 | W37: 3 | X37: 0 | Y37: 4 | Z37: 3 | AA37: 0 | AB37: 0 | AC37: 0 | AD37: 0 | AE37: 0 | AF37: 0 | AG37: 0 | AH37: 0 | AI37: 0 | AJ37: 0 | AK37: 0 | AL37: 0 | AM37: 4 | AN37: 0 | AO37: 0 | AP37: 0 | AQ37: 0 | AR37: 3 | AS37: 0 | AT37: 0 | AU37: 0 | AV37: 4 | AW37: 0 | AX37: 30 | AY37: 2 | AZ37: 0 | BA37: 0 | BB37: 6 | BC37: 0 | BD37: 0 | BE37: 0 | BF37: 17 | BG37: 0 | BH37: 0 | BI37: 0 | BJ37: 0 | BK37: 3 | BL37: 2 | BM37: 0 | BN37: 2 | BO37: 0 | BP37: 0 | BQ37: 0 | BR37: 2 | BS37: 0 | BT37: 0 | BU37: 0 | BV37: 3 | BW37: 0 | BX37: 0 | BY37: 0 | BZ37: 0 | CA37: 0 | CB37: 0 | CC37: 0 | CD37: 0 | CE37: 0 | CF37: 0 | CG37: 0 | CH37: 0 | CI37: 0 | CJ37: 0 | CK37: 0 | CL37: 0 | CM37: 0 | CN37: 0 | CO37: 0 | CP37: 0 | CQ37: 0 | CR37: 0 | CS37: 0 | CT37: 0 | CU37: 0 | CV37: 0 | CX37: 0 | CY37: 0 | CZ37: 0 | DA37: 0 | DB37: 0 | DC37: 187.5035658 | DD37: 0 | DE37: 0 | DF37: 0 | DG37: 0 | DH37: 0 | DI37: 0 | DJ37: 0 | DK37: 62.5011886 | DL37: 0 | DM37: 83.33491814 | DN37: 62.5011886 | DO37: 0 | DP37: 0 | DQ37: 0 | DR37: 0 | DS37: 0 | DT37: 0 | DU37: 0 | DV37: 0 | DW37: 0 | DX37: 0 | DY37: 0 | DZ37: 0 | EA37: 83.33491814 | EB37: 0 | EC37: 0 | ED37: 0 | EE37: 0 | EF37: 62.5011886 | EG37: 0 | EH37: 0 | EI37: 0 | EJ37: 83.33491814 | EK37: 0 | EL37: 625.011886 | EM37: 41.66745907 | EN37: 0 | EO37: 0 | EP37: 125.0023772 | EQ37: 0 | ER37: 0 | ES37: 0 | ET37: 354.1734021 | EU37: 0 | EV37: 0 | EW37: 0 | EX37: 0 | EY37: 62.5011886 | EZ37: 41.66745907 | FA37: 0 | FB37: 41.66745907 | FC37: 0 | FD37: 0 | FE37: 0 | FF37: 41.66745907 | FG37: 0 | FH37: 0 | FI37: 0 | FJ37: 62.5011886 | FK37: 0 | FL37: 0 | FM37: 0 | FN37: 0 | FO37: 0 | FP37: 0 | FQ37: 0 | FR37: 0 | FS37: 0 | FT37: 0 | FU37: 0 | FV37: 0 | FW37: 0 | FX37: 0 | FY37: 0 | FZ37: 0 | GA37: 0 | GB37: 0 | GC37: 0 | GD37: 0 | GE37: 0 | GF37: 0 | GG37: 0 | GH37: 0 | GI37: 0 | GJ37: 0
E38: > 66 kV & < = 132 kV; Steel | F38: 17.14329826 | G38: 0 | H38: 0 | I38: 2
E39: > 132 kV; Steel | F39: 0.0001 | G39: 0 | H39: 0 | I39: 2
A40: 1 | D40: POLES | E40: Other | F40: 11.69232802 | G40: 76.61996162 | H40: 8.753282906 | I40: 2 | J40: 24 | K40: 31 | L40: 28 | M40: 27 | N40: 40 | O40: 53 | P40: 28 | Q40: 39 | R40: 36 | S40: 33 | T40: 39 | U40: 26 | V40: 21 | W40: 42 | X40: 41 | Y40: 18 | Z40: 13 | AA40: 15 | AB40: 7 | AC40: 9 | AD40: 38 | AE40: 70 | AF40: 41 | AG40: 32 | AH40: 63 | AI40: 110 | AJ40: 119 | AK40: 83 | AL40: 132 | AM40: 107 | AN40: 104 | AO40: 98 | AP40: 53 | AQ40: 90 | AR40: 155 | AS40: 65 | AT40: 97 | AU40: 92 | AV40: 118 | AW40: 116 | AX40: 73 | AY40: 83 | AZ40: 104 | BA40: 67 | BB40: 77 | BC40: 110 | BD40: 156 | BE40: 123 | BF40: 71 | BG40: 90 | BH40: 76 | BI40: 45 | BJ40: 53 | BK40: 67 | BL40: 50 | BM40: 34 | BN40: 18 | BO40: 57 | BP40: 24 | BQ40: 22 | BR40: 21 | BS40: 25 | BT40: 50 | BU40: 35 | BV40: 35 | BW40: 14 | BX40: 7 | BY40: 6 | BZ40: 6 | CA40: 4 | CB40: 2 | CC40: 3 | CD40: 8 | CE40: 25 | CF40: 46 | CG40: 17 | CH40: 40 | CI40: 6 | CJ40: 9 | CK40: 4 | CL40: 9 | CM40: 0 | CN40: 2 | CO40: 0 | CP40: 2 | CQ40: 0 | CR40: 0 | CS40: 0 | CT40: 0 | CU40: 0 | CV40: 0 | CX40: 280.6158725 | CY40: 362.4621686 | CZ40: 327.3851845 | DA40: 315.6928565 | DB40: 467.6931208 | DC40: 619.693385 | DD40: 327.3851845 | DE40: 456.0007928 | DF40: 420.9238087 | DG40: 385.8468246 | DH40: 456.0007928 | DI40: 304.0005285 | DJ40: 245.5388884 | DK40: 491.0777768 | DL40: 479.3854488 | DM40: 210.4619043 | DN40: 152.0002643 | DO40: 175.3849203 | DP40: 81.84629614 | DQ40: 105.2309522 | DR40: 444.3084647 | DS40: 818.4629614 | DT40: 479.3854488 | DU40: 374.1544966 | DV40: 736.6166652 | DW40: 1286.156082 | DX40: 1391.387034 | DY40: 970.4632256 | DZ40: 1543.387299 | EA40: 1251.079098 | EB40: 1216.002114 | EC40: 1145.848146 | ED40: 619.693385 | EE40: 1052.309522 | EF40: 1812.310843 | EG40: 760.0013213 | EH40: 1134.155818 | EI40: 1075.694178 | EJ40: 1379.694706 | EK40: 1356.31005 | EL40: 853.5399454 | EM40: 970.4632256 | EN40: 1216.002114 | EO40: 783.3859773 | EP40: 900.3092575 | EQ40: 1286.156082 | ER40: 1824.003171 | ES40: 1438.156346 | ET40: 830.1552894 | EU40: 1052.309522 | EV40: 888.6169295 | EW40: 526.1547609 | EX40: 619.693385 | EY40: 783.3859773 | EZ40: 584.616401 | FA40: 397.5391527 | FB40: 210.4619043 | FC40: 666.4626971 | FD40: 280.6158725 | FE40: 257.2312164 | FF40: 245.5388884 | FG40: 292.3082005 | FH40: 584.616401 | FI40: 409.2314807 | FJ40: 409.2314807 | FK40: 163.6925923 | FL40: 81.84629614 | FM40: 70.15396812 | FN40: 70.15396812 | FO40: 46.76931208 | FP40: 23.38465604 | FQ40: 35.07698406 | FR40: 93.53862415 | FS40: 292.3082005 | FT40: 537.8470889 | FU40: 198.7695763 | FV40: 467.6931208 | FW40: 70.15396812 | FX40: 105.2309522 | FY40: 46.76931208 | FZ40: 105.2309522 | GA40: 0 | GB40: 23.38465604 | GC40: 0 | GD40: 23.38465604 | GE40: 0 | GF40: 0 | GG40: 0 | GH40: 0 | GI40: 0 | GJ40: 0
A41: 2 | D41: OVERHEAD CONDUCTORS | E41: ˂ = 1 kV | F41: 172.5113 | G41: 84.75980266 | H41: 9.206508712 | I41: 2 | J41: 76.3 | K41: 102.2 | L41: 35.3 | M41: 52.8 | N41: 59.3 | O41: 60.8 | P41: 48.1 | Q41: 67.1 | R41: 60.5 | S41: 61.2 | T41: 51 | U41: 49.9 | V41: 42.4 | W41: 68.1 | X41: 61.9 | Y41: 50.5 | Z41: 23.1 | AA41: 30.7 | AB41: 12.8 | AC41: 45.2 | AD41: 66.6 | AE41: 129.9 | AF41: 113 | AG41: 78 | AH41: 134 | AI41: 275.5 | AJ41: 290.2 | AK41: 226.6 | AL41: 397.6 | AM41: 311.1 | AN41: 280.2 | AO41: 221.4 | AP41: 165.2 | AQ41: 227.9 | AR41: 383.3 | AS41: 165.5 | AT41: 267.3 | AU41: 196 | AV41: 333.6 | AW41: 287.1 | AX41: 232.7 | AY41: 315.6 | AZ41: 257.3 | BA41: 192.5 | BB41: 206 | BC41: 285 | BD41: 276.7 | BE41: 290.1 | BF41: 196.2 | BG41: 229.3 | BH41: 226.9 | BI41: 134.9 | BJ41: 155.1 | BK41: 137.6 | BL41: 128 | BM41: 102.4 | BN41: 88.4 | BO41: 95.4 | BP41: 22.5 | BQ41: 36.3 | BR41: 26.6 | BS41: 35.6 | BT41: 45.6 | BU41: 36.5 | BV41: 54.9 | BW41: 21.8 | BX41: 11.4 | BY41: 8.3 | BZ41: 6.7 | CA41: 3.4 | CB41: 2.8 | CC41: 2.4 | CD41: 6.8 | CE41: 26.8 | CF41: 40.4 | CG41: 28.9 | CH41: 44.7 | CI41: 14.8 | CJ41: 11.5 | CK41: 0 | CL41: 7.2 | CM41: 3.6 | CN41: 2.2 | CO41: 1.3 | CP41: 1.9 | CQ41: 0 | CR41: 0 | CS41: 0 | CT41: 0 | CU41: 0 | CV41: 0 | CX41: 13162.61219 | CY41: 17630.65486 | CZ41: 6089.64889 | DA41: 9108.59664 | DB41: 10229.92009 | DC41: 10488.68704 | DD41: 8297.79353 | DE41: 11575.50823 | DF41: 10436.93365 | DG41: 10557.69156 | DH41: 8798.0763 | DI41: 8608.31387 | DJ41: 7314.47912 | DK41: 11748.01953 | DL41: 10678.44947 | DM41: 8711.82065 | DN41: 3985.01103 | DO41: 5296.09691 | DP41: 2208.14464 | DQ41: 7797.51076 | DR41: 11489.25258 | DS41: 22409.21787 | DT41: 19493.7769 | DU41: 13455.8814 | DV41: 23116.5142 | DW41: 47526.86315 | DX41: 50062.77926 | DY41: 39091.06058 | DZ41: 68590.49288 | EA41: 53668.26543 | EB41: 48337.66626 | EC41: 38194.00182 | ED41: 28498.86676 | EE41: 39315.32527 | EF41: 66123.58129 | EG41: 28550.62015 | EH41: 46112.27049 | EI41: 33812.2148 | EJ41: 57549.76968 | EK41: 49527.99423 | EL41: 40143.37951 | EM41: 54444.56628 | EN41: 44387.15749 | EO41: 33208.42525 | EP41: 35537.3278 | EQ41: 49165.7205 | ER41: 47733.87671 | ES41: 50045.52813 | ET41: 33846.71706 | EU41: 39556.84109 | EV41: 39142.81397 | EW41: 23271.77437 | EX41: 26756.50263 | EY41: 23737.55488 | EZ41: 22081.4464 | FA41: 17665.15712 | FB41: 15249.99892 | FC41: 16457.57802 | FD41: 3881.50425 | FE41: 6262.16019 | FF41: 4588.80058 | FG41: 6141.40228 | FH41: 7866.51528 | FI41: 6296.66245 | FJ41: 9470.87037 | FK41: 3760.74634 | FL41: 1966.62882 | FM41: 1431.84379 | FN41: 1155.82571 | FO41: 586.53842 | FP41: 483.03164 | FQ41: 414.02712 | FR41: 1173.07684 | FS41: 4623.30284 | FT41: 6969.45652 | FU41: 4985.57657 | FV41: 7711.25511 | FW41: 2553.16724 | FX41: 1983.87995 | FY41: 0 | FZ41: 1242.08136 | GA41: 621.04068 | GB41: 379.52486 | GC41: 224.26469 | GD41: 327.77147 | GE41: 0 | GF41: 0 | GG41: 0 | GH41: 0 | GI41: 0 | GJ41: 0
A42: 2 | D42: OVERHEAD CONDUCTORS | E42: > 1 kV & < = 11 kV | F42: 71.62414072 | G42: 88.86622864 | H42: 9.426888598 | I42: 2 | J42: 0.1 | K42: 2 | L42: 0.2 | M42: 0.4 | N42: 0.4 | O42: 0.4 | P42: 0.4 | Q42: 0.6 | R42: 0.5 | S42: 0.5 | T42: 0.5 | U42: 0.5 | V42: 0.4 | W42: 0.6 | X42: 0.5 | Y42: 0.4 | Z42: 0.3 | AA42: 0.3 | AB42: 0.3 | AC42: 0.4 | AD42: 0.5 | AE42: 0.8 | AF42: 0.6 | AG42: 0.6 | AH42: 1.1 | AI42: 1.2 | AJ42: 1.5 | AK42: 1.1 | AL42: 1.4 | AM42: 1.5 | AN42: 1.6 | AO42: 1.1 | AP42: 0.9 | AQ42: 1.4 | AR42: 1.4 | AS42: 0.4 | AT42: 0.9 | AU42: 1.2 | AV42: 1.2 | AW42: 0.9 | AX42: 0.7 | AY42: 0.7 | AZ42: 0.7 | BA42: 0.6 | BB42: 0.9 | BC42: 1.3 | BD42: 1.4 | BE42: 1.4 | BF42: 1.6 | BG42: 1.9 | BH42: 1.9 | BI42: 0.9 | BJ42: 0.9 | BK42: 0.8 | BL42: 0.8 | BM42: 0.8 | BN42: 0.8 | BO42: 0.8 | BP42: 0.3 | BQ42: 0.5 | BR42: 0.4 | BS42: 0.3 | BT42: 0.4 | BU42: 0.2 | BV42: 0.1 | BW42: 0.1 | BX42: 0 | BY42: 0 | BZ42: 0 | CA42: 0 | CB42: 0 | CC42: 0 | CD42: 0 | CE42: 0.1 | CF42: 0.2 | CG42: 0.2 | CH42: 0.4 | CI42: 0.1 | CJ42: 0.1 | CK42: 0 | CL42: 0 | CM42: 0 | CN42: 0 | CO42: 0 | CP42: 0 | CQ42: 0 | CR42: 0 | CS42: 0 | CT42: 0 | CU42: 0 | CV42: 0 | CX42: 7.162414072 | CY42: 143.2482814 | CZ42: 14.32482814 | DA42: 28.64965629 | DB42: 28.64965629 | DC42: 28.64965629 | DD42: 28.64965629 | DE42: 42.97448443 | DF42: 35.81207036 | DG42: 35.81207036 | DH42: 35.81207036 | DI42: 35.81207036 | DJ42: 28.64965629 | DK42: 42.97448443 | DL42: 35.81207036 | DM42: 28.64965629 | DN42: 21.48724222 | DO42: 21.48724222 | DP42: 21.48724222 | DQ42: 28.64965629 | DR42: 35.81207036 | DS42: 57.29931258 | DT42: 42.97448443 | DU42: 42.97448443 | DV42: 78.78655479 | DW42: 85.94896887 | DX42: 107.4362111 | DY42: 78.78655479 | DZ42: 100.273797 | EA42: 107.4362111 | EB42: 114.5986252 | EC42: 78.78655479 | ED42: 64.46172665 | EE42: 100.273797 | EF42: 100.273797 | EG42: 28.64965629 | EH42: 64.46172665 | EI42: 85.94896887 | EJ42: 85.94896887 | EK42: 64.46172665 | EL42: 50.13689851 | EM42: 50.13689851 | EN42: 50.13689851 | EO42: 42.97448443 | EP42: 64.46172665 | EQ42: 93.11138294 | ER42: 100.273797 | ES42: 100.273797 | ET42: 114.5986252 | EU42: 136.0858674 | EV42: 136.0858674 | EW42: 64.46172665 | EX42: 64.46172665 | EY42: 57.29931258 | EZ42: 57.29931258 | FA42: 57.29931258 | FB42: 57.29931258 | FC42: 57.29931258 | FD42: 21.48724222 | FE42: 35.81207036 | FF42: 28.64965629 | FG42: 21.48724222 | FH42: 28.64965629 | FI42: 14.32482814 | FJ42: 7.162414072 | FK42: 7.162414072 | FL42: 0 | FM42: 0 | FN42: 0 | FO42: 0 | FP42: 0 | FQ42: 0 | FR42: 0 | FS42: 7.162414072 | FT42: 14.32482814 | FU42: 14.32482814 | FV42: 28.64965629 | FW42: 7.162414072 | FX42: 7.162414072 | FY42: 0 | FZ42: 0 | GA42: 0 | GB42: 0 | GC42: 0 | GD42: 0 | GE42: 0 | GF42: 0 | GG42: 0 | GH42: 0 | GI42: 0 | GJ42: 0
A43: 2 | D43: OVERHEAD CONDUCTORS | E43: ˃ 11 kV & < = 22 kV ; SWER | F43: 14.24459902 | G43: 89.33344572 | H43: 9.451637198 | I43: 2 | J43: 104.4 | K43: 77.1 | L43: 79 | M43: 118.2 | N43: 132.8 | O43: 136 | P43: 107.6 | Q43: 150.2 | R43: 135.4 | S43: 136.9 | T43: 114.2 | U43: 111.7 | V43: 94.9 | W43: 152.5 | X43: 138.6 | Y43: 113.1 | Z43: 51.7 | AA43: 68.7 | AB43: 28.6 | AC43: 101.1 | AD43: 149.1 | AE43: 290.7 | AF43: 252.8 | AG43: 174.6 | AH43: 300 | AI43: 625.6 | AJ43: 649.4 | AK43: 507.2 | AL43: 898.9 | AM43: 696.2 | AN43: 631.6 | AO43: 500 | AP43: 374.2 | AQ43: 509.6 | AR43: 861.9 | AS43: 367.5 | AT43: 597.6 | AU43: 438.2 | AV43: 743.1 | AW43: 642 | AX43: 520.4 | AY43: 710.3 | AZ43: 575.3 | BA43: 430.4 | BB43: 460.5 | BC43: 637.4 | BD43: 618.7 | BE43: 651.2 | BF43: 440.8 | BG43: 514.9 | BH43: 509.6 | BI43: 303.7 | BJ43: 346.5 | BK43: 312.2 | BL43: 294.8 | BM43: 237.6 | BN43: 206.4 | BO43: 221.9 | BP43: 57 | BQ43: 87.9 | BR43: 66.3 | BS43: 86.4 | BT43: 103.7 | BU43: 88.4 | BV43: 124.5 | BW43: 50.1 | BX43: 31.2 | BY43: 24.4 | BZ43: 20.8 | CA43: 13.4 | CB43: 5.3 | CC43: 5.3 | CD43: 12 | CE43: 63.5 | CF43: 118.7 | CG43: 81.7 | CH43: 128.1 | CI43: 34.3 | CJ43: 24.7 | CK43: 11.8 | CL43: 17.3 | CM43: 10.5 | CN43: 3.9 | CO43: 1.8 | CP43: 3.4 | CQ43: 0 | CR43: 0 | CS43: 0 | CT43: 0 | CU43: 0 | CV43: 0 | CX43: 1487.136138 | CY43: 1098.258585 | CZ43: 1125.323323 | DA43: 1683.711604 | DB43: 1891.68275 | DC43: 1937.265467 | DD43: 1532.718855 | DE43: 2139.538773 | DF43: 1928.718708 | DG43: 1950.085606 | DH43: 1626.733208 | DI43: 1591.121711 | DJ43: 1351.812447 | DK43: 2172.301351 | DL43: 1974.301424 | DM43: 1611.064149 | DN43: 736.4457694 | DO43: 978.6039528 | DP43: 407.395532 | DQ43: 1440.128961 | DR43: 2123.869714 | DS43: 4140.904936 | DT43: 3601.034633 | DU43: 2487.106989 | DV43: 4273.379707 | DW43: 8911.421148 | DX43: 9250.442605 | DY43: 7224.860624 | DZ43: 12804.47006 | EA43: 9917.089839 | EB43: 8996.888742 | EC43: 7122.299511 | ED43: 5330.328954 | EE43: 7259.047662 | EF43: 12277.4199 | EG43: 5234.890141 | EH43: 8512.572375 | EI43: 6241.983291 | EJ43: 10585.16153 | EK43: 9145.032572 | EL43: 7412.889331 | EM43: 10117.93869 | EN43: 8194.917817 | EO43: 6130.875419 | EP43: 6559.63785 | EQ43: 9079.507417 | ER43: 8813.133415 | ES43: 9276.082883 | ET43: 6279.019249 | EU43: 7334.544036 | EV43: 7259.047662 | EW43: 4326.084723 | EX43: 4935.753561 | EY43: 4447.163815 | EZ43: 4199.307792 | FA43: 3384.516728 | FB43: 2940.085238 | FC43: 3160.876523 | FD43: 811.9421442 | FE43: 1252.100254 | FF43: 944.4169151 | FG43: 1230.733355 | FH43: 1477.164919 | FI43: 1259.222554 | FJ43: 1773.452578 | FK43: 713.654411 | FL43: 444.4314895 | FM43: 347.5682161 | FN43: 296.2876597 | FO43: 190.8776269 | FP43: 75.49637482 | FQ43: 75.49637482 | FR43: 170.9351883 | FS43: 904.5320379 | FT43: 1690.833904 | FU43: 1163.78374 | FV43: 1824.733135 | FW43: 488.5897464 | FX43: 351.8415958 | FY43: 168.0862685 | FZ43: 246.4315631 | GA43: 149.5682897 | GB43: 55.55393619 | GC43: 25.64027824 | GD43: 48.43163667 | GE43: 0 | GF43: 0 | GG43: 0 | GH43: 0 | GI43: 0 | GJ43: 0
E44: ˃ 11 kV & < = 22 kV ; Single-Phase | F44: 50.86653088 | G44: 0 | H44: 0 | I44: 2
A45: 2 | D45: OVERHEAD CONDUCTORS | E45: ˃ 11 kV & < = 22 kV ; Multiple-Phase | F45: 54.90268679 | G45: 82.48397655 | H45: 9.082068958 | I45: 2 | J45: 281.3 | K45: 431.5 | L45: 158.8 | M45: 292.5 | N45: 287.6 | O45: 316 | P45: 273.4 | Q45: 405.5 | R45: 355.1 | S45: 338 | T45: 362.3 | U45: 377.4 | V45: 302.9 | W45: 404.9 | X45: 388.3 | Y45: 274.9 | Z45: 187.6 | AA45: 233 | AB45: 199.3 | AC45: 249 | AD45: 351.9 | AE45: 538 | AF45: 396.4 | AG45: 433.7 | AH45: 810.4 | AI45: 841.6 | AJ45: 1094.3 | AK45: 757 | AL45: 997.9 | AM45: 1032.7 | AN45: 1119.4 | AO45: 768.9 | AP45: 643.8 | AQ45: 1015 | AR45: 970.5 | AS45: 286.4 | AT45: 651.6 | AU45: 862.2 | AV45: 830 | AW45: 619.6 | AX45: 446.9 | AY45: 428.6 | AZ45: 399.1 | BA45: 361.8 | BB45: 547 | BC45: 866.3 | BD45: 898.8 | BE45: 923.8 | BF45: 1098.8 | BG45: 1293.9 | BH45: 1269.9 | BI45: 569.6 | BJ45: 534.9 | BK45: 517.1 | BL45: 455.6 | BM45: 414 | BN45: 406.4 | BO45: 371.3 | BP45: 77.8 | BQ45: 171.9 | BR45: 121 | BS45: 80.3 | BT45: 106.5 | BU45: 104.9 | BV45: 89.7 | BW45: 56.1 | BX45: 17.2 | BY45: 16.5 | BZ45: 14 | CA45: 19.3 | CB45: 20.6 | CC45: 5.5 | CD45: 29.4 | CE45: 57.9 | CF45: 136 | CG45: 111.6 | CH45: 189.6 | CI45: 63.8 | CJ45: 33.3 | CK45: 6.3 | CL45: 6.2 | CM45: 5.4 | CN45: 2.7 | CO45: 0.5 | CP45: 0.6 | CQ45: 0 | CR45: 0 | CS45: 0 | CT45: 0 | CU45: 0 | CV45: 0 | CX45: 15444.1258 | CY45: 23690.50935 | CZ45: 8718.546663 | DA45: 16059.03589 | DB45: 15790.01272 | DC45: 17349.24903 | DD45: 15010.39457 | DE45: 22263.0395 | DF45: 19495.94408 | DG45: 18557.10814 | DH45: 19891.24343 | DI45: 20720.274 | DJ45: 16630.02383 | DK45: 22230.09788 | DL45: 21318.71328 | DM45: 15092.7486 | DN45: 10299.74404 | DO45: 12792.32602 | DP45: 10942.10548 | DQ45: 13670.76901 | DR45: 19320.25548 | DS45: 29537.6455 | DT45: 21763.42505 | DU45: 23811.29526 | DV45: 44493.13738 | DW45: 46206.10121 | DX45: 60080.01016 | DY45: 41561.3339 | DZ45: 54787.39115 | EA45: 56698.00465 | EB45: 61458.0676 | EC45: 42214.67588 | ED45: 35346.34976 | EE45: 55726.2271 | EF45: 53283.05753 | EG45: 15724.1295 | EH45: 35774.59072 | EI45: 47337.09655 | EJ45: 45569.23004 | EK45: 34017.70474 | EL45: 24536.01073 | EM45: 23531.29156 | EN45: 21911.6623 | EO45: 19863.79208 | EP45: 30031.76968 | EQ45: 47562.19757 | ER45: 49346.53489 | ES45: 50719.10206 | ET45: 60327.07225 | EU45: 71038.58644 | EV45: 69720.92196 | EW45: 31272.5704 | EX45: 29367.44717 | EY45: 28390.17934 | EZ45: 25013.6641 | FA45: 22729.71233 | FB45: 22312.45191 | FC45: 20385.36761 | FD45: 4271.429033 | FE45: 9437.77186 | FF45: 6643.225102 | FG45: 4408.68575 | FH45: 5847.136144 | FI45: 5759.291845 | FJ45: 4924.771005 | FK45: 3080.040729 | FL45: 944.3262129 | FM45: 905.8943321 | FN45: 768.6376151 | FO45: 1059.621855 | FP45: 1130.995348 | FQ45: 301.9647774 | FR45: 1614.138992 | FS45: 3178.865565 | FT45: 7466.765404 | FU45: 6127.139846 | FV45: 10409.54942 | FW45: 3502.791417 | FX45: 1828.25947 | FY45: 345.8869268 | FZ45: 340.3966581 | GA45: 296.4745087 | GB45: 148.2372543 | GC45: 27.4513434 | GD45: 32.94161208 | GE45: 0 | GF45: 0 | GG45: 0 | GH45: 0 | GI45: 0 | GJ45: 0
A46: 2 | D46: OVERHEAD CONDUCTORS | E46: > 22 kV & < = 66 kV | F46: 1409.719871 | G46: 93.17218409 | H46: 9.652573962 | I46: 2 | J46: 29.4 | K46: 37.8 | L46: 31.4 | M46: 57.6 | N46: 102.2 | O46: 56.6 | P46: 52.9 | Q46: 82.9 | R46: 56.6 | S46: 43.6 | T46: 123.2 | U46: 37.5 | V46: 37.4 | W46: 76.2 | X46: 29.5 | Y46: 39.1 | Z46: 5.6 | AA46: 9.4 | AB46: 7 | AC46: 22.4 | AD46: 45.4 | AE46: 25 | AF46: 14.1 | AG46: 12.1 | AH46: 68.7 | AI46: 91.1 | AJ46: 52.9 | AK46: 60.2 | AL46: 42.3 | AM46: 44.8 | AN46: 155.9 | AO46: 92.6 | AP46: 71.3 | AQ46: 140.3 | AR46: 102.1 | AS46: 16.8 | AT46: 64.6 | AU46: 73.8 | AV46: 90.2 | AW46: 94.7 | AX46: 51.1 | AY46: 26.3 | AZ46: 40.8 | BA46: 24.3 | BB46: 85.2 | BC46: 64.6 | BD46: 17.4 | BE46: 50.7 | BF46: 47.3 | BG46: 37.8 | BH46: 57.2 | BI46: 29.4 | BJ46: 23.8 | BK46: 35.4 | BL46: 13 | BM46: 16.5 | BN46: 3.7 | BO46: 59.4 | BP46: 36.8 | BQ46: 6.3 | BR46: 2.4 | BS46: 6.5 | BT46: 2.8 | BU46: 4 | BV46: 4.4 | BW46: 1.8 | BX46: 2.5 | BY46: 0.5 | BZ46: 0.8 | CA46: 0.4 | CB46: 0 | CC46: 21.5 | CD46: 4.8 | CE46: 13.6 | CF46: 1.9 | CG46: 0.8 | CH46: 0.5 | CI46: 0.5 | CJ46: 0.4 | CK46: 0.4 | CL46: 0.2 | CM46: 0.1 | CN46: 0 | CO46: 0 | CP46: 0 | CQ46: 0 | CR46: 0 | CS46: 0 | CT46: 0 | CU46: 0 | CV46: 0 | CX46: 41445.76421 | CY46: 53287.41113 | CZ46: 44265.20395 | DA46: 81199.86458 | DB46: 144073.3708 | DC46: 79790.14471 | DD46: 74574.18118 | DE46: 116865.7773 | DF46: 79790.14471 | DG46: 61463.78638 | DH46: 173677.4881 | DI46: 52864.49517 | DJ46: 52723.52318 | DK46: 107420.6542 | DL46: 41586.7362 | DM46: 55120.04696 | DN46: 7894.431278 | DO46: 13251.36679 | DP46: 9868.039098 | DQ46: 31577.72511 | DR46: 64001.28215 | DS46: 35242.99678 | DT46: 19877.05018 | DU46: 17057.61044 | DV46: 96847.75515 | DW46: 128425.4803 | DX46: 74574.18118 | DY46: 84865.13624 | DZ46: 59631.15055 | EA46: 63155.45023 | EB46: 219775.3279 | EC46: 130540.0601 | ED46: 100513.0268 | EE46: 197783.6979 | EF46: 143932.3988 | EG46: 23683.29383 | EH46: 91067.90367 | EI46: 104037.3265 | EJ46: 127156.7324 | EK46: 133500.4718 | EL46: 72036.68541 | EM46: 37075.63261 | EN46: 57516.57074 | EO46: 34256.19287 | EP46: 120108.133 | EQ46: 91067.90367 | ER46: 24529.12576 | ES46: 71472.79747 | ET46: 66679.7499 | EU46: 53287.41113 | EV46: 80635.97663 | EW46: 41445.76421 | EX46: 33551.33293 | EY46: 49904.08344 | EZ46: 18326.35832 | FA46: 23260.37787 | FB46: 5215.963523 | FC46: 83737.36035 | FD46: 51877.69126 | FE46: 8881.235188 | FF46: 3383.327691 | FG46: 9163.179162 | FH46: 3947.215639 | FI46: 5638.879485 | FJ46: 6202.767433 | FK46: 2537.495768 | FL46: 3524.299678 | FM46: 704.8599356 | FN46: 1127.775897 | FO46: 563.8879485 | FP46: 0 | FQ46: 30308.97723 | FR46: 6766.655381 | FS46: 19172.19025 | FT46: 2678.467755 | FU46: 1127.775897 | FV46: 704.8599356 | FW46: 704.8599356 | FX46: 563.8879485 | FY46: 563.8879485 | FZ46: 281.9439742 | GA46: 140.9719871 | GB46: 0 | GC46: 0 | GD46: 0 | GE46: 0 | GF46: 0 | GG46: 0 | GH46: 0 | GI46: 0 | GJ46: 0
E47: > 66 kV & < = 132 kV | F47: 292.3861714 | G47: 0 | H47: 0 | I47: 2
E48: > 132 kV | F48: 911.106186 | G48: 0 | H48: 0 | I48: 2
A49: 2 | D49: OVERHEAD CONDUCTORS | E49: Other | F49: 372.1701857 | G49: 88.86622864 | H49: 9.426888598 | I49: 2 | J49: 0.7 | K49: 1 | L49: 0.1 | M49: 0.1 | N49: 0.1 | O49: 0.1 | P49: 0.1 | Q49: 0.1 | R49: 0.1 | S49: 0.1 | T49: 0.1 | U49: 0.1 | V49: 0.15 | W49: 0.15 | X49: 0.15 | Y49: 0.15 | Z49: 0.05 | AA49: 0.15 | AB49: 0.05 | AC49: 0.15 | AD49: 0.15 | AE49: 0.25 | AF49: 0.25 | AG49: 0.15 | AH49: 0.25 | AI49: 0.55 | AJ49: 0.55 | AK49: 0.45 | AL49: 0.75 | AM49: 0.65 | AN49: 0.65 | AO49: 0.55 | AP49: 0.45 | AQ49: 0.55 | AR49: 0.9 | AS49: 0.3 | AT49: 0.5 | AU49: 0.3 | AV49: 0.6 | AW49: 0.5 | AX49: 0.4 | AY49: 0.7 | AZ49: 0.5 | BA49: 0.3 | BB49: 0.4 | BC49: 0.5 | BD49: 0.5 | BE49: 0.5 | BF49: 0.3 | BG49: 0.4 | BH49: 0.4 | BI49: 0.2 | BJ49: 0.3 | BK49: 0.2 | BL49: 0.2 | BM49: 0.2 | BN49: 0.2 | BO49: 0.2 | BP49: 0 | BQ49: 0.1 | BR49: 0.1 | BS49: 0.1 | BT49: 0.1 | BU49: 0.1 | BV49: 0.1 | BW49: 0 | BX49: 0 | BY49: 0 | BZ49: 0 | CA49: 0 | CB49: 0 | CC49: 0 | CD49: 0 | CE49: 0.1 | CF49: 0.1 | CG49: 0.1 | CH49: 0.1 | CI49: 0 | CJ49: 0 | CK49: 0 | CL49: 0 | CM49: 0 | CN49: 0 | CO49: 0 | CP49: 0 | CQ49: 0 | CR49: 0 | CS49: 0 | CT49: 0 | CU49: 0 | CV49: 0 | CX49: 260.51913 | CY49: 372.1701857 | CZ49: 37.21701857 | DA49: 37.21701857 | DB49: 37.21701857 | DC49: 37.21701857 | DD49: 37.21701857 | DE49: 37.21701857 | DF49: 37.21701857 | DG49: 37.21701857 | DH49: 37.21701857 | DI49: 37.21701857 | DJ49: 55.82552786 | DK49: 55.82552786 | DL49: 55.82552786 | DM49: 55.82552786 | DN49: 18.60850929 | DO49: 55.82552786 | DP49: 18.60850929 | DQ49: 55.82552786 | DR49: 55.82552786 | DS49: 93.04254643 | DT49: 93.04254643 | DU49: 55.82552786 | DV49: 93.04254643 | DW49: 204.6936022 | DX49: 204.6936022 | DY49: 167.4765836 | DZ49: 279.1276393 | EA49: 241.9106207 | EB49: 241.9106207 | EC49: 204.6936022 | ED49: 167.4765836 | EE49: 204.6936022 | EF49: 334.9531672 | EG49: 111.6510557 | EH49: 186.0850929 | EI49: 111.6510557 | EJ49: 223.3021114 | EK49: 186.0850929 | EL49: 148.8680743 | EM49: 260.51913 | EN49: 186.0850929 | EO49: 111.6510557 | EP49: 148.8680743 | EQ49: 186.0850929 | ER49: 186.0850929 | ES49: 186.0850929 | ET49: 111.6510557 | EU49: 148.8680743 | EV49: 148.8680743 | EW49: 74.43403715 | EX49: 111.6510557 | EY49: 74.43403715 | EZ49: 74.43403715 | FA49: 74.43403715 | FB49: 74.43403715 | FC49: 74.43403715 | FD49: 0 | FE49: 37.21701857 | FF49: 37.21701857 | FG49: 37.21701857 | FH49: 37.21701857 | FI49: 37.21701857 | FJ49: 37.21701857 | FK49: 0 | FL49: 0 | FM49: 0 | FN49: 0 | FO49: 0 | FP49: 0 | FQ49: 0 | FR49: 0 | FS49: 37.21701857 | FT49: 37.21701857 | FU49: 37.21701857 | FV49: 37.21701857 | FW49: 0 | FX49: 0 | FY49: 0 | FZ49: 0 | GA49: 0 | GB49: 0 | GC49: 0 | GD49: 0 | GE49: 0 | GF49: 0 | GG49: 0 | GH49: 0 | GI49: 0 | GJ49: 0
A50: 3 | D50: UNDERGROUND CABLES | E50: ˂ = 1 kV | F50: 233.2997516 | G50: 41.42903072 | H50: 6.436538722 | I50: 2 | J50: 88.86146 | K50: 112.1102836 | L50: 158.6459115 | M50: 237.5103531 | N50: 266.7533696 | O50: 60.52387377 | P50: 198.4857005 | Q50: 159.0534797 | R50: 166.3897068 | S50: 175.8656669 | T50: 157.9326672 | U50: 227.728717 | V50: 227.830609 | W50: 121.6590998 | X50: 141.7318323 | Y50: 146.6226504 | Z50: 107.0885376 | AA50: 68.5733452 | AB50: 42.59087413 | AC50: 48.60250469 | AD50: 61.5427942 | AE50: 73.9736235 | AF50: 57.36522042 | AG50: 56.1425159 | AH50: 63.47874303 | AI50: 60.72765786 | AJ50: 50.94602169 | AK50: 33.42059023 | AL50: 37.8019481 | AM50: 25.88057902 | AN50: 19.46138029 | AO50: 6.826766907 | AP50: 11.5138009 | AQ50: 8.151363471 | AR50: 15.28380651 | AS50: 16.50651103 | AT50: 12.73650542 | AU50: 26.18625515 | AV50: 36.98681175 | AW50: 8.049471427 | AX50: 2.139732911 | AY50: 12.94028951 | AZ50: 1.834056781 | BA50: 1.324596564 | BB50: 1.018920434 | BC50: 0.7132443037 | BD50: 0.1018920434 | BE50: 0.2037840868 | BF50: 1.732164738 | BG50: 1.018920434 | BH50: 0.1018920434 | BI50: 0 | BJ50: 0 | BK50: 0 | BL50: 0 | BM50: 0 | BN50: 0 | BO50: 0 | BP50: 0.8151363471 | BQ50: 0 | BR50: 0 | BS50: 0 | BT50: 0 | BU50: 0 | BV50: 0 | BW50: 0 | BX50: 0 | BY50: 0 | BZ50: 0 | CA50: 0 | CB50: 0 | CC50: 0 | CD50: 0 | CE50: 0 | CF50: 0 | CG50: 0 | CH50: 0 | CI50: 0 | CJ50: 0 | CK50: 0 | CL50: 0 | CM50: 0 | CN50: 0 | CO50: 0 | CP50: 0 | CQ50: 0 | CR50: 0 | CS50: 0 | CT50: 0 | CU50: 0 | CV50: 0 | CX50: 20731.35654 | CY50: 26155.30132 | CZ50: 37012.05175 | DA50: 55411.10638 | DB50: 62233.49485 | DC50: 14120.20471 | DD50: 46306.66462 | DE50: 37107.13731 | DF50: 38818.67727 | DG50: 41029.41639 | DH50: 36845.65203 | DI50: 53129.05309 | DJ50: 53152.82448 | DK50: 28383.03776 | DL50: 33066.00128 | DM50: 34207.02792 | DN50: 24983.72922 | DO50: 15998.1444 | DP50: 9936.440355 | DQ50: 11338.95227 | DR50: 14357.9186 | DS50: 17258.02798 | DT50: 13383.29167 | DU50: 13098.03501 | DV50: 14809.57498 | DW50: 14167.74749 | DX50: 11885.6942 | DY50: 7797.015398 | DZ50: 8819.1851 | EA50: 6037.932656 | EB50: 4540.335186 | EC50: 1592.683023 | ED50: 2686.16689 | EE50: 1901.711073 | EF50: 3565.708261 | EG50: 3850.964922 | EH50: 2971.423551 | EI50: 6109.246821 | EJ50: 8629.013992 | EK50: 1877.939684 | EL50: 499.1991566 | EM50: 3018.966328 | EN50: 427.8849914 | EO50: 309.0280493 | EP50: 237.7138841 | EQ50: 166.3997189 | ER50: 23.77138841 | ES50: 47.54277682 | ET50: 404.1136029 | EU50: 237.7138841 | EV50: 23.77138841 | EW50: 0 | EX50: 0 | EY50: 0 | EZ50: 0 | FA50: 0 | FB50: 0 | FC50: 0 | FD50: 190.1711073 | FE50: 0 | FF50: 0 | FG50: 0 | FH50: 0 | FI50: 0 | FJ50: 0 | FK50: 0 | FL50: 0 | FM50: 0 | FN50: 0 | FO50: 0 | FP50: 0 | FQ50: 0 | FR50: 0 | FS50: 0 | FT50: 0 | FU50: 0 | FV50: 0 | FW50: 0 | FX50: 0 | FY50: 0 | FZ50: 0 | GA50: 0 | GB50: 0 | GC50: 0 | GD50: 0 | GE50: 0 | GF50: 0 | GG50: 0 | GH50: 0 | GI50: 0 | GJ50: 0
A51: 3 | D51: UNDERGROUND CABLES | E51: > 1 kV & < = 11 kV | F51: 610.1107977 | G51: 45.70686904 | H51: 6.760685545 | I51: 2 | J51: 0.32147 | K51: 0.1734054057 | L51: 0 | M51: 0 | N51: 0 | O51: 0.3030661799 | P51: 0.7071544198 | Q51: 0.3030661799 | R51: 0.6061323598 | S51: 0.2020441199 | T51: 0.7071544198 | U51: 0 | V51: 0 | W51: 0 | X51: 5.051102998 | Y51: 0 | Z51: 0.3030661799 | AA51: 3.232705919 | AB51: 0.10102206 | AC51: 0 | AD51: 0.10102206 | AE51: 0 | AF51: 0 | AG51: 0.4040882399 | AH51: 0 | AI51: 0.2020441199 | AJ51: 0.10102206 | AK51: 0 | AL51: 1.717375019 | AM51: 0 | AN51: 0 | AO51: 0 | AP51: 0 | AQ51: 0.10102206 | AR51: 0 | AS51: 1.717375019 | AT51: 0.10102206 | AU51: 0 | AV51: 0 | AW51: 0 | AX51: 0 | AY51: 0.2020441199 | AZ51: 0 | BA51: 0 | BB51: 0 | BC51: 0 | BD51: 0 | BE51: 0 | BF51: 0 | BG51: 0 | BH51: 0 | BI51: 0 | BJ51: 0 | BK51: 0 | BL51: 0 | BM51: 0 | BN51: 0 | BO51: 0 | BP51: 0 | BQ51: 0 | BR51: 0 | BS51: 0 | BT51: 0 | BU51: 0 | BV51: 0 | BW51: 0 | BX51: 0 | BY51: 0 | BZ51: 0 | CA51: 0 | CB51: 0 | CC51: 0 | CD51: 0 | CE51: 0 | CF51: 0 | CG51: 0 | CH51: 0 | CI51: 0 | CJ51: 0 | CK51: 0 | CL51: 0 | CM51: 0 | CN51: 0 | CO51: 0 | CP51: 0 | CQ51: 0 | CR51: 0 | CS51: 0 | CT51: 0 | CU51: 0 | CV51: 0 | CX51: 196.1323181 | CY51: 105.7965104 | CZ51: 0 | DA51: 0 | DB51: 0 | DC51: 184.9039488 | DD51: 431.4425471 | DE51: 184.9039488 | DF51: 369.8078975 | DG51: 123.2692992 | DH51: 431.4425471 | DI51: 0 | DJ51: 0 | DK51: 0 | DL51: 3081.732479 | DM51: 0 | DN51: 184.9039488 | DO51: 1972.308787 | DP51: 61.63464959 | DQ51: 0 | DR51: 61.63464959 | DS51: 0 | DT51: 0 | DU51: 246.5385984 | DV51: 0 | DW51: 123.2692992 | DX51: 61.63464959 | DY51: 0 | DZ51: 1047.789043 | EA51: 0 | EB51: 0 | EC51: 0 | ED51: 0 | EE51: 61.63464959 | EF51: 0 | EG51: 1047.789043 | EH51: 61.63464959 | EI51: 0 | EJ51: 0 | EK51: 0 | EL51: 0 | EM51: 123.2692992 | EN51: 0 | EO51: 0 | EP51: 0 | EQ51: 0 | ER51: 0 | ES51: 0 | ET51: 0 | EU51: 0 | EV51: 0 | EW51: 0 | EX51: 0 | EY51: 0 | EZ51: 0 | FA51: 0 | FB51: 0 | FC51: 0 | FD51: 0 | FE51: 0 | FF51: 0 | FG51: 0 | FH51: 0 | FI51: 0 | FJ51: 0 | FK51: 0 | FL51: 0 | FM51: 0 | FN51: 0 | FO51: 0 | FP51: 0 | FQ51: 0 | FR51: 0 | FS51: 0 | FT51: 0 | FU51: 0 | FV51: 0 | FW51: 0 | FX51: 0 | FY51: 0 | FZ51: 0 | GA51: 0 | GB51: 0 | GC51: 0 | GD51: 0 | GE51: 0 | GF51: 0 | GG51: 0 | GH51: 0 | GI51: 0 | GJ51: 0
A52: 3 | D52: UNDERGROUND CABLES | E52: > 11 kV & < = 22 kV | F52: 829.6849155 | G52: 48.41820404 | H52: 6.958319053 | I52: 2 | J52: 69.105284 | K52: 76.18327879 | L52: 44.8267122 | M52: 82.51733345 | N52: 81.21072525 | O52: 39.90180436 | P52: 112.4688138 | Q52: 80.90920028 | R52: 83.32140004 | S52: 87.24122465 | T52: 67.74260992 | U52: 82.51733345 | V52: 70.85836795 | W52: 52.36483645 | X52: 73.87361765 | Y52: 72.06446783 | Z52: 47.64094526 | AA52: 44.8267122 | AB52: 32.76571341 | AC52: 24.22250592 | AD52: 37.28858796 | AE52: 31.05707191 | AF52: 16.58387335 | AG52: 21.20725622 | AH52: 19.69963137 | AI52: 16.08133173 | AJ52: 22.71488107 | AK52: 11.35744054 | AL52: 14.17167359 | AM52: 11.75947383 | AN52: 9.64879904 | AO52: 5.326941136 | AP52: 5.025416166 | AQ52: 4.020332933 | AR52: 5.42744946 | AS52: 6.834565986 | AT52: 4.924907843 | AU52: 8.14117419 | AV52: 9.548290716 | AW52: 0.8040665866 | AX52: 3.517791317 | AY52: 0.8040665866 | AZ52: 0.7035582633 | BA52: 0.90457491 | BB52: 1.20609988 | BC52: 0.7035582633 | BD52: 3.0152497 | BE52: 0.2010166467 | BF52: 6.131007723 | BG52: 0.1005083233 | BH52: 0 | BI52: 0.1005083233 | BJ52: 0 | BK52: 0 | BL52: 0.1005083233 | BM52: 0 | BN52: 0.1005083233 | BO52: 0 | BP52: 0.7035582633 | BQ52: 0 | BR52: 0 | BS52: 0 | BT52: 0.1005083233 | BU52: 0 | BV52: 0 | BW52: 0.1005083233 | BX52: 0 | BY52: 0 | BZ52: 0 | CA52: 0 | CB52: 0 | CC52: 0 | CD52: 0 | CE52: 0 | CF52: 0 | CG52: 0 | CH52: 0 | CI52: 0 | CJ52: 0 | CK52: 0 | CL52: 0 | CM52: 0 | CN52: 0 | CO52: 0 | CP52: 0 | CQ52: 0 | CR52: 0 | CS52: 0 | CT52: 0 | CU52: 0 | CV52: 0 | CX52: 57335.61171 | CY52: 63208.11722 | CZ52: 37192.04693 | DA52: 68463.38683 | DB52: 67379.31371 | DC52: 33105.92518 | DD52: 93313.67827 | DE52: 67129.14299 | DF52: 69130.50875 | DG52: 72382.7281 | DH52: 56205.02159 | DI52: 68463.38683 | DJ52: 58790.11902 | DK52: 43446.31491 | DL52: 61291.82621 | DM52: 59790.8019 | DN52: 39526.97364 | DO52: 37192.04693 | DP52: 27185.21816 | DQ52: 20097.04778 | DR52: 30937.77895 | DS52: 25767.58408 | DT52: 13759.38956 | DU52: 17595.34059 | DV52: 16344.48699 | DW52: 13342.43836 | DX52: 18846.19418 | DY52: 9423.097091 | DZ52: 11758.0238 | EA52: 9756.65805 | EB52: 8005.463016 | EC52: 4419.682706 | ED52: 4169.511987 | EE52: 3335.60959 | EF52: 4503.072946 | EG52: 5670.536303 | EH52: 4086.121747 | EI52: 6754.609419 | EJ52: 7922.072776 | EK52: 667.121918 | EL52: 2918.658391 | EM52: 667.121918 | EN52: 583.7316782 | EO52: 750.5121577 | EP52: 1000.682877 | EQ52: 583.7316782 | ER52: 2501.707192 | ES52: 166.7804795 | ET52: 5086.804624 | EU52: 83.39023974 | EV52: 0 | EW52: 83.39023974 | EX52: 0 | EY52: 0 | EZ52: 83.39023974 | FA52: 0 | FB52: 83.39023974 | FC52: 0 | FD52: 583.7316782 | FE52: 0 | FF52: 0 | FG52: 0 | FH52: 83.39023974 | FI52: 0 | FJ52: 0 | FK52: 83.39023974 | FL52: 0 | FM52: 0 | FN52: 0 | FO52: 0 | FP52: 0 | FQ52: 0 | FR52: 0 | FS52: 0 | FT52: 0 | FU52: 0 | FV52: 0 | FW52: 0 | FX52: 0 | FY52: 0 | FZ52: 0 | GA52: 0 | GB52: 0 | GC52: 0 | GD52: 0 | GE52: 0 | GF52: 0 | GG52: 0 | GH52: 0 | GI52: 0 | GJ52: 0
E53: > 22 kV & < = 33 kV | F53: 1082.58162 | G53: 0 | H53: 0 | I53: 2
A54: 3 | D54: UNDERGROUND CABLES | E54: > 33 kV & < = 66 kV | F54: 156.9692204 | G54: 45.70686904 | H54: 6.760685545 | I54: 2 | J54: 0.414207 | K54: 0 | L54: 0 | M54: 0 | N54: 0 | O54: 0 | P54: 0 | Q54: 0.1056014333 | R54: 0 | S54: 0.3168043 | T54: 2.2176301 | U54: 0.3168043 | V54: 0 | W54: 0 | X54: 0 | Y54: 0 | Z54: 0 | AA54: 0 | AB54: 0 | AC54: 0 | AD54: 0 | AE54: 0 | AF54: 0 | AG54: 0 | AH54: 0 | AI54: 0 | AJ54: 0 | AK54: 0 | AL54: 0.2112028667 | AM54: 0 | AN54: 0 | AO54: 0 | AP54: 0 | AQ54: 0 | AR54: 0 | AS54: 0 | AT54: 0 | AU54: 0 | AV54: 0 | AW54: 0 | AX54: 0 | AY54: 0 | AZ54: 0 | BA54: 0 | BB54: 0 | BC54: 0 | BD54: 0 | BE54: 0 | BF54: 0 | BG54: 0 | BH54: 0 | BI54: 0 | BJ54: 0 | BK54: 0 | BL54: 0 | BM54: 0 | BN54: 0 | BO54: 0 | BP54: 0 | BQ54: 0 | BR54: 0 | BS54: 0 | BT54: 0 | BU54: 0 | BV54: 0 | BW54: 0 | BX54: 0 | BY54: 0 | BZ54: 0 | CA54: 0 | CB54: 0 | CC54: 0 | CD54: 0 | CE54: 0 | CF54: 0 | CG54: 0 | CH54: 0 | CI54: 0 | CJ54: 0 | CK54: 0 | CL54: 0 | CM54: 0 | CN54: 0 | CO54: 0 | CP54: 0 | CQ54: 0 | CR54: 0 | CS54: 0 | CT54: 0 | CU54: 0 | CV54: 0 | CX54: 65.01774986 | CY54: 0 | CZ54: 0 | DA54: 0 | DB54: 0 | DC54: 0 | DD54: 0 | DE54: 16.57617466 | DF54: 0 | DG54: 49.72852398 | DH54: 348.0996678 | DI54: 49.72852398 | DJ54: 0 | DK54: 0 | DL54: 0 | DM54: 0 | DN54: 0 | DO54: 0 | DP54: 0 | DQ54: 0 | DR54: 0 | DS54: 0 | DT54: 0 | DU54: 0 | DV54: 0 | DW54: 0 | DX54: 0 | DY54: 0 | DZ54: 33.15234932 | EA54: 0 | EB54: 0 | EC54: 0 | ED54: 0 | EE54: 0 | EF54: 0 | EG54: 0 | EH54: 0 | EI54: 0 | EJ54: 0 | EK54: 0 | EL54: 0 | EM54: 0 | EN54: 0 | EO54: 0 | EP54: 0 | EQ54: 0 | ER54: 0 | ES54: 0 | ET54: 0 | EU54: 0 | EV54: 0 | EW54: 0 | EX54: 0 | EY54: 0 | EZ54: 0 | FA54: 0 | FB54: 0 | FC54: 0 | FD54: 0 | FE54: 0 | FF54: 0 | FG54: 0 | FH54: 0 | FI54: 0 | FJ54: 0 | FK54: 0 | FL54: 0 | FM54: 0 | FN54: 0 | FO54: 0 | FP54: 0 | FQ54: 0 | FR54: 0 | FS54: 0 | FT54: 0 | FU54: 0 | FV54: 0 | FW54: 0 | FX54: 0 | FY54: 0 | FZ54: 0 | GA54: 0 | GB54: 0 | GC54: 0 | GD54: 0 | GE54: 0 | GF54: 0 | GG54: 0 | GH54: 0 | GI54: 0 | GJ54: 0
E55: > 66 kV & < = 132 kV | F55: 3019.570588 | G55: 0 | H55: 0 | I55: 2
E56: > 132 kV | F56: 0.0001 | G56: 0 | H56: 0 | I56: 2
A57: 3 | D57: UNDERGROUND CABLES | E57: Other | F57: 847.4595704 | G57: 45.70686904 | H57: 6.760685545 | I57: 2 | J57: 25.90092 | K57: 28.90418101 | L57: 38.34429282 | M57: 57.4155332 | N57: 64.47895556 | O57: 21.79570329 | P57: 72.75325032 | Q57: 50.04939273 | R57: 63.46989522 | S57: 63.16717712 | T57: 58.9291237 | U57: 84.66016231 | V57: 71.13875378 | W57: 44.80227898 | X57: 46.61858759 | Y57: 55.29650649 | Z57: 36.12436008 | AA57: 21.19026708 | AB57: 20.68573692 | AC57: 17.15402574 | AD57: 20.78664295 | AE57: 27.44644118 | AF57: 20.28211278 | AG57: 24.41926016 | AH57: 19.27305244 | AI57: 21.89660932 | AJ57: 14.32865679 | AK57: 15.8422473 | AL57: 6.76070426 | AM57: 10.39332147 | AN57: 13.31959645 | AO57: 4.036241349 | AP57: 7.56795253 | AQ57: 10.19150941 | AR57: 11.30147578 | AS57: 3.935335316 | AT57: 5.448925822 | AU57: 8.677918901 | AV57: 12.91597232 | AW57: 5.448925822 | AX57: 0.3027181012 | AY57: 0.7063422362 | AZ57: 5.448925822 | BA57: 0.9081543036 | BB57: 0.8072482699 | BC57: 0.8072482699 | BD57: 0 | BE57: 1.009060337 | BF57: 0.5045301687 | BG57: 0 | BH57: 0.5045301687 | BI57: 0 | BJ57: 0 | BK57: 0 | BL57: 0 | BM57: 0 | BN57: 0 | BO57: 0 | BP57: 0.1009060337 | BQ57: 0 | BR57: 0 | BS57: 0 | BT57: 0 | BU57: 0 | BV57: 0 | BW57: 0 | BX57: 0 | BY57: 0 | BZ57: 0 | CA57: 0 | CB57: 0 | CC57: 0 | CD57: 0 | CE57: 0 | CF57: 0 | CG57: 0 | CH57: 0 | CI57: 0 | CJ57: 0 | CK57: 0 | CL57: 0 | CM57: 0 | CN57: 0 | CO57: 0 | CP57: 0 | CQ57: 0 | CR57: 0 | CS57: 0 | CT57: 0 | CU57: 0 | CV57: 0 | CX57: 21949.98254 | CY57: 24495.12483 | CZ57: 32495.23792 | DA57: 48657.3431 | DB57: 54643.30798 | DC57: 18470.97735 | DD57: 61655.43827 | DE57: 42414.83687 | DF57: 53788.17014 | DG57: 53531.62879 | DH57: 49940.04986 | DI57: 71746.06478 | DJ57: 60287.21772 | DK57: 37968.1201 | DL57: 39507.36821 | DM57: 46861.55364 | DN57: 30613.93467 | DO57: 17957.89464 | DP57: 17530.32572 | DQ57: 14537.34328 | DR57: 17615.83951 | DS57: 23259.74925 | DT57: 17188.27059 | DU57: 20694.33573 | DV57: 16333.13275 | DW57: 18556.49113 | DX57: 12142.95733 | DY57: 13425.66409 | DZ57: 5729.423528 | EA57: 8807.919753 | EB57: 11287.81949 | EC57: 3420.55136 | ED57: 6413.5338 | EE57: 8636.892185 | EF57: 9577.543809 | EG57: 3335.037576 | EH57: 4617.744336 | EI57: 7354.185425 | EJ57: 10945.76435 | EK57: 4617.744336 | EL57: 256.541352 | EM57: 598.596488 | EN57: 4617.744336 | EO57: 769.6240561 | EP57: 684.110272 | EQ57: 684.110272 | ER57: 0 | ES57: 855.1378401 | ET57: 427.56892 | EU57: 0 | EV57: 427.56892 | EW57: 0 | EX57: 0 | EY57: 0 | EZ57: 0 | FA57: 0 | FB57: 0 | FC57: 0 | FD57: 85.51378401 | FE57: 0 | FF57: 0 | FG57: 0 | FH57: 0 | FI57: 0 | FJ57: 0 | FK57: 0 | FL57: 0 | FM57: 0 | FN57: 0 | FO57: 0 | FP57: 0 | FQ57: 0 | FR57: 0 | FS57: 0 | FT57: 0 | FU57: 0 | FV57: 0 | FW57: 0 | FX57: 0 | FY57: 0 | FZ57: 0 | GA57: 0 | GB57: 0 | GC57: 0 | GD57: 0 | GE57: 0 | GF57: 0 | GG57: 0 | GH57: 0 | GI57: 0 | GJ57: 0
A58: 4 | D58: SERVICE LINES | E58: ˂ = 11 kV ; Residential ; Simple Type | F58: 58.18501236 | G58: 60.07031237 | H58: 7.750504008 | I58: 2 | J58: 263.43526 | K58: 280.266984 | L58: 221.872568 | M58: 332.128039 | N58: 372.9895147 | O58: 128.8135338 | P58: 264.8107918 | Q58: 257.7836922 | R58: 254.4607247 | S58: 243.7112264 | T58: 225.6925411 | U58: 283.6632844 | V58: 248.415074 | W58: 180.2628818 | X58: 193.32051 | Y58: 176.2993991 | Z58: 114.8811485 | AA58: 81.12723377 | AB58: 42.5690368 | AC58: 78.24934805 | AD58: 99.20612294 | AE58: 160.0045506 | AF58: 134.8831554 | AG58: 108.3420714 | AH58: 148.3320848 | AI58: 247.3469225 | AJ58: 247.0514892 | AK58: 191.9406494 | AL58: 313.1863 | AM58: 240.6884411 | AN58: 217.5960022 | AO58: 163.2516394 | AP58: 120.6081299 | AQ58: 162.5259619 | AR58: 287.9035632 | AS58: 122.3467883 | AT58: 198.3673303 | AU58: 148.5957177 | AV58: 248.9059887 | AW58: 204.982168 | AX58: 164.030813 | AY58: 227.80271 | AZ58: 181.5051355 | BA58: 134.4256775 | BB58: 144.1154065 | BC58: 201.9051355 | BD58: 195.7 | BE58: 206.3 | BF58: 137.510271 | BG58: 161.7051355 | BH58: 159.9 | BI58: 92.3 | BJ58: 106.3 | BK58: 95.1 | BL58: 89.4 | BM58: 77.6 | BN58: 67.4 | BO58: 72.5 | BP58: 18.01540649 | BQ58: 22.8 | BR58: 15.8 | BS58: 22.3 | BT58: 29.7 | BU58: 23 | BV58: 36.5 | BW58: 12.8 | BX58: 7.5 | BY58: 7.2 | BZ58: 6 | CA58: 3.6 | CB58: 2 | CC58: 1.6 | CD58: 5.1 | CE58: 22 | CF58: 43.7 | CG58: 26.2 | CH58: 46.8 | CI58: 10.4 | CJ58: 7.3 | CK58: 2.4 | CL58: 5.8 | CM58: 2 | CN58: 1.5 | CO58: 0.8 | CP58: 1.3 | CQ58: 0 | CR58: 0 | CS58: 0 | CT58: 0 | CU58: 0 | CV58: 0 | CX58: 15327.98386 | CY58: 16307.33793 | CZ58: 12909.65811 | DA58: 19324.87405 | DB58: 21702.39953 | DC58: 7495.017055 | DD58: 15408.01919 | DE58: 14999.14732 | DF58: 14805.80041 | DG58: 14180.34072 | DH58: 13131.9233 | DI58: 16504.95171 | DJ58: 14454.03415 | DK58: 10488.59801 | DL58: 11248.35626 | DM58: 10257.98272 | DN58: 6684.361045 | DO58: 4720.3891 | DP58: 2476.879932 | DQ58: 4552.939284 | DR58: 5772.30949 | DS58: 9309.866758 | DT58: 7848.178065 | DU58: 6303.884766 | DV58: 8630.704191 | DW58: 14391.88374 | DX58: 14374.69395 | DY58: 11168.06906 | DZ58: 18222.74874 | EA58: 14004.45992 | EB58: 12660.82608 | EC58: 9498.798657 | ED58: 7017.585528 | EE58: 9456.575103 | EF58: 16751.67238 | EG58: 7118.749391 | EH58: 11542.00557 | EI58: 8646.043674 | EJ58: 14482.59803 | EK58: 11926.88998 | EL58: 9544.134882 | EM58: 13254.7035 | EN58: 10560.87855 | EO58: 7821.559707 | EP58: 8385.356709 | EQ58: 11747.85281 | ER58: 11386.80692 | ES58: 12003.56805 | ET58: 8001.036818 | EU58: 9408.815308 | EV58: 9303.783477 | EW58: 5370.476641 | EX58: 6185.066814 | EY58: 5533.394676 | EZ58: 5201.740105 | FA58: 4515.156959 | FB58: 3921.669833 | FC58: 4218.413396 | FD58: 1048.22665 | FE58: 1326.618282 | FF58: 919.3231954 | FG58: 1297.525776 | FH58: 1728.094867 | FI58: 1338.255284 | FJ58: 2123.752951 | FK58: 744.7681583 | FL58: 436.3875927 | FM58: 418.932089 | FN58: 349.1100742 | FO58: 209.4660445 | FP58: 116.3700247 | FQ58: 93.09601978 | FR58: 296.7435631 | FS58: 1280.070272 | FT58: 2542.68504 | FU58: 1524.447324 | FV58: 2723.058579 | FW58: 605.1241286 | FX58: 424.7505903 | FY58: 139.6440297 | FZ58: 337.4730717 | GA58: 116.3700247 | GB58: 87.27751855 | GC58: 46.54800989 | GD58: 75.64051607 | GE58: 0 | GF58: 0 | GG58: 0 | GH58: 0 | GI58: 0 | GJ58: 0
E59: ˂ = 11 kV ; Commercial & Industrial ; Simple Type | F59: 0.792017314 | G59: 0 | H59: 0 | I59: 2
E60: ˂ = 11 kV ; Residential ; Complex Type | F60: 0.4708645922 | G60: 0 | H60: 0 | I60: 2
E61: ˂ = 11 kV ; Commercial & Industrial ; Complex Type | F61: 0.5117431138 | G61: 0 | H61: 0 | I61: 2
E62: ˂ = 11 kV ; Subdivision ; Complex Type | F62: 0.0001 | G62: 0 | H62: 0 | I62: 2
E63: > 11 kV & < = 22 kV ; Commercial & Industrial | F63: 0.0001 | G63: 0 | H63: 0 | I63: 2
E64: > 11 kV & < = 22 kV ; Subdivision | F64: 0.0001 | G64: 0 | H64: 0 | I64: 2
E65: > 22 kV & < = 33 kV ; Commercial & Industrial | F65: 0.0001 | G65: 0 | H65: 0 | I65: 2
E66: > 22 kV & < = 33 kV ; Subdivision | F66: 0.0001 | G66: 0 | H66: 0 | I66: 2
E67: > 33 kV & < = 66 kV ; Commercial & Industrial | F67: 0.0001 | G67: 0 | H67: 0 | I67: 2
E68: > 33 kV & < = 66 kV ; Subdivision | F68: 0.0001 | G68: 0 | H68: 0 | I68: 2
E69: > 66 kV & < = 132 kV ; Commercial & Industrial | F69: 0.0001 | G69: 0 | H69: 0 | I69: 2
E70: > 66 kV & < = 132 kV ; Subdivision | F70: 0.0001 | G70: 0 | H70: 0 | I70: 2
E71: > 132 kV ; Commercial & Industrial | F71: 0.0001 | G71: 0 | H71: 0 | I71: 2
E72: > 132 kV ; Subdivision | F72: 0.0001 | G72: 0 | H72: 0 | I72: 2
E73: Other | F73: 0.0001 | G73: 0 | H73: 0 | I73: 2
A74: 5 | D74: TRANSFORMERS | E74: Pole Mounted ; < = 22kV ; < = 60 kVA ; Single Phase | F74: 6.510185076 | G74: 51.95831062 | H74: 7.208211333 | I74: 2 | J74: 459 | K74: 580 | L74: 301 | M74: 551 | N74: 542 | O74: 322 | P74: 750 | Q74: 933 | R74: 979 | S74: 832 | T74: 690 | U74: 712 | V74: 660 | W74: 729 | X74: 632 | Y74: 646 | Z74: 693 | AA74: 581 | AB74: 581 | AC74: 588 | AD74: 642 | AE74: 706 | AF74: 688 | AG74: 773 | AH74: 871 | AI74: 1031 | AJ74: 1145 | AK74: 986 | AL74: 935 | AM74: 1026 | AN74: 861 | AO74: 703 | AP74: 743 | AQ74: 825 | AR74: 804 | AS74: 776 | AT74: 631 | AU74: 622 | AV74: 866 | AW74: 372 | AX74: 277 | AY74: 331 | AZ74: 269 | BA74: 234 | BB74: 435 | BC74: 479 | BD74: 500 | BE74: 548 | BF74: 608 | BG74: 546 | BH74: 517 | BI74: 311 | BJ74: 269 | BK74: 231 | BL74: 201 | BM74: 126 | BN74: 144 | BO74: 93 | BP74: 78 | BQ74: 53 | BR74: 35 | BS74: 34 | BT74: 23 | BU74: 8 | BV74: 3 | BW74: 0 | BX74: 0 | BY74: 0 | BZ74: 0 | CA74: 0 | CB74: 0 | CC74: 0 | CD74: 0 | CE74: 0 | CF74: 0 | CG74: 0 | CH74: 0 | CI74: 0 | CJ74: 0 | CK74: 0 | CL74: 0 | CM74: 0 | CN74: 0 | CO74: 0 | CP74: 0 | CQ74: 0 | CR74: 0 | CS74: 0 | CT74: 0 | CU74: 0 | CV74: 0 | CX74: 2988.17495 | CY74: 3775.907344 | CZ74: 1959.565708 | DA74: 3587.111977 | DB74: 3528.520311 | DC74: 2096.279594 | DD74: 4882.638807 | DE74: 6074.002676 | DF74: 6373.471189 | DG74: 5416.473983 | DH74: 4492.027702 | DI74: 4635.251774 | DJ74: 4296.72215 | DK74: 4745.92492 | DL74: 4114.436968 | DM74: 4205.579559 | DN74: 4511.558257 | DO74: 3782.417529 | DP74: 3782.417529 | DQ74: 3827.988824 | DR74: 4179.538819 | DS74: 4596.190663 | DT74: 4479.007332 | DU74: 5032.373063 | DV74: 5670.371201 | DW74: 6712.000813 | DX74: 7454.161912 | DY74: 6419.042485 | DZ74: 6087.023046 | EA74: 6679.449888 | EB74: 5605.26935 | EC74: 4576.660108 | ED74: 4837.067511 | EE74: 5370.902687 | EF74: 5234.188801 | EG74: 5051.903619 | EH74: 4107.926783 | EI74: 4049.335117 | EJ74: 5637.820275 | EK74: 2421.788848 | EL74: 1803.321266 | EM74: 2154.87126 | EN74: 1751.239785 | EO74: 1523.383308 | EP74: 2831.930508 | EQ74: 3118.378651 | ER74: 3255.092538 | ES74: 3567.581421 | ET74: 3958.192526 | EU74: 3554.561051 | EV74: 3365.765684 | EW74: 2024.667559 | EX74: 1751.239785 | EY74: 1503.852752 | EZ74: 1308.5472 | FA74: 820.2833195 | FB74: 937.4666509 | FC74: 605.447212 | FD74: 507.7944359 | FE74: 345.039809 | FF74: 227.8564776 | FG74: 221.3462926 | FH74: 149.7342567 | FI74: 52.0814806 | FJ74: 19.53055523 | FK74: 0 | FL74: 0 | FM74: 0 | FN74: 0 | FO74: 0 | FP74: 0 | FQ74: 0 | FR74: 0 | FS74: 0 | FT74: 0 | FU74: 0 | FV74: 0 | FW74: 0 | FX74: 0 | FY74: 0 | FZ74: 0 | GA74: 0 | GB74: 0 | GC74: 0 | GD74: 0 | GE74: 0 | GF74: 0 | GG74: 0 | GH74: 0 | GI74: 0 | GJ74: 0
A75: 5 | D75: TRANSFORMERS | E75: Pole Mounted ; < = 22kV ; > 60 kVA and < = 600 kVA ; Single Phase | F75: 25.83480024 | G75: 52.69807993 | H75: 7.259344318 | I75: 2 | J75: 26 | K75: 16 | L75: 8 | M75: 15 | N75: 15 | O75: 9 | P75: 21 | Q75: 26 | R75: 27 | S75: 23 | T75: 19 | U75: 20 | V75: 18 | W75: 20 | X75: 18 | Y75: 18 | Z75: 19 | AA75: 16 | AB75: 16 | AC75: 16 | AD75: 18 | AE75: 20 | AF75: 19 | AG75: 22 | AH75: 24 | AI75: 29 | AJ75: 32 | AK75: 27 | AL75: 26 | AM75: 29 | AN75: 24 | AO75: 20 | AP75: 21 | AQ75: 23 | AR75: 22 | AS75: 22 | AT75: 18 | AU75: 17 | AV75: 24 | AW75: 10 | AX75: 8 | AY75: 9 | AZ75: 7 | BA75: 7 | BB75: 12 | BC75: 13 | BD75: 14 | BE75: 15 | BF75: 17 | BG75: 15 | BH75: 14 | BI75: 9 | BJ75: 7 | BK75: 6 | BL75: 6 | BM75: 4 | BN75: 4 | BO75: 3 | BP75: 2 | BQ75: 1 | BR75: 1 | BS75: 1 | BT75: 1 | BU75: 0 | BV75: 0 | BW75: 0 | BX75: 0 | BY75: 0 | BZ75: 0 | CA75: 0 | CB75: 0 | CC75: 0 | CD75: 0 | CE75: 0 | CF75: 0 | CG75: 0 | CH75: 0 | CI75: 0 | CJ75: 0 | CK75: 0 | CL75: 0 | CM75: 0 | CN75: 0 | CO75: 0 | CP75: 0 | CQ75: 0 | CR75: 0 | CS75: 0 | CT75: 0 | CU75: 0 | CV75: 0 | CX75: 671.7048062 | CY75: 413.3568038 | CZ75: 206.6784019 | DA75: 387.5220036 | DB75: 387.5220036 | DC75: 232.5132022 | DD75: 542.530805 | DE75: 671.7048062 | DF75: 697.5396065 | DG75: 594.2004055 | DH75: 490.8612045 | DI75: 516.6960048 | DJ75: 465.0264043 | DK75: 516.6960048 | DL75: 465.0264043 | DM75: 465.0264043 | DN75: 490.8612045 | DO75: 413.3568038 | DP75: 413.3568038 | DQ75: 413.3568038 | DR75: 465.0264043 | DS75: 516.6960048 | DT75: 490.8612045 | DU75: 568.3656053 | DV75: 620.0352057 | DW75: 749.2092069 | DX75: 826.7136077 | DY75: 697.5396065 | DZ75: 671.7048062 | EA75: 749.2092069 | EB75: 620.0352057 | EC75: 516.6960048 | ED75: 542.530805 | EE75: 594.2004055 | EF75: 568.3656053 | EG75: 568.3656053 | EH75: 465.0264043 | EI75: 439.1916041 | EJ75: 620.0352057 | EK75: 258.3480024 | EL75: 206.6784019 | EM75: 232.5132022 | EN75: 180.8436017 | EO75: 180.8436017 | EP75: 310.0176029 | EQ75: 335.8524031 | ER75: 361.6872033 | ES75: 387.5220036 | ET75: 439.1916041 | EU75: 387.5220036 | EV75: 361.6872033 | EW75: 232.5132022 | EX75: 180.8436017 | EY75: 155.0088014 | EZ75: 155.0088014 | FA75: 103.339201 | FB75: 103.339201 | FC75: 77.50440072 | FD75: 51.66960048 | FE75: 25.83480024 | FF75: 25.83480024 | FG75: 25.83480024 | FH75: 25.83480024 | FI75: 0 | FJ75: 0 | FK75: 0 | FL75: 0 | FM75: 0 | FN75: 0 | FO75: 0 | FP75: 0 | FQ75: 0 | FR75: 0 | FS75: 0 | FT75: 0 | FU75: 0 | FV75: 0 | FW75: 0 | FX75: 0 | FY75: 0 | FZ75: 0 | GA75: 0 | GB75: 0 | GC75: 0 | GD75: 0 | GE75: 0 | GF75: 0 | GG75: 0 | GH75: 0 | GI75: 0 | GJ75: 0
E76: Pole Mounted ; < = 22kV ; > 600 kVA ; Single Phase | F76: 0.0001 | G76: 0 | H76: 0 | I76: 2
A77: 5 | D77: TRANSFORMERS | E77: Pole Mounted ; < = 22kV ; < = 60 kVA ; Multiple Phase | F77: 12.65369873 | G77: 58.86886197 | H77: 7.672604641 | I77: 2 | J77: 52 | K77: 120 | L77: 62 | M77: 114 | N77: 112 | O77: 66 | P77: 155 | Q77: 193 | R77: 202 | S77: 172 | T77: 142 | U77: 147 | V77: 136 | W77: 150 | X77: 131 | Y77: 133 | Z77: 143 | AA77: 120 | AB77: 120 | AC77: 121 | AD77: 132 | AE77: 146 | AF77: 142 | AG77: 160 | AH77: 180 | AI77: 213 | AJ77: 236 | AK77: 203 | AL77: 193 | AM77: 212 | AN77: 178 | AO77: 145 | AP77: 153 | AQ77: 170 | AR77: 166 | AS77: 160 | AT77: 130 | AU77: 128 | AV77: 179 | AW77: 77 | AX77: 57 | AY77: 68 | AZ77: 56 | BA77: 48 | BB77: 90 | BC77: 99 | BD77: 103 | BE77: 113 | BF77: 126 | BG77: 113 | BH77: 107 | BI77: 64 | BJ77: 56 | BK77: 48 | BL77: 41 | BM77: 26 | BN77: 30 | BO77: 19 | BP77: 16 | BQ77: 11 | BR77: 7 | BS77: 7 | BT77: 5 | BU77: 2 | BV77: 1 | BW77: 0 | BX77: 0 | BY77: 0 | BZ77: 0 | CA77: 0 | CB77: 0 | CC77: 0 | CD77: 0 | CE77: 0 | CF77: 0 | CG77: 0 | CH77: 0 | CI77: 0 | CJ77: 0 | CK77: 0 | CL77: 0 | CM77: 0 | CN77: 0 | CO77: 0 | CP77: 0 | CQ77: 0 | CR77: 0 | CS77: 0 | CT77: 0 | CU77: 0 | CV77: 0 | CX77: 657.992334 | CY77: 1518.443848 | CZ77: 784.5293213 | DA77: 1442.521655 | DB77: 1417.214258 | DC77: 835.1441162 | DD77: 1961.323303 | DE77: 2442.163855 | DF77: 2556.047144 | DG77: 2176.436182 | DH77: 1796.82522 | DI77: 1860.093713 | DJ77: 1720.903027 | DK77: 1898.05481 | DL77: 1657.634534 | DM77: 1682.941931 | DN77: 1809.478918 | DO77: 1518.443848 | DP77: 1518.443848 | DQ77: 1531.097546 | DR77: 1670.288232 | DS77: 1847.440015 | DT77: 1796.82522 | DU77: 2024.591797 | DV77: 2277.665771 | DW77: 2695.23783 | DX77: 2986.2729 | DY77: 2568.700842 | DZ77: 2442.163855 | EA77: 2682.584131 | EB77: 2252.358374 | EC77: 1834.786316 | ED77: 1936.015906 | EE77: 2151.128784 | EF77: 2100.513989 | EG77: 2024.591797 | EH77: 1644.980835 | EI77: 1619.673437 | EJ77: 2265.012073 | EK77: 974.3348022 | EL77: 721.2608276 | EM77: 860.4515137 | EN77: 708.6071289 | EO77: 607.377539 | EP77: 1138.832886 | EQ77: 1252.716174 | ER77: 1303.330969 | ES77: 1429.867957 | ET77: 1594.36604 | EU77: 1429.867957 | EV77: 1353.945764 | EW77: 809.8367187 | EX77: 708.6071289 | EY77: 607.377539 | EZ77: 518.8016479 | FA77: 328.996167 | FB77: 379.6109619 | FC77: 240.4202759 | FD77: 202.4591797 | FE77: 139.190686 | FF77: 88.57589111 | FG77: 88.57589111 | FH77: 63.26849365 | FI77: 25.30739746 | FJ77: 12.65369873 | FK77: 0 | FL77: 0 | FM77: 0 | FN77: 0 | FO77: 0 | FP77: 0 | FQ77: 0 | FR77: 0 | FS77: 0 | FT77: 0 | FU77: 0 | FV77: 0 | FW77: 0 | FX77: 0 | FY77: 0 | FZ77: 0 | GA77: 0 | GB77: 0 | GC77: 0 | GD77: 0 | GE77: 0 | GF77: 0 | GG77: 0 | GH77: 0 | GI77: 0 | GJ77: 0
A78: 5 | D78: TRANSFORMERS | E78: Pole Mounted ; < = 22kV ; > 60 kVA and < = 600 kVA ; Multiple Phase | F78: 22.55980082 | G78: 56.59840114 | H78: 7.523190888 | I78: 2 | J78: 444 | K78: 238 | L78: 123 | M78: 227 | N78: 223 | O78: 132 | P78: 308 | Q78: 383 | R78: 402 | S78: 342 | T78: 283 | U78: 293 | V78: 271 | W78: 299 | X78: 260 | Y78: 265 | Z78: 285 | AA78: 239 | AB78: 239 | AC78: 242 | AD78: 263 | AE78: 290 | AF78: 283 | AG78: 318 | AH78: 358 | AI78: 423 | AJ78: 470 | AK78: 405 | AL78: 384 | AM78: 421 | AN78: 354 | AO78: 289 | AP78: 305 | AQ78: 339 | AR78: 330 | AS78: 319 | AT78: 259 | AU78: 255 | AV78: 356 | AW78: 153 | AX78: 114 | AY78: 136 | AZ78: 111 | BA78: 96 | BB78: 179 | BC78: 197 | BD78: 206 | BE78: 225 | BF78: 250 | BG78: 224 | BH78: 212 | BI78: 128 | BJ78: 111 | BK78: 95 | BL78: 82 | BM78: 52 | BN78: 59 | BO78: 38 | BP78: 32 | BQ78: 22 | BR78: 14 | BS78: 14 | BT78: 9 | BU78: 3 | BV78: 1 | BW78: 0 | BX78: 0 | BY78: 0 | BZ78: 0 | CA78: 0 | CB78: 0 | CC78: 0 | CD78: 0 | CE78: 0 | CF78: 0 | CG78: 0 | CH78: 0 | CI78: 0 | CJ78: 0 | CK78: 0 | CL78: 0 | CM78: 0 | CN78: 0 | CO78: 0 | CP78: 0 | CQ78: 0 | CR78: 0 | CS78: 0 | CT78: 0 | CU78: 0 | CV78: 0 | CX78: 10016.55157 | CY78: 5369.232596 | CZ78: 2774.855501 | DA78: 5121.074787 | DB78: 5030.835584 | DC78: 2977.893709 | DD78: 6948.418654 | DE78: 8640.403716 | DF78: 9069.039931 | DG78: 7715.451882 | DH78: 6384.423633 | DI78: 6610.021641 | DJ78: 6113.706023 | DK78: 6745.380446 | DL78: 5865.548214 | DM78: 5978.347218 | DN78: 6429.543235 | DO78: 5391.792397 | DP78: 5391.792397 | DQ78: 5459.471799 | DR78: 5933.227617 | DS78: 6542.342239 | DT78: 6384.423633 | DU78: 7174.016662 | DV78: 8076.408695 | DW78: 9542.795749 | DX78: 10603.10639 | DY78: 9136.719334 | DZ78: 8662.963516 | EA78: 9497.676147 | EB78: 7986.169492 | EC78: 6519.782438 | ED78: 6880.739251 | EE78: 7647.772479 | EF78: 7444.734272 | EG78: 7196.576463 | EH78: 5842.988413 | EI78: 5752.74921 | EJ78: 8031.289093 | EK78: 3451.649526 | EL78: 2571.817294 | EM78: 3068.132912 | EN78: 2504.137891 | EO78: 2165.740879 | EP78: 4038.204348 | EQ78: 4444.280762 | ER78: 4647.31897 | ES78: 5075.955185 | ET78: 5639.950206 | EU78: 5053.395385 | EV78: 4782.677775 | EW78: 2887.654505 | EX78: 2504.137891 | EY78: 2143.181078 | EZ78: 1849.903668 | FA78: 1173.109643 | FB78: 1331.028249 | FC78: 857.2724313 | FD78: 721.9136264 | FE78: 496.3156181 | FF78: 315.8372115 | FG78: 315.8372115 | FH78: 203.0382074 | FI78: 67.67940247 | FJ78: 22.55980082 | FK78: 0 | FL78: 0 | FM78: 0 | FN78: 0 | FO78: 0 | FP78: 0 | FQ78: 0 | FR78: 0 | FS78: 0 | FT78: 0 | FU78: 0 | FV78: 0 | FW78: 0 | FX78: 0 | FY78: 0 | FZ78: 0 | GA78: 0 | GB78: 0 | GC78: 0 | GD78: 0 | GE78: 0 | GF78: 0 | GG78: 0 | GH78: 0 | GI78: 0 | GJ78: 0
A79: 5 | D79: TRANSFORMERS | E79: Pole Mounted ; < = 22kV ; > 600 kVA ; Multiple Phase | F79: 206.3348834 | G79: 28.55177923 | H79: 5.343386495 | I79: 2 | J79: 0 | K79: 0 | L79: 0 | M79: 0 | N79: 0 | O79: 0 | P79: 0 | Q79: 1 | R79: 1 | S79: 0 | T79: 0 | U79: 0 | V79: 0 | W79: 0 | X79: 0 | Y79: 0 | Z79: 0 | AA79: 0 | AB79: 0 | AC79: 0 | AD79: 0 | AE79: 0 | AF79: 0 | AG79: 0 | AH79: 1 | AI79: 1 | AJ79: 1 | AK79: 1 | AL79: 1 | AM79: 1 | AN79: 0 | AO79: 0 | AP79: 0 | AQ79: 0 | AR79: 0 | AS79: 0 | AT79: 0 | AU79: 0 | AV79: 0 | AW79: 0 | AX79: 0 | AY79: 0 | AZ79: 0 | BA79: 0 | BB79: 0 | BC79: 0 | BD79: 0 | BE79: 0 | BF79: 0 | BG79: 0 | BH79: 0 | BI79: 0 | BJ79: 0 | BK79: 0 | BL79: 0 | BM79: 0 | BN79: 0 | BO79: 0 | BP79: 0 | BQ79: 0 | BR79: 0 | BS79: 0 | BT79: 0 | BU79: 0 | BV79: 0 | BW79: 0 | BX79: 0 | BY79: 0 | BZ79: 0 | CA79: 0 | CB79: 0 | CC79: 0 | CD79: 0 | CE79: 0 | CF79: 0 | CG79: 0 | CH79: 0 | CI79: 0 | CJ79: 0 | CK79: 0 | CL79: 0 | CM79: 0 | CN79: 0 | CO79: 0 | CP79: 0 | CQ79: 0 | CR79: 0 | CS79: 0 | CT79: 0 | CU79: 0 | CV79: 0 | CX79: 0 | CY79: 0 | CZ79: 0 | DA79: 0 | DB79: 0 | DC79: 0 | DD79: 0 | DE79: 206.3348834 | DF79: 206.3348834 | DG79: 0 | DH79: 0 | DI79: 0 | DJ79: 0 | DK79: 0 | DL79: 0 | DM79: 0 | DN79: 0 | DO79: 0 | DP79: 0 | DQ79: 0 | DR79: 0 | DS79: 0 | DT79: 0 | DU79: 0 | DV79: 206.3348834 | DW79: 206.3348834 | DX79: 206.3348834 | DY79: 206.3348834 | DZ79: 206.3348834 | EA79: 206.3348834 | EB79: 0 | EC79: 0 | ED79: 0 | EE79: 0 | EF79: 0 | EG79: 0 | EH79: 0 | EI79: 0 | EJ79: 0 | EK79: 0 | EL79: 0 | EM79: 0 | EN79: 0 | EO79: 0 | EP79: 0 | EQ79: 0 | ER79: 0 | ES79: 0 | ET79: 0 | EU79: 0 | EV79: 0 | EW79: 0 | EX79: 0 | EY79: 0 | EZ79: 0 | FA79: 0 | FB79: 0 | FC79: 0 | FD79: 0 | FE79: 0 | FF79: 0 | FG79: 0 | FH79: 0 | FI79: 0 | FJ79: 0 | FK79: 0 | FL79: 0 | FM79: 0 | FN79: 0 | FO79: 0 | FP79: 0 | FQ79: 0 | FR79: 0 | FS79: 0 | FT79: 0 | FU79: 0 | FV79: 0 | FW79: 0 | FX79: 0 | FY79: 0 | FZ79: 0 | GA79: 0 | GB79: 0 | GC79: 0 | GD79: 0 | GE79: 0 | GF79: 0 | GG79: 0 | GH79: 0 | GI79: 0 | GJ79: 0
A80: 5 | D80: TRANSFORMERS | E80: Kiosk Mounted ; < = 22kV ; < = 60 kVA ; Single Phase | F80: 30.08150727 | G80: 40.35687261 | H80: 6.352705928 | I80: 2 | J80: 0 | K80: 0 | L80: 0 | M80: 0 | N80: 0 | O80: 0 | P80: 0 | Q80: 0 | R80: 0 | S80: 0 | T80: 0 | U80: 0 | V80: 0 | W80: 0 | X80: 0 | Y80: 0 | Z80: 0 | AA80: 0 | AB80: 0 | AC80: 0 | AD80: 0 | AE80: 0 | AF80: 0 | AG80: 0 | AH80: 0 | AI80: 0 | AJ80: 1 | AK80: 0 | AL80: 0 | AM80: 0 | AN80: 0 | AO80: 0 | AP80: 0 | AQ80: 0 | AR80: 0 | AS80: 0 | AT80: 0 | AU80: 0 | AV80: 0 | AW80: 0 | AX80: 0 | AY80: 0 | AZ80: 0 | BA80: 0 | BB80: 0 | BC80: 0 | BD80: 0 | BE80: 0 | BF80: 0 | BG80: 0 | BH80: 0 | BI80: 0 | BJ80: 0 | BK80: 0 | BL80: 0 | BM80: 0 | BN80: 0 | BO80: 0 | BP80: 0 | BQ80: 0 | BR80: 0 | BS80: 0 | BT80: 0 | BU80: 0 | BV80: 0 | BW80: 0 | BX80: 0 | BY80: 0 | BZ80: 0 | CA80: 0 | CB80: 0 | CC80: 0 | CD80: 0 | CE80: 0 | CF80: 0 | CG80: 0 | CH80: 0 | CI80: 0 | CJ80: 0 | CK80: 0 | CL80: 0 | CM80: 0 | CN80: 0 | CO80: 0 | CP80: 0 | CQ80: 0 | CR80: 0 | CS80: 0 | CT80: 0 | CU80: 0 | CV80: 0 | CX80: 0 | CY80: 0 | CZ80: 0 | DA80: 0 | DB80: 0 | DC80: 0 | DD80: 0 | DE80: 0 | DF80: 0 | DG80: 0 | DH80: 0 | DI80: 0 | DJ80: 0 | DK80: 0 | DL80: 0 | DM80: 0 | DN80: 0 | DO80: 0 | DP80: 0 | DQ80: 0 | DR80: 0 | DS80: 0 | DT80: 0 | DU80: 0 | DV80: 0 | DW80: 0 | DX80: 30.08150727 | DY80: 0 | DZ80: 0 | EA80: 0 | EB80: 0 | EC80: 0 | ED80: 0 | EE80: 0 | EF80: 0 | EG80: 0 | EH80: 0 | EI80: 0 | EJ80: 0 | EK80: 0 | EL80: 0 | EM80: 0 | EN80: 0 | EO80: 0 | EP80: 0 | EQ80: 0 | ER80: 0 | ES80: 0 | ET80: 0 | EU80: 0 | EV80: 0 | EW80: 0 | EX80: 0 | EY80: 0 | EZ80: 0 | FA80: 0 | FB80: 0 | FC80: 0 | FD80: 0 | FE80: 0 | FF80: 0 | FG80: 0 | FH80: 0 | FI80: 0 | FJ80: 0 | FK80: 0 | FL80: 0 | FM80: 0 | FN80: 0 | FO80: 0 | FP80: 0 | FQ80: 0 | FR80: 0 | FS80: 0 | FT80: 0 | FU80: 0 | FV80: 0 | FW80: 0 | FX80: 0 | FY80: 0 | FZ80: 0 | GA80: 0 | GB80: 0 | GC80: 0 | GD80: 0 | GE80: 0 | GF80: 0 | GG80: 0 | GH80: 0 | GI80: 0 | GJ80: 0
E81: Kiosk Mounted ; < = 22kV ; > 60 kVA and < = 600 kVA ; Single Phase | F81: 65.99544495 | G81: 0 | H81: 0 | I81: 2
E82: Kiosk Mounted ; < = 22kV ; > 600 kVA ; Single Phase | F82: 0.0001 | G82: 0 | H82: 0 | I82: 2
A83: 5 | D83: TRANSFORMERS | E83: Kiosk Mounted ; < = 22kV ; < = 60 kVA ; Multiple Phase | F83: 61.27796189 | G83: 61.65095265 | H83: 7.851812062 | I83: 2 | J83: 16 | K83: 2 | L83: 1 | M83: 2 | N83: 2 | O83: 1 | P83: 3 | Q83: 4 | R83: 4 | S83: 3 | T83: 3 | U83: 3 | V83: 3 | W83: 3 | X83: 3 | Y83: 3 | Z83: 3 | AA83: 2 | AB83: 2 | AC83: 2 | AD83: 3 | AE83: 3 | AF83: 3 | AG83: 3 | AH83: 4 | AI83: 4 | AJ83: 5 | AK83: 4 | AL83: 4 | AM83: 4 | AN83: 3 | AO83: 3 | AP83: 3 | AQ83: 3 | AR83: 3 | AS83: 3 | AT83: 3 | AU83: 3 | AV83: 4 | AW83: 2 | AX83: 1 | AY83: 1 | AZ83: 1 | BA83: 1 | BB83: 2 | BC83: 2 | BD83: 2 | BE83: 2 | BF83: 2 | BG83: 2 | BH83: 2 | BI83: 1 | BJ83: 1 | BK83: 1 | BL83: 1 | BM83: 1 | BN83: 1 | BO83: 0 | BP83: 0 | BQ83: 0 | BR83: 0 | BS83: 0 | BT83: 0 | BU83: 0 | BV83: 0 | BW83: 0 | BX83: 0 | BY83: 0 | BZ83: 0 | CA83: 0 | CB83: 0 | CC83: 0 | CD83: 0 | CE83: 0 | CF83: 0 | CG83: 0 | CH83: 0 | CI83: 0 | CJ83: 0 | CK83: 0 | CL83: 0 | CM83: 0 | CN83: 0 | CO83: 0 | CP83: 0 | CQ83: 0 | CR83: 0 | CS83: 0 | CT83: 0 | CU83: 0 | CV83: 0 | CX83: 980.4473902 | CY83: 122.5559238 | CZ83: 61.27796189 | DA83: 122.5559238 | DB83: 122.5559238 | DC83: 61.27796189 | DD83: 183.8338857 | DE83: 245.1118476 | DF83: 245.1118476 | DG83: 183.8338857 | DH83: 183.8338857 | DI83: 183.8338857 | DJ83: 183.8338857 | DK83: 183.8338857 | DL83: 183.8338857 | DM83: 183.8338857 | DN83: 183.8338857 | DO83: 122.5559238 | DP83: 122.5559238 | DQ83: 122.5559238 | DR83: 183.8338857 | DS83: 183.8338857 | DT83: 183.8338857 | DU83: 183.8338857 | DV83: 245.1118476 | DW83: 245.1118476 | DX83: 306.3898094 | DY83: 245.1118476 | DZ83: 245.1118476 | EA83: 245.1118476 | EB83: 183.8338857 | EC83: 183.8338857 | ED83: 183.8338857 | EE83: 183.8338857 | EF83: 183.8338857 | EG83: 183.8338857 | EH83: 183.8338857 | EI83: 183.8338857 | EJ83: 245.1118476 | EK83: 122.5559238 | EL83: 61.27796189 | EM83: 61.27796189 | EN83: 61.27796189 | EO83: 61.27796189 | EP83: 122.5559238 | EQ83: 122.5559238 | ER83: 122.5559238 | ES83: 122.5559238 | ET83: 122.5559238 | EU83: 122.5559238 | EV83: 122.5559238 | EW83: 61.27796189 | EX83: 61.27796189 | EY83: 61.27796189 | EZ83: 61.27796189 | FA83: 61.27796189 | FB83: 61.27796189 | FC83: 0 | FD83: 0 | FE83: 0 | FF83: 0 | FG83: 0 | FH83: 0 | FI83: 0 | FJ83: 0 | FK83: 0 | FL83: 0 | FM83: 0 | FN83: 0 | FO83: 0 | FP83: 0 | FQ83: 0 | FR83: 0 | FS83: 0 | FT83: 0 | FU83: 0 | FV83: 0 | FW83: 0 | FX83: 0 | FY83: 0 | FZ83: 0 | GA83: 0 | GB83: 0 | GC83: 0 | GD83: 0 | GE83: 0 | GF83: 0 | GG83: 0 | GH83: 0 | GI83: 0 | GJ83: 0
A84: 5 | D84: TRANSFORMERS | E84: Kiosk Mounted ; < = 22kV ; > 60 kVA and < = 600 kVA ; Multiple Phase | F84: 126.2669491 | G84: 60.07625411 | H84: 7.750887311 | I84: 2 | J84: 116 | K84: 45 | L84: 23 | M84: 43 | N84: 42 | O84: 25 | P84: 58 | Q84: 72 | R84: 76 | S84: 65 | T84: 53 | U84: 55 | V84: 51 | W84: 57 | X84: 49 | Y84: 50 | Z84: 54 | AA84: 45 | AB84: 45 | AC84: 46 | AD84: 50 | AE84: 55 | AF84: 53 | AG84: 60 | AH84: 68 | AI84: 80 | AJ84: 89 | AK84: 76 | AL84: 73 | AM84: 80 | AN84: 67 | AO84: 55 | AP84: 58 | AQ84: 64 | AR84: 62 | AS84: 60 | AT84: 49 | AU84: 48 | AV84: 67 | AW84: 29 | AX84: 21 | AY84: 26 | AZ84: 21 | BA84: 18 | BB84: 34 | BC84: 37 | BD84: 39 | BE84: 43 | BF84: 47 | BG84: 42 | BH84: 40 | BI84: 24 | BJ84: 21 | BK84: 18 | BL84: 16 | BM84: 10 | BN84: 11 | BO84: 7 | BP84: 6 | BQ84: 4 | BR84: 3 | BS84: 3 | BT84: 2 | BU84: 1 | BV84: 0 | BW84: 0 | BX84: 0 | BY84: 0 | BZ84: 0 | CA84: 0 | CB84: 0 | CC84: 0 | CD84: 0 | CE84: 0 | CF84: 0 | CG84: 0 | CH84: 0 | CI84: 0 | CJ84: 0 | CK84: 0 | CL84: 0 | CM84: 0 | CN84: 0 | CO84: 0 | CP84: 0 | CQ84: 0 | CR84: 0 | CS84: 0 | CT84: 0 | CU84: 0 | CV84: 0 | CX84: 14646.96609 | CY84: 5682.012708 | CZ84: 2904.139828 | DA84: 5429.478809 | DB84: 5303.21186 | DC84: 3156.673726 | DD84: 7323.483045 | DE84: 9091.220332 | DF84: 9596.288128 | DG84: 8207.351689 | DH84: 6692.1483 | DI84: 6944.682198 | DJ84: 6439.614402 | DK84: 7197.216096 | DL84: 6187.080504 | DM84: 6313.347453 | DN84: 6818.415249 | DO84: 5682.012708 | DP84: 5682.012708 | DQ84: 5808.279657 | DR84: 6313.347453 | DS84: 6944.682198 | DT84: 6692.1483 | DU84: 7576.016943 | DV84: 8586.152536 | DW84: 10101.35592 | DX84: 11237.75847 | DY84: 9596.288128 | DZ84: 9217.487281 | EA84: 10101.35592 | EB84: 8459.885587 | EC84: 6944.682198 | ED84: 7323.483045 | EE84: 8081.08474 | EF84: 7828.550842 | EG84: 7576.016943 | EH84: 6187.080504 | EI84: 6060.813555 | EJ84: 8459.885587 | EK84: 3661.741523 | EL84: 2651.60593 | EM84: 3282.940675 | EN84: 2651.60593 | EO84: 2272.805083 | EP84: 4293.076268 | EQ84: 4671.877115 | ER84: 4924.411013 | ES84: 5429.478809 | ET84: 5934.546606 | EU84: 5303.21186 | EV84: 5050.677962 | EW84: 3030.406777 | EX84: 2651.60593 | EY84: 2272.805083 | EZ84: 2020.271185 | FA84: 1262.669491 | FB84: 1388.93644 | FC84: 883.8686434 | FD84: 757.6016943 | FE84: 505.0677962 | FF84: 378.8008472 | FG84: 378.8008472 | FH84: 252.5338981 | FI84: 126.2669491 | FJ84: 0 | FK84: 0 | FL84: 0 | FM84: 0 | FN84: 0 | FO84: 0 | FP84: 0 | FQ84: 0 | FR84: 0 | FS84: 0 | FT84: 0 | FU84: 0 | FV84: 0 | FW84: 0 | FX84: 0 | FY84: 0 | FZ84: 0 | GA84: 0 | GB84: 0 | GC84: 0 | GD84: 0 | GE84: 0 | GF84: 0 | GG84: 0 | GH84: 0 | GI84: 0 | GJ84: 0
A85: 5 | D85: TRANSFORMERS | E85: Kiosk Mounted ; < = 22kV ; > 600 kVA ; Multiple Phase | F85: 109.9259579 | G85: 61.3706883 | H85: 7.83394462 | I85: 2 | J85: 50 | K85: 9 | L85: 5 | M85: 9 | N85: 9 | O85: 5 | P85: 12 | Q85: 15 | R85: 16 | S85: 14 | T85: 11 | U85: 12 | V85: 11 | W85: 12 | X85: 10 | Y85: 11 | Z85: 11 | AA85: 10 | AB85: 10 | AC85: 10 | AD85: 10 | AE85: 12 | AF85: 11 | AG85: 13 | AH85: 14 | AI85: 17 | AJ85: 19 | AK85: 16 | AL85: 15 | AM85: 17 | AN85: 14 | AO85: 12 | AP85: 12 | AQ85: 13 | AR85: 13 | AS85: 13 | AT85: 10 | AU85: 10 | AV85: 14 | AW85: 6 | AX85: 5 | AY85: 5 | AZ85: 4 | BA85: 4 | BB85: 7 | BC85: 8 | BD85: 8 | BE85: 9 | BF85: 10 | BG85: 9 | BH85: 8 | BI85: 5 | BJ85: 4 | BK85: 4 | BL85: 3 | BM85: 2 | BN85: 2 | BO85: 2 | BP85: 1 | BQ85: 1 | BR85: 1 | BS85: 1 | BT85: 0 | BU85: 0 | BV85: 0 | BW85: 0 | BX85: 0 | BY85: 0 | BZ85: 0 | CA85: 0 | CB85: 0 | CC85: 0 | CD85: 0 | CE85: 0 | CF85: 0 | CG85: 0 | CH85: 0 | CI85: 0 | CJ85: 0 | CK85: 0 | CL85: 0 | CM85: 0 | CN85: 0 | CO85: 0 | CP85: 0 | CQ85: 0 | CR85: 0 | CS85: 0 | CT85: 0 | CU85: 0 | CV85: 0 | CX85: 5496.297893 | CY85: 989.3336208 | CZ85: 549.6297893 | DA85: 989.3336208 | DB85: 989.3336208 | DC85: 549.6297893 | DD85: 1319.111494 | DE85: 1648.889368 | DF85: 1758.815326 | DG85: 1538.96341 | DH85: 1209.185536 | DI85: 1319.111494 | DJ85: 1209.185536 | DK85: 1319.111494 | DL85: 1099.259579 | DM85: 1209.185536 | DN85: 1209.185536 | DO85: 1099.259579 | DP85: 1099.259579 | DQ85: 1099.259579 | DR85: 1099.259579 | DS85: 1319.111494 | DT85: 1209.185536 | DU85: 1429.037452 | DV85: 1538.96341 | DW85: 1868.741284 | DX85: 2088.593199 | DY85: 1758.815326 | DZ85: 1648.889368 | EA85: 1868.741284 | EB85: 1538.96341 | EC85: 1319.111494 | ED85: 1319.111494 | EE85: 1429.037452 | EF85: 1429.037452 | EG85: 1429.037452 | EH85: 1099.259579 | EI85: 1099.259579 | EJ85: 1538.96341 | EK85: 659.5557472 | EL85: 549.6297893 | EM85: 549.6297893 | EN85: 439.7038315 | EO85: 439.7038315 | EP85: 769.481705 | EQ85: 879.4076629 | ER85: 879.4076629 | ES85: 989.3336208 | ET85: 1099.259579 | EU85: 989.3336208 | EV85: 879.4076629 | EW85: 549.6297893 | EX85: 439.7038315 | EY85: 439.7038315 | EZ85: 329.7778736 | FA85: 219.8519157 | FB85: 219.8519157 | FC85: 219.8519157 | FD85: 109.9259579 | FE85: 109.9259579 | FF85: 109.9259579 | FG85: 109.9259579 | FH85: 0 | FI85: 0 | FJ85: 0 | FK85: 0 | FL85: 0 | FM85: 0 | FN85: 0 | FO85: 0 | FP85: 0 | FQ85: 0 | FR85: 0 | FS85: 0 | FT85: 0 | FU85: 0 | FV85: 0 | FW85: 0 | FX85: 0 | FY85: 0 | FZ85: 0 | GA85: 0 | GB85: 0 | GC85: 0 | GD85: 0 | GE85: 0 | GF85: 0 | GG85: 0 | GH85: 0 | GI85: 0 | GJ85: 0
A86: 5 | D86: TRANSFORMERS | E86: Ground Outdoor / Indoor Chamber Mounted; ˂ 22 kV ; < = 60 kVA ; Single Phase | F86: 6.944234946 | G86: 28.80024784 | H86: 5.366586237 | I86: 2 | J86: 0 | K86: 0 | L86: 0 | M86: 0 | N86: 0 | O86: 0 | P86: 0 | Q86: 0 | R86: 0 | S86: 0 | T86: 0 | U86: 0 | V86: 0 | W86: 0 | X86: 0 | Y86: 0 | Z86: 0 | AA86: 0 | AB86: 0 | AC86: 0 | AD86: 0 | AE86: 0 | AF86: 0 | AG86: 0 | AH86: 0 | AI86: 0 | AJ86: 1 | AK86: 0 | AL86: 0 | AM86: 0 | AN86: 0 | AO86: 0 | AP86: 0 | AQ86: 0 | AR86: 0 | AS86: 0 | AT86: 0 | AU86: 0 | AV86: 0 | AW86: 0 | AX86: 0 | AY86: 0 | AZ86: 0 | BA86: 0 | BB86: 0 | BC86: 0 | BD86: 0 | BE86: 0 | BF86: 0 | BG86: 0 | BH86: 0 | BI86: 0 | BJ86: 0 | BK86: 0 | BL86: 0 | BM86: 0 | BN86: 0 | BO86: 0 | BP86: 0 | BQ86: 0 | BR86: 0 | BS86: 0 | BT86: 0 | BU86: 0 | BV86: 0 | BW86: 0 | BX86: 0 | BY86: 0 | BZ86: 0 | CA86: 0 | CB86: 0 | CC86: 0 | CD86: 0 | CE86: 0 | CF86: 0 | CG86: 0 | CH86: 0 | CI86: 0 | CJ86: 0 | CK86: 0 | CL86: 0 | CM86: 0 | CN86: 0 | CO86: 0 | CP86: 0 | CQ86: 0 | CR86: 0 | CS86: 0 | CT86: 0 | CU86: 0 | CV86: 0 | CX86: =$F86*J86 -> 0 | CY86: =$F86*K86 -> 0 | CZ86: =$F86*L86 -> 0 | DA86: =$F86*M86 -> 0 | DB86: =$F86*N86 -> 0 | DC86: =$F86*O86 -> 0 | DD86: =$F86*P86 -> 0 | DE86: =$F86*Q86 -> 0 | DF86: =$F86*R86 -> 0 | DG86: =$F86*S86 -> 0 | DH86: =$F86*T86 -> 0 | DI86: =$F86*U86 -> 0 | DJ86: =$F86*V86 -> 0 | DK86: =$F86*W86 -> 0 | DL86: =$F86*X86 -> 0 | DM86: =$F86*Y86 -> 0 | DN86: =$F86*Z86 -> 0 | DO86: =$F86*AA86 -> 0 | DP86: =$F86*AB86 -> 0 | DQ86: =$F86*AC86 -> 0 | DR86: =$F86*AD86 -> 0 | DS86: =$F86*AE86 -> 0 | DT86: =$F86*AF86 -> 0 | DU86: =$F86*AG86 -> 0 | DV86: =$F86*AH86 -> 0 | DW86: =$F86*AI86 -> 0 | DX86: =$F86*AJ86 -> 6.944234946 | DY86: =$F86*AK86 -> 0 | DZ86: =$F86*AL86 -> 0 | EA86: =$F86*AM86 -> 0 | EB86: =$F86*AN86 -> 0 | EC86: =$F86*AO86 -> 0 | ED86: =$F86*AP86 -> 0 | EE86: =$F86*AQ86 -> 0 | EF86: =$F86*AR86 -> 0 | EG86: =$F86*AS86 -> 0 | EH86: =$F86*AT86 -> 0 | EI86: =$F86*AU86 -> 0 | EJ86: =$F86*AV86 -> 0 | EK86: =$F86*AW86 -> 0 | EL86: =$F86*AX86 -> 0 | EM86: =$F86*AY86 -> 0 | EN86: =$F86*AZ86 -> 0 | EO86: =$F86*BA86 -> 0 | EP86: =$F86*BB86 -> 0 | EQ86: =$F86*BC86 -> 0 | ER86: =$F86*BD86 -> 0 | ES86: =$F86*BE86 -> 0 | ET86: =$F86*BF86 -> 0 | EU86: =$F86*BG86 -> 0 | EV86: =$F86*BH86 -> 0 | EW86: =$F86*BI86 -> 0 | EX86: =$F86*BJ86 -> 0 | EY86: =$F86*BK86 -> 0 | EZ86: =$F86*BL86 -> 0 | FA86: =$F86*BM86 -> 0 | FB86: =$F86*BN86 -> 0 | FC86: =$F86*BO86 -> 0 | FD86: =$F86*BP86 -> 0 | FE86: =$F86*BQ86 -> 0 | FF86: =$F86*BR86 -> 0 | FG86: =$F86*BS86 -> 0 | FH86: =$F86*BT86 -> 0 | FI86: =$F86*BU86 -> 0 | FJ86: =$F86*BV86 -> 0 | FK86: =$F86*BW86 -> 0 | FL86: =$F86*BX86 -> 0 | FM86: =$F86*BY86 -> 0 | FN86: =$F86*BZ86 -> 0 | FO86: =$F86*CA86 -> 0 | FP86: =$F86*CB86 -> 0 | FQ86: =$F86*CC86 -> 0 | FR86: =$F86*CD86 -> 0 | FS86: =$F86*CE86 -> 0 | FT86: =$F86*CF86 -> 0 | FU86: =$F86*CG86 -> 0 | FV86: =$F86*CH86 -> 0 | FW86: =$F86*CI86 -> 0 | FX86: =$F86*CJ86 -> 0 | FY86: =$F86*CK86 -> 0 | FZ86: =$F86*CL86 -> 0 | GA86: =$F86*CM86 -> 0 | GB86: =$F86*CN86 -> 0 | GC86: =$F86*CO86 -> 0 | GD86: =$F86*CP86 -> 0 | GE86: =$F86*CQ86 -> 0 | GF86: =$F86*CR86 -> 0 | GG86: =$F86*CS86 -> 0 | GH86: =$F86*CT86 -> 0 | GI86: =$F86*CU86 -> 0 | GJ86: =$F86*CV86 -> 0
A87: 5 | D87: TRANSFORMERS | E87: Ground Outdoor / Indoor Chamber Mounted; ˂ 22 kV ; > 60 kVA and < = 600 kVA ; Single Phase | F87: 147.2963158 | G87: 61.65095265 | H87: 7.851812062 | I87: 2 | J87: 0 | K87: 0 | L87: 0 | M87: 0 | N87: 0 | O87: 0 | P87: 0 | Q87: 0 | R87: 0 | S87: 0 | T87: 0 | U87: 0 | V87: 0 | W87: 0 | X87: 0 | Y87: 0 | Z87: 0 | AA87: 0 | AB87: 0 | AC87: 0 | AD87: 0 | AE87: 0 | AF87: 0 | AG87: 0 | AH87: 0 | AI87: 0 | AJ87: 1 | AK87: 0 | AL87: 0 | AM87: 0 | AN87: 0 | AO87: 0 | AP87: 0 | AQ87: 0 | AR87: 0 | AS87: 0 | AT87: 0 | AU87: 0 | AV87: 0 | AW87: 0 | AX87: 0 | AY87: 0 | AZ87: 0 | BA87: 0 | BB87: 0 | BC87: 0 | BD87: 0 | BE87: 0 | BF87: 0 | BG87: 0 | BH87: 0 | BI87: 0 | BJ87: 0 | BK87: 0 | BL87: 0 | BM87: 0 | BN87: 0 | BO87: 0 | BP87: 0 | BQ87: 0 | BR87: 0 | BS87: 0 | BT87: 0 | BU87: 0 | BV87: 0 | BW87: 0 | BX87: 0 | BY87: 0 | BZ87: 0 | CA87: 0 | CB87: 0 | CC87: 0 | CD87: 0 | CE87: 0 | CF87: 0 | CG87: 0 | CH87: 0 | CI87: 0 | CJ87: 0 | CK87: 0 | CL87: 0 | CM87: 0 | CN87: 0 | CO87: 0 | CP87: 0 | CQ87: 0 | CR87: 0 | CS87: 0 | CT87: 0 | CU87: 0 | CV87: 0 | CX87: 0 | CY87: 0 | CZ87: 0 | DA87: 0 | DB87: 0 | DC87: 0 | DD87: 0 | DE87: 0 | DF87: 0 | DG87: 0 | DH87: 0 | DI87: 0 | DJ87: 0 | DK87: 0 | DL87: 0 | DM87: 0 | DN87: 0 | DO87: 0 | DP87: 0 | DQ87: 0 | DR87: 0 | DS87: 0 | DT87: 0 | DU87: 0 | DV87: 0 | DW87: 0 | DX87: 147.2963158 | DY87: 0 | DZ87: 0 | EA87: 0 | EB87: 0 | EC87: 0 | ED87: 0 | EE87: 0 | EF87: 0 | EG87: 0 | EH87: 0 | EI87: 0 | EJ87: 0 | EK87: 0 | EL87: 0 | EM87: 0 | EN87: 0 | EO87: 0 | EP87: 0 | EQ87: 0 | ER87: 0 | ES87: 0 | ET87: 0 | EU87: 0 | EV87: 0 | EW87: 0 | EX87: 0 | EY87: 0 | EZ87: 0 | FA87: 0 | FB87: 0 | FC87: 0 | FD87: 0 | FE87: 0 | FF87: 0 | FG87: 0 | FH87: 0 | FI87: 0 | FJ87: 0 | FK87: 0 | FL87: 0 | FM87: 0 | FN87: 0 | FO87: 0 | FP87: 0 | FQ87: 0 | FR87: 0 | FS87: 0 | FT87: 0 | FU87: 0 | FV87: 0 | FW87: 0 | FX87: 0 | FY87: 0 | FZ87: 0 | GA87: 0 | GB87: 0 | GC87: 0 | GD87: 0 | GE87: 0 | GF87: 0 | GG87: 0 | GH87: 0 | GI87: 0 | GJ87: 0
E88: Ground Outdoor / Indoor Chamber Mounted; ˂ 22 kV ; > 600 kVA ; Single Phase | F88: 0.0001 | G88: 0 | H88: 0 | I88: 2
A89: 5 | D89: TRANSFORMERS | E89: Ground Outdoor / Indoor Chamber Mounted; ˂ 22 kV ; < = 60 kVA ; Multiple Phase | F89: 108.9735123 | G89: 61.65095265 | H89: 7.851812062 | I89: 2 | J89: 0 | K89: 0 | L89: 0 | M89: 0 | N89: 0 | O89: 0 | P89: 1 | Q89: 1 | R89: 1 | S89: 1 | T89: 1 | U89: 1 | V89: 0 | W89: 1 | X89: 0 | Y89: 0 | Z89: 1 | AA89: 0 | AB89: 0 | AC89: 0 | AD89: 0 | AE89: 1 | AF89: 1 | AG89: 1 | AH89: 1 | AI89: 1 | AJ89: 1 | AK89: 1 | AL89: 1 | AM89: 1 | AN89: 1 | AO89: 1 | AP89: 1 | AQ89: 1 | AR89: 1 | AS89: 1 | AT89: 0 | AU89: 0 | AV89: 1 | AW89: 0 | AX89: 0 | AY89: 0 | AZ89: 0 | BA89: 0 | BB89: 0 | BC89: 0 | BD89: 0 | BE89: 0 | BF89: 0 | BG89: 0 | BH89: 0 | BI89: 0 | BJ89: 0 | BK89: 0 | BL89: 0 | BM89: 0 | BN89: 0 | BO89: 0 | BP89: 0 | BQ89: 0 | BR89: 0 | BS89: 0 | BT89: 0 | BU89: 0 | BV89: 0 | BW89: 0 | BX89: 0 | BY89: 0 | BZ89: 0 | CA89: 0 | CB89: 0 | CC89: 0 | CD89: 0 | CE89: 0 | CF89: 0 | CG89: 0 | CH89: 0 | CI89: 0 | CJ89: 0 | CK89: 0 | CL89: 0 | CM89: 0 | CN89: 0 | CO89: 0 | CP89: 0 | CQ89: 0 | CR89: 0 | CS89: 0 | CT89: 0 | CU89: 0 | CV89: 0 | CX89: 0 | CY89: 0 | CZ89: 0 | DA89: 0 | DB89: 0 | DC89: 0 | DD89: 108.9735123 | DE89: 108.9735123 | DF89: 108.9735123 | DG89: 108.9735123 | DH89: 108.9735123 | DI89: 108.9735123 | DJ89: 0 | DK89: 108.9735123 | DL89: 0 | DM89: 0 | DN89: 108.9735123 | DO89: 0 | DP89: 0 | DQ89: 0 | DR89: 0 | DS89: 108.9735123 | DT89: 108.9735123 | DU89: 108.9735123 | DV89: 108.9735123 | DW89: 108.9735123 | DX89: 108.9735123 | DY89: 108.9735123 | DZ89: 108.9735123 | EA89: 108.9735123 | EB89: 108.9735123 | EC89: 108.9735123 | ED89: 108.9735123 | EE89: 108.9735123 | EF89: 108.9735123 | EG89: 108.9735123 | EH89: 0 | EI89: 0 | EJ89: 108.9735123 | EK89: 0 | EL89: 0 | EM89: 0 | EN89: 0 | EO89: 0 | EP89: 0 | EQ89: 0 | ER89: 0 | ES89: 0 | ET89: 0 | EU89: 0 | EV89: 0 | EW89: 0 | EX89: 0 | EY89: 0 | EZ89: 0 | FA89: 0 | FB89: 0 | FC89: 0 | FD89: 0 | FE89: 0 | FF89: 0 | FG89: 0 | FH89: 0 | FI89: 0 | FJ89: 0 | FK89: 0 | FL89: 0 | FM89: 0 | FN89: 0 | FO89: 0 | FP89: 0 | FQ89: 0 | FR89: 0 | FS89: 0 | FT89: 0 | FU89: 0 | FV89: 0 | FW89: 0 | FX89: 0 | FY89: 0 | FZ89: 0 | GA89: 0 | GB89: 0 | GC89: 0 | GD89: 0 | GE89: 0 | GF89: 0 | GG89: 0 | GH89: 0 | GI89: 0 | GJ89: 0
A90: 5 | D90: TRANSFORMERS | E90: Ground Outdoor / Indoor Chamber Mounted; ˂ 22 kV ; > 60 kVA and < = 600 kVA ; Multiple Phase | F90: 110.1963783 | G90: 61.35538641 | H90: 7.832967918 | I90: 2 | J90: 3 | K90: 6 | L90: 3 | M90: 6 | N90: 6 | O90: 3 | P90: 8 | Q90: 10 | R90: 10 | S90: 9 | T90: 7 | U90: 7 | V90: 7 | W90: 8 | X90: 7 | Y90: 7 | Z90: 7 | AA90: 6 | AB90: 6 | AC90: 6 | AD90: 7 | AE90: 7 | AF90: 7 | AG90: 8 | AH90: 9 | AI90: 11 | AJ90: 12 | AK90: 10 | AL90: 10 | AM90: 11 | AN90: 9 | AO90: 7 | AP90: 8 | AQ90: 9 | AR90: 8 | AS90: 8 | AT90: 7 | AU90: 6 | AV90: 9 | AW90: 4 | AX90: 3 | AY90: 3 | AZ90: 3 | BA90: 2 | BB90: 5 | BC90: 5 | BD90: 5 | BE90: 6 | BF90: 6 | BG90: 6 | BH90: 5 | BI90: 3 | BJ90: 3 | BK90: 2 | BL90: 2 | BM90: 1 | BN90: 2 | BO90: 1 | BP90: 1 | BQ90: 1 | BR90: 0 | BS90: 0 | BT90: 0 | BU90: 0 | BV90: 0 | BW90: 0 | BX90: 0 | BY90: 0 | BZ90: 0 | CA90: 0 | CB90: 0 | CC90: 0 | CD90: 0 | CE90: 0 | CF90: 0 | CG90: 0 | CH90: 0 | CI90: 0 | CJ90: 0 | CK90: 0 | CL90: 0 | CM90: 0 | CN90: 0 | CO90: 0 | CP90: 0 | CQ90: 0 | CR90: 0 | CS90: 0 | CT90: 0 | CU90: 0 | CV90: 0 | CX90: 330.5891348 | CY90: 661.1782697 | CZ90: 330.5891348 | DA90: 661.1782697 | DB90: 661.1782697 | DC90: 330.5891348 | DD90: 881.5710262 | DE90: 1101.963783 | DF90: 1101.963783 | DG90: 991.7674045 | DH90: 771.374648 | DI90: 771.374648 | DJ90: 771.374648 | DK90: 881.5710262 | DL90: 771.374648 | DM90: 771.374648 | DN90: 771.374648 | DO90: 661.1782697 | DP90: 661.1782697 | DQ90: 661.1782697 | DR90: 771.374648 | DS90: 771.374648 | DT90: 771.374648 | DU90: 881.5710262 | DV90: 991.7674045 | DW90: 1212.160161 | DX90: 1322.356539 | DY90: 1101.963783 | DZ90: 1101.963783 | EA90: 1212.160161 | EB90: 991.7674045 | EC90: 771.374648 | ED90: 881.5710262 | EE90: 991.7674045 | EF90: 881.5710262 | EG90: 881.5710262 | EH90: 771.374648 | EI90: 661.1782697 | EJ90: 991.7674045 | EK90: 440.7855131 | EL90: 330.5891348 | EM90: 330.5891348 | EN90: 330.5891348 | EO90: 220.3927566 | EP90: 550.9818914 | EQ90: 550.9818914 | ER90: 550.9818914 | ES90: 661.1782697 | ET90: 661.1782697 | EU90: 661.1782697 | EV90: 550.9818914 | EW90: 330.5891348 | EX90: 330.5891348 | EY90: 220.3927566 | EZ90: 220.3927566 | FA90: 110.1963783 | FB90: 220.3927566 | FC90: 110.1963783 | FD90: 110.1963783 | FE90: 110.1963783 | FF90: 0 | FG90: 0 | FH90: 0 | FI90: 0 | FJ90: 0 | FK90: 0 | FL90: 0 | FM90: 0 | FN90: 0 | FO90: 0 | FP90: 0 | FQ90: 0 | FR90: 0 | FS90: 0 | FT90: 0 | FU90: 0 | FV90: 0 | FW90: 0 | FX90: 0 | FY90: 0 | FZ90: 0 | GA90: 0 | GB90: 0 | GC90: 0 | GD90: 0 | GE90: 0 | GF90: 0 | GG90: 0 | GH90: 0 | GI90: 0 | GJ90: 0
A91: 5 | D91: TRANSFORMERS | E91: Ground Outdoor / Indoor Chamber Mounted; ˂ 22 kV ; > 600 kVA ; Multiple Phase | F91: 120.2413178 | G91: 63.39255701 | H91: 7.961944298 | I91: 2 | J91: 8 | K91: 10 | L91: 5 | M91: 10 | N91: 10 | O91: 6 | P91: 14 | Q91: 17 | R91: 18 | S91: 15 | T91: 12 | U91: 13 | V91: 12 | W91: 13 | X91: 11 | Y91: 12 | Z91: 12 | AA91: 10 | AB91: 10 | AC91: 11 | AD91: 12 | AE91: 13 | AF91: 12 | AG91: 14 | AH91: 16 | AI91: 19 | AJ91: 22 | AK91: 18 | AL91: 17 | AM91: 19 | AN91: 16 | AO91: 13 | AP91: 13 | AQ91: 15 | AR91: 15 | AS91: 14 | AT91: 11 | AU91: 11 | AV91: 16 | AW91: 7 | AX91: 5 | AY91: 6 | AZ91: 5 | BA91: 4 | BB91: 8 | BC91: 9 | BD91: 9 | BE91: 10 | BF91: 11 | BG91: 10 | BH91: 9 | BI91: 6 | BJ91: 5 | BK91: 4 | BL91: 4 | BM91: 2 | BN91: 3 | BO91: 2 | BP91: 1 | BQ91: 1 | BR91: 1 | BS91: 1 | BT91: 0 | BU91: 0 | BV91: 0 | BW91: 0 | BX91: 0 | BY91: 0 | BZ91: 0 | CA91: 0 | CB91: 0 | CC91: 0 | CD91: 0 | CE91: 0 | CF91: 0 | CG91: 0 | CH91: 0 | CI91: 0 | CJ91: 0 | CK91: 0 | CL91: 0 | CM91: 0 | CN91: 0 | CO91: 0 | CP91: 0 | CQ91: 0 | CR91: 0 | CS91: 0 | CT91: 0 | CU91: 0 | CV91: 0 | CX91: 961.9305426 | CY91: 1202.413178 | CZ91: 601.2065891 | DA91: 1202.413178 | DB91: 1202.413178 | DC91: 721.447907 | DD91: 1683.37845 | DE91: 2044.102403 | DF91: 2164.343721 | DG91: 1803.619767 | DH91: 1442.895814 | DI91: 1563.137132 | DJ91: 1442.895814 | DK91: 1563.137132 | DL91: 1322.654496 | DM91: 1442.895814 | DN91: 1442.895814 | DO91: 1202.413178 | DP91: 1202.413178 | DQ91: 1322.654496 | DR91: 1442.895814 | DS91: 1563.137132 | DT91: 1442.895814 | DU91: 1683.37845 | DV91: 1923.861085 | DW91: 2284.585039 | DX91: 2645.308992 | DY91: 2164.343721 | DZ91: 2044.102403 | EA91: 2284.585039 | EB91: 1923.861085 | EC91: 1563.137132 | ED91: 1563.137132 | EE91: 1803.619767 | EF91: 1803.619767 | EG91: 1683.37845 | EH91: 1322.654496 | EI91: 1322.654496 | EJ91: 1923.861085 | EK91: 841.6892248 | EL91: 601.2065891 | EM91: 721.447907 | EN91: 601.2065891 | EO91: 480.9652713 | EP91: 961.9305426 | EQ91: 1082.17186 | ER91: 1082.17186 | ES91: 1202.413178 | ET91: 1322.654496 | EU91: 1202.413178 | EV91: 1082.17186 | EW91: 721.447907 | EX91: 601.2065891 | EY91: 480.9652713 | EZ91: 480.9652713 | FA91: 240.4826357 | FB91: 360.7239535 | FC91: 240.4826357 | FD91: 120.2413178 | FE91: 120.2413178 | FF91: 120.2413178 | FG91: 120.2413178 | FH91: 0 | FI91: 0 | FJ91: 0 | FK91: 0 | FL91: 0 | FM91: 0 | FN91: 0 | FO91: 0 | FP91: 0 | FQ91: 0 | FR91: 0 | FS91: 0 | FT91: 0 | FU91: 0 | FV91: 0 | FW91: 0 | FX91: 0 | FY91: 0 | FZ91: 0 | GA91: 0 | GB91: 0 | GC91: 0 | GD91: 0 | GE91: 0 | GF91: 0 | GG91: 0 | GH91: 0 | GI91: 0 | GJ91: 0
E92: Ground Outdoor / Indoor Chamber Mounted; > = 22 kV & < = 33 kV ; < = 15 MVA | F92: 373.0151742 | G92: 0 | H92: 0 | I92: 2
E93: Ground Outdoor / Indoor Chamber Mounted; > = 22 kV & < = 33 kV ; > 15 MVA and < = 40 MVA | F93: 1844.005796 | G93: 0 | H93: 0 | I93: 2
E94: Ground Outdoor / Indoor Chamber Mounted; > = 22 kV & < = 33 kV ; > 40 MVA | F94: 634.3753382 | G94: 0 | H94: 0 | I94: 2
A95: 5 | D95: TRANSFORMERS | E95: Ground Outdoor / Indoor Chamber Mounted; > 33 kV & < = 66 kV ; < = 15 MVA | F95: 1236.257379 | G95: 61.65095265 | H95: 7.851812062 | I95: 2 | J95: 0 | K95: 0 | L95: 0 | M95: 0 | N95: 0 | O95: 0 | P95: 0 | Q95: 0 | R95: 0 | S95: 0 | T95: 0 | U95: 1 | V95: 0 | W95: 1 | X95: 1 | Y95: 0 | Z95: 1 | AA95: 0 | AB95: 0 | AC95: 0 | AD95: 0 | AE95: 0 | AF95: 0 | AG95: 0 | AH95: 0 | AI95: 0 | AJ95: 0 | AK95: 0 | AL95: 0 | AM95: 0 | AN95: 0 | AO95: 0 | AP95: 0 | AQ95: 0 | AR95: 1 | AS95: 0 | AT95: 1 | AU95: 0 | AV95: 0 | AW95: 0 | AX95: 0 | AY95: 0 | AZ95: 0 | BA95: 0 | BB95: 0 | BC95: 0 | BD95: 3 | BE95: 8 | BF95: 3 | BG95: 6 | BH95: 0 | BI95: 4 | BJ95: 15 | BK95: 0 | BL95: 6 | BM95: 1 | BN95: 2 | BO95: 0 | BP95: 0 | BQ95: 0 | BR95: 0 | BS95: 0 | BT95: 0 | BU95: 0 | BV95: 6 | BW95: 0 | BX95: 4 | BY95: 1 | BZ95: 0 | CA95: 0 | CB95: 0 | CC95: 0 | CD95: 0 | CE95: 0 | CF95: 0 | CG95: 0 | CH95: 0 | CI95: 0 | CJ95: 0 | CK95: 0 | CL95: 0 | CM95: 0 | CN95: 0 | CO95: 0 | CP95: 0 | CQ95: 0 | CR95: 0 | CS95: 0 | CT95: 0 | CU95: 0 | CV95: 0 | CX95: 0 | CY95: 0 | CZ95: 0 | DA95: 0 | DB95: 0 | DC95: 0 | DD95: 0 | DE95: 0 | DF95: 0 | DG95: 0 | DH95: 0 | DI95: 1236.257379 | DJ95: 0 | DK95: 1236.257379 | DL95: 1236.257379 | DM95: 0 | DN95: 1236.257379 | DO95: 0 | DP95: 0 | DQ95: 0 | DR95: 0 | DS95: 0 | DT95: 0 | DU95: 0 | DV95: 0 | DW95: 0 | DX95: 0 | DY95: 0 | DZ95: 0 | EA95: 0 | EB95: 0 | EC95: 0 | ED95: 0 | EE95: 0 | EF95: 1236.257379 | EG95: 0 | EH95: 1236.257379 | EI95: 0 | EJ95: 0 | EK95: 0 | EL95: 0 | EM95: 0 | EN95: 0 | EO95: 0 | EP95: 0 | EQ95: 0 | ER95: 3708.772136 | ES95: 9890.05903 | ET95: 3708.772136 | EU95: 7417.544272 | EV95: 0 | EW95: 4945.029515 | EX95: 18543.86068 | EY95: 0 | EZ95: 7417.544272 | FA95: 1236.257379 | FB95: 2472.514757 | FC95: 0 | FD95: 0 | FE95: 0 | FF95: 0 | FG95: 0 | FH95: 0 | FI95: 0 | FJ95: 7417.544272 | FK95: 0 | FL95: 4945.029515 | FM95: 1236.257379 | FN95: 0 | FO95: 0 | FP95: 0 | FQ95: 0 | FR95: 0 | FS95: 0 | FT95: 0 | FU95: 0 | FV95: 0 | FW95: 0 | FX95: 0 | FY95: 0 | FZ95: 0 | GA95: 0 | GB95: 0 | GC95: 0 | GD95: 0 | GE95: 0 | GF95: 0 | GG95: 0 | GH95: 0 | GI95: 0 | GJ95: 0
A96: 5 | D96: TRANSFORMERS | E96: Ground Outdoor / Indoor Chamber Mounted; > 33 kV & < = 66 kV ; > 15 MVA and < = 40 MVA | F96: 3192.149936 | G96: 54.42434969 | H96: 7.377286065 | I96: 2 | J96: 2 | K96: 3 | L96: 3 | M96: 3 | N96: 5 | O96: 1 | P96: 3 | Q96: 1 | R96: 1 | S96: 1 | T96: 2 | U96: 2 | V96: 0 | W96: 3 | X96: 0 | Y96: 1 | Z96: 0 | AA96: 0 | AB96: 0 | AC96: 0 | AD96: 0 | AE96: 0 | AF96: 0 | AG96: 0 | AH96: 0 | AI96: 1 | AJ96: 0 | AK96: 1 | AL96: 2 | AM96: 0 | AN96: 0 | AO96: 0 | AP96: 2 | AQ96: 0 | AR96: 6 | AS96: 2 | AT96: 12 | AU96: 1 | AV96: 0 | AW96: 3 | AX96: 0 | AY96: 0 | AZ96: 0 | BA96: 0 | BB96: 0 | BC96: 0 | BD96: 0 | BE96: 1 | BF96: 4 | BG96: 2 | BH96: 2 | BI96: 2 | BJ96: 0 | BK96: 0 | BL96: 1 | BM96: 1 | BN96: 0 | BO96: 0 | BP96: 0 | BQ96: 0 | BR96: 0 | BS96: 0 | BT96: 0 | BU96: 0 | BV96: 0 | BW96: 0 | BX96: 0 | BY96: 1 | BZ96: 0 | CA96: 0 | CB96: 0 | CC96: 0 | CD96: 0 | CE96: 0 | CF96: 0 | CG96: 0 | CH96: 0 | CI96: 0 | CJ96: 0 | CK96: 0 | CL96: 0 | CM96: 0 | CN96: 0 | CO96: 0 | CP96: 0 | CQ96: 0 | CR96: 0 | CS96: 0 | CT96: 0 | CU96: 0 | CV96: 0 | CX96: 6384.299872 | CY96: 9576.449809 | CZ96: 9576.449809 | DA96: 9576.449809 | DB96: 15960.74968 | DC96: 3192.149936 | DD96: 9576.449809 | DE96: 3192.149936 | DF96: 3192.149936 | DG96: 3192.149936 | DH96: 6384.299872 | DI96: 6384.299872 | DJ96: 0 | DK96: 9576.449809 | DL96: 0 | DM96: 3192.149936 | DN96: 0 | DO96: 0 | DP96: 0 | DQ96: 0 | DR96: 0 | DS96: 0 | DT96: 0 | DU96: 0 | DV96: 0 | DW96: 3192.149936 | DX96: 0 | DY96: 3192.149936 | DZ96: 6384.299872 | EA96: 0 | EB96: 0 | EC96: 0 | ED96: 6384.299872 | EE96: 0 | EF96: 19152.89962 | EG96: 6384.299872 | EH96: 38305.79923 | EI96: 3192.149936 | EJ96: 0 | EK96: 9576.449809 | EL96: 0 | EM96: 0 | EN96: 0 | EO96: 0 | EP96: 0 | EQ96: 0 | ER96: 0 | ES96: 3192.149936 | ET96: 12768.59974 | EU96: 6384.299872 | EV96: 6384.299872 | EW96: 6384.299872 | EX96: 0 | EY96: 0 | EZ96: 3192.149936 | FA96: 3192.149936 | FB96: 0 | FC96: 0 | FD96: 0 | FE96: 0 | FF96: 0 | FG96: 0 | FH96: 0 | FI96: 0 | FJ96: 0 | FK96: 0 | FL96: 0 | FM96: 3192.149936 | FN96: 0 | FO96: 0 | FP96: 0 | FQ96: 0 | FR96: 0 | FS96: 0 | FT96: 0 | FU96: 0 | FV96: 0 | FW96: 0 | FX96: 0 | FY96: 0 | FZ96: 0 | GA96: 0 | GB96: 0 | GC96: 0 | GD96: 0 | GE96: 0 | GF96: 0 | GG96: 0 | GH96: 0 | GI96: 0 | GJ96: 0
A97: 5 | D97: TRANSFORMERS | E97: Ground Outdoor / Indoor Chamber Mounted; > 33 kV & < = 66 kV ; > 40 MVA | F97: 351.1457261 | G97: 61.65095265 | H97: 7.851812062 | I97: 2 | J97: 0 | K97: 0 | L97: 0 | M97: 0 | N97: 0 | O97: 0 | P97: 0 | Q97: 0 | R97: 0 | S97: 0 | T97: 0 | U97: 0 | V97: 0 | W97: 0 | X97: 0 | Y97: 0 | Z97: 0 | AA97: 0 | AB97: 0 | AC97: 0 | AD97: 0 | AE97: 0 | AF97: 0 | AG97: 0 | AH97: 0 | AI97: 0 | AJ97: 0 | AK97: 0 | AL97: 0 | AM97: 0 | AN97: 0 | AO97: 0 | AP97: 0 | AQ97: 0 | AR97: 0 | AS97: 0 | AT97: 0 | AU97: 0 | AV97: 0 | AW97: 0 | AX97: 0 | AY97: 0 | AZ97: 0 | BA97: 0 | BB97: 0 | BC97: 0 | BD97: 0 | BE97: 0 | BF97: 0 | BG97: 0 | BH97: 0 | BI97: 0 | BJ97: 0 | BK97: 0 | BL97: 0 | BM97: 1 | BN97: 0 | BO97: 0 | BP97: 0 | BQ97: 0 | BR97: 0 | BS97: 0 | BT97: 0 | BU97: 0 | BV97: 0 | BW97: 0 | BX97: 0 | BY97: 0 | BZ97: 0 | CA97: 0 | CB97: 0 | CC97: 0 | CD97: 0 | CE97: 0 | CF97: 0 | CG97: 0 | CH97: 0 | CI97: 0 | CJ97: 0 | CK97: 0 | CL97: 0 | CM97: 0 | CN97: 0 | CO97: 0 | CP97: 0 | CQ97: 0 | CR97: 0 | CS97: 0 | CT97: 0 | CU97: 0 | CV97: 0 | CX97: 0 | CY97: 0 | CZ97: 0 | DA97: 0 | DB97: 0 | DC97: 0 | DD97: 0 | DE97: 0 | DF97: 0 | DG97: 0 | DH97: 0 | DI97: 0 | DJ97: 0 | DK97: 0 | DL97: 0 | DM97: 0 | DN97: 0 | DO97: 0 | DP97: 0 | DQ97: 0 | DR97: 0 | DS97: 0 | DT97: 0 | DU97: 0 | DV97: 0 | DW97: 0 | DX97: 0 | DY97: 0 | DZ97: 0 | EA97: 0 | EB97: 0 | EC97: 0 | ED97: 0 | EE97: 0 | EF97: 0 | EG97: 0 | EH97: 0 | EI97: 0 | EJ97: 0 | EK97: 0 | EL97: 0 | EM97: 0 | EN97: 0 | EO97: 0 | EP97: 0 | EQ97: 0 | ER97: 0 | ES97: 0 | ET97: 0 | EU97: 0 | EV97: 0 | EW97: 0 | EX97: 0 | EY97: 0 | EZ97: 0 | FA97: 351.1457261 | FB97: 0 | FC97: 0 | FD97: 0 | FE97: 0 | FF97: 0 | FG97: 0 | FH97: 0 | FI97: 0 | FJ97: 0 | FK97: 0 | FL97: 0 | FM97: 0 | FN97: 0 | FO97: 0 | FP97: 0 | FQ97: 0 | FR97: 0 | FS97: 0 | FT97: 0 | FU97: 0 | FV97: 0 | FW97: 0 | FX97: 0 | FY97: 0 | FZ97: 0 | GA97: 0 | GB97: 0 | GC97: 0 | GD97: 0 | GE97: 0 | GF97: 0 | GG97: 0 | GH97: 0 | GI97: 0 | GJ97: 0
E98: Ground Outdoor / Indoor Chamber Mounted; > 66 kV & < = 132 kV ; < = 100 MVA | F98: 3122.741652 | G98: 0 | H98: 0 | I98: 2
E99: Ground Outdoor / Indoor Chamber Mounted; > 66 kV & < = 132 kV ; > 100 MVA | F99: 4267.16617 | G99: 0 | H99: 0 | I99: 2
E100: Ground Outdoor / Indoor Chamber Mounted; > 132 kV ; < = 100 MVA | F100: 0.0001 | G100: 0 | H100: 0 | I100: 2
E101: Ground Outdoor / Indoor Chamber Mounted; > 132 kV ; > 100 MVA | F101: 0.0001 | G101: 0 | H101: 0 | I101: 2
A102: 5 | D102: TRANSFORMERS | E102: Other | F102: 61.44317589 | G102: 66.7773034 | H102: 8.171738089 | I102: 2 | J102: 214 | K102: 356 | L102: 209 | M102: 384 | N102: 377 | O102: 192 | P102: 448 | Q102: 557 | R102: 587 | S102: 498 | T102: 413 | U102: 427 | V102: 394 | W102: 436 | X102: 378 | Y102: 386 | Z102: 415 | AA102: 347 | AB102: 347 | AC102: 351 | AD102: 384 | AE102: 423 | AF102: 412 | AG102: 463 | AH102: 521 | AI102: 618 | AJ102: 686 | AK102: 591 | AL102: 559 | AM102: 615 | AN102: 516 | AO102: 421 | AP102: 445 | AQ102: 494 | AR102: 482 | AS102: 465 | AT102: 378 | AU102: 372 | AV102: 518 | AW102: 223 | AX102: 166 | AY102: 199 | AZ102: 162 | BA102: 140 | BB102: 261 | BC102: 287 | BD102: 299 | BE102: 328 | BF102: 364 | BG102: 326 | BH102: 309 | BI102: 187 | BJ102: 162 | BK102: 138 | BL102: 119 | BM102: 75 | BN102: 86 | BO102: 56 | BP102: 46 | BQ102: 31 | BR102: 21 | BS102: 20 | BT102: 14 | BU102: 5 | BV102: 2 | BW102: 0 | BX102: 0 | BY102: 0 | BZ102: 0 | CA102: 0 | CB102: 0 | CC102: 0 | CD102: 0 | CE102: 0 | CF102: 0 | CG102: 0 | CH102: 0 | CI102: 0 | CJ102: 0 | CK102: 0 | CL102: 0 | CM102: 0 | CN102: 0 | CO102: 0 | CP102: 0 | CQ102: 0 | CR102: 0 | CS102: 0 | CT102: 0 | CU102: 0 | CV102: 0 | CX102: 13148.83964 | CY102: 21873.77062 | CZ102: 12841.62376 | DA102: 23594.17954 | DB102: 23164.07731 | DC102: 11797.08977 | DD102: 27526.5428 | DE102: 34223.84897 | DF102: 36067.14424 | DG102: 30598.70159 | DH102: 25376.03164 | DI102: 26236.2361 | DJ102: 24208.6113 | DK102: 26789.22469 | DL102: 23225.52048 | DM102: 23717.06589 | DN102: 25498.91799 | DO102: 21320.78203 | DP102: 21320.78203 | DQ102: 21566.55474 | DR102: 23594.17954 | DS102: 25990.4634 | DT102: 25314.58846 | DU102: 28448.19044 | DV102: 32011.89464 | DW102: 37971.8827 | DX102: 42150.01866 | DY102: 36312.91695 | DZ102: 34346.73532 | EA102: 37787.55317 | EB102: 31704.67876 | EC102: 25867.57705 | ED102: 27342.21327 | EE102: 30352.92889 | EF102: 29615.61078 | EG102: 28571.07679 | EH102: 23225.52048 | EI102: 22856.86143 | EJ102: 31827.56511 | EK102: 13701.82822 | EL102: 10199.5672 | EM102: 12227.192 | EN102: 9953.794493 | EO102: 8602.044624 | EP102: 16036.66891 | EQ102: 17634.19148 | ER102: 18371.50959 | ES102: 20153.36169 | ET102: 22365.31602 | EU102: 20030.47534 | EV102: 18985.94135 | EW102: 11489.87389 | EX102: 9953.794493 | EY102: 8479.158272 | EZ102: 7311.73793 | FA102: 4608.238191 | FB102: 5284.113126 | FC102: 3440.81785 | FD102: 2826.386091 | FE102: 1904.738452 | FF102: 1290.306694 | FG102: 1228.863518 | FH102: 860.2044624 | FI102: 307.2158794 | FJ102: 122.8863518 | FK102: 0 | FL102: 0 | FM102: 0 | FN102: 0 | FO102: 0 | FP102: 0 | FQ102: 0 | FR102: 0 | FS102: 0 | FT102: 0 | FU102: 0 | FV102: 0 | FW102: 0 | FX102: 0 | FY102: 0 | FZ102: 0 | GA102: 0 | GB102: 0 | GC102: 0 | GD102: 0 | GE102: 0 | GF102: 0 | GG102: 0 | GH102: 0 | GI102: 0 | GJ102: 0
E103: ˂ = 11 kV ; Fuse | F103: 1.647177725 | G103: 0 | H103: 0 | I103: 2
A104: 6 | D104: SWITCHGEAR | E104: ˂ = 11 kV ; Switch | F104: 82.64728371 | G104: 61.9974694 | H104: 7.873847179 | I104: 2 | J104: 3 | K104: 5 | L104: 3 | M104: 4 | N104: 4 | O104: 7 | P104: 2 | Q104: 9 | R104: 0 | S104: 4 | T104: 0 | U104: 0 | V104: 1 | W104: 2 | X104: 1 | Y104: 1 | Z104: 0 | AA104: 0 | AB104: 0 | AC104: 0 | AD104: 0 | AE104: 0 | AF104: 0 | AG104: 0 | AH104: 0 | AI104: 1 | AJ104: 0 | AK104: 2 | AL104: 0 | AM104: 1 | AN104: 3 | AO104: 1 | AP104: 0 | AQ104: 2 | AR104: 0 | AS104: 2 | AT104: 6 | AU104: 0 | AV104: 3 | AW104: 2 | AX104: 0 | AY104: 0 | AZ104: 0 | BA104: 0 | BB104: 1 | BC104: 4 | BD104: 2 | BE104: 3 | BF104: 1 | BG104: 2 | BH104: 0 | BI104: 1 | BJ104: 3 | BK104: 0 | BL104: 1 | BM104: 2 | BN104: 1 | BO104: 0 | BP104: 0 | BQ104: 1 | BR104: 1 | BS104: 0 | BT104: 0 | BU104: 0 | BV104: 0 | BW104: 0 | BX104: 0 | BY104: 0 | BZ104: 0 | CA104: 0 | CB104: 0 | CC104: 0 | CD104: 0 | CE104: 0 | CF104: 0 | CG104: 0 | CH104: 0 | CI104: 0 | CJ104: 0 | CK104: 0 | CL104: 0 | CM104: 0 | CN104: 0 | CO104: 0 | CP104: 0 | CQ104: 0 | CR104: 0 | CS104: 0 | CT104: 0 | CU104: 0 | CV104: 0 | CX104: 247.9418511 | CY104: 413.2364185 | CZ104: 247.9418511 | DA104: 330.5891348 | DB104: 330.5891348 | DC104: 578.530986 | DD104: 165.2945674 | DE104: 743.8255534 | DF104: 0 | DG104: 330.5891348 | DH104: 0 | DI104: 0 | DJ104: 82.64728371 | DK104: 165.2945674 | DL104: 82.64728371 | DM104: 82.64728371 | DN104: 0 | DO104: 0 | DP104: 0 | DQ104: 0 | DR104: 0 | DS104: 0 | DT104: 0 | DU104: 0 | DV104: 0 | DW104: 82.64728371 | DX104: 0 | DY104: 165.2945674 | DZ104: 0 | EA104: 82.64728371 | EB104: 247.9418511 | EC104: 82.64728371 | ED104: 0 | EE104: 165.2945674 | EF104: 0 | EG104: 165.2945674 | EH104: 495.8837023 | EI104: 0 | EJ104: 247.9418511 | EK104: 165.2945674 | EL104: 0 | EM104: 0 | EN104: 0 | EO104: 0 | EP104: 82.64728371 | EQ104: 330.5891348 | ER104: 165.2945674 | ES104: 247.9418511 | ET104: 82.64728371 | EU104: 165.2945674 | EV104: 0 | EW104: 82.64728371 | EX104: 247.9418511 | EY104: 0 | EZ104: 82.64728371 | FA104: 165.2945674 | FB104: 82.64728371 | FC104: 0 | FD104: 0 | FE104: 82.64728371 | FF104: 82.64728371 | FG104: 0 | FH104: 0 | FI104: 0 | FJ104: 0 | FK104: 0 | FL104: 0 | FM104: 0 | FN104: 0 | FO104: 0 | FP104: 0 | FQ104: 0 | FR104: 0 | FS104: 0 | FT104: 0 | FU104: 0 | FV104: 0 | FW104: 0 | FX104: 0 | FY104: 0 | FZ104: 0 | GA104: 0 | GB104: 0 | GC104: 0 | GD104: 0 | GE104: 0 | GF104: 0 | GG104: 0 | GH104: 0 | GI104: 0 | GJ104: 0
A105: 6 | D105: SWITCHGEAR | E105: ˂ = 11 kV ; Circuit Breaker | F105: 96.71508106 | G105: 57.20413243 | H105: 7.563341354 | I105: 2 | J105: 0 | K105: 0 | L105: 0 | M105: 1 | N105: 0 | O105: 0 | P105: 0 | Q105: 0 | R105: 0 | S105: 0 | T105: 0 | U105: 0 | V105: 0 | W105: 0 | X105: 0 | Y105: 0 | Z105: 0 | AA105: 0 | AB105: 0 | AC105: 0 | AD105: 2 | AE105: 0 | AF105: 0 | AG105: 0 | AH105: 1 | AI105: 2 | AJ105: 2 | AK105: 2 | AL105: 0 | AM105: 0 | AN105: 20 | AO105: 0 | AP105: 0 | AQ105: 0 | AR105: 0 | AS105: 1 | AT105: 1 | AU105: 0 | AV105: 1 | AW105: 0 | AX105: 0 | AY105: 0 | AZ105: 0 | BA105: 0 | BB105: 0 | BC105: 1 | BD105: 0 | BE105: 1 | BF105: 0 | BG105: 0 | BH105: 8 | BI105: 0 | BJ105: 2 | BK105: 0 | BL105: 1 | BM105: 1 | BN105: 12 | BO105: 0 | BP105: 0 | BQ105: 0 | BR105: 0 | BS105: 0 | BT105: 0 | BU105: 0 | BV105: 0 | BW105: 0 | BX105: 0 | BY105: 0 | BZ105: 0 | CA105: 0 | CB105: 0 | CC105: 0 | CD105: 0 | CE105: 0 | CF105: 0 | CG105: 0 | CH105: 0 | CI105: 0 | CJ105: 0 | CK105: 0 | CL105: 0 | CM105: 0 | CN105: 0 | CO105: 0 | CP105: 0 | CQ105: 0 | CR105: 0 | CS105: 0 | CT105: 0 | CU105: 0 | CV105: 0 | CX105: 0 | CY105: 0 | CZ105: 0 | DA105: 96.71508106 | DB105: 0 | DC105: 0 | DD105: 0 | DE105: 0 | DF105: 0 | DG105: 0 | DH105: 0 | DI105: 0 | DJ105: 0 | DK105: 0 | DL105: 0 | DM105: 0 | DN105: 0 | DO105: 0 | DP105: 0 | DQ105: 0 | DR105: 193.4301621 | DS105: 0 | DT105: 0 | DU105: 0 | DV105: 96.71508106 | DW105: 193.4301621 | DX105: 193.4301621 | DY105: 193.4301621 | DZ105: 0 | EA105: 0 | EB105: 1934.301621 | EC105: 0 | ED105: 0 | EE105: 0 | EF105: 0 | EG105: 96.71508106 | EH105: 96.71508106 | EI105: 0 | EJ105: 96.71508106 | EK105: 0 | EL105: 0 | EM105: 0 | EN105: 0 | EO105: 0 | EP105: 0 | EQ105: 96.71508106 | ER105: 0 | ES105: 96.71508106 | ET105: 0 | EU105: 0 | EV105: 773.7206485 | EW105: 0 | EX105: 193.4301621 | EY105: 0 | EZ105: 96.71508106 | FA105: 96.71508106 | FB105: 1160.580973 | FC105: 0 | FD105: 0 | FE105: 0 | FF105: 0 | FG105: 0 | FH105: 0 | FI105: 0 | FJ105: 0 | FK105: 0 | FL105: 0 | FM105: 0 | FN105: 0 | FO105: 0 | FP105: 0 | FQ105: 0 | FR105: 0 | FS105: 0 | FT105: 0 | FU105: 0 | FV105: 0 | FW105: 0 | FX105: 0 | FY105: 0 | FZ105: 0 | GA105: 0 | GB105: 0 | GC105: 0 | GD105: 0 | GE105: 0 | GF105: 0 | GG105: 0 | GH105: 0 | GI105: 0 | GJ105: 0
A106: 6 | D106: SWITCHGEAR | E106: > 11 kV & < = 22 kV ; Switch | F106: 24.1991938 | G106: 80.30990086 | H106: 8.96157915 | I106: 2 | J106: 552 | K106: 808 | L106: 657 | M106: 666 | N106: 681 | O106: 728 | P106: 693 | Q106: 562 | R106: 497 | S106: 474 | T106: 341 | U106: 211 | V106: 222 | W106: 315 | X106: 122 | Y106: 144 | Z106: 21 | AA106: 27 | AB106: 28 | AC106: 23 | AD106: 20 | AE106: 16 | AF106: 16 | AG106: 29 | AH106: 16 | AI106: 96 | AJ106: 17 | AK106: 228 | AL106: 42 | AM106: 133 | AN106: 31 | AO106: 85 | AP106: 31 | AQ106: 248 | AR106: 42 | AS106: 286 | AT106: 733 | AU106: 13 | AV106: 447 | AW106: 264 | AX106: 13 | AY106: 13 | AZ106: 19 | BA106: 13 | BB106: 118 | BC106: 553 | BD106: 225 | BE106: 326 | BF106: 119 | BG106: 224 | BH106: 39 | BI106: 130 | BJ106: 365 | BK106: 26 | BL106: 104 | BM106: 300 | BN106: 144 | BO106: 13 | BP106: 13 | BQ106: 65 | BR106: 170 | BS106: 13 | BT106: 39 | BU106: 13 | BV106: 26 | BW106: 13 | BX106: 13 | BY106: 13 | BZ106: 13 | CA106: 13 | CB106: 13 | CC106: 13 | CD106: 13 | CE106: 13 | CF106: 13 | CG106: 13 | CH106: 13 | CI106: 13 | CJ106: 13 | CK106: 13 | CL106: 13 | CM106: 13 | CN106: 13 | CO106: 13 | CP106: 13 | CQ106: 13 | CR106: 13 | CS106: 13 | CT106: 13 | CU106: 13 | CV106: 182 | CX106: 13357.95498 | CY106: 19552.94859 | CZ106: 15898.87032 | DA106: 16116.66307 | DB106: 16479.65098 | DC106: 17617.01308 | DD106: 16770.0413 | DE106: 13599.94691 | DF106: 12026.99932 | DG106: 11470.41786 | DH106: 8251.925085 | DI106: 5106.029891 | DJ106: 5372.221023 | DK106: 7622.746046 | DL106: 2952.301643 | DM106: 3484.683907 | DN106: 508.1830697 | DO106: 653.3782325 | DP106: 677.5774263 | DQ106: 556.5814573 | DR106: 483.9838759 | DS106: 387.1871007 | DT106: 387.1871007 | DU106: 701.7766201 | DV106: 387.1871007 | DW106: 2323.122604 | DX106: 411.3862945 | DY106: 5517.416186 | DZ106: 1016.366139 | EA106: 3218.492775 | EB106: 750.1750077 | EC106: 2056.931473 | ED106: 750.1750077 | EE106: 6001.400062 | EF106: 1016.366139 | EG106: 6920.969426 | EH106: 17738.00905 | EI106: 314.5895194 | EJ106: 10817.03963 | EK106: 6388.587162 | EL106: 314.5895194 | EM106: 314.5895194 | EN106: 459.7846821 | EO106: 314.5895194 | EP106: 2855.504868 | EQ106: 13382.15417 | ER106: 5444.818604 | ES106: 7888.937178 | ET106: 2879.704062 | EU106: 5420.61941 | EV106: 943.7685581 | EW106: 3145.895194 | EX106: 8832.705736 | EY106: 629.1790387 | EZ106: 2516.716155 | FA106: 7259.758139 | FB106: 3484.683907 | FC106: 314.5895194 | FD106: 314.5895194 | FE106: 1572.947597 | FF106: 4113.862945 | FG106: 314.5895194 | FH106: 943.7685581 | FI106: 314.5895194 | FJ106: 629.1790387 | FK106: 314.5895194 | FL106: 314.5895194 | FM106: 314.5895194 | FN106: 314.5895194 | FO106: 314.5895194 | FP106: 314.5895194 | FQ106: 314.5895194 | FR106: 314.5895194 | FS106: 314.5895194 | FT106: 314.5895194 | FU106: 314.5895194 | FV106: 314.5895194 | FW106: 314.5895194 | FX106: 314.5895194 | FY106: 314.5895194 | FZ106: 314.5895194 | GA106: 314.5895194 | GB106: 314.5895194 | GC106: 314.5895194 | GD106: 314.5895194 | GE106: 314.5895194 | GF106: 314.5895194 | GG106: 314.5895194 | GH106: 314.5895194 | GI106: 314.5895194 | GJ106: 4404.253271
A107: 6 | D107: SWITCHGEAR | E107: > 11 kV & < = 22 kV ; Circuit Breaker | F107: 177.5701004 | G107: 52.69641828 | H107: 7.259229868 | I107: 2 | J107: 7 | K107: 9 | L107: 15 | M107: 16 | N107: 12 | O107: 16 | P107: 14 | Q107: 15 | R107: 18 | S107: 12 | T107: 23 | U107: 14 | V107: 15 | W107: 25 | X107: 7 | Y107: 13 | Z107: 0 | AA107: 2 | AB107: 2 | AC107: 0 | AD107: 0 | AE107: 0 | AF107: 0 | AG107: 2 | AH107: 0 | AI107: 9 | AJ107: 0 | AK107: 22 | AL107: 3 | AM107: 13 | AN107: 0 | AO107: 7 | AP107: 0 | AQ107: 21 | AR107: 0 | AS107: 28 | AT107: 74 | AU107: 0 | AV107: 45 | AW107: 26 | AX107: 0 | AY107: 0 | AZ107: 0 | BA107: 0 | BB107: 11 | BC107: 56 | BD107: 22 | BE107: 33 | BF107: 11 | BG107: 22 | BH107: 3 | BI107: 13 | BJ107: 37 | BK107: 2 | BL107: 10 | BM107: 30 | BN107: 14 | BO107: 0 | BP107: 0 | BQ107: 6 | BR107: 17 | BS107: 0 | BT107: 3 | BU107: 0 | BV107: 2 | BW107: 0 | BX107: 0 | BY107: 0 | BZ107: 0 | CA107: 0 | CB107: 0 | CC107: 0 | CD107: 0 | CE107: 0 | CF107: 0 | CG107: 0 | CH107: 0 | CI107: 0 | CJ107: 0 | CK107: 0 | CL107: 0 | CM107: 0 | CN107: 0 | CO107: 0 | CP107: 0 | CQ107: 0 | CR107: 0 | CS107: 0 | CT107: 0 | CU107: 0 | CV107: 0 | CX107: 1242.990703 | CY107: 1598.130904 | CZ107: 2663.551506 | DA107: 2841.121607 | DB107: 2130.841205 | DC107: 2841.121607 | DD107: 2485.981406 | DE107: 2663.551506 | DF107: 3196.261807 | DG107: 2130.841205 | DH107: 4084.112309 | DI107: 2485.981406 | DJ107: 2663.551506 | DK107: 4439.25251 | DL107: 1242.990703 | DM107: 2308.411305 | DN107: 0 | DO107: 355.1402008 | DP107: 355.1402008 | DQ107: 0 | DR107: 0 | DS107: 0 | DT107: 0 | DU107: 355.1402008 | DV107: 0 | DW107: 1598.130904 | DX107: 0 | DY107: 3906.542209 | DZ107: 532.7103012 | EA107: 2308.411305 | EB107: 0 | EC107: 1242.990703 | ED107: 0 | EE107: 3728.972109 | EF107: 0 | EG107: 4971.962811 | EH107: 13140.18743 | EI107: 0 | EJ107: 7990.654518 | EK107: 4616.822611 | EL107: 0 | EM107: 0 | EN107: 0 | EO107: 0 | EP107: 1953.271104 | EQ107: 9943.925623 | ER107: 3906.542209 | ES107: 5859.813313 | ET107: 1953.271104 | EU107: 3906.542209 | EV107: 532.7103012 | EW107: 2308.411305 | EX107: 6570.093715 | EY107: 355.1402008 | EZ107: 1775.701004 | FA107: 5327.103012 | FB107: 2485.981406 | FC107: 0 | FD107: 0 | FE107: 1065.420602 | FF107: 3018.691707 | FG107: 0 | FH107: 532.7103012 | FI107: 0 | FJ107: 355.1402008 | FK107: 0 | FL107: 0 | FM107: 0 | FN107: 0 | FO107: 0 | FP107: 0 | FQ107: 0 | FR107: 0 | FS107: 0 | FT107: 0 | FU107: 0 | FV107: 0 | FW107: 0 | FX107: 0 | FY107: 0 | FZ107: 0 | GA107: 0 | GB107: 0 | GC107: 0 | GD107: 0 | GE107: 0 | GF107: 0 | GG107: 0 | GH107: 0 | GI107: 0 | GJ107: 0
E108: > 22 kV & < = 33 kV ; Switch | F108: 58.72116244 | G108: 0 | H108: 0 | I108: 2
E109: > 22 kV & < = 33 kV ; Circuit Breaker | F109: 211.5176893 | G109: 0 | H109: 0 | I109: 2
A110: 6 | D110: SWITCHGEAR | E110: > 33 kV & < = 66 kV ; Switch | F110: 71.66604134 | G110: 58.99602256 | H110: 7.680886834 | I110: 2 | J110: 0 | K110: 1 | L110: 6 | M110: 0 | N110: 3 | O110: 2 | P110: 6 | Q110: 2 | R110: 8 | S110: 4 | T110: 3 | U110: 4 | V110: 8 | W110: 15 | X110: 3 | Y110: 5 | Z110: 0 | AA110: 1 | AB110: 1 | AC110: 0 | AD110: 0 | AE110: 0 | AF110: 0 | AG110: 1 | AH110: 0 | AI110: 3 | AJ110: 0 | AK110: 8 | AL110: 1 | AM110: 5 | AN110: 0 | AO110: 4 | AP110: 0 | AQ110: 8 | AR110: 0 | AS110: 10 | AT110: 26 | AU110: 0 | AV110: 16 | AW110: 9 | AX110: 0 | AY110: 0 | AZ110: 0 | BA110: 0 | BB110: 4 | BC110: 20 | BD110: 8 | BE110: 12 | BF110: 4 | BG110: 11 | BH110: 13 | BI110: 5 | BJ110: 13 | BK110: 4 | BL110: 4 | BM110: 11 | BN110: 5 | BO110: 0 | BP110: 0 | BQ110: 2 | BR110: 6 | BS110: 0 | BT110: 1 | BU110: 0 | BV110: 1 | BW110: 0 | BX110: 0 | BY110: 0 | BZ110: 0 | CA110: 0 | CB110: 0 | CC110: 0 | CD110: 0 | CE110: 0 | CF110: 0 | CG110: 0 | CH110: 0 | CI110: 0 | CJ110: 0 | CK110: 0 | CL110: 0 | CM110: 0 | CN110: 0 | CO110: 0 | CP110: 0 | CQ110: 0 | CR110: 0 | CS110: 0 | CT110: 0 | CU110: 0 | CV110: 0 | CX110: 0 | CY110: 71.66604134 | CZ110: 429.9962481 | DA110: 0 | DB110: 214.998124 | DC110: 143.3320827 | DD110: 429.9962481 | DE110: 143.3320827 | DF110: 573.3283307 | DG110: 286.6641654 | DH110: 214.998124 | DI110: 286.6641654 | DJ110: 573.3283307 | DK110: 1074.99062 | DL110: 214.998124 | DM110: 358.3302067 | DN110: 0 | DO110: 71.66604134 | DP110: 71.66604134 | DQ110: 0 | DR110: 0 | DS110: 0 | DT110: 0 | DU110: 71.66604134 | DV110: 0 | DW110: 214.998124 | DX110: 0 | DY110: 573.3283307 | DZ110: 71.66604134 | EA110: 358.3302067 | EB110: 0 | EC110: 286.6641654 | ED110: 0 | EE110: 573.3283307 | EF110: 0 | EG110: 716.6604134 | EH110: 1863.317075 | EI110: 0 | EJ110: 1146.656661 | EK110: 644.9943721 | EL110: 0 | EM110: 0 | EN110: 0 | EO110: 0 | EP110: 286.6641654 | EQ110: 1433.320827 | ER110: 573.3283307 | ES110: 859.9924961 | ET110: 286.6641654 | EU110: 788.3264548 | EV110: 931.6585375 | EW110: 358.3302067 | EX110: 931.6585375 | EY110: 286.6641654 | EZ110: 286.6641654 | FA110: 788.3264548 | FB110: 358.3302067 | FC110: 0 | FD110: 0 | FE110: 143.3320827 | FF110: 429.9962481 | FG110: 0 | FH110: 71.66604134 | FI110: 0 | FJ110: 71.66604134 | FK110: 0 | FL110: 0 | FM110: 0 | FN110: 0 | FO110: 0 | FP110: 0 | FQ110: 0 | FR110: 0 | FS110: 0 | FT110: 0 | FU110: 0 | FV110: 0 | FW110: 0 | FX110: 0 | FY110: 0 | FZ110: 0 | GA110: 0 | GB110: 0 | GC110: 0 | GD110: 0 | GE110: 0 | GF110: 0 | GG110: 0 | GH110: 0 | GI110: 0 | GJ110: 0
A111: 6 | D111: SWITCHGEAR | E111: > 33 kV & < = 66 kV ; Circuit Breaker | F111: 291.5879482 | G111: 52.43902241 | H111: 7.241479297 | I111: 2 | J111: 7 | K111: 4 | L111: 2 | M111: 9 | N111: 6 | O111: 8 | P111: 4 | Q111: 3 | R111: 4 | S111: 7 | T111: 6 | U111: 5 | V111: 2 | W111: 5 | X111: 2 | Y111: 1 | Z111: 1 | AA111: 0 | AB111: 0 | AC111: 0 | AD111: 0 | AE111: 0 | AF111: 0 | AG111: 0 | AH111: 0 | AI111: 1 | AJ111: 0 | AK111: 0 | AL111: 2 | AM111: 0 | AN111: 3 | AO111: 0 | AP111: 18 | AQ111: 0 | AR111: 0 | AS111: 0 | AT111: 0 | AU111: 21 | AV111: 0 | AW111: 18 | AX111: 0 | AY111: 0 | AZ111: 0 | BA111: 0 | BB111: 0 | BC111: 5 | BD111: 0 | BE111: 6 | BF111: 0 | BG111: 4 | BH111: 5 | BI111: 12 | BJ111: 9 | BK111: 0 | BL111: 6 | BM111: 1 | BN111: 0 | BO111: 0 | BP111: 0 | BQ111: 0 | BR111: 0 | BS111: 0 | BT111: 0 | BU111: 0 | BV111: 0 | BW111: 0 | BX111: 0 | BY111: 0 | BZ111: 0 | CA111: 0 | CB111: 0 | CC111: 0 | CD111: 0 | CE111: 0 | CF111: 0 | CG111: 0 | CH111: 0 | CI111: 0 | CJ111: 0 | CK111: 0 | CL111: 0 | CM111: 0 | CN111: 0 | CO111: 0 | CP111: 0 | CQ111: 0 | CR111: 0 | CS111: 0 | CT111: 0 | CU111: 0 | CV111: 0 | CX111: 2041.115637 | CY111: 1166.351793 | CZ111: 583.1758964 | DA111: 2624.291534 | DB111: 1749.527689 | DC111: 2332.703585 | DD111: 1166.351793 | DE111: 874.7638445 | DF111: 1166.351793 | DG111: 2041.115637 | DH111: 1749.527689 | DI111: 1457.939741 | DJ111: 583.1758964 | DK111: 1457.939741 | DL111: 583.1758964 | DM111: 291.5879482 | DN111: 291.5879482 | DO111: 0 | DP111: 0 | DQ111: 0 | DR111: 0 | DS111: 0 | DT111: 0 | DU111: 0 | DV111: 0 | DW111: 291.5879482 | DX111: 0 | DY111: 0 | DZ111: 583.1758964 | EA111: 0 | EB111: 874.7638445 | EC111: 0 | ED111: 5248.583067 | EE111: 0 | EF111: 0 | EG111: 0 | EH111: 0 | EI111: 6123.346912 | EJ111: 0 | EK111: 5248.583067 | EL111: 0 | EM111: 0 | EN111: 0 | EO111: 0 | EP111: 0 | EQ111: 1457.939741 | ER111: 0 | ES111: 1749.527689 | ET111: 0 | EU111: 1166.351793 | EV111: 1457.939741 | EW111: 3499.055378 | EX111: 2624.291534 | EY111: 0 | EZ111: 1749.527689 | FA111: 291.5879482 | FB111: 0 | FC111: 0 | FD111: 0 | FE111: 0 | FF111: 0 | FG111: 0 | FH111: 0 | FI111: 0 | FJ111: 0 | FK111: 0 | FL111: 0 | FM111: 0 | FN111: 0 | FO111: 0 | FP111: 0 | FQ111: 0 | FR111: 0 | FS111: 0 | FT111: 0 | FU111: 0 | FV111: 0 | FW111: 0 | FX111: 0 | FY111: 0 | FZ111: 0 | GA111: 0 | GB111: 0 | GC111: 0 | GD111: 0 | GE111: 0 | GF111: 0 | GG111: 0 | GH111: 0 | GI111: 0 | GJ111: 0
E112: > 66 kV & < = 132 kV ; Switch | F112: 152.263602 | G112: 0 | H112: 0 | I112: 2
E113: > 66 kV & < = 132 kV ; Circuit Breaker | F113: 183.0976595 | G113: 0 | H113: 0 | I113: 2
E114: > 132 kV ; Switch | F114: 0.0001 | G114: 0 | H114: 0 | I114: 2
E115: > 132 kV ; Circuit Breaker | F115: 0.0001 | G115: 0 | H115: 0 | I115: 2
